Workbook

Sheet START
A1: =muni -> Choose name from list

Sheet Instructions
D2: 2020
X4: Yes
X5: No
W7: Type of Entities Range: | X7: Parent Municipality
X8: Consolidated Information
W10: Date linked | X10: 16
W11: Date | X11: =VLOOKUP(X10,W39:X55,2) -> Q4 Fourth Quarter | Y11: 2013-08-01
W19: MTREF Range: | X19: 2014
X20: 2015
X21: 2016
X22: 2017
X23: 2018
X24: 2019
X25: 2020
X26: 2021
X27: 2022
X28: 2023
X29: 2024
X30: 2025
X31: 2026
X32: 2027
X33: 2028
W34: MTREF Linked:
W35: MTREF: | X35: 11
X36: =INDEX(X19:X32,X35,1) -> 2024
W37: Fin Year:
X38: =MTREF&"/"&RIGHT(MTREF,2)+1 -> 2024/25
V39: Date/type of report | W39: 1 | X39: M01 July
W40: 2 | X40: M02 August
W41: 3 | X41: M03 September
W42: 4 | X42: M04 October
W43: 5 | X43: M05 November
W44: 6 | X44: M06 December
W45: 7 | X45: M07 January
W46: 8 | X46: M08 February
W47: 9 | X47: M09 March
W48: 10 | X48: M10 April
W49: 11 | X49: M11 May
W50: 12 | X50: M12 June
W51: 13 | X51: Q1 First Quarter
W52: 14 | X52: Q2 Second Quarter
W53: 15 | X53: Q3 Third Quarter
W54: 16 | X54: Q4 Fourth Quarter
W55: 17 | X55: Mid-Year Assessment

Sheet Template names (hidden)
A1: Common sheet headings
A2: Head1 | B2: =HLOOKUP(MTREF,Headings,2) -> 2023/24 | C2: Prior year -1
A3: Head2 | B3: =HLOOKUP(MTREF,Headings,5) -> Budget Year 2024/25 | C3: Year of approved budget
A4: Head2A | B4: =HLOOKUP(MTREF,Headings,4) -> 2024/25 | C4: Approved budget year
A5: Head3 | B5: =HLOOKUP(MTREF,Headings,3) -> 2024/25 Medium Term Revenue & Expenditure Framework | C5: MTREF header name
A6: Head5 | B6: Audited Outcome
A7: Head5A | B7: Outcome
A8: Head5B | B8: Pre-audit outcome
A9: Head6 | B9: Original Budget
A10: Head7 | B10: Adjusted Budget
A11: Head8 | B11: Full Year Forecast
A12: Head9 | B12: =HLOOKUP(MTREF,Headings,5) -> Budget Year 2024/25 | C12: 1st year of MTREF | D12: Year1
A13: Head10 | B13: =HLOOKUP(MTREF,Headings,6) -> Budget Year +1 2025/26 | C13: 2nd year of MTREF | D13: Year2
A14: Head11 | B14: =HLOOKUP(MTREF,Headings,7) -> Budget Year +2 2026/27 | C14: 3rd year of MTREF | D14: Year3
A15: Head12 | B15: Forecast 2010/11 | D15: Year4
A16: Head13 | B16: Forecast 2011/12 | D16: Year5
A17: Head14 | B17: Forecast 2012/13 | D17: Year6
A18: Head15 | B18: Forecast 2013/14 | D18: Year7
A19: Head16 | B19: Forecast 2014/15 | D19: Year8
A20: Head17 | B20: Forecast 2015/16 | D20: Year9
A21: Head18 | B21: Forecast 2016/17 | D21: Year10
A22: Head19 | B22: Forecast 2017/18 | D22: Year11
A23: Head20 | B23: Forecast 2018/19 | D23: Year12
A24: Head21 | B24: Forecast 2019/20 | D24: Year13
A25: Head22 | B25: Forecast 2020/21 | D25: Year14
A26: Head23 | B26: Forecast 2021/22 | D26: Year15
A27: Head24 | B27: Description | D27: Desc
A28: Head25 | B28: Schedule of funding diligence | D28: fdil
A29: Head26 | B29: Vote Description | D29: VDesc
A30: Head27 | B30: Ref
A31: Head27a | B31: References
A32: Head28 | B32: Surplus/ (Deficit) for the year | D32: Result
A33: Head29 | B33: Annual target 2007/08
A34: Head30 | B34: Revised target 2007/08
A35: Head31 | B35: Quarter ended 30 September
A36: Head32 | B36: Quarter ended 31 December
A37: Head33 | B37: Quarter ended 31 March
A38: Head34 | B38: Quarter ended 30 June
A39: Head35 | B39: Variance explanation
A40: Head36 | B40: YTD Actual 31 Dec
A41: Head37 | B41: YTD Budget 31 Dec
A42: Head38 | B42: Monthly actual
A43: Head39 | B43: YearTD actual
A44: Head40 | B44: YearTD budget
A45: Head41 | B45: YTD variance
A46: Head42 | B46: Surplus/ (Deficit) for the yr/period
A47: Head43 | B47: =Head3&" Summary" -> 2024/25 Medium Term Revenue & Expenditure Framework Summary
A48: Head44 | B48: 1996 Census
A49: Head45 | B49: 2001 Census
A50: Head46 | B50: - Adjustments Budget - Month YYYY
A51: Head47 | B51: Previous target year to complete
A52: Head48 | B52: Present value
A53: Head49 | B53: Virement
A54: Head50 | B54: Other Adjusts.
A55: Head51 | B55: Accum. Funds
A56: Head52 | B56: Multi-year capital
A57: Head53 | B57: Unfore. Unavoid.
A58: Head54 | B58: Prior Adjusted
A59: Head55 | B59: Nat. or Prov. Govt
A60: Head56 | B60: Total Adjusts.
A61: Head57 | B61: =date -> Q4 Fourth Quarter
A62: Head58 | B62: Parent muni.
A63: Head59 | B63: Downward adjusts
A64: Head60 | B64: Month | C64: Report header part name | D64: =date -> Q4 Fourth Quarter
A65: SFPerf1 | B65: Budgeted Financial Performance
A66: SFPerf2 | B66: Forecast Financial Performance
A67: SFPos1 | B67: Budgeted Financial Position
A68: SFPos2 | B68: Forecast Financial Position
A69: Cash1 | B69: Budget Cash Flow
A70: Cash2 | B70: Forecast Cash Flow
A71: RandM | B71: Expenditure includes repairs & maintenance of R'000
A72: Standard nomenclature
A73: Muni | B73: ='Lookup and lists'!B27 -> KZN225 Msunduzi
A74: Municipal Entities | B74: 1 | C74: Type of report: | D74: 2
A75: =IF((MuniEntities=1)*(MuniType=2),"YES","NO") -> YES | B75: Does this municipality have entities (consolidated budget and entity budgets required)? YES/NO
A76: s71 (Monthly Mayor report) schedules and charts
A77: S71sum | B77: =IF(Consolques="YES",E77,F77) -> Table C1 Consolidated Monthly Budget Statement Summary | D77: Table C1 | E77: =D77&"Consolidated Monthly Budget Statement Summary" -> Table C1 Consolidated Monthly Budget Statement Summary | F77: =D77&"Monthly Budget Statement Summary" -> Table C1 Monthly Budget Statement Summary
A78: S71C | B78: Table C3 Consolidated Monthly Budget Statement - Financial Performance (revenue and expenditure by municipal vote) | D78: Table C3 | E78: =D78&"Consolidated Monthly Budget Statement - Financial Performance (revenue and expenditure by municipal vote) " -> Table C3 Consolidated Monthly Budget Statement - Financial Performance (revenue and expenditure by municipal vote) | F78: =D78&"Monthly Budget Statement - Financial Performance (revenue and expenditure by municipal vote)" -> Table C3 Monthly Budget Statement - Financial Performance (revenue and expenditure by municipal vote)
A79: S71A | B79: =IF(Consolques="YES",E79,F79) -> Table C2 Consolidated Monthly Budget Statement - Financial Performance (functional classification) | D79: Table C2 | E79: =D79&"Consolidated Monthly Budget Statement - Financial Performance (functional classification) " -> Table C2 Consolidated Monthly Budget Statement - Financial Performance (functional classification) | F79: =D79&"Monthly Budget Statement - Financial Performance (functional classification)" -> Table C2 Monthly Budget Statement - Financial Performance (functional classification)
A80: S71B | B80: =IF(Consolques="YES",E80,F80) -> Table C4 Consolidated Monthly Budget Statement - Financial Performance (revenue and expenditure) | D80: Table C4 | E80: =D80&"Consolidated Monthly Budget Statement - Financial Performance (revenue and expenditure) " -> Table C4 Consolidated Monthly Budget Statement - Financial Performance (revenue and expenditure) | F80: =D80&"Monthly Budget Statement - Financial Performance (revenue and expenditure)" -> Table C4 Monthly Budget Statement - Financial Performance (revenue and expenditure)
A81: S71D | B81: =IF(Consolques="YES",E81,F81) -> Table C5 Consolidated Monthly Budget Statement - Capital Expenditure (municipal vote, functional classification and funding | D81: Table C5 | E81: =D81&"Consolidated Monthly Budget Statement - Capital Expenditure (municipal vote, functional classification and funding " -> Table C5 Consolidated Monthly Budget Statement - Capital Expenditure (municipal vote, functional classification and funding | F81: =D81&"Monthly Budget Statement - Capital Expenditure (municipal vote, functional classification and funding)" -> Table C5 Monthly Budget Statement - Capital Expenditure (municipal vote, functional classification and funding)
A82: S71E | B82: Table C6 Consolidated Monthly Budget Statement - Financial Position | D82: Table C6 | E82: =D82&"Consolidated Monthly Budget Statement - Financial Position " -> Table C6 Consolidated Monthly Budget Statement - Financial Position | F82: =D82&"Monthly Budget Statement - Financial Position" -> Table C6 Monthly Budget Statement - Financial Position
A83: S71F | B83: Table C7 Consolidated Monthly Budget Statement - Cash Flow | D83: Table C7 | E83: =D83&"Consolidated Monthly Budget Statement - Cash Flow " -> Table C7 Consolidated Monthly Budget Statement - Cash Flow | F83: =D83&"Monthly Budget Statement - Cash Flow " -> Table C7 Monthly Budget Statement - Cash Flow
A84: S71G | B84: =D84&"Material variance explanations " -> Supporting Table SC1 Material variance explanations | D84: Supporting Table SC1
A85: S71H | B85: =D85&"Monthly Budget Statement - performance indicators " -> Supporting Table SC2 Monthly Budget Statement - performance indicators | D85: Supporting Table SC2
A86: S71I | B86: =D86&"Monthly Budget Statement - aged debtors" -> Supporting Table SC3 Monthly Budget Statement - aged debtors | D86: Supporting Table SC3
A87: S71J | B87: =D87&"Monthly Budget Statement - aged creditors " -> Supporting Table SC4 Monthly Budget Statement - aged creditors | D87: Supporting Table SC4
A88: S71K | B88: =D88&"Monthly Budget Statement - investment portfolio " -> Supporting Table SC5 Monthly Budget Statement - investment portfolio | D88: Supporting Table SC5
A89: S71L | B89: =D89&"Monthly Budget Statement - transfers and grant receipts " -> Supporting Table SC6 Monthly Budget Statement - transfers and grant receipts | D89: Supporting Table SC6
A90: S71M | B90: =D90&" Monthly Budget Statement - transfers and grant expenditure " -> Supporting Table SC7(1) Monthly Budget Statement - transfers and grant expenditure | D90: Supporting Table SC7(1)
A91: S71N | B91: =D91&"Monthly Budget Statement - councillor and staff benefits " -> Supporting Table SC8 Monthly Budget Statement - councillor and staff benefits | D91: Supporting Table SC8
A92: S71O | B92: =D92&"Monthly Budget Statement - actuals and revised targets for cash receipts" -> Supporting Table SC9 Monthly Budget Statement - actuals and revised targets for cash receipts | D92: Supporting Table SC9
A93: S71P | B93: =IF(Consolques="YES",E93,F93) -> Supporting Table SC10 Monthly Budget Statement - Parent Municipality Financial Performance (revenue and expenditure) | D93: Supporting Table SC10 | E93: =D93&"Monthly Budget Statement - Parent Municipality Financial Performance (revenue and expenditure) " -> Supporting Table SC10 Monthly Budget Statement - Parent Municipality Financial Performance (revenue and expenditure) | F93: NOT REQUIRED - municipality does not have entities or this is the parent municipality's budget
A94: S71Q | B94: Supporting Table SC11 Monthly Budget Statement - summary of municipal entities | D94: Supporting Table SC11 | E94: =D94&"Monthly Budget Statement - summary of municipal entities" -> Supporting Table SC11 Monthly Budget Statement - summary of municipal entities | F94: NOT REQUIRED - municipality does not have entities or this is the parent municipality's budget
A95: S71R | B95: Supporting Table SC12 Consolidated Monthly Budget Statement - capital expenditure trend | D95: Supporting Table SC12 | E95: =D95&"Consolidated Monthly Budget Statement - capital expenditure trend " -> Supporting Table SC12 Consolidated Monthly Budget Statement - capital expenditure trend | F95: =D95&"Monthly Budget Statement - capital expenditure trend" -> Supporting Table SC12 Monthly Budget Statement - capital expenditure trend
A96: S71Sa | B96: Supporting Table SC13a Consolidated Monthly Budget Statement - capital expenditure on new assets by asset class | D96: Supporting Table SC13a | E96: =D96&"Consolidated Monthly Budget Statement - capital expenditure on new assets by asset class" -> Supporting Table SC13a Consolidated Monthly Budget Statement - capital expenditure on new assets by asset class | F96: =D96&"Monthly Budget Statement - capital expenditure on new assets by asset class" -> Supporting Table SC13a Monthly Budget Statement - capital expenditure on new assets by asset class
A97: S71Sb | B97: Supporting Table SC13b Consolidated Monthly Budget Statement - capital expenditure on renewal of existing assets by asset class | D97: Supporting Table SC13b | E97: =D97&"Consolidated Monthly Budget Statement - capital expenditure on renewal of existing assets by asset class" -> Supporting Table SC13b Consolidated Monthly Budget Statement - capital expenditure on renewal of existing assets by asset class | F97: =D97&"Monthly Budget Statement - capital expenditure on renewal of existing assets by asset class" -> Supporting Table SC13b Monthly Budget Statement - capital expenditure on renewal of existing assets by asset class
A98: S71Sc | B98: Supporting Table SC13c Consolidated Monthly Budget Statement - expenditure on repairs and maintenance by asset class | D98: Supporting Table SC13c | E98: =D98&"Consolidated Monthly Budget Statement - expenditure on repairs and maintenance by asset class" -> Supporting Table SC13c Consolidated Monthly Budget Statement - expenditure on repairs and maintenance by asset class | F98: =D98&"Monthly Budget Statement - expenditure on repairs and maintenance by asset class" -> Supporting Table SC13c Monthly Budget Statement - expenditure on repairs and maintenance by asset class
A99: S71Sd | B99: Supporting Table SC13d Consolidated Monthly Budget Statement - depreciation by asset class | D99: Supporting Table SC13d | E99: =D99&"Consolidated Monthly Budget Statement - depreciation by asset class" -> Supporting Table SC13d Consolidated Monthly Budget Statement - depreciation by asset class | F99: =D99&"Monthly Budget Statement - depreciation by asset class" -> Supporting Table SC13d Monthly Budget Statement - depreciation by asset class
A100: S71Se | B100: =IF(Consolques="YES",E100,F100) -> Supporting Table SC13e Consolidated Monthly Budget Statement - capital expenditure on upgrading of existing assets by asset class | D100: Supporting Table SC13e | E100: =D100&"Consolidated Monthly Budget Statement - capital expenditure on upgrading of existing assets by asset class" -> Supporting Table SC13e Consolidated Monthly Budget Statement - capital expenditure on upgrading of existing assets by asset class | F100: =D100&"Monthly Budget Statement - capital expenditure on upgrading of existing assets by asset class" -> Supporting Table SC13e Monthly Budget Statement - capital expenditure on upgrading of existing assets by asset class
B101: s71 charts listing
B102: =D102&Head2A&" Capital Expenditure Monthly Trend: actual v target" -> Chart C1 2024/25 Capital Expenditure Monthly Trend: actual v target | D102: Chart C1
B103: =D103&Head2A&" Capital Expenditure: YTD actual v YTD target" -> Chart C2 2024/25 Capital Expenditure: YTD actual v YTD target | D103: Chart C2
B104: =D104&"Aged Consumer Debtors Analysis" -> Chart C3 Aged Consumer Debtors Analysis | D104: Chart C3
B105: =D105&"Consumer Debtors (total by Debtor Customer Category)" -> Chart C4 Consumer Debtors (total by Debtor Customer Category) | D105: Chart C4
B106: =D106&"Aged Creditors Analysis" -> Chart C5 Aged Creditors Analysis | D106: Chart C5
A107: S71T | B107: =D107&" Monthly Budget Statement - Expenditure against approved rollovers" -> Supporting Table SC7(2) Monthly Budget Statement - Expenditure against approved rollovers | D107: Supporting Table SC7(2)

Sheet Lookup and lists (hidden)
A1: Description | B1: 2013 | C1: 2014 | D1: 2015 | E1: 2016 | F1: 2017 | G1: 2018 | H1: 2019 | I1: 2020 | J1: 2021 | K1: 2022 | L1: 2023 | M1: 2024 | N1: 2025 | O1: 2026 | Q1: Grants: | R1: National - opex | S1: Provincial - opex | T1: National - capex | U1: Provincial - capex | V1: YESNO
A2: ='Template names'!C2 -> Prior year -1 | B2: =B1-1&"/"&RIGHT(B1,2)-0 -> 2012/13 | C2: =C1-1&"/"&RIGHT(C1,2)-0 -> 2013/14 | D2: =D1-1&"/"&RIGHT(D1,2)-0 -> 2014/15 | E2: =E1-1&"/"&RIGHT(E1,2)-0 -> 2015/16 | F2: =F1-1&"/"&RIGHT(F1,2)-0 -> 2016/17 | G2: 2017/18 | H2: 2018/19 | I2: 2019/20 | J2: 2020/21 | K2: 2021/22 | L2: 2022/23 | M2: 2023/24 | N2: 2024/25 | O2: 2025/26 | R2: Local Government Equitable Share | S2: Health subsidy | T2: Municipal Infrastructure Grant (MIG) | U2: Agriculture | V2: Yes
A3: ='Template names'!C5 -> MTREF header name | B3: =B1&"/"&RIGHT(B1,2)+1&" Medium Term Revenue & Expenditure Framework" -> 2013/14 Medium Term Revenue & Expenditure Framework | C3: =C1&"/"&RIGHT(C1,2)+1&" Medium Term Revenue & Expenditure Framework" -> 2014/15 Medium Term Revenue & Expenditure Framework | D3: =D1&"/"&RIGHT(D1,2)+1&" Medium Term Revenue & Expenditure Framework" -> 2015/16 Medium Term Revenue & Expenditure Framework | E3: =E1&"/"&RIGHT(E1,2)+1&" Medium Term Revenue & Expenditure Framework" -> 2016/17 Medium Term Revenue & Expenditure Framework | F3: =F1&"/"&RIGHT(F1,2)+1&" Medium Term Revenue & Expenditure Framework" -> 2017/18 Medium Term Revenue & Expenditure Framework | G3: 2018/19 Medium Term Revenue & Expenditure Framework | H3: 2019/20 Medium Term Revenue & Expenditure Framework | I3: 2020/21 Medium Term Revenue & Expenditure Framework | J3: 2021/22 Medium Term Revenue & Expenditure Framework | K3: 2022/23 Medium Term Revenue & Expenditure Framework | L3: 2023/24 Medium Term Revenue & Expenditure Framework | M3: 2024/25 Medium Term Revenue & Expenditure Framework | N3: 2025/26 Medium Term Revenue & Expenditure Framework | O3: 2026/27 Medium Term Revenue & Expenditure Framework | R3: RSC Levy Replacement | S3: Ambulance subsidy | T3: Public Transport and Systems | U3: Education | V3: No
A4: ='Template names'!C4 -> Approved budget year | B4: =B1&"/"&RIGHT(B1,2)+1 -> 2013/14 | C4: =C1&"/"&RIGHT(C1,2)+1 -> 2014/15 | D4: =D1&"/"&RIGHT(D1,2)+1 -> 2015/16 | E4: =E1&"/"&RIGHT(E1,2)+1 -> 2016/17 | F4: =F1&"/"&RIGHT(F1,2)+1 -> 2017/18 | G4: 2018/19 | H4: 2019/20 | I4: 2020/21 | J4: 2021/22 | K4: 2022/23 | L4: 2023/24 | M4: 2024/25 | N4: 2025/26 | O4: 2026/27 | R4: Finance Management | S4: Housing | T4: Rural Transport Services and Infrastructure | U4: Health
A5: ='Template names'!C12 -> 1st year of MTREF | B5: ="Budget Year "&B1&"/"&RIGHT(B1,2)+1 -> Budget Year 2013/14 | C5: ="Budget Year "&C1&"/"&RIGHT(C1,2)+1 -> Budget Year 2014/15 | D5: ="Budget Year "&D1&"/"&RIGHT(D1,2)+1 -> Budget Year 2015/16 | E5: ="Budget Year "&E1&"/"&RIGHT(E1,2)+1 -> Budget Year 2016/17 | F5: ="Budget Year "&F1&"/"&RIGHT(F1,2)+1 -> Budget Year 2017/18 | G5: Budget Year 2018/19 | H5: Budget Year 2019/20 | I5: Budget Year 2020/21 | J5: Budget Year 2021/22 | K5: Budget Year 2022/23 | L5: Budget Year 2023/24 | M5: Budget Year 2024/25 | N5: Budget Year 2025/26 | O5: Budget Year 2026/27 | R5: Municipal Systems Improvement | S5: Sport and Recreation | T5: Regional Bulk Infrastructure | U5: Housing and Local Government
A6: ='Template names'!C13 -> 2nd year of MTREF | B6: ="Budget Year +1 "&B1+1&"/"&RIGHT(B1,2)+2 -> Budget Year +1 2014/15 | C6: ="Budget Year +1 "&C1+1&"/"&RIGHT(C1,2)+2 -> Budget Year +1 2015/16 | D6: ="Budget Year +1 "&D1+1&"/"&RIGHT(D1,2)+2 -> Budget Year +1 2016/17 | E6: ="Budget Year +1 "&E1+1&"/"&RIGHT(E1,2)+2 -> Budget Year +1 2017/18 | F6: ="Budget Year +1 "&F1+1&"/"&RIGHT(F1,2)+2 -> Budget Year +1 2018/19 | G6: Budget Year +1 2019/20 | H6: Budget Year +1 2020/21 | I6: Budget Year +1 2021/22 | J6: Budget Year +1 2022/23 | K6: Budget Year +1 2023/24 | L6: Budget Year +1 2024/25 | M6: Budget Year +1 2025/26 | N6: Budget Year +1 2026/27 | O6: Budget Year +1 2027/28 | R6: Water Services Operating Subsidy | T6: Rural Households Infrastructure | U6: Other Departments
A7: ='Template names'!C14 -> 3rd year of MTREF | B7: ="Budget Year +2 "&B1+2&"/"&RIGHT(B1,2)+3 -> Budget Year +2 2015/16 | C7: ="Budget Year +2 "&C1+2&"/"&RIGHT(C1,2)+3 -> Budget Year +2 2016/17 | D7: ="Budget Year +2 "&D1+2&"/"&RIGHT(D1,2)+3 -> Budget Year +2 2017/18 | E7: ="Budget Year +2 "&E1+2&"/"&RIGHT(E1,2)+3 -> Budget Year +2 2018/19 | F7: ="Budget Year +2 "&F1+2&"/"&RIGHT(F1,2)+3 -> Budget Year +2 2019/20 | G7: Budget Year +2 2020/21 | H7: Budget Year +2 2021/22 | I7: Budget Year +2 2022/23 | J7: Budget Year +2 2023/24 | K7: Budget Year +2 2024/25 | L7: Budget Year +2 2025/26 | M7: Budget Year +2 2026/27 | N7: Budget Year +2 2027/28 | O7: Budget Year +2 2028/29 | R7: Energy Efficiency and Demand Management | T7: Neighbourhood Development Partnership | U7: Public Works, Roads, Transport
A8: NOTE: This sheet should not be directly amended - select headings from sheet 'S' | R8: Integrated National Electrification Programme | T8: 2010 FIFA World Cup Stadiums Development | U8: Sport and Recreation
R9: Municipal Drought Relief
R10: 2010 FIFA World Cup Operating
R11: Electricity Demand Side Management
R12: EPWP Incentive
A26: Name link | B26: 85
A27: Name of Muni | B27: =INDEX(B28:B311,B26,1) -> KZN225 Msunduzi
B28: Choose name from list | C28: Set name on 'Instructions' sheet
B29: BUF Buffalo City | C29: EC EASTERN CAPE
B30: NMA Nelson Mandela Bay | C30: EC EASTERN CAPE
B31: EC101 Dr Beyers Naude | C31: EC EASTERN CAPE
B32: EC102 Blue Crane Route | C32: EC EASTERN CAPE
B33: EC104 Makana | C33: EC EASTERN CAPE
B34: EC105 Ndlambe | C34: EC EASTERN CAPE
B35: EC106 Sundays River Valley | C35: EC EASTERN CAPE
B36: EC108 Kouga | C36: EC EASTERN CAPE
B37: EC109 Kou-Kamma | C37: EC EASTERN CAPE
B38: DC10 Sarah Baartman | C38: EC EASTERN CAPE
B39: EC121 Mbhashe | C39: EC EASTERN CAPE
B40: EC122 Mnquma | C40: EC EASTERN CAPE
B41: EC123 Great Kei | C41: EC EASTERN CAPE
B42: EC124 Amahlathi | C42: EC EASTERN CAPE
B43: EC126 Ngqushwa | C43: EC EASTERN CAPE
B44: EC129 Raymond Mhlaba | C44: EC EASTERN CAPE
B45: DC12 Amathole | C45: EC EASTERN CAPE
B46: EC131 Inxuba Yethemba | C46: EC EASTERN CAPE
B47: EC135 Intsika Yethu | C47: EC EASTERN CAPE
B48: EC136 Emalahleni (Ec) | C48: EC EASTERN CAPE
B49: EC137 Engcobo | C49: EC EASTERN CAPE
B50: EC138 Sakhisizwe | C50: EC EASTERN CAPE
B51: EC139 Enoch Mgijima | C51: EC EASTERN CAPE
B52: DC13 Chris Hani | C52: EC EASTERN CAPE
B53: EC141 Elundini | C53: EC EASTERN CAPE
B54: EC142 Senqu | C54: EC EASTERN CAPE
B55: EC145 Walter Sisulu | C55: EC EASTERN CAPE
B56: DC14 Joe Gqabi | C56: EC EASTERN CAPE
B57: EC153 Ngquza Hills | C57: EC EASTERN CAPE
B58: EC154 Port St Johns | C58: EC EASTERN CAPE
B59: EC155 Nyandeni | C59: EC EASTERN CAPE
B60: EC156 Mhlontlo | C60: EC EASTERN CAPE
B61: EC157 King Sabata Dalindyebo | C61: EC EASTERN CAPE
B62: DC15 O .R. Tambo | C62: EC EASTERN CAPE
B63: EC441 Matatiele | C63: EC EASTERN CAPE
B64: EC442 Umzimvubu | C64: EC EASTERN CAPE
B65: EC443 Winnie Madikizela Mandela | C65: EC EASTERN CAPE
B66: EC444 Ntabankulu | C66: EC EASTERN CAPE
B67: DC44 Alfred Nzo | C67: EC EASTERN CAPE
B68: MAN Mangaung | C68: FS FREE STATE
B69: FS161 Letsemeng | C69: FS FREE STATE
B70: FS162 Kopanong | C70: FS FREE STATE
B71: FS163 Mohokare | C71: FS FREE STATE
B72: DC16 Xhariep | C72: FS FREE STATE
B73: FS181 Masilonyana | C73: FS FREE STATE
B74: FS182 Tokologo | C74: FS FREE STATE
B75: FS183 Tswelopele | C75: FS FREE STATE
B76: FS184 Matjhabeng | C76: FS FREE STATE
B77: FS185 Nala | C77: FS FREE STATE
B78: DC18 Lejweleputswa | C78: FS FREE STATE
B79: FS191 Setsoto | C79: FS FREE STATE
B80: FS192 Dihlabeng | C80: FS FREE STATE
B81: FS193 Nketoana | C81: FS FREE STATE
B82: FS194 Maluti-a-Phofung | C82: FS FREE STATE
B83: FS195 Phumelela | C83: FS FREE STATE
B84: FS196 Mantsopa | C84: FS FREE STATE
B85: DC19 Thabo Mofutsanyana | C85: FS FREE STATE
B86: FS201 Moqhaka | C86: FS FREE STATE
B87: FS203 Ngwathe | C87: FS FREE STATE
B88: FS204 Metsimaholo | C88: FS FREE STATE
B89: FS205 Mafube | C89: FS FREE STATE
B90: DC20 Fezile Dabi | C90: FS FREE STATE
B91: EKU City of Ekurhuleni | C91: GT GAUTENG
B92: JHB City Of Johannesburg | C92: GT GAUTENG
B93: TSH City Of Tshwane | C93: GT GAUTENG
B94: GT421 Emfuleni | C94: GT GAUTENG
B95: GT422 Midvaal | C95: GT GAUTENG
B96: GT423 Lesedi | C96: GT GAUTENG
B97: DC42 Sedibeng | C97: GT GAUTENG
B98: GT481 Mogale City | C98: GT GAUTENG
B99: GT484 Merafong City | C99: GT GAUTENG
B100: GT485 Rand West City | C100: GT GAUTENG
B101: DC48 West Rand | C101: GT GAUTENG
B102: ETH eThekwini | C102: KZN KWAZULU-NATAL
B103: KZN212 Umdoni | C103: KZN KWAZULU-NATAL
B104: KZN213 Umzumbe | C104: KZN KWAZULU-NATAL
B105: KZN214 uMuziwabantu | C105: KZN KWAZULU-NATAL
B106: KZN216 Ray Nkonyeni | C106: KZN KWAZULU-NATAL
B107: DC21 Ugu | C107: KZN KWAZULU-NATAL
B108: KZN221 uMshwathi | C108: KZN KWAZULU-NATAL
B109: KZN222 uMngeni | C109: KZN KWAZULU-NATAL
B110: KZN223 Mpofana | C110: KZN KWAZULU-NATAL
B111: KZN224 Impendle | C111: KZN KWAZULU-NATAL
B112: KZN225 Msunduzi | C112: KZN KWAZULU-NATAL
B113: KZN226 Mkhambathini | C113: KZN KWAZULU-NATAL
B114: KZN227 Richmond | C114: KZN KWAZULU-NATAL
B115: DC22 uMgungundlovu | C115: KZN KWAZULU-NATAL
B116: KZN235 Okhahlamba | C116: KZN KWAZULU-NATAL
B117: KZN237 Inkosi Langalibalele | C117: KZN KWAZULU-NATAL
B118: KZN238 Alfred Duma | C118: KZN KWAZULU-NATAL
B119: DC23 Uthukela | C119: KZN KWAZULU-NATAL
B120: KZN241 Endumeni | C120: KZN KWAZULU-NATAL
B121: KZN242 Nquthu | C121: KZN KWAZULU-NATAL
B122: KZN244 Msinga | C122: KZN KWAZULU-NATAL
B123: KZN245 Umvoti | C123: KZN KWAZULU-NATAL
B124: DC24 Umzinyathi | C124: KZN KWAZULU-NATAL
B125: KZN252 Newcastle | C125: KZN KWAZULU-NATAL
B126: KZN253 Emadlangeni | C126: KZN KWAZULU-NATAL
B127: KZN254 Dannhauser | C127: KZN KWAZULU-NATAL
B128: DC25 Amajuba | C128: KZN KWAZULU-NATAL
B129: KZN261 eDumbe | C129: KZN KWAZULU-NATAL
B130: KZN262 uPhongolo | C130: KZN KWAZULU-NATAL
B131: KZN263 Abaqulusi | C131: KZN KWAZULU-NATAL
B132: KZN265 Nongoma | C132: KZN KWAZULU-NATAL
B133: KZN266 Ulundi | C133: KZN KWAZULU-NATAL
B134: DC26 Zululand | C134: KZN KWAZULU-NATAL
B135: KZN271 Umhlabuyalingana | C135: KZN KWAZULU-NATAL
B136: KZN272 Jozini | C136: KZN KWAZULU-NATAL
B137: KZN275 Mtubatuba | C137: KZN KWAZULU-NATAL
B138: KZN276 Hlabisa Big Five | C138: KZN KWAZULU-NATAL
B139: DC27 Umkhanyakude | C139: KZN KWAZULU-NATAL
B140: KZN281 Mfolozi | C140: KZN KWAZULU-NATAL
B141: KZN282 uMhlathuze | C141: KZN KWAZULU-NATAL
B142: KZN284 uMlalazi | C142: KZN KWAZULU-NATAL
B143: KZN285 Mthonjaneni | C143: KZN KWAZULU-NATAL
B144: KZN286 Nkandla | C144: KZN KWAZULU-NATAL
B145: DC28 King Cetshwayo | C145: KZN KWAZULU-NATAL
B146: KZN291 Mandeni | C146: KZN KWAZULU-NATAL
B147: KZN292 KwaDukuza | C147: KZN KWAZULU-NATAL
B148: KZN293 Ndwedwe | C148: KZN KWAZULU-NATAL
B149: KZN294 Maphumulo | C149: KZN KWAZULU-NATAL
B150: DC29 iLembe | C150: KZN KWAZULU-NATAL
B151: KZN433 Greater Kokstad | C151: KZN KWAZULU-NATAL
B152: KZN434 Ubuhlebezwe | C152: KZN KWAZULU-NATAL
B153: KZN435 Umzimkhulu | C153: KZN KWAZULU-NATAL
B154: KZN436 Dr Nkosazana Dlamini Zuma | C154: KZN KWAZULU-NATAL
B155: DC43 Harry Gwala | C155: KZN KWAZULU-NATAL
B156: LIM331 Greater Giyani | C156: LIM LIMPOPO
B157: LIM332 Greater Letaba | C157: LIM LIMPOPO
B158: LIM333 Greater Tzaneen | C158: LIM LIMPOPO
B159: LIM334 Ba-Phalaborwa | C159: LIM LIMPOPO
B160: LIM335 Maruleng | C160: LIM LIMPOPO
B161: DC33 Mopani | C161: LIM LIMPOPO
B162: LIM341 Musina | C162: LIM LIMPOPO
B163: LIM343 Thulamela | C163: LIM LIMPOPO
B164: LIM344 Makhado | C164: LIM LIMPOPO
B165: LIM345 Collins Chabane | C165: LIM LIMPOPO
B166: DC34 Vhembe | C166: LIM LIMPOPO
B167: LIM351 Blouberg | C167: LIM LIMPOPO
B168: LIM353 Molemole | C168: LIM LIMPOPO
B169: LIM354 Polokwane | C169: LIM LIMPOPO
B170: LIM355 Lepelle-Nkumpi | C170: LIM LIMPOPO
B171: DC35 Capricorn | C171: LIM LIMPOPO
B172: LIM361 Thabazimbi | C172: LIM LIMPOPO
B173: LIM362 Lephalale | C173: LIM LIMPOPO
B174: LIM366 Bela Bela | C174: LIM LIMPOPO
B175: LIM367 Mogalakwena | C175: LIM LIMPOPO
B176: LIM368 Modimolle-Mookgopong | C176: LIM LIMPOPO
B177: DC36 Waterberg | C177: LIM LIMPOPO
B178: LIM471 Ephraim Mogale | C178: LIM LIMPOPO
B179: LIM472 Elias Motsoaledi | C179: LIM LIMPOPO
B180: LIM473 Makhuduthamaga | C180: LIM LIMPOPO
B181: LIM476 Tubatse Fetakgomo | C181: LIM LIMPOPO
B182: DC47 Sekhukhune | C182: LIM LIMPOPO
B183: MP301 Albert Luthuli | C183: MP MPUMALANGA
B184: MP302 Msukaligwa | C184: MP MPUMALANGA
B185: MP303 Mkhondo | C185: MP MPUMALANGA
B186: MP304 Pixley Ka Seme (MP) | C186: MP MPUMALANGA
B187: MP305 Lekwa | C187: MP MPUMALANGA
B188: MP306 Dipaleseng | C188: MP MPUMALANGA
B189: MP307 Govan Mbeki | C189: MP MPUMALANGA
B190: DC30 Gert Sibande | C190: MP MPUMALANGA
B191: MP311 Victor Khanye | C191: MP MPUMALANGA
B192: MP312 Emalahleni (Mp) | C192: MP MPUMALANGA
B193: MP313 Steve Tshwete | C193: MP MPUMALANGA
B194: MP314 Emakhazeni | C194: MP MPUMALANGA
B195: MP315 Thembisile Hani | C195: MP MPUMALANGA
B196: MP316 Dr J.S. Moroka | C196: MP MPUMALANGA
B197: DC31 Nkangala | C197: MP MPUMALANGA
B198: MP321 Thaba Chweu | C198: MP MPUMALANGA
B199: MP324 Nkomazi | C199: MP MPUMALANGA
B200: MP325 Bushbuckridge | C200: MP MPUMALANGA
B201: MP326 City of Mbombela | C201: MP MPUMALANGA
B202: DC32 Ehlanzeni | C202: MP MPUMALANGA
B203: NC451 Joe Morolong | C203: NC NORTHERN CAPE
B204: NC452 Ga-Segonyana | C204: NC NORTHERN CAPE
B205: NC453 Gamagara | C205: NC NORTHERN CAPE
B206: DC45 John Taolo Gaetsewe | C206: NC NORTHERN CAPE
B207: NC061 Richtersveld | C207: NC NORTHERN CAPE
B208: NC062 Nama Khoi | C208: NC NORTHERN CAPE
B209: NC064 Kamiesberg | C209: NC NORTHERN CAPE
B210: NC065 Hantam | C210: NC NORTHERN CAPE
B211: NC066 Karoo Hoogland | C211: NC NORTHERN CAPE
B212: NC067 Khai-Ma | C212: NC NORTHERN CAPE
B213: DC6 Namakwa | C213: NC NORTHERN CAPE
... 73 more rows

Sheet Org structure
A1: Organisational Structure Votes | C1: Organisational Structure Sub-Votes | E1: Display Sub-Votes
A2: =B2&" - "&C2 -> Vote 1 - City Manager | B2: Vote 1 | C2: City Manager
A3: =B13&" - "& C13 -> Vote 2 - City Finance | B3: 1.1 | C3: Internal Audit and Compliance | D3: 1,1 - Internal Audit and Compliance | E3: 1.1 - Internal Audit and Compliance
A4: =B24&" - "&C24 -> Vote 3 - Corporate Services | B4: 1.2 | C4: Office of the City Manager | D4: 1,2 - Office of the City Manager | E4: 1.2 - Office of the City Manager
A5: =B35&" - "&C35 -> Vote 4 - Community Services and Social Equity | B5: 1.3 | C5: Political Support | D5: 1,3 - Political Support | E5: 1.3 - Political Support
A6: =B46&" - "&C46 -> Vote 5 - Infrastructure Services | B6: 1.4 | C6: Strategic Planning | D6: 1,4 - Strategic Planning | E6: 1.4 - Strategic Planning
A7: =B57&" - "&C57 -> Vote 6 - Sustainable Development and City Enterprises | B7: 1.5 | C7: [Name of sub-vote] | D7: =CONCATENATE(B7, " - ", C7) -> 1,5 - [Name of sub-vote]
A8: =B68&" - "&C68 -> Vote 7 - Electricity | B8: 1.6 | C8: [Name of sub-vote] | D8: 1,6 - [Name of sub-vote]
A9: =B79&" - "&C79 -> Vote 8 - [NAME OF VOTE 8] | B9: 1.7 | C9: [Name of sub-vote] | D9: 1,7 - [Name of sub-vote]
A10: =B90&" - "&C90 -> Vote 9 - [NAME OF VOTE 9] | B10: 1.8 | C10: [Name of sub-vote] | D10: 1,8 - [Name of sub-vote]
A11: =B101&" - "&C101 -> Vote 10 - [NAME OF VOTE 10] | B11: 1.9 | C11: [Name of sub-vote] | D11: 1,9 - [Name of sub-vote]
A12: =B112&" - "&C112 -> Vote 11 - [NAME OF VOTE 11] | B12: 1.10 | C12: [Name of sub-vote] | D12: 1.10 - [Name of sub-vote]
A13: =B123&" - "&C123 -> Vote 12 - [NAME OF VOTE 12] | B13: Vote 2 | C13: City Finance
A14: =B134&" - "&C134 -> Vote 13 - [NAME OF VOTE 13] | B14: 2.1 | C14: Asset Management | D14: 2,1 - Asset Management | E14: 2.1 - Asset Management
A15: =B145&" - "&C145 -> Vote 14 - [NAME OF VOTE 14] | B15: 2.2 | C15: Budget and Treasury Management | D15: 2,2 - Budget and Treasury Management | E15: 2.2 - Budget and Treasury Management
A16: =B156&" - "&C156 -> Vote 15 - [NAME OF VOTE 15] | B16: 2.3 | C16: Expenditure Management | D16: 2,3 - Expenditure Management | E16: 2.3 - Expenditure Management
B17: 2.4 | C17: Revenue Management | D17: 2,4 - Revenue Management | E17: 2.4 - Revenue Management
B18: 2.5 | C18: Supply Chain Management | D18: 2,5 - Supply Chain Management | E18: 2.5 - Supply Chain Management
B19: 2.6 | C19: [Name of sub-vote] | D19: =CONCATENATE(B19, " - ", C19) -> 2,6 - [Name of sub-vote]
B20: 2.7 | C20: [Name of sub-vote] | D20: 2,7 - [Name of sub-vote]
B21: 2.8 | C21: [Name of sub-vote] | D21: 2,8 - [Name of sub-vote]
B22: 2.9 | C22: [Name of sub-vote] | D22: 2,9 - [Name of sub-vote]
B23: 2.10 | C23: [Name of sub-vote] | D23: 2.10 - [Name of sub-vote]
B24: Vote 3 | C24: Corporate Services
B25: 3.1 | C25: Human Resources Management | D25: 3,1 - Human Resources Management | E25: 3.1 - Human Resources Management
B26: 3.2 | C26: Information Technology | D26: 3,2 - Information Technology | E26: 3.2 - Information Technology
B27: 3.3 | C27: Legal Services | D27: 3,3 - Legal Services | E27: 3.3 - Legal Services
B28: 3.4 | C28: Secretariat and Auxiliary Services | D28: 3,4 - Secretariat and Auxiliary Services | E28: 3.4 - Secretariat and Auxiliary Services
B29: 3.5 | C29: General Manager: Corporate Service | D29: 3,5 - General Manager: Corporate Service | E29: 3.5 - General Manager: Corporate Service
B30: 3.6 | C30: [Name of sub-vote] | D30: =CONCATENATE(B30, " - ", C30) -> 3,6 - [Name of sub-vote]
B31: 3.7 | C31: [Name of sub-vote] | D31: 3,7 - [Name of sub-vote]
B32: 3.8 | C32: [Name of sub-vote] | D32: 3,8 - [Name of sub-vote]
B33: 3.9 | C33: [Name of sub-vote] | D33: 3,9 - [Name of sub-vote]
B34: 3.10 | C34: [Name of sub-vote] | D34: 3.10 - [Name of sub-vote]
B35: Vote 4 | C35: Community Services and Social Equity
B36: 4.1 | C36: Area Based Management | D36: 4,1 - Area Based Management | E36: 4.1 - Area Based Management
B37: 4.2 | C37: Public Safety, Emergency Services and Enforcement | D37: 4,2 - Public Safety, Emergency Services and Enforcement | E37: 4.2 - Public Safety, Emergency Services and Enforcement
B38: 4.3 | C38: Recreation and Facilities | D38: 4,3 - Recreation and Facilities | E38: 4.3 - Recreation and Facilities
B39: 4.4 | C39: Waste Management | D39: 4,4 - Waste Management | E39: 4.4 - Waste Management
B40: 4.5 | C40: General Manager: Community Services | D40: =CONCATENATE(B40, " - ", C40) -> 4,5 - General Manager: Community Services | E40: 4.5 - General Manager: Community Services
B41: 4.6 | C41: [Name of sub-vote] | D41: 4,6 - [Name of sub-vote]
B42: 4.7 | C42: [Name of sub-vote] | D42: 4,7 - [Name of sub-vote]
B43: 4.8 | C43: [Name of sub-vote] | D43: 4,8 - [Name of sub-vote]
B44: 4.9 | C44: [Name of sub-vote] | D44: 4,9 - [Name of sub-vote]
B45: 4.10 | C45: [Name of sub-vote] | D45: 4.10 - [Name of sub-vote]
B46: Vote 5 | C46: Infrastructure Services
B47: 5.1 | C47: Project Management Office | D47: 5,1 - Project Management Office | E47: 5.1 - Project Management Office
B48: 5.2 | C48: Roads and Transportation | D48: 5,2 - Roads and Transportation | E48: 5.2 - Roads and Transportation
B49: 5.3 | C49: Water and Sanitation | D49: 5,3 - Water and Sanitation | E49: 5.3 - Water and Sanitation
B50: 5.4 | C50: General Manager: Infrastructure | D50: 5,4 - General Manager: Infrastructure | E50: 5.4 - General Manager: Infrastructure
B51: 5.5 | C51: [Name of sub-vote] | D51: =CONCATENATE(B51, " - ", C51) -> 5,5 - [Name of sub-vote]
B52: 5.6 | C52: [Name of sub-vote] | D52: 5,6 - [Name of sub-vote]
B53: 5.7 | C53: [Name of sub-vote] | D53: 5,7 - [Name of sub-vote]
B54: 5.8 | C54: [Name of sub-vote] | D54: 5,8 - [Name of sub-vote]
B55: 5.9 | C55: [Name of sub-vote] | D55: 5,9 - [Name of sub-vote]
B56: 5.10 | C56: [Name of sub-vote] | D56: 5.10 - [Name of sub-vote]
B57: Vote 6 | C57: Sustainable Development and City Enterprises
B58: 6.1 | C58: City Entities | D58: 6,1 - City Entities | E58: 6.1 - City Entities
B59: 6.2 | C59: Development Services | D59: 6,2 - Development Services | E59: 6.2 - Development Services
B60: 6.3 | C60: Human Settlement Development | D60: 6,3 - Human Settlement Development | E60: 6.3 - Human Settlement Development
B61: 6.4 | C61: Town Planning | D61: 6,4 - Town Planning | E61: 6.4 - Town Planning
B62: 6.5 | C62: General Manager: Sustainable Development and City Enterprises | D62: 6,5 - General Manager: Sustainable Development and City Enterprises | E62: 6.5 - General Manager: Sustainable Development and City Enterprises
B63: 6.6 | C63: [Name of sub-vote] | D63: =CONCATENATE(B63, " - ", C63) -> 6,6 - [Name of sub-vote]
B64: 6.7 | C64: [Name of sub-vote] | D64: 6,7 - [Name of sub-vote]
B65: 6.8 | C65: [Name of sub-vote] | D65: 6,8 - [Name of sub-vote]
B66: 6.9 | C66: [Name of sub-vote] | D66: 6,9 - [Name of sub-vote]
B67: 6.10 | C67: [Name of sub-vote] | D67: 6.10 - [Name of sub-vote]
B68: Vote 7 | C68: Electricity
B69: 7.1 | C69: Electricity planning | D69: 7,1 - Electricity planning | E69: 7.1 Electricity planning
B70: 7.2 | C70: Methods and Standards | D70: 7,2 - Methods and Standards | E70: 7.2 Methods and Standards
B71: 7.3 | C71: Operations and Maintenance | D71: 7,3 - Operations and Maintenance | E71: 7.3 Operations and Maintenance
B72: 7.4 | C72: Revenue Management | D72: 7,4 - Revenue Management | E72: 7.4 Revenue Management
B73: 7.5 | C73: General Manager Electricity | D73: 7,5 - General Manager Electricity | E73: 7.5 General Manager Electricity
B74: 7.6 | C74: [Name of sub-vote] | D74: =CONCATENATE(B74, " - ", C74) -> 7,6 - [Name of sub-vote]
B75: 7.7 | C75: [Name of sub-vote] | D75: 7,7 - [Name of sub-vote]
B76: 7.8 | C76: [Name of sub-vote] | D76: 7,8 - [Name of sub-vote]
B77: 7.9 | C77: [Name of sub-vote] | D77: 7,9 - [Name of sub-vote]
B78: 7.10 | C78: [Name of sub-vote] | D78: 7.10 - [Name of sub-vote]
B79: Vote 8 | C79: [NAME OF VOTE 8]
B80: 8.1 | C80: [Name of sub-vote] | D80: =CONCATENATE(B80, " - ", C80) -> 8,1 - [Name of sub-vote] | E80: 8.1 - [Name of sub-vote]
B81: 8.2 | C81: [Name of sub-vote] | D81: 8,2 - [Name of sub-vote]
B82: 8.3 | C82: [Name of sub-vote] | D82: 8,3 - [Name of sub-vote]
B83: 8.4 | C83: [Name of sub-vote] | D83: 8,4 - [Name of sub-vote]
B84: 8.5 | C84: [Name of sub-vote] | D84: 8,5 - [Name of sub-vote]
B85: 8.6 | C85: [Name of sub-vote] | D85: 8,6 - [Name of sub-vote]
B86: 8.7 | C86: [Name of sub-vote] | D86: 8,7 - [Name of sub-vote]
B87: 8.8 | C87: [Name of sub-vote] | D87: 8,8 - [Name of sub-vote]
B88: 8.9 | C88: [Name of sub-vote] | D88: 8,9 - [Name of sub-vote]
B89: 8.10 | C89: [Name of sub-vote] | D89: 8.10 - [Name of sub-vote]
B90: Vote 9 | C90: [NAME OF VOTE 9]
B91: 9.1 | C91: [Name of sub-vote] | D91: =CONCATENATE(B91, " - ", C91) -> 9,1 - [Name of sub-vote] | E91: 9.1 - [Name of sub-vote]
B92: 9.2 | C92: [Name of sub-vote] | D92: 9,2 - [Name of sub-vote]
B93: 9.3 | C93: [Name of sub-vote] | D93: 9,3 - [Name of sub-vote]
B94: 9.4 | C94: [Name of sub-vote] | D94: 9,4 - [Name of sub-vote]
B95: 9.5 | C95: [Name of sub-vote] | D95: 9,5 - [Name of sub-vote]
B96: 9.6 | C96: [Name of sub-vote] | D96: 9,6 - [Name of sub-vote]
B97: 9.7 | C97: [Name of sub-vote] | D97: 9,7 - [Name of sub-vote]
B98: 9.8 | C98: [Name of sub-vote] | D98: 9,8 - [Name of sub-vote]
B99: 9.9 | C99: [Name of sub-vote] | D99: 9,9 - [Name of sub-vote]
B100: 9.10 | C100: [Name of sub-vote] | D100: 9.10 - [Name of sub-vote]
B101: Vote 10 | C101: [NAME OF VOTE 10]
B102: 10.1 | C102: [Name of sub-vote] | D102: =CONCATENATE(B102, " - ", C102) -> 10,1 - [Name of sub-vote] | E102: 10.1 - [Name of sub-vote]
B103: 10.2 | C103: [Name of sub-vote] | D103: 10,2 - [Name of sub-vote]
B104: 10.3 | C104: [Name of sub-vote] | D104: 10,3 - [Name of sub-vote]
B105: 10.4 | C105: [Name of sub-vote] | D105: 10,4 - [Name of sub-vote]
B106: 10.5 | C106: [Name of sub-vote] | D106: 10,5 - [Name of sub-vote]
B107: 10.6 | C107: [Name of sub-vote] | D107: 10,6 - [Name of sub-vote]
B108: 10.7 | C108: [Name of sub-vote] | D108: 10,7 - [Name of sub-vote]
B109: 10.8 | C109: [Name of sub-vote] | D109: 10,8 - [Name of sub-vote]
B110: 10.9 | C110: [Name of sub-vote] | D110: 10,9 - [Name of sub-vote]
B111: 10.10 | C111: [Name of sub-vote] | D111: 10.10 - [Name of sub-vote]
B112: Vote 11 | C112: [NAME OF VOTE 11]
B113: 11.1 | C113: [Name of sub-vote] | D113: =CONCATENATE(B113, " - ", C113) -> 11,1 - [Name of sub-vote] | E113: 11.1 - [Name of sub-vote]
B114: 11.2 | C114: [Name of sub-vote] | D114: 11,2 - [Name of sub-vote]
B115: 11.3 | C115: [Name of sub-vote] | D115: 11,3 - [Name of sub-vote]
B116: 11.4 | C116: [Name of sub-vote] | D116: 11,4 - [Name of sub-vote]
B117: 11.5 | C117: [Name of sub-vote] | D117: 11,5 - [Name of sub-vote]
B118: 11.6 | C118: [Name of sub-vote] | D118: 11,6 - [Name of sub-vote]
B119: 11.7 | C119: [Name of sub-vote] | D119: 11,7 - [Name of sub-vote]
B120: 11.8 | C120: [Name of sub-vote] | D120: 11,8 - [Name of sub-vote]
B121: 11.9 | C121: [Name of sub-vote] | D121: 11,9 - [Name of sub-vote]
B122: 11.10 | C122: [Name of sub-vote] | D122: 11.10 - [Name of sub-vote]
B123: Vote 12 | C123: [NAME OF VOTE 12]
B124: 12.1 | C124: [Name of sub-vote] | D124: =CONCATENATE(B124, " - ", C124) -> 12,1 - [Name of sub-vote] | E124: 12.1 - [Name of sub-vote]
B125: 12.2 | C125: [Name of sub-vote] | D125: 12,2 - [Name of sub-vote]
B126: 12.3 | C126: [Name of sub-vote] | D126: 12,3 - [Name of sub-vote]
B127: 12.4 | C127: [Name of sub-vote] | D127: 12,4 - [Name of sub-vote]
B128: 12.5 | C128: [Name of sub-vote] | D128: 12,5 - [Name of sub-vote]
B129: 12.6 | C129: [Name of sub-vote] | D129: 12,6 - [Name of sub-vote]
B130: 12.7 | C130: [Name of sub-vote] | D130: 12,7 - [Name of sub-vote]
B131: 12.8 | C131: [Name of sub-vote] | D131: 12,8 - [Name of sub-vote]
B132: 12.9 | C132: [Name of sub-vote] | D132: 12,9 - [Name of sub-vote]
B133: 12.10 | C133: [Name of sub-vote] | D133: 12.10 - [Name of sub-vote]
B134: Vote 13 | C134: [NAME OF VOTE 13]
B135: 13.1 | C135: [Name of sub-vote] | D135: =CONCATENATE(B135, " - ", C135) -> 13,1 - [Name of sub-vote] | E135: 13.1 - [Name of sub-vote]
B136: 13.2 | C136: [Name of sub-vote] | D136: 13,2 - [Name of sub-vote]
B137: 13.3 | C137: [Name of sub-vote] | D137: 13,3 - [Name of sub-vote]
B138: 13.4 | C138: [Name of sub-vote] | D138: 13,4 - [Name of sub-vote]
B139: 13.5 | C139: [Name of sub-vote] | D139: 13,5 - [Name of sub-vote]
B140: 13.6 | C140: [Name of sub-vote] | D140: 13,6 - [Name of sub-vote]
B141: 13.7 | C141: [Name of sub-vote] | D141: 13,7 - [Name of sub-vote]
B142: 13.8 | C142: [Name of sub-vote] | D142: 13,8 - [Name of sub-vote]
B143: 13.9 | C143: [Name of sub-vote] | D143: 13,9 - [Name of sub-vote]
B144: 13.10 | C144: [Name of sub-vote] | D144: 13.10 - [Name of sub-vote]
B145: Vote 14 | C145: [NAME OF VOTE 14]
B146: 14.1 | C146: [Name of sub-vote] | D146: =CONCATENATE(B146, " - ", C146) -> 14,1 - [Name of sub-vote] | E146: 14.1 - [Name of sub-vote]
B147: 14.2 | C147: [Name of sub-vote] | D147: 14,2 - [Name of sub-vote]
B148: 14.3 | C148: [Name of sub-vote] | D148: 14,3 - [Name of sub-vote]
B149: 14.4 | C149: [Name of sub-vote] | D149: 14,4 - [Name of sub-vote]
B150: 14.5 | C150: [Name of sub-vote] | D150: 14,5 - [Name of sub-vote]
B151: 14.6 | C151: [Name of sub-vote] | D151: 14,6 - [Name of sub-vote]
B152: 14.7 | C152: [Name of sub-vote] | D152: 14,7 - [Name of sub-vote]
B153: 14.8 | C153: [Name of sub-vote] | D153: 14,8 - [Name of sub-vote]
B154: 14.9 | C154: [Name of sub-vote] | D154: 14,9 - [Name of sub-vote]
B155: 14.10 | C155: [Name of sub-vote] | D155: 14.10 - [Name of sub-vote]
B156: Vote 15 | C156: [NAME OF VOTE 15]
B157: 15.1 | C157: [Name of sub-vote] | D157: =CONCATENATE(B157, " - ", C157) -> 15,1 - [Name of sub-vote] | E157: 15.1 - [Name of sub-vote]
B158: 15.2 | C158: [Name of sub-vote] | D158: 15,2 - [Name of sub-vote]
B159: 15.3 | C159: [Name of sub-vote] | D159: 15,3 - [Name of sub-vote]
B160: 15.4 | C160: [Name of sub-vote] | D160: 15,4 - [Name of sub-vote]
B161: 15.5 | C161: [Name of sub-vote] | D161: 15,5 - [Name of sub-vote]
B162: 15.6 | C162: [Name of sub-vote] | D162: 15,6 - [Name of sub-vote]
B163: 15.7 | C163: [Name of sub-vote] | D163: 15,7 - [Name of sub-vote]
B164: 15.8 | C164: [Name of sub-vote] | D164: 15,8 - [Name of sub-vote]
B165: 15.9 | C165: [Name of sub-vote] | D165: 15,9 - [Name of sub-vote]
B166: 15.10 | C166: [Name of sub-vote] | D166: 15.10 - [Name of sub-vote]

Sheet Contacts
A1: =muni&" - "&" Contact Information" -> KZN225 Msunduzi - Contact Information
A3: A. GENERAL INFORMATION
A4: Municipality | B4: =muni -> KZN225 Msunduzi | C4: Set name on 'Instructions' sheet
A6: Grade | C6: 1 Grade in terms of the Remuneration of Public Office Bearers Act.
A8: Province | B8: =IF(B4>" ",VLOOKUP(B4,'Lookup and lists'!B28:C311,2, FALSE)," ") -> KZN KWAZULU-NATAL
A10: Web Address
A12: e-mail Address
A14: B. CONTACT INFORMATION
A15: Postal address:
A16: P.O. Box
A17: City / Town
A18: Postal Code
A20: Street address
A21: Building
A22: Street No. & Name
A23: City / Town
A24: Postal Code
A26: General Contacts
A27: Telephone number
A28: Fax number
A30: C. POLITICAL LEADERSHIP
A31: Speaker: | C31: Secretary/PA to the Speaker:
A32: ID Number | C32: ID Number
A33: Title | C33: Title
A34: Name | C34: Name
A35: Telephone number | C35: Telephone number
A36: Cell number | C36: Cell number
A37: Fax number | C37: Fax number
A38: E-mail address | C38: E-mail address
A40: Mayor/Executive Mayor: | C40: Secretary/PA to the Mayor/Executive Mayor:
A41: ID Number | C41: ID Number
A42: Title | C42: Title
A43: Name | C43: Name
A44: Telephone number | C44: Telephone number
A45: Cell number | C45: Cell number
A46: Fax number | C46: Fax number
A47: E-mail address | C47: E-mail address
A49: Deputy Mayor/Executive Mayor: | C49: Secretary/PA to the Deputy Mayor/Executive Mayor:
A50: ID Number | C50: ID Number
A51: Title | C51: Title
A52: Name | C52: Name
A53: Telephone number | C53: Telephone number
A54: Cell number | C54: Cell number
A55: Fax number | C55: Fax number
A56: E-mail address | C56: E-mail address
A58: D. MANAGEMENT LEADERSHIP
A59: Municipal Manager: | C59: Secretary/PA to the Municipal Manager:
A60: ID Number | C60: ID Number
A61: Title | C61: Title
A62: Name | C62: Name
A63: Telephone number | C63: Telephone number
A64: Cell number | C64: Cell number
A65: Fax number | C65: Fax number
A66: E-mail address | C66: E-mail address
A68: Chief Financial Officer | C68: Secretary/PA to the Chief Financial Officer
A69: ID Number | C69: ID Number
A70: Title | C70: Title
A71: Name | B71: Nelisiwe Ngcobo | C71: Name
A72: Telephone number | C72: Telephone number
A73: Cell number | C73: Cell number
A74: Fax number | C74: Fax number
A75: E-mail address | C75: E-mail address
A77: Official responsible for submitting financial information | C77: Official responsible for submitting financial information
A78: ID Number | C78: ID Number
A79: Title | C79: Title
A80: Name | C80: Name
A81: Telephone number | C81: Telephone number
A82: Cell number | C82: Cell number
A83: Fax number | C83: Fax number
A84: E-mail address | C84: E-mail address
A85: Official responsible for submitting financial information | C85: Official responsible for submitting financial information
A86: ID Number | C86: ID Number
A87: Title | C87: Title
A88: Name | C88: Name
A89: Telephone number | C89: Telephone number
A90: Cell number | C90: Cell number
A91: Fax number | C91: Fax number
A92: E-mail address | C92: E-mail address
A93: Official responsible for submitting financial information | C93: Official responsible for submitting financial information
A94: ID Number | C94: ID Number
A95: Title | C95: Title
A96: Name | C96: Name
A97: Telephone number | C97: Telephone number
A98: Cell number | C98: Cell number
A99: Fax number | C99: Fax number
A100: E-mail address | C100: E-mail address
A101: Official responsible for submitting financial information | C101: Official responsible for submitting financial information
A102: ID Number | C102: ID Number
A103: Title | C103: Title
A104: Name | C104: Name
A105: Telephone number | C105: Telephone number
A106: Cell number | C106: Cell number
A107: Fax number | C107: Fax number
A108: E-mail address | C108: E-mail address
A109: Official responsible for submitting financial information | C109: Official responsible for submitting financial information
A110: ID Number | C110: ID Number
A111: Title | C111: Title
A112: Name | C112: Name
A113: Telephone number | C113: Telephone number
A114: Cell number | C114: Cell number
A115: Fax number | C115: Fax number
A116: E-mail address | C116: E-mail address
A117: Official responsible for submitting financial information | C117: Official responsible for submitting financial information
A118: ID Number | C118: ID Number
A119: Title | C119: Title
A120: Name | C120: Name
A121: Telephone number | C121: Telephone number
A122: Cell number | C122: Cell number
A123: Fax number | C123: Fax number
A124: E-mail address | C124: E-mail address
A125: Official responsible for submitting financial information | C125: Official responsible for submitting financial information
A126: ID Number | C126: ID Number
A127: Title | C127: Title
A128: Name | C128: Name
A129: Telephone number | C129: Telephone number
A130: Cell number | C130: Cell number
A131: Fax number | C131: Fax number
A132: E-mail address | C132: E-mail address
A133: Official responsible for submitting financial information
A134: ID Number
A135: Title
A136: Name
A137: Telephone number
A138: Cell number
A139: Fax number
A140: E-mail address

Sheet C1-Sum
A1: =muni& " - "&s71sum& " - "&date -> KZN225 Msunduzi - Table C1 Consolidated Monthly Budget Statement Summary - Q4 Fourth Quarter
A2: =desc -> Description | B2: =Head1 -> 2023/24 | C2: =Head2 -> Budget Year 2024/25
B3: =Head5 -> Audited Outcome | C3: =Head6 -> Original Budget | D3: =Head7 -> Adjusted Budget | E3: =Head38 -> Monthly actual | F3: =Head39 -> YearTD actual | G3: =Head40 -> YearTD budget | H3: =Head41 -> YTD variance | I3: =Head41 -> YTD variance | J3: =Head8 -> Full Year Forecast
A4: R thousands | I4: %
A5: Financial Performance
A6: Property rates | B6: =SUM('C4-FinPerf RE'!C22) -> 1359086727 | C6: =SUM('C4-FinPerf RE'!D22) -> 1649352521 | D6: =SUM('C4-FinPerf RE'!E22) -> 1649352462 | E6: =SUM('C4-FinPerf RE'!F22) -> 122654413.6 | F6: =SUM('C4-FinPerf RE'!G22) -> 1565969210 | G6: =SUM('C4-FinPerf RE'!H22) -> 1649352462 | H6: =F6-G6 -> -83383251.56 | I6: =IF(H6=0,"",H6/G6) -> -0.0505551442 | J6: =SUM('C4-FinPerf RE'!K22) -> 1649352462
A7: Service charges | B7: =SUM('C4-FinPerf RE'!C7:C10) -> 3696100456 | C7: =SUM('C4-FinPerf RE'!D7:D10) -> 5683700785 | D7: =SUM('C4-FinPerf RE'!E7:E10) -> 5610233689 | E7: =SUM('C4-FinPerf RE'!F7:F10) -> 447325555.9 | F7: =SUM('C4-FinPerf RE'!G7:G10) -> 4410507001 | G7: =SUM('C4-FinPerf RE'!H7:H10) -> 5610233689 | H7: =F7-G7 -> -1199726688 | I7: =IF(H7=0,"",H7/G7) -> -0.2138461167 | J7: =SUM('C4-FinPerf RE'!K7:K10) -> 5610233689
A8: Investment revenue | B8: ='C4-FinPerf RE'!C15 -> 106873226 | C8: ='C4-FinPerf RE'!D15 -> 19135146.8 | D8: ='C4-FinPerf RE'!E15 -> 19135146.8 | E8: ='C4-FinPerf RE'!F15 -> 0 | F8: ='C4-FinPerf RE'!G15 -> 0 | G8: ='C4-FinPerf RE'!H15 -> 19135146.8 | H8: =F8-G8 -> -19135146.8 | I8: =IF(H8=0,"",H8/G8) -> -1 | J8: ='C4-FinPerf RE'!K15 -> 19135146.8
A9: Transfers and subsidies - Operational | B9: ='C4-FinPerf RE'!C26 -> 824535909 | C9: ='C4-FinPerf RE'!D26 -> 946343150 | D9: ='C4-FinPerf RE'!E26 -> 1026395188 | E9: ='C4-FinPerf RE'!F26 -> 52610944.39 | F9: ='C4-FinPerf RE'!G26 -> 980093722 | G9: ='C4-FinPerf RE'!H26 -> 1026395188 | H9: -46301466.01 | I9: =IF(H9=0,"",H9/G9) -> -0.04511075904 | J9: ='C4-FinPerf RE'!K26 -> 1026395188
A10: Other own revenue | B10: =+B11-SUM(B6:B9) -> 579738413.3 | C10: =+C11-SUM(C6:C9) -> 665371621.2 | D10: 665371621.9 | E10: 63015356.86 | F10: 631441373.7 | G10: 665371621.9 | H10: =F10-G10 -> -33930248.27 | I10: =IF(H10=0,"",H10/G10) -> -0.05099443251 | J10: 0
A11: Total Revenue (excluding capital transfers and contributions) | B11: =+'C4-FinPerf RE'!C33 -> 6566334731 | C11: =+'C4-FinPerf RE'!D33 -> 8963903223 | D11: =+'C4-FinPerf RE'!E33 -> 8970488108 | E11: =+'C4-FinPerf RE'!F33 -> 685606270.7 | F11: =+'C4-FinPerf RE'!G33 -> 7588011307 | G11: =+'C4-FinPerf RE'!H33 -> 8970488108 | H11: =F11-G11 -> -1382476801 | I11: =IF(H11=0,"",H11/G11) -> -0.1541138882 | J11: =+'C4-FinPerf RE'!K33 -> 8970488108
A12: Employee costs | B12: ='C4-FinPerf RE'!C35 -> 1612918315 | C12: ='C4-FinPerf RE'!D35 -> 1860538235 | D12: ='C4-FinPerf RE'!E35 -> 1786363095 | E12: ='C4-FinPerf RE'!F35 -> 129042639.4 | F12: ='C4-FinPerf RE'!G35 -> 1610413655 | G12: ='C4-FinPerf RE'!H35 -> 1786363095 | H12: -175949439.5 | I12: -0.0984958993 | J12: ='C4-FinPerf RE'!K35 -> 1786363095
A13: Remuneration of Councillors | B13: ='C4-FinPerf RE'!C36 -> 63542011.59 | C13: ='C4-FinPerf RE'!D36 -> 66461931.11 | D13: ='C4-FinPerf RE'!E36 -> 66461931.11 | E13: ='C4-FinPerf RE'!F36 -> 4850851.44 | F13: ='C4-FinPerf RE'!G36 -> 58364731.32 | G13: ='C4-FinPerf RE'!H36 -> 66461931.11 | H13: -8097199.791 | I13: -0.1218321474 | J13: ='C4-FinPerf RE'!K36 -> 66461931.11
A14: Depreciation and amortisation | B14: ='C4-FinPerf RE'!C40 -> 361847777 | C14: ='C4-FinPerf RE'!D40 -> 363040744.5 | D14: ='C4-FinPerf RE'!E40 -> 363040744.5 | E14: ='C4-FinPerf RE'!F40 -> -38575982.8 | F14: ='C4-FinPerf RE'!G40 -> 330280100.4 | G14: ='C4-FinPerf RE'!H40 -> 363040744.5 | H14: -32760644.05 | I14: -0.0902395793 | J14: ='C4-FinPerf RE'!K40 -> 363040744.5
A15: Interest | B15: ='C4-FinPerf RE'!C41 -> 84787241 | C15: ='C4-FinPerf RE'!D41 -> 42824930.71 | D15: ='C4-FinPerf RE'!E41 -> 37824930 | E15: ='C4-FinPerf RE'!F41 -> 9571032.86 | F15: ='C4-FinPerf RE'!G41 -> 59315662.13 | G15: ='C4-FinPerf RE'!H41 -> 37824930 | H15: 21490732.13 | I15: 0.5681631699 | J15: ='C4-FinPerf RE'!K41 -> 37824930
A16: Inventory consumed and bulk purchases | B16: =SUM('C4-FinPerf RE'!C37+'C4-FinPerf RE'!C38) -> 3592058448 | C16: =SUM('C4-FinPerf RE'!D37+'C4-FinPerf RE'!D38) -> 4138528114 | D16: =SUM('C4-FinPerf RE'!E37+'C4-FinPerf RE'!E38) -> 3900504043 | E16: =SUM('C4-FinPerf RE'!F37+'C4-FinPerf RE'!F38) -> 146206404.9 | F16: =SUM('C4-FinPerf RE'!G37+'C4-FinPerf RE'!G38) -> 3879068960 | G16: =SUM('C4-FinPerf RE'!H37+'C4-FinPerf RE'!H38) -> 3900504043 | H16: -21435082.74 | I16: -0.005495464818 | J16: =SUM('C4-FinPerf RE'!K37+'C4-FinPerf RE'!K38) -> 3900504043
A17: Transfers and subsidies | B17: ='C4-FinPerf RE'!C43 -> 28449502.91 | C17: ='C4-FinPerf RE'!D43 -> 52375752.46 | D17: ='C4-FinPerf RE'!E43 -> 52375752.46 | E17: ='C4-FinPerf RE'!F43 -> 2041997.98 | F17: ='C4-FinPerf RE'!G43 -> 38099327.72 | G17: ='C4-FinPerf RE'!H43 -> 52375752.46 | H17: -14276424.74 | I17: -0.2725769859 | J17: ='C4-FinPerf RE'!K43 -> 52375752.46
A18: Other expenditure | B18: ='C4-FinPerf RE'!C48-SUM('C1-Sum'!B12:B17) -> 2357170138 | C18: ='C4-FinPerf RE'!D48-SUM('C1-Sum'!C12:C17) -> 1856500195 | D18: ='C4-FinPerf RE'!E48-SUM('C1-Sum'!D12:D17) -> 1663869206 | E18: ='C4-FinPerf RE'!F48-SUM('C1-Sum'!E12:E17) -> 234811143.3 | F18: ='C4-FinPerf RE'!G48-SUM('C1-Sum'!F12:F17) -> 1186385188 | G18: ='C4-FinPerf RE'!H48-SUM('C1-Sum'!G12:G17) -> 1663869206 | H18: -477484017.9 | I18: -0.2869720866 | J18: ='C4-FinPerf RE'!K48-SUM('C1-Sum'!J12:J17) -> 1663869206
A19: Total Expenditure | B19: =SUM(B12:B18) -> 8100773433 | C19: 8380269902 | D19: 7870439702 | E19: 487948087.1 | F19: 7161927625 | G19: 7870439702 | H19: -708512076.6 | I19: -0.09002191789 | J19: =SUM(J12:J18) -> 7870439702
A20: Surplus/(Deficit) | B20: =B11-B19 -> -1534438702 | C20: 583633320.9 | D20: 1100048406 | E20: 197658183.6 | F20: 426083681.8 | G20: 1100048406 | H20: -673964724.4 | I20: -0.6126682432 | J20: =J11-J19 -> 1100048406
A21: Transfers and subsidies - capital (monetary allocations) | B21: ='C4-FinPerf RE'!C50 -> 428104994 | C21: ='C4-FinPerf RE'!D50 -> 456974891 | D21: ='C4-FinPerf RE'!E50 -> 477925972.5 | E21: ='C4-FinPerf RE'!F50 -> 128603664.4 | F21: ='C4-FinPerf RE'!G50 -> 394230584.2 | G21: ='C4-FinPerf RE'!H50 -> 477925972.5 | H21: -83695388.32 | I21: -0.1751220757 | J21: ='C4-FinPerf RE'!K50 -> 477925972.5
A22: Transfers and subsidies - capital (in-kind) | B22: ='C4-FinPerf RE'!C51 -> 0 | C22: ='C4-FinPerf RE'!D51 -> 0 | D22: ='C4-FinPerf RE'!E51 -> 0 | E22: ='C4-FinPerf RE'!F51 -> 0 | F22: ='C4-FinPerf RE'!G51 -> 0 | G22: ='C4-FinPerf RE'!H51 -> 0 | H22: 0 | J22: ='C4-FinPerf RE'!K51 -> 0
A23: Surplus/(Deficit) after capital transfers & contributions | B23: =B20+B21+B22 -> -1106333708 | C23: 1040608212 | D23: 1577974379 | E23: 326261848 | F23: 820314266 | G23: 1577974379 | H23: -757660112.7 | I23: -0.4801472844 | J23: =J20+J21+J22 -> 1577974379
A24: Share of surplus/ (deficit) of associate | B24: ='C4-FinPerf RE'!C59 -> 0 | C24: ='C4-FinPerf RE'!D59 -> 0 | D24: ='C4-FinPerf RE'!E59 -> 0 | E24: ='C4-FinPerf RE'!F59 -> 0 | F24: ='C4-FinPerf RE'!G59 -> 0 | G24: ='C4-FinPerf RE'!H59 -> 0 | H24: 0 | J24: ='C4-FinPerf RE'!K59 -> 0
A25: Surplus/ (Deficit) for the year | B25: =B23+B24 -> -1106333708 | C25: 1040608212 | D25: 1577974379 | E25: 326261848 | F25: 820314266 | G25: 1577974379 | H25: -757660112.7 | I25: -0.4801472844 | J25: =J23+J24 -> 1577974379
A27: Capital expenditure & funds sources
A28: Capital expenditure | B28: ='C5-Capex'!C40 -> 726309725.8 | C28: ='C5-Capex'!D40 -> 826763940.4 | D28: ='C5-Capex'!E40 -> 797048795 | E28: ='C5-Capex'!F40 -> 283794016.1 | F28: ='C5-Capex'!G40 -> 786850217.1 | G28: ='C5-Capex'!H40 -> 797048795 | H28: =F28-G28 -> -10198577.95 | I28: =IF(H28=0,"",H28/G28) -> -0.01279542484 | J28: ='C5-Capex'!K40 -> 797048795
A29: Capital transfers recognised | B29: ='C5-Capex'!C70 -> 395582260.5 | C29: ='C5-Capex'!D70 -> 456974890.5 | D29: ='C5-Capex'!E70 -> 477925972.7 | E29: ='C5-Capex'!F70 -> 104701054.2 | F29: ='C5-Capex'!G70 -> 355709184.4 | G29: ='C5-Capex'!H70 -> 477925972.7 | H29: -122216788.4 | I29: -0.2557232612 | J29: ='C5-Capex'!K70 -> 477925972.7
A31: Borrowing | B31: ='C5-Capex'!C72 -> 72309925.81 | C31: ='C5-Capex'!D72 -> 234315856 | D31: ='C5-Capex'!E72 -> 206615856 | E31: ='C5-Capex'!F72 -> 13641651.36 | F31: ='C5-Capex'!G72 -> 84491071.45 | G31: ='C5-Capex'!H72 -> 206615856 | H31: -122124784.6 | I31: -0.5910716966 | J31: ='C5-Capex'!K72 -> 206615856
A32: Internally generated funds | B32: ='C5-Capex'!C73 -> 258417539.5 | C32: ='C5-Capex'!D73 -> 135473193.9 | D32: ='C5-Capex'!E73 -> 112506966.3 | E32: ='C5-Capex'!F73 -> 165451310.6 | F32: ='C5-Capex'!G73 -> 346649961.2 | G32: ='C5-Capex'!H73 -> 112506966.3 | H32: 234142995 | I32: 2.081142197 | J32: ='C5-Capex'!K73 -> 112506966.3
A33: Total sources of capital funds | B33: =+B29+B31+B32 -> 726309725.8 | C33: 826763940.4 | D33: 797048795 | E33: 283794016.1 | F33: 786850217.1 | G33: 797048795 | H33: -10198577.95 | I33: -0.01279542484 | J33: =+J29+J31+J32 -> 797048795
A35: Financial position
A36: Total current assets | B36: ='C6-FinPos'!C14 -> 2040911374 | C36: ='C6-FinPos'!D14 -> 4114508456 | D36: ='C6-FinPos'!E14 -> 4347195274 | F36: ='C6-FinPos'!F14 -> 3537948682 | J36: ='C6-FinPos'!G14 -> 4347195274
A37: Total non current assets | B37: ='C6-FinPos'!C26 -> 8604430265 | C37: ='C6-FinPos'!D26 -> 10127019737 | D37: ='C6-FinPos'!E26 -> 1.013495226e+10 | F37: ='C6-FinPos'!F26 -> 8294494522 | J37: ='C6-FinPos'!G26 -> 1.013495226e+10
A38: Total current liabilities | B38: ='C6-FinPos'!C38 -> 3853354226 | C38: ='C6-FinPos'!D38 -> 2372666556 | D38: ='C6-FinPos'!E38 -> 1887152850 | F38: ='C6-FinPos'!F38 -> 3398054217 | J38: ='C6-FinPos'!G38 -> 1887152850
A39: Total non current liabilities | B39: ='C6-FinPos'!C44 -> 733130043 | C39: ='C6-FinPos'!D44 -> 1223486025 | D39: ='C6-FinPos'!E44 -> 1223486025 | F39: ='C6-FinPos'!F44 -> 844059459.7 | J39: ='C6-FinPos'!G44 -> 1223486025
A40: Community wealth/Equity | B40: ='C6-FinPos'!C51 -> 6058857370 | C40: ='C6-FinPos'!D51 -> 1.064537561e+10 | D40: ='C6-FinPos'!E51 -> 1.137150866e+10 | F40: ='C6-FinPos'!F51 -> 7590329527 | J40: ='C6-FinPos'!G51 -> 1.137150866e+10
A42: Cash flows
A43: Net cash from (used) operating | B43: ='C7-CFlow'!C18 -> 611952031 | C43: ='C7-CFlow'!D18 -> 596371918.2 | D43: ='C7-CFlow'!E18 -> 777301797.6 | E43: ='C7-CFlow'!F18 -> 0 | F43: ='C7-CFlow'!G18 -> 0 | G43: ='C7-CFlow'!H18 -> 777301797.6 | H43: =G43-F43 -> 777301797.6 | I43: =IF(H43=0,"",H43/G43) -> 1 | J43: ='C7-CFlow'!K18 -> 777301797.6
A44: Net cash from (used) investing | B44: ='C7-CFlow'!C28 -> -674403941 | C44: ='C7-CFlow'!D28 -> -826763940.4 | D44: ='C7-CFlow'!E28 -> -797048795 | E44: ='C7-CFlow'!F28 -> 0 | F44: ='C7-CFlow'!G28 -> 0 | G44: ='C7-CFlow'!H28 -> -797048795 | H44: =G44-F44 -> -797048795 | I44: =IF(H44=0,"",H44/G44) -> 1 | J44: ='C7-CFlow'!K28 -> -797048795
A45: Net cash from (used) financing | B45: ='C7-CFlow'!C37 -> 42004700 | C45: ='C7-CFlow'!D37 -> 144315856 | D45: ='C7-CFlow'!E37 -> 184315856 | E45: ='C7-CFlow'!F37 -> 0 | F45: ='C7-CFlow'!G37 -> 0 | G45: ='C7-CFlow'!H37 -> 184315856 | H45: =G45-F45 -> 184315856 | I45: =IF(H45=0,"",H45/G45) -> 1 | J45: ='C7-CFlow'!K37 -> 184315856
A46: Cash/cash equivalents at the month/year end | B46: ='C7-CFlow'!C41 -> 490954799 | C46: ='C7-CFlow'!D41 -> 457451833.7 | D46: ='C7-CFlow'!E41 -> 660561593.6 | E46: ='C7-CFlow'!F41 -> 0 | F46: ='C7-CFlow'!G41 -> 0 | G46: ='C7-CFlow'!H41 -> 660561593.6 | H46: =G46-F46 -> 660561593.6 | I46: =IF(H46=0,"",H46/G46) -> 1 | J46: ='C7-CFlow'!K41 -> 660561593.6
A48: Debtors & creditors analysis | B48: ='SC3'!C3 -> 0-30 Days | C48: ='SC3'!D3 -> 31-60 Days | D48: ='SC3'!E3 -> 61-90 Days | E48: ='SC3'!F3 -> 91-120 Days | F48: ='SC3'!G3 -> 121-150 Dys | G48: ='SC3'!H3 -> 151-180 Dys | H48: ='SC3'!I3 -> 181 Dys-1 Yr | I48: ='SC3'!J3 -> Over 1Yr | J48: Total
A49: =LEFT('SC3'!A4,20) -> Debtors Age Analysis
A50: ='SC3'!A14 -> Total By Income Source | B50: ='SC3'!C14 -> 888918635.8 | C50: ='SC3'!D14 -> 146489033.8 | D50: ='SC3'!E14 -> 149798833 | E50: ='SC3'!F14 -> 139492685.7 | F50: ='SC3'!G14 -> 151690064.9 | G50: ='SC3'!H14 -> 137881861.8 | H50: ='SC3'!I14 -> 856273474.1 | I50: ='SC3'!J14 -> 6207484660 | J50: ='SC3'!K14 -> 8678029249
A51: =LEFT('SC4'!A5,22) -> Creditors Age Analysis
A52: Total Creditors | B52: ='SC4'!C16 -> 780609368.1 | C52: ='SC4'!D16 -> 284300118.6 | D52: ='SC4'!E16 -> 149554546.3 | E52: ='SC4'!F16 -> 243028190.5 | F52: ='SC4'!G16 -> 1890922911 | G52: ='SC4'!H16 -> 0 | H52: ='SC4'!I16 -> 0 | I52: ='SC4'!J16 -> 0 | J52: ='SC4'!K16 -> 3348415135

Sheet C2-FinPerf SC
A1: =muni& " - "&S71A& " - "&date -> KZN225 Msunduzi - Table C2 Consolidated Monthly Budget Statement - Financial Performance (functional classification) - Q4 Fourth Quarter
A2: =desc -> Description | B2: =head27 -> Ref | C2: =Head1 -> 2023/24 | D2: =Head2 -> Budget Year 2024/25
C3: =Head5 -> Audited Outcome | D3: =Head6 -> Original Budget | E3: =Head7 -> Adjusted Budget | F3: =Head38 -> Monthly actual | G3: =Head39 -> YearTD actual | H3: =Head40 -> YearTD budget | I3: =Head41 -> YTD variance | J3: =Head41 -> YTD variance | K3: =Head8 -> Full Year Forecast
A4: R thousands | B4: 1 | J4: %
A5: Revenue - Functional
A6: Governance and administration | C6: =SUM(C7:C9) -> 2042707568 | D6: 2688150807 | E6: 2687712716 | F6: 175832511.9 | G6: 2271943163 | H6: 2687712716 | I6: =G6-H6 -> -415769552.9 | J6: =IF(I6=0,"",I6/H6) -> -0.1546927059 | K6: =SUM(K7:K9) -> 2687712716
A7: Executive and council | C7: ='C2C'!C7 -> 4700996.67 | D7: ='C2C'!D7 -> 0 | E7: ='C2C'!E7 -> 0 | F7: ='C2C'!F7 -> 4042.26 | G7: ='C2C'!G7 -> 2091882.76 | H7: ='C2C'!H7 -> 0 | I7: 2091882.76 | J7: =IF(I7=0,"",I7/H7) ->  | K7: ='C2C'!K7 -> 0
A8: Finance and administration | C8: ='C2C'!C10 -> 2038006572 | D8: ='C2C'!D10 -> 2688150807 | E8: ='C2C'!E10 -> 2687712716 | F8: ='C2C'!F10 -> 175828469.6 | G8: ='C2C'!G10 -> 2269851281 | H8: ='C2C'!H10 -> 2687712716 | I8: -417861435.6 | J8: -0.1554710193 | K8: ='C2C'!K10 -> 2687712716
A9: Internal audit | C9: ='C2C'!C24 -> 0 | D9: ='C2C'!D24 -> 0 | E9: ='C2C'!E24 -> 0 | F9: ='C2C'!F24 -> 0 | G9: ='C2C'!G24 -> 0 | H9: ='C2C'!H24 -> 0 | I9: 0 | K9: ='C2C'!K24 -> 0
A10: Community and public safety | C10: =SUM(C11:C15) -> 225251514.1 | D10: 525429105.8 | E10: 322789363.4 | F10: 59098544.74 | G10: 183057692.2 | H10: 322789363.4 | I10: -139731671.2 | J10: -0.4328880907 | K10: =SUM(K11:K15) -> 322789363.4
A11: Community and social services | C11: ='C2C'!C27 -> 63388777.86 | D11: ='C2C'!D27 -> 307323184.7 | E11: ='C2C'!E27 -> 106950510.3 | F11: ='C2C'!F27 -> 10158191.8 | G11: ='C2C'!G27 -> 29366153.65 | H11: ='C2C'!H27 -> 106950510.3 | I11: -77584356.67 | J11: -0.7254229684 | K11: ='C2C'!K27 -> 106950510.3
A12: Sport and recreation | C12: ='C2C'!C49 -> 4912299.59 | D12: ='C2C'!D49 -> 23526793.18 | E12: ='C2C'!E49 -> 30479353.18 | F12: ='C2C'!F49 -> 2109627.07 | G12: ='C2C'!G49 -> 12978397.68 | H12: ='C2C'!H49 -> 30479353.18 | I12: -17500955.5 | J12: -0.5741905151 | K12: ='C2C'!K49 -> 30479353.18
A13: Public safety | C13: ='C2C'!C55 -> 25017311.62 | D13: ='C2C'!D55 -> 9172795.913 | E13: ='C2C'!E55 -> 9172795.913 | F13: ='C2C'!F55 -> 473848.09 | G13: ='C2C'!G55 -> 16669693.48 | H13: ='C2C'!H55 -> 9172795.913 | I13: 7496897.567 | J13: 0.8172968894 | K13: ='C2C'!K55 -> 9172795.913
A14: Housing | C14: ='C2C'!C64 -> 131933125 | D14: ='C2C'!D64 -> 185406332 | E14: ='C2C'!E64 -> 176186704 | F14: ='C2C'!F64 -> 46356877.78 | G14: ='C2C'!G64 -> 124043447.4 | H14: ='C2C'!H64 -> 176186704 | I14: -52143256.61 | J14: -0.2959545495 | K14: ='C2C'!K64 -> 176186704
A15: Health | C15: ='C2C'!C67 -> 0 | D15: ='C2C'!D67 -> 0 | E15: ='C2C'!E67 -> 0 | F15: ='C2C'!F67 -> 0 | G15: ='C2C'!G67 -> 0 | H15: ='C2C'!H67 -> 0 | I15: 0 | K15: ='C2C'!K67 -> 0
A16: Economic and environmental services | C16: =SUM(C17:C19) -> 167411962.7 | D16: 86691641.99 | E16: 150008156.3 | F16: 39994743.08 | G16: 141609437.5 | H16: 150008156.3 | I16: -8398718.791 | J16: -0.05598841422 | K16: =SUM(K17:K19) -> 150008156.3
A17: Planning and development | C17: ='C2C'!C76 -> 118230028 | D17: ='C2C'!D76 -> 31697207.13 | E17: ='C2C'!E76 -> 44120968.22 | F17: ='C2C'!F76 -> 12480441.07 | G17: ='C2C'!G76 -> 52141871.86 | H17: ='C2C'!H76 -> 44120968.22 | I17: 8020903.64 | J17: 0.1817934638 | K17: ='C2C'!K76 -> 44120968.22
A18: Road transport | C18: ='C2C'!C87 -> 48423465.64 | D18: ='C2C'!D87 -> 50000000 | E18: ='C2C'!E87 -> 100892753.2 | F18: ='C2C'!F87 -> 27269329.57 | G18: ='C2C'!G87 -> 88587963.65 | H18: ='C2C'!H87 -> 100892753.2 | I18: -12304789.56 | J18: -0.1219591018 | K18: ='C2C'!K87 -> 100892753.2
A19: Environmental protection | C19: ='C2C'!C92 -> 758469.01 | D19: ='C2C'!D92 -> 4994434.861 | E19: ='C2C'!E92 -> 4994434.861 | F19: ='C2C'!F92 -> 244972.44 | G19: ='C2C'!G92 -> 879601.99 | H19: ='C2C'!H92 -> 4994434.861 | I19: -4114832.871 | J19: -0.8238835795 | K19: ='C2C'!K92 -> 4994434.861
A20: Trading services | C20: =SUM(C21:C24) -> 4506712075 | D20: =SUM(D21:D24) -> 5997733918 | E20: 6164111982 | F20: 536372560.5 | G20: 5342785430 | H20: 6164111982 | I20: -821326552 | J20: -0.1332432886 | K20: =SUM(K21:K24) -> 6164111982
A21: Energy sources | C21: ='C2C'!C100 -> 2671690063 | D21: ='C2C'!D100 -> 4347604455 | E21: ='C2C'!E100 -> 4275322426 | F21: ='C2C'!F100 -> 285852123.4 | G21: ='C2C'!G100 -> 3179846056 | H21: ='C2C'!H100 -> 4275322426 | I21: =G21-H21 -> -1095476370 | J21: -0.2562324571 | K21: ='C2C'!K100 -> 4275322426
A22: Water management | C22: ='C2C'!C104 -> 1308245353 | D22: ='C2C'!D104 -> 1219122118 | E22: ='C2C'!E104 -> 1282859280 | F22: ='C2C'!F104 -> 170480030 | G22: ='C2C'!G104 -> 1556298059 | H22: ='C2C'!H104 -> 1282859280 | I22: =G22-H22 -> 273438778.7 | J22: 0.2131479134 | K22: ='C2C'!K104 -> 1282859280
A23: Waste water management | C23: ='C2C'!C108 -> 332249573 | D23: ='C2C'!D108 -> 262027256.3 | E23: ='C2C'!E108 -> 436950188 | F23: ='C2C'!F108 -> 60816960.4 | G23: ='C2C'!G108 -> 424102047.9 | H23: ='C2C'!H108 -> 436950188 | I23: =G23-H23 -> -12848140.11 | J23: -0.02940412995 | K23: ='C2C'!K108 -> 436950188
A24: Waste management | C24: ='C2C'!C113 -> 194527085.9 | D24: ='C2C'!D113 -> 168980088.6 | E24: ='C2C'!E113 -> 168980088.6 | F24: ='C2C'!F113 -> 19223446.66 | G24: ='C2C'!G113 -> 182539267.9 | H24: ='C2C'!H113 -> 168980088.6 | I24: =G24-H24 -> 13559179.37 | J24: 0.08024128456 | K24: ='C2C'!K113 -> 168980088.6
A25: Other | B25: 4 | C25: ='C2C'!C118 -> 52356604.63 | D25: ='C2C'!D118 -> 122872641.8 | E25: ='C2C'!E118 -> 123791862.6 | F25: ='C2C'!F118 -> 2911574.88 | G25: ='C2C'!G118 -> 42846168.21 | H25: ='C2C'!H118 -> 123791862.6 | I25: =G25-H25 -> -80945694.42 | J25: -0.6538854227 | K25: ='C2C'!K118 -> 123791862.6
A26: Total Revenue - Functional | B26: 2 | C26: =C6+C10+C16+C20+C25 -> 6994439725 | D26: =D6+D10+D16+D20+D25 -> 9420878114 | E26: 9448414081 | F26: 814209935.1 | G26: 7982241891 | H26: 9448414081 | I26: -1466172189 | J26: -0.1551765383 | K26: =K6+K10+K16+K20+K25 -> 9448414081
A28: Expenditure - Functional
A29: Governance and administration | C29: =SUM(C30:C32) -> 1394784170 | D29: 1659708472 | E29: 2298235303 | F29: 139915387 | G29: 1126079919 | H29: 2298235303 | I29: =G29-H29 -> -1172155384 | J29: =IF(I29=0,"",I29/H29) -> -0.5100240965 | K29: =SUM(K30:K32) -> 2298235303
A30: Executive and council | C30: ='C2C'!C129 -> 154335868.4 | D30: ='C2C'!D129 -> 165980670 | E30: ='C2C'!E129 -> 146477112.8 | F30: ='C2C'!F129 -> 10518279.55 | G30: ='C2C'!G129 -> 134409394.2 | H30: ='C2C'!H129 -> 146477112.8 | I30: -12067718.62 | J30: =IF(I30=0,"",I30/H30) -> -0.08238637686 | K30: ='C2C'!K129 -> 146477112.8
A31: Finance and administration | C31: ='C2C'!C132 -> 1215285473 | D31: ='C2C'!D132 -> 1465568308 | E31: ='C2C'!E132 -> 2137732110 | F31: ='C2C'!F132 -> 124352604.5 | G31: ='C2C'!G132 -> 956832486.9 | H31: ='C2C'!H132 -> 2137732110 | I31: -1180899623 | J31: -0.5524076743 | K31: ='C2C'!K132 -> 2137732110
A32: Internal audit | C32: ='C2C'!C146 -> 25162828.92 | D32: ='C2C'!D146 -> 28159494 | E32: ='C2C'!E146 -> 14026080.13 | F32: ='C2C'!F146 -> 5044502.87 | G32: ='C2C'!G146 -> 34838037.87 | H32: ='C2C'!H146 -> 14026080.13 | I32: 20811957.74 | J32: 1.483804281 | K32: ='C2C'!K146 -> 14026080.13
A33: Community and public safety | C33: =SUM(C34:C38) -> 639572810.1 | D33: 706899390.8 | E33: 544340537.1 | F33: 47374099.86 | G33: 578173213.1 | H33: 544340537.1 | I33: 33832676 | J33: 0.0621535118 | K33: =SUM(K34:K38) -> 544340537.1
A34: Community and social services | C34: ='C2C'!C149 -> 154233095.9 | D34: ='C2C'!D149 -> 250699021 | E34: ='C2C'!E149 -> 139956207 | F34: ='C2C'!F149 -> 14242993.81 | G34: ='C2C'!G149 -> 154999750.4 | H34: ='C2C'!H149 -> 139956207 | I34: 15043543.43 | J34: 0.1074875045 | K34: ='C2C'!K149 -> 139956207
A35: Sport and recreation | C35: ='C2C'!C171 -> 152619425.4 | D35: ='C2C'!D171 -> 121147022.5 | E35: ='C2C'!E171 -> 111321486.1 | F35: ='C2C'!F171 -> 10311276.03 | G35: ='C2C'!G171 -> 131039217.3 | H35: ='C2C'!H171 -> 111321486.1 | I35: 19717731.22 | J35: 0.1771242184 | K35: ='C2C'!K171 -> 111321486.1
A36: Public safety | C36: ='C2C'!C177 -> 221231115.3 | D36: ='C2C'!D177 -> 244183097.4 | E36: ='C2C'!E177 -> 182050054 | F36: ='C2C'!F177 -> 15094046.09 | G36: ='C2C'!G177 -> 214738942.8 | H36: ='C2C'!H177 -> 182050054 | I36: 32688888.8 | J36: 0.1795598962 | K36: ='C2C'!K177 -> 182050054
A37: Housing | C37: ='C2C'!C186 -> 101531000 | D37: ='C2C'!D186 -> 81136670.54 | E37: ='C2C'!E186 -> 102330105 | F37: ='C2C'!F186 -> 7061160.52 | G37: ='C2C'!G186 -> 69150865.55 | H37: ='C2C'!H186 -> 102330105 | I37: -33179239.45 | J37: -0.3242373244 | K37: ='C2C'!K186 -> 102330105
A38: Health | C38: ='C2C'!C189 -> 9958173.58 | D38: ='C2C'!D189 -> 9733579.461 | E38: ='C2C'!E189 -> 8682685.06 | F38: ='C2C'!F189 -> 664623.41 | G38: ='C2C'!G189 -> 8244437.06 | H38: ='C2C'!H189 -> 8682685.06 | I38: -438248 | J38: -0.05047378743 | K38: ='C2C'!K189 -> 8682685.06
A39: Economic and environmental services | C39: =SUM(C40:C42) -> 478064864.4 | D39: 640338797 | E39: 504260015.5 | F39: 65884351.01 | G39: 482768120.5 | H39: 504260015.5 | I39: -21491894.93 | J39: -0.04262066051 | K39: =SUM(K40:K42) -> 504260015.5
A40: Planning and development | C40: ='C2C'!C198 -> 97777604.41 | D40: ='C2C'!D198 -> 161555852 | E40: ='C2C'!E198 -> 135355076.9 | F40: ='C2C'!F198 -> 11336470.93 | G40: ='C2C'!G198 -> 97786618.6 | H40: ='C2C'!H198 -> 135355076.9 | I40: -37568458.31 | J40: -0.2775548518 | K40: ='C2C'!K198 -> 135355076.9
A41: Road transport | C41: ='C2C'!C209 -> 354436930.9 | D41: ='C2C'!D209 -> 449621964 | E41: ='C2C'!E209 -> 337084825.4 | F41: ='C2C'!F209 -> 51301669.74 | G41: ='C2C'!G209 -> 356447635.3 | H41: ='C2C'!H209 -> 337084825.4 | I41: 19362809.9 | J41: 0.05744195064 | K41: ='C2C'!K209 -> 337084825.4
A42: Environmental protection | C42: ='C2C'!C214 -> 25850329.03 | D42: ='C2C'!D214 -> 29160981 | E42: ='C2C'!E214 -> 31820113.16 | F42: ='C2C'!F214 -> 3246210.34 | G42: ='C2C'!G214 -> 28533866.64 | H42: ='C2C'!H214 -> 31820113.16 | I42: -3286246.52 | J42: -0.1032757647 | K42: ='C2C'!K214 -> 31820113.16
A43: Trading services | C43: =SUM(C44:C47) -> 5510614660 | D43: =SUM(D44:D47) -> 5278293781 | E43: 4462719521 | F43: 230123688.9 | G43: 4882925571 | H43: 4462719521 | I43: 420206050.4 | J43: 0.09415918891 | K43: =SUM(K44:K47) -> 4462719521
A44: Energy sources | C44: ='C2C'!C222 -> 3380460362 | D44: ='C2C'!D222 -> 3749118944 | E44: ='C2C'!E222 -> 3151351924 | F44: ='C2C'!F222 -> 34433708.99 | G44: ='C2C'!G222 -> 3136702738 | H44: ='C2C'!H222 -> 3151351924 | I44: -14649185.82 | J44: -0.00464854011 | K44: ='C2C'!K222 -> 3151351924
A45: Water management | C45: ='C2C'!C226 -> 1504796140 | D45: ='C2C'!D226 -> 1010944858 | E45: ='C2C'!E226 -> 862093060 | F45: ='C2C'!F226 -> 131658653.6 | G45: ='C2C'!G226 -> 1225980795 | H45: ='C2C'!H226 -> 862093060 | I45: 363887735.4 | J45: 0.4220979756 | K45: ='C2C'!K226 -> 862093060
A46: Waste water management | C46: ='C2C'!C230 -> 434826346.1 | D46: ='C2C'!D230 -> 369521337 | E46: ='C2C'!E230 -> 334845006 | F46: ='C2C'!F230 -> 44664728.24 | G46: ='C2C'!G230 -> 388979788.9 | H46: ='C2C'!H230 -> 334845006 | I46: 54134782.93 | J46: 0.1616711671 | K46: ='C2C'!K230 -> 334845006
A47: Waste management | C47: ='C2C'!C235 -> 190531811.7 | D47: ='C2C'!D235 -> 148708642 | E47: ='C2C'!E235 -> 114429531 | F47: ='C2C'!F235 -> 19366598.06 | G47: ='C2C'!G235 -> 131262248.9 | H47: ='C2C'!H235 -> 114429531 | I47: 16832717.92 | J47: 0.1471011702 | K47: ='C2C'!K235 -> 114429531
A48: Other | C48: ='C2C'!C240 -> 77736928.61 | D48: ='C2C'!D240 -> 95029461.57 | E48: ='C2C'!E240 -> 60884325.44 | F48: ='C2C'!F240 -> 4650560.29 | G48: ='C2C'!G240 -> 91980801.34 | H48: ='C2C'!H240 -> 60884325.44 | I48: 31096475.9 | J48: 0.5107468249 | K48: ='C2C'!K240 -> 60884325.44
A49: Total Expenditure - Functional | B49: 3 | C49: =C29+C33+C39+C43+C48 -> 8100773433 | D49: =D29+D33+D39+D43+D48 -> 8380269902 | E49: 7870439702 | F49: 487948087.1 | G49: 7161927625 | H49: 7870439702 | I49: -708512076.6 | J49: -0.09002191789 | K49: =K29+K33+K39+K43+K48 -> 7870439702
A50: Surplus/ (Deficit) for the year | C50: =C26-C49 -> -1106333708 | D50: 1040608212 | E50: 1577974379 | F50: 326261848 | G50: 820314266 | H50: 1577974379 | I50: =I26-I49 -> -757660112.7 | J50: =IF(I50=0,"",I50/H50) -> -0.4801472844 | K50: =K26-K49 -> 1577974379
A51: =head27a -> References
A52: 1. Government Finance Statistics Functions and Sub-functions are standardised to assist the compilation of national and international accounts for comparison purposes
A53: 2. Total Revenue by functional classification must reconcile to Total Operating Revenue shown in the Financial Performance Statement
A54: 3. Total Expenditure by functional classification must reconcile to total operating expenditure shown in 'Financial Performance Statement'
A55: 4. All amounts must be classified under a functional classification (modified GFS). The GFS function 'Other' is only for Abbatoirs, Air Transport, Licensing and Regulation, Markets and Tourism - and if used must be supported by footnotes. Nothing else may be placed under 'Other'. Assign associate share to relevant classification

Sheet C2C
A1: =muni& " - "&S71A& " - "&date -> KZN225 Msunduzi - Table C2 Consolidated Monthly Budget Statement - Financial Performance (functional classification) - Q4 Fourth Quarter
A2: =desc -> Description | B2: =head27 -> Ref | C2: =Head1 -> 2023/24 | D2: =Head2 -> Budget Year 2024/25
C3: =Head5 -> Audited Outcome | D3: =Head6 -> Original Budget | E3: =Head7 -> Adjusted Budget | F3: =Head38 -> Monthly actual | G3: =Head39 -> YearTD actual | H3: =Head40 -> YearTD budget | I3: =Head41 -> YTD variance | J3: =Head41 -> YTD variance | K3: =Head8 -> Full Year Forecast
A4: R thousands | B4: 1 | J4: %
A5: Revenue - Functional
A6: Municipal governance and administration | C6: =C7+C10+C24 -> 2042707568 | D6: 2688150807 | E6: 2687712716 | F6: 175832511.9 | G6: 2271943163 | H6: 2687712716 | I6: =G6-H6 -> -415769552.9 | J6: =IF(I6=0,"",I6/H6) -> -0.1546927059 | K6: =K7+K10+K24 -> 2687712716
A7: Executive and council | C7: =SUM(C8:C9) -> 4700996.67 | D7: =SUM(D8:D9) -> 0 | E7: 0 | F7: 4042.26 | G7: 2091882.76 | H7: 0 | I7: =G7-H7 -> 2091882.76 | J7: =IF(I7=0,"",I7/H7) ->  | K7: 0
A8: Mayor and Council | E8: 0 | G8: -36.18 | H8: =E8/12*12 -> 0 | I8: -36.18
A9: Municipal Manager, Town Secretary and Chief Executive | C9: 4700996.67 | F9: 4042.26 | G9: 2091918.94 | H9: =E9/12*12 -> 0 | I9: 2091918.94 | K9: =E9 -> 0
A10: Finance and administration | C10: =SUM(C11:C23) -> 2038006572 | D10: 2688150807 | E10: 2687712716 | F10: 175828469.6 | G10: 2269851281 | H10: 2687712716 | I10: -417861435.6 | J10: -0.1554710193 | K10: =SUM(K11:K23) -> 2687712716
A11: Administrative and Corporate Support | C11: 0 | D11: 0 | E11: 0 | F11: 0 | G11: 0 | H11: =E11/12*12 -> 0 | I11: 0
A12: Asset Management | C12: 28685.93 | E12: 14153773.66 | F12: 1649130.43 | G12: 3043755.3 | H12: 14153773.66 | I12: -11110018.36 | J12: -0.7849509697 | K12: =E12 -> 14153773.66
A13: Finance | C13: 2004771659 | D13: 2633346699 | E13: 896634017 | F13: 174996536.3 | G13: 2244264186 | H13: 896634017 | I13: 1347630169 | J13: 1.502988001 | K13: =E13 -> 896634017
A14: Fleet Management | C14: 0 | D14: 0 | E14: 0 | F14: 0 | G14: 0 | H14: 0 | I14: 0
A15: Human Resources | C15: 9435294.78 | D15: 12101098.95 | E15: 11513008.91 | F15: 884436.54 | G15: 10262207.66 | H15: 11513008.91 | I15: -1250801.25 | J15: -0.1086424287 | K15: =E15 -> 11513008.91
A16: Information Technology | C16: 417.36 | E16: 2608.41 | F16: 0 | G16: 0 | H16: 2608.41 | I16: -2608.41 | J16: -1 | K16: =E16 -> 2608.41
A17: Legal Services | C17: 428337.14 | E17: 332656.55 | F17: 100 | G17: 756706.3 | H17: 332656.55 | I17: 424049.75 | J17: 1.274737413 | K17: 332656.55
A18: Marketing, Customer Relations, Publicity and Media Co-ordination | C18: 0 | D18: 0 | E18: 0 | F18: 0 | G18: 0 | H18: 0 | I18: 0
A19: Property Services | C19: 23300467.27 | D19: 42351757.85 | E19: 1764725401 | F19: 2891490.86 | G19: 15871745.1 | H19: 1764725401 | I19: -1748853656 | J19: -0.9910061106 | K19: =E19 -> 1764725401
A20: Risk Management | C20: 0 | D20: 0 | E20: 0 | F20: 0 | G20: 0 | H20: 0 | I20: 0
A21: Security Services | C21: 0 | D21: 0 | E21: 0 | F21: 0 | G21: -59.45 | H21: 0 | I21: -59.45
A22: Supply Chain Management | C22: 41710.24 | D22: 351250.83 | E22: 351250.83 | F22: -4593224.45 | G22: -4347259.87 | H22: 351250.83 | I22: -4698510.7 | J22: -13.37651131 | K22: =E22 -> 351250.83
A23: Valuation Service | C23: 0 | D23: 0 | E23: 0 | F23: 0 | G23: 0 | I23: 0
A24: Internal audit | C24: =SUM(C25:C25) -> 0 | D24: 0 | E24: 0 | F24: 0 | G24: 0 | H24: 0 | I24: 0 | K24: =SUM(K25:K25) -> 0
A25: Governance Function | I25: 0
A26: Community and public safety | C26: =C27+C49+C55+C64+C67 -> 225251514.1 | D26: =D27+D49+D55+D64+D67 -> 525429105.8 | E26: =E27+E49+E55+E64+E67 -> 322789363.4 | F26: =F27+F49+F55+F64+F67 -> 59098544.74 | G26: 183057692.2 | H26: 322789363.4 | I26: -139731671.2 | J26: -0.4328880907 | K26: =K27+K49+K55+K64+K67 -> 322789363.4
A27: Community and social services | C27: =SUM(C28:C48) -> 63388777.86 | D27: 307323184.7 | E27: 106950510.3 | F27: 10158191.8 | G27: 29366153.65 | H27: 106950510.3 | I27: -77584356.67 | J27: -0.7254229684 | K27: =SUM(K28:K48) -> 106950510.3
A28: Aged Care | C28: 0 | E28: 0 | I28: 0
A29: Agricultural | C29: 0 | E29: 0 | I29: 0
A30: Animal Care and Diseases | C30: 0 | E30: 0 | I30: 0
A31: Cemeteries, Funeral Parlours and Crematoriums | C31: 25298089.01 | D31: 26986487.05 | E31: 26986486.32 | F31: 461663.03 | G31: 3935969.21 | H31: =E31/12*12 -> 26986486.32 | I31: -23050517.11 | J31: -0.8541503639 | K31: =E31 -> 26986486.32
A32: Child Care Facilities | C32: 0 | D32: 0 | E32: 0 | F32: 0 | G32: 0 | I32: 0
A33: Community Halls and Facilities | C33: 16336046.61 | D33: 263647697.7 | E33: 63410024 | F33: 5042337.35 | G33: 8375242.45 | H33: =E33/12*12 -> 63410024 | I33: -55034781.55 | J33: -0.867919267 | K33: =E33 -> 63410024
A34: Consumer Protection | C34: 0 | E34: 0 | I34: 0
A35: Cultural Matters | C35: 0 | E35: 0 | I35: 0
A36: Disaster Management | C36: 0 | E36: 0 | I36: 0
A37: Education | C37: 0 | E37: 0 | I37: 0
A38: Indigenous and Customary Law | C38: 0 | E38: 0 | I38: 0
A39: Industrial Promotion | C39: 0 | E39: 0 | I39: 0
A40: Language Policy | C40: 0 | E40: 0 | I40: 0
A41: Libraries and Archives | C41: 21379515.78 | D41: 16093000 | E41: 15958000 | F41: 4116109.81 | G41: 16116219.61 | H41: =E41/12*12 -> 15958000 | I41: 158219.61 | J41: 0.009914751849 | K41: =E41 -> 15958000
A42: Literacy Programmes | C42: 0 | E42: 0 | F42: 0 | G42: 0 | I42: 0
A43: Media Services | C43: 0 | E43: 0 | F43: 0 | G43: 0 | I43: 0
A44: Museums and Art Galleries | C44: 375126.46 | D44: 596000 | E44: 596000 | F44: 538081.61 | G44: 938722.38 | H44: =E44/12*12 -> 596000 | I44: 342722.38 | J44: 0.5750375503 | K44: =E44 -> 596000
A45: Population Development | C45: 0 | E45: 0 | I45: 0
A46: Provincial Cultural Matters | C46: 0 | E46: 0 | I46: 0
A47: Theatres | C47: 0 | E47: 0 | I47: 0
A48: Zoo's | C48: 0 | E48: 0 | I48: 0
A49: Sport and recreation | C49: =SUM(C50:C54) -> 4912299.59 | D49: =SUM(D50:D54) -> 23526793.18 | E49: 30479353.18 | F49: 2109627.07 | G49: 12978397.68 | H49: 30479353.18 | I49: -17500955.5 | J49: -0.5741905151 | K49: 30479353.18
A50: Beaches and Jetties | C50: 0 | E50: 0 | I50: 0
A51: Casinos, Racing, Gambling, Wagering | C51: 0 | E51: 0 | I51: 0
A52: Community Parks (including Nurseries) | C52: 0 | E52: 0 | I52: 0
A53: Recreational Facilities | C53: 581092.93 | D53: 23526793.18 | E53: 23526793.18 | F53: 45470.45 | G53: 875198.2 | H53: =E53/12*12 -> 23526793.18 | I53: -22651594.98 | J53: -0.9627999365 | K53: =E53 -> 23526793.18
A54: Sports Grounds and Stadiums | C54: 4331206.66 | E54: 6952560 | F54: 2064156.62 | G54: 12103199.48 | H54: 6952560 | I54: 5150639.48 | J54: 0.7408263258 | K54: 6952560
A55: Public safety | C55: =SUM(C56:C63) -> 25017311.62 | D55: =SUM(D56:D63) -> 9172795.913 | E55: 9172795.913 | F55: 473848.09 | G55: 16669693.48 | H55: 9172795.913 | I55: 7496897.567 | J55: 0.8172968894 | K55: 9172795.913
A56: Civil Defence | C56: 0 | E56: 0 | I56: 0
A57: Cleansing | C57: 0 | E57: 0 | I57: 0
A58: Control of Public Nuisances | C58: 0 | E58: 0 | I58: =G58-H58 -> 0 | J58: =IF(I58=0,"",I58/H58) -> 
A59: Fencing and Fences | C59: 0 | E59: 0 | I59: 0
A60: Fire Fighting and Protection | C60: 1765193.93 | D60: 424885.1016 | E60: 424885.1016 | F60: 155886.5 | G60: 433061.14 | H60: =E60/12*12 -> 424885.1016 | I60: 8176.0384 | J60: 0.01924293972 | K60: =E60 -> 424885.1016
A61: Licensing and Control of Animals | C61: 0 | D61: 0 | E61: 0 | F61: 0 | G61: 0 | H61: 0 | I61: =G61-H61 -> 0 | J61: =IF(I61=0,"",I61/H61) -> 
A62: Police Forces, Traffic and Street Parking Control | C62: 23252117.69 | D62: 8747910.811 | E62: 8747910.811 | F62: 317961.59 | G62: 16236632.34 | H62: 8747910.811 | I62: =G62-H62 -> 7488721.529 | J62: =IF(I62=0,"",I62/H62) -> 0.8560582852 | K62: =E62 -> 8747910.811
A63: Pounds | C63: 0 | E63: 0 | I63: 0
A64: Housing | C64: =SUM(C65:C66) -> 131933125 | D64: 185406332 | E64: 176186704 | F64: 46356877.78 | G64: 124043447.4 | H64: 176186704 | I64: =G64-H64 -> -52143256.61 | J64: =IF(I64=0,"",I64/H64) -> -0.2959545495 | K64: =SUM(K65:K66) -> 176186704
A65: Housing | C65: 131933125 | D65: 185406332 | E65: 176186704 | F65: 46356877.78 | G65: 124043447.4 | H65: =E65/12*12 -> 176186704 | I65: =G65-H65 -> -52143256.61 | J65: =IF(I65=0,"",I65/H65) -> -0.2959545495 | K65: =E65 -> 176186704
A66: Informal Settlements | C66: 0 | I66: =G66-H66 -> 0 | J66: =IF(I66=0,"",I66/H66) -> 
A67: Health | C67: =SUM(C68:C74) -> 0 | D67: 0 | E67: 0 | F67: 0 | G67: 0 | H67: 0 | I67: 0 | K67: =SUM(K68:K74) -> 0
A68: Ambulance | I68: 0
A69: Health Services | I69: 0
A70: Laboratory Services | I70: =G70-H70 -> 0 | J70: =IF(I70=0,"",I70/H70) -> 
A71: Food Control | I71: =G71-H71 -> 0 | J71: =IF(I71=0,"",I71/H71) -> 
A72: Health Surveillance and Prevention of Communicable Diseases including immunizations | I72: 0
A73: Vector Control | I73: 0
A74: Chemical Safety | I74: 0
A75: Economic and environmental services | C75: =C76+C87+C92 -> 167411962.7 | D75: =D76+D87+D92 -> 86691641.99 | E75: =E76+E87+E92 -> 150008156.3 | F75: 39994743.08 | G75: 141609437.5 | H75: 150008156.3 | I75: -8398718.791 | J75: -0.05598841422 | K75: =K76+K87+K92 -> 150008156.3
A76: Planning and development | C76: =SUM(C77:C86) -> 118230028 | D76: 31697207.13 | E76: 44120968.22 | F76: 12480441.07 | G76: 52141871.86 | H76: 44120968.22 | I76: 8020903.64 | J76: 0.1817934638 | K76: =SUM(K77:K86) -> 44120968.22
A77: Billboards | I77: =G77-H77 -> 0 | J77: =IF(I77=0,"",I77/H77) -> 
A78: Corporate Wide Strategic Planning (IDPs, LEDs) | I78: 0
A79: Central City Improvement District | I79: 0
A80: Development Facilitation | I80: =G80-H80 -> 0 | J80: =IF(I80=0,"",I80/H80) -> 
A81: Economic Development/Planning | C81: 18902493.21 | D81: 1000000 | E81: 21062396.22 | F81: 1588079.62 | G81: 28955823.18 | H81: =E81/12*12 -> 21062396.22 | I81: =G81-H81 -> 7893426.96 | J81: =IF(I81=0,"",I81/H81) -> 0.3747639574 | K81: =E81 -> 21062396.22
A82: Regional Planning and Development | C82: 0 | E82: 0 | F82: 0 | G82: 0 | H82: 0 | I82: =G82-H82 -> 0 | J82: =IF(I82=0,"",I82/H82) -> 
A83: Town Planning, Building Regulations and Enforcement, and City Engineer | C83: 99327534.81 | D83: 30697207.13 | E83: 23058572 | F83: 10892361.45 | G83: 23186048.68 | H83: 23058572 | I83: =G83-H83 -> 127476.68 | J83: =IF(I83=0,"",I83/H83) -> 0.005528385713 | K83: =E83 -> 23058572
A84: Project Management Unit | I84: 0
A85: Provincial Planning | I85: 0
A86: Support to Local Municipalities | I86: 0
A87: Road transport | C87: =SUM(C88:C91) -> 48423465.64 | D87: 50000000 | E87: 100892753.2 | F87: 27269329.57 | G87: 88587963.65 | H87: 100892753.2 | I87: -12304789.56 | J87: -0.1219591018 | K87: =SUM(K88:K91) -> 100892753.2
A88: Public Transport | C88: 0 | H88: =E88/12*11 -> 0 | I88: 0 | K88: =D88 -> 0
A89: Road and Traffic Regulation | C89: 0 | I89: 0
A90: Roads | C90: 48423465.64 | D90: 50000000 | E90: 100892753.2 | F90: 27269329.57 | G90: 88587963.65 | H90: =E90/12*12 -> 100892753.2 | I90: -12304789.56 | J90: -0.1219591018 | K90: =E90 -> 100892753.2
A91: Taxi Ranks | C91: 0 | I91: 0
A92: Environmental protection | C92: =SUM(C93:C98) -> 758469.01 | D92: =SUM(D93:D98) -> 4994434.861 | E92: 4994434.861 | F92: 244972.44 | G92: 879601.99 | H92: 4994434.861 | I92: -4114832.871 | J92: -0.8238835795 | K92: 4994434.861
A93: Biodiversity and Landscape | C93: 0 | I93: 0
A94: Coastal Protection | C94: 0 | I94: 0
A95: Indigenous Forests | C95: 0 | I95: =G95-H95 -> 0 | J95: =IF(I95=0,"",I95/H95) -> 
A96: Nature Conservation | C96: 0 | I96: =G96-H96 -> 0 | J96: =IF(I96=0,"",I96/H96) -> 
A97: Pollution Control | C97: 758469.01 | D97: 4994434.861 | E97: 4994434.861 | F97: 244972.44 | G97: 879601.99 | H97: =E97/12*12 -> 4994434.861 | I97: -4114832.871 | J97: -0.8238835795 | K97: =E97 -> 4994434.861
A98: Soil Conservation | C98: 0 | I98: 0
A99: Trading services | C99: =C100+C104+C108+C113 -> 4506712075 | D99: =D100+D104+D108+D113 -> 5997733918 | E99: =E100+E104+E108+E113 -> 6164111982 | F99: =F100+F104+F108+F113 -> 536372560.5 | G99: =G100+G104+G108+G113 -> 5342785430 | H99: 6164111982 | I99: =I100+I104+I108+I113 -> -821326552 | J99: -0.1332432886 | K99: =K100+K104+K108+K113 -> 6164111982
A100: Energy sources | C100: =SUM(C101:C103) -> 2671690063 | D100: =SUM(D101:D103) -> 4347604455 | E100: 4275322426 | F100: 285852123.4 | G100: 3179846056 | H100: 4275322426 | I100: -1095476370 | J100: -0.2562324571 | K100: 4275322426
A101: Electricity | C101: 2671690063 | D101: 4347604455 | E101: 4275322426 | F101: 285852123.4 | G101: 3179846056 | H101: =E101/12*12 -> 4275322426 | I101: -1095476370 | J101: -0.2562324571 | K101: =E101 -> 4275322426
A102: Street Lighting and Signal Systems | C102: 0 | I102: =G102-H102 -> 0 | J102: =IF(I102=0,"",I102/H102) -> 
A103: Nonelectric Energy | C103: 0 | I103: 0
A104: Water management | C104: =SUM(C105:C107) -> 1308245353 | D104: =SUM(D105:D107) -> 1219122118 | E104: 1282859280 | F104: 170480030 | G104: 1556298059 | H104: 1282859280 | I104: 273438778.7 | J104: 0.2131479134 | K104: 1282859280
A105: Water Treatment | C105: 0 | I105: 0
A106: Water Distribution | C106: 1308245353 | D106: 1219122118 | E106: 1282859280 | F106: 170480030 | G106: 1556298059 | H106: =E106/12*12 -> 1282859280 | I106: =G106-H106 -> 273438778.7 | J106: =IF(I106=0,"",I106/H106) -> 0.2131479134 | K106: =E106 -> 1282859280
A107: Water Storage | C107: 0 | I107: 0
A108: Waste water management | C108: =SUM(C109:C112) -> 332249573 | D108: =SUM(D109:D112) -> 262027256.3 | E108: 436950188 | F108: 60816960.4 | G108: 424102047.9 | H108: 436950188 | I108: -12848140.11 | J108: -0.02940412995 | K108: 436950188
A109: Public Toilets | C109: 0 | I109: 0
A110: Sewerage | C110: 332249573 | D110: 262027256.3 | E110: 436950188 | F110: 60816960.4 | G110: 424102047.9 | H110: =E110/12*12 -> 436950188 | I110: -12848140.11 | J110: -0.02940412995 | K110: =E110 -> 436950188
A111: Storm Water Management | C111: 0 | I111: =G111-H111 -> 0 | J111: =IF(I111=0,"",I111/H111) -> 
A112: Waste Water Treatment | C112: 0 | I112: 0
A113: Waste management | C113: =SUM(C114:C117) -> 194527085.9 | D113: 168980088.6 | E113: 168980088.6 | F113: 19223446.66 | G113: 182539267.9 | H113: 168980088.6 | I113: 13559179.37 | J113: 0.08024128456 | K113: =SUM(K114:K117) -> 168980088.6
A114: Recycling | C114: 0 | I114: =G114-H114 -> 0 | J114: =IF(I114=0,"",I114/H114) -> 
A115: Solid Waste Disposal (Landfill Sites) | C115: 56945113.39 | F115: 4113126.95 | G115: 33590618.3 | H115: =E115/12*12 -> 0 | I115: =G115-H115 -> 33590618.3 | J115: =IF(I115=0,"",I115/H115) -> 
A116: Solid Waste Removal | C116: 137581972.5 | D116: 168980088.6 | E116: 168980088.6 | F116: 15110319.71 | G116: 148948649.6 | H116: 168980088.6 | I116: -20031438.93 | J116: -0.1185431911 | K116: =E116 -> 168980088.6
A117: Street Cleaning | C117: 0 | I117: =G117-H117 -> 0 | J117: =IF(I117=0,"",I117/H117) -> 
A118: Other | C118: =SUM(C119:C124) -> 52356604.63 | D118: =SUM(D119:D124) -> 122872641.8 | E118: 123791862.6 | F118: 2911574.88 | G118: 42846168.21 | H118: 123791862.6 | I118: -80945694.42 | J118: -0.6538854227 | K118: 123791862.6
A119: Abattoirs | C119: 0 | E119: 0 | F119: 0 | G119: 0 | I119: 0
A120: Air Transport | C120: 16241393.37 | D120: 46806432.43 | E120: 47725713.22 | F120: 726623.4 | G120: 18019625.17 | H120: =E120/12*12 -> 47725713.22 | I120: -29706088.05 | J120: -0.6224336117 | K120: =E120 -> 47725713.22
A121: Forestry | C121: 11198051 | D121: 10143141.02 | E121: 10143141.02 | F121: 0 | G121: 0 | H121: 10143141.02 | I121: =G121-H121 -> -10143141.02 | J121: =IF(I121=0,"",I121/H121) -> -1 | K121: 10143141.02
A122: Licensing and Regulation | C122: 1068070.77 | D122: 2280701.495 | E122: 2280701.495 | F122: 161822.29 | G122: 2346380.19 | H122: 2280701.495 | I122: 65678.69496 | J122: 0.02879758491 | K122: 2280701.495
A123: Markets | C123: 23849089.49 | D123: 63642366.81 | E123: 63642306.89 | F123: 2023129.19 | G123: 22480162.85 | H123: 63642306.89 | I123: -41162144.04 | J123: -0.6467732873 | K123: 63642306.89
A124: Tourism | C124: 0 | E124: 0 | F124: 0 | G124: 0 | I124: =G124-H124 -> 0 | J124: =IF(I124=0,"",I124/H124) -> 
A125: ="Total "&A5 -> Total Revenue - Functional | B125: 2 | C125: =C6+C26+C75+C99+C118 -> 6994439725 | D125: =D6+D26+D75+D99+D118 -> 9420878114 | E125: 9448414081 | F125: 814209935.1 | G125: 7982241891 | H125: 9448414081 | I125: =G125-H125 -> -1466172189 | J125: =IF(I125=0,"",I125/H125) -> -0.1551765383 | K125: =K6+K26+K75+K99+K118 -> 9448414081
A127: Expenditure - Functional
A128: =A6 -> Municipal governance and administration | C128: =C129+C132+C146 -> 1394784170 | D128: =D129+D132+D146 -> 1659708472 | E128: =E129+E132+E146 -> 2298235303 | F128: =F129+F132+F146 -> 139915387 | G128: 1126079919 | H128: =H129+H132+H146 -> 2298235303 | I128: =G128-H128 -> -1172155384 | J128: =IF(I128=0,"",I128/H128) -> -0.5100240965 | K128: =K129+K132+K146 -> 2298235303
A129: Executive and council | C129: =SUM(C130:C131) -> 154335868.4 | D129: 165980670 | E129: 146477112.8 | F129: 10518279.55 | G129: 134409394.2 | H129: 146477112.8 | I129: -12067718.62 | J129: -0.08238637686 | K129: 146477112.8
A130: Mayor and Council | C130: 107155562.9 | D130: 116197489.4 | E130: 91477112.85 | F130: 7256450.6 | G130: 88800000.31 | H130: =E130/12*12 -> 91477112.85 | I130: -2677112.54 | J130: -0.02926538078 | K130: =E130 -> 91477112.85
A131: Municipal Manager, Town Secretary and Chief Executive | C131: 47180305.52 | D131: 49783180.58 | E131: 55000000 | F131: 3261828.95 | G131: 45609393.92 | H131: 55000000 | I131: -9390606.08 | J131: -0.1707382924 | K131: 55000000
A132: Finance and administration | C132: =SUM(C133:C145) -> 1215285473 | D132: 1465568308 | E132: 2137732110 | F132: 124352604.5 | G132: 956832486.9 | H132: 2137732110 | I132: -1180899623 | J132: -0.5524076743 | K132: =SUM(K133:K145) -> 2137732110
A133: Administrative and Corporate Support | C133: 66222510.83 | D133: 72746147.21 | E133: 75439698 | F133: 6527664.43 | G133: 77340379.92 | H133: =E133/12*12 -> 75439698 | I133: 1900681.92 | J133: 0.02519471804 | K133: =E133 -> 75439698
A134: Asset Management | C134: 69010901.16 | D134: 87624872.56 | E134: 75786548 | F134: 2611716.22 | G134: 67697846.37 | H134: 75786548 | I134: -8088701.63 | J134: -0.1067300444 | K134: 75786548
A135: Finance | C135: 537091546.9 | D135: 824792219.1 | E135: 1600322039 | F135: 33321343.71 | G135: 302868542.1 | H135: 1600322039 | I135: -1297453497 | J135: -0.8107452533 | K135: 1600322039
A136: Fleet Management | C136: 0 | D136: 0 | E136: 0 | F136: 0 | G136: 0 | H136: 0 | I136: 0 | K136: 0
A137: Human Resources | C137: 109903385.8 | D137: 108309536.8 | E137: 91353644 | F137: 7029497.39 | G137: 85572274.36 | H137: 91353644 | I137: -5781369.64 | J137: -0.06328559417 | K137: 91353644
A138: Information Technology | C138: 51376169.99 | D138: 52316392.7 | E138: 57159238 | F138: 8510621.05 | G138: 71863026.36 | H138: 57159238 | I138: 14703788.36 | J138: 0.2572425539 | K138: 57159238
A139: Legal Services | C139: 17490759.58 | D139: 19907466.71 | E139: 15788824 | F139: 5600620.54 | G139: 22464175.67 | H139: 15788824 | I139: 6675351.67 | J139: 0.4227896688 | K139: 15788824
A140: Marketing, Customer Relations, Publicity and Media Co-ordination | C140: 15076788.12 | D140: 24326241.85 | E140: 1147685 | F140: 196786.78 | G140: 2424464.95 | H140: 1147685 | I140: 1276779.95 | J140: 1.112482911 | K140: 1147685
A141: Property Services | C141: 73541433.94 | D141: 57624600.3 | E141: 41292249 | F141: 5581985.88 | G141: 60827495.22 | H141: 41292249 | I141: 19535246.22 | J141: 0.4730971718 | K141: 41292249
A142: Risk Management | C142: 0 | D142: 0 | E142: 0 | F142: 0 | G142: 0 | H142: 0 | I142: 0 | K142: 0
A143: Security Services | C143: 170590722.5 | D143: 119509375.2 | E143: 98199673 | F143: 26544993.34 | G143: 171282949.7 | H143: 98199673 | I143: 73083276.71 | J143: 0.7442313653 | K143: 98199673
A144: Supply Chain Management | C144: 104981254 | D144: 98411455.53 | E144: 81242512 | F144: 28427375.2 | G144: 94491332.22 | H144: 81242512 | I144: 13248820.22 | J144: 0.1630774319 | K144: 81242512
A145: Valuation Service | C145: 0 | D145: 0 | E145: 0 | F145: 0 | G145: 0 | H145: 0 | I145: 0 | K145: 0
A146: Internal audit | C146: =SUM(C147:C147) -> 25162828.92 | D146: 28159494 | E146: 14026080.13 | F146: 5044502.87 | G146: 34838037.87 | H146: 14026080.13 | I146: 20811957.74 | J146: 1.483804281 | K146: =SUM(K147:K147) -> 14026080.13
A147: Governance Function | C147: 25162828.92 | D147: 28159494 | E147: 14026080.13 | F147: 5044502.87 | G147: 34838037.87 | H147: =E147/12*12 -> 14026080.13 | I147: 20811957.74 | J147: 1.483804281 | K147: =E147 -> 14026080.13
A148: Community and public safety | C148: =C149+C171+C177+C186+C189 -> 639572810.1 | D148: =D149+D171+D177+D186+D189 -> 706899390.8 | E148: 544340537.1 | F148: 47374099.86 | G148: 578173213.1 | H148: 544340537.1 | I148: 33832676 | J148: 0.0621535118 | K148: =K149+K171+K177+K186+K189 -> 544340537.1
A149: Community and social services | C149: =SUM(C150:C170) -> 154233095.9 | D149: 250699021 | E149: 139956207 | F149: 14242993.81 | G149: 154999750.4 | H149: 139956207 | I149: 15043543.43 | J149: 0.1074875045 | K149: =SUM(K150:K170) -> 139956207
A150: Aged Care | C150: 587.64 | D150: 369799.8832 | E150: 481 | F150: -94.48 | G150: 349.33 | H150: =E150/12*12 -> 481 | I150: -131.67 | J150: -0.2737422037 | K150: =E150 -> 481
A151: Agricultural | C151: 0 | E151: 0 | F151: 0 | G151: 0 | H151: 0 | I151: 0
A152: Animal Care and Diseases | C152: 0 | D152: 1105000 | E152: 895000 | F152: 0 | G152: 0 | H152: 895000 | I152: -895000 | J152: -1 | K152: =E152 -> 895000
A153: Cemeteries, Funeral Parlours and Crematoriums | C153: 34687926.82 | D153: 116355684.8 | E153: 37409289 | F153: 3361219.89 | G153: 35413245.9 | H153: 37409289 | I153: -1996043.1 | J153: -0.05335688417 | K153: =E153 -> 37409289
A154: Child Care Facilities | C154: 0 | E154: 0 | F154: 0 | G154: 0 | H154: 0 | I154: 0
A155: Community Halls and Facilities | C155: 33478569.49 | D155: 30571400.49 | E155: 23063699 | F155: 1436199.63 | G155: 35266144.55 | H155: 23063699 | I155: 12202445.55 | J155: 0.5290758239 | K155: =E155 -> 23063699
A156: Consumer Protection | C156: 0 | E156: 0 | I156: 0
A157: Cultural Matters | C157: 0 | E157: 0 | I157: =G157-H157 -> 0 | J157: =IF(I157=0,"",I157/H157) -> 
A158: Disaster Management | C158: 0 | E158: 0 | I158: =G158-H158 -> 0 | J158: =IF(I158=0,"",I158/H158) -> 
A159: Education | C159: 0 | E159: 0 | I159: =G159-H159 -> 0 | J159: =IF(I159=0,"",I159/H159) -> 
A160: Indigenous and Customary Law | C160: 0 | E160: 0 | I160: 0
A161: Industrial Promotion | C161: 0 | E161: 0 | I161: 0
A162: Language Policy | C162: 0 | E162: 0 | I162: 0
A163: Libraries and Archives | C163: 72240734.47 | D163: 86969348.33 | E163: 66371617 | F163: 7481498.73 | G163: 70396540.44 | H163: =E163/12*12 -> 66371617 | I163: 4024923.44 | J163: 0.06064223868 | K163: =E163 -> 66371617
A164: Literacy Programmes | C164: 0 | E164: 0 | F164: 0 | G164: 0 | I164: 0
A165: Media Services | C165: 0 | E165: 0 | F165: 0 | G165: 0 | I165: 0
A166: Museums and Art Galleries | C166: 9294084.55 | D166: 7329991.936 | E166: 6273859 | F166: 1457597.34 | G166: 8204779.55 | H166: =E166/12*12 -> 6273859 | I166: 1930920.55 | J166: 0.3077723854 | K166: =E166 -> 6273859
A167: Population Development | C167: 4524745.08 | D167: 7997795.53 | E167: 5942262 | F167: 506572.7 | G167: 5717078.7 | H167: 5942262 | I167: -225183.3 | J167: -0.03789521566 | K167: 5942262
A168: Provincial Cultural Matters | C168: 0 | E168: 0 | F168: 0 | G168: 0 | I168: 0
A169: Theatres | C169: 6447.84 | E169: 0 | F169: 0 | G169: 1611.96 | I169: 1611.96
A170: Zoo's | C170: 0 | E170: 0 | G170: 0 | I170: 0
A171: Sport and recreation | C171: =SUM(C172:C176) -> 152619425.4 | D171: 121147022.5 | E171: 111321486.1 | F171: 10311276.03 | G171: 131039217.3 | H171: 111321486.1 | I171: 19717731.22 | J171: 0.1771242184 | K171: 111321486.1
A172: Beaches and Jetties | C172: 0 | E172: 0 | I172: 0
A173: Casinos, Racing, Gambling, Wagering | C173: 0 | E173: 0 | I173: 0
A174: Community Parks (including Nurseries) | C174: 50027871.41 | D174: 48065311.45 | E174: 45066199.09 | F174: 3260130.57 | G174: 49956414.72 | H174: =E174/12*12 -> 45066199.09 | I174: 4890215.63 | J174: 0.1085118277 | K174: =E174 -> 45066199.09
A175: Recreational Facilities | C175: 102187935 | D175: 72550461.03 | E175: 65724037 | F175: 7049951.7 | G175: 81037862.99 | H175: 65724037 | I175: 15313825.99 | J175: 0.2330019075 | K175: 65724037
A176: Sports Grounds and Stadiums | C176: 403618.99 | D176: 531250 | E176: 531250 | F176: 1193.76 | G176: 44939.6 | H176: 531250 | I176: -486310.4 | J176: -0.9154078118 | K176: 531250
A177: Public safety | C177: =SUM(C178:C185) -> 221231115.3 | D177: 244183097.4 | E177: 182050054 | F177: 15094046.09 | G177: 214738942.8 | H177: 182050054 | I177: 32688888.8 | J177: 0.1795598962 | K177: 182050054
A178: Civil Defence | C178: 17433722.9 | D178: 19656120.22 | E178: 21584787 | F178: 381573.51 | G178: 22007225.13 | H178: =E178/12*12 -> 21584787 | I178: 422438.13 | J178: 0.01957110487 | K178: =E178 -> 21584787
A179: Cleansing | C179: 0 | E179: 0 | F179: 0 | G179: 0 | I179: 0
A180: Control of Public Nuisances | C180: 0 | E180: 0 | F180: 0 | G180: 0 | I180: =G180-H180 -> 0 | J180: =IF(I180=0,"",I180/H180) -> 
A181: Fencing and Fences | C181: 0 | E181: 0 | F181: 0 | G181: 0 | I181: 0
A182: Fire Fighting and Protection | C182: 106502949.2 | D182: 149561867.6 | E182: 79647815 | F182: 8956465.18 | G182: 104681666.9 | H182: =E182/12*12 -> 79647815 | I182: 25033851.94 | J182: 0.3143068261 | K182: =E182 -> 79647815
A183: Licensing and Control of Animals | C183: 0 | E183: 0 | F183: 0 | G183: 0 | I183: =G183-H183 -> 0 | J183: =IF(I183=0,"",I183/H183) -> 
A184: Police Forces, Traffic and Street Parking Control | C184: 97294443.17 | D184: 74965109.51 | E184: 80817452 | F184: 5756007.4 | G184: 88050050.73 | H184: =E184/12*12 -> 80817452 | I184: =G184-H184 -> 7232598.73 | J184: =IF(I184=0,"",I184/H184) -> 0.08949303091 | K184: =E184 -> 80817452
A185: Pounds | C185: 0 | E185: 0 | F185: 0 | G185: 0 | I185: 0
A186: Housing | C186: =SUM(C187:C188) -> 101531000 | D186: 81136670.54 | E186: 102330105 | F186: 7061160.52 | G186: 69150865.55 | H186: 102330105 | I186: =G186-H186 -> -33179239.45 | J186: =IF(I186=0,"",I186/H186) -> -0.3242373244 | K186: =SUM(K187:K188) -> 102330105
A187: Housing | C187: 101531000 | D187: 81136670.54 | E187: 102330105 | F187: 7061160.52 | G187: 69150865.55 | H187: =E187/12*12 -> 102330105 | I187: =G187-H187 -> -33179239.45 | J187: =IF(I187=0,"",I187/H187) -> -0.3242373244 | K187: =E187 -> 102330105
A188: Informal Settlements | C188: 0 | F188: 0 | G188: 0 | I188: =G188-H188 -> 0 | J188: =IF(I188=0,"",I188/H188) -> 
A189: Health | C189: =SUM(C190:C196) -> 9958173.58 | D189: 9733579.461 | E189: 8682685.06 | F189: 664623.41 | G189: 8244437.06 | H189: 8682685.06 | I189: -438248 | J189: -0.05047378743 | K189: 8682685.06
A190: Ambulance | C190: 0 | I190: 0
A191: Health Services | C191: 9958173.58 | D191: 9733579.461 | E191: 8682685.06 | F191: 664623.41 | G191: 8244437.06 | H191: =E191/12*12 -> 8682685.06 | I191: -438248 | J191: -0.05047378743 | K191: =E191 -> 8682685.06
A192: =A70 -> Laboratory Services | C192: 0 | I192: 0
A193: Food Control | C193: 0 | I193: =G193-H193 -> 0 | J193: =IF(I193=0,"",I193/H193) -> 
A194: Health Surveillance and Prevention of Communicable Diseases including immunizations | C194: 0 | I194: =G194-H194 -> 0 | J194: =IF(I194=0,"",I194/H194) -> 
A195: Vector Control | C195: 0 | I195: 0
A196: Chemical Safety | C196: 0 | I196: 0
A197: Economic and environmental services | C197: =C198+C209+C214 -> 478064864.4 | D197: 640338797 | E197: 504260015.5 | F197: 65884351.01 | G197: 482768120.5 | H197: 504260015.5 | I197: -21491894.93 | J197: -0.04262066051 | K197: =K198+K209+K214 -> 504260015.5
A198: Planning and development | C198: =SUM(C199:C208) -> 97777604.41 | D198: 161555852 | E198: 135355076.9 | F198: 11336470.93 | G198: 97786618.6 | H198: 135355076.9 | I198: -37568458.31 | J198: -0.2775548518 | K198: 135355076.9
A199: Billboards | C199: 0 | E199: 0 | F199: 0 | G199: 0 | I199: 0
A200: Corporate Wide Strategic Planning (IDPs, LEDs) | C200: 13973736.43 | D200: 9524886.968 | E200: 6842117.91 | F200: 1520774.1 | G200: 8374041.72 | H200: =E200/12*12 -> 6842117.91 | I200: 1531923.81 | J200: 0.223896143 | K200: =E200 -> 6842117.91
A201: Central City Improvement District | C201: 0 | D201: 60057505.09 | E201: 0 | F201: 0 | G201: 0 | H201: 0 | I201: 0 | K201: 0
... 54 more rows

Sheet C3-FinPerf V
A1: =muni& " - "&S71C& " - "&date -> KZN225 Msunduzi - Table C3 Consolidated Monthly Budget Statement - Financial Performance (revenue and expenditure by municipal vote) - Q4 Fourth Quarter
A2: =Vdesc -> Vote Description | B2: =head27 -> Ref | C2: =Head1 -> 2023/24 | D2: =Head2 -> Budget Year 2024/25
C3: =Head5 -> Audited Outcome | D3: =Head6 -> Original Budget | E3: =Head7 -> Adjusted Budget | F3: =Head38 -> Monthly actual | G3: =Head39 -> YearTD actual | H3: =Head40 -> YearTD budget | I3: =Head41 -> YTD variance | J3: =Head41 -> YTD variance | K3: =Head8 -> Full Year Forecast
A4: R thousands | J4: %
A5: Revenue by Vote | B5: 1
A6: ='Org structure'!A2 -> Vote 1 - City Manager | C6: ='C3C'!C6 -> 0 | D6: ='C3C'!D6 -> 0 | E6: ='C3C'!E6 -> 0 | F6: ='C3C'!F6 -> 0 | G6: ='C3C'!G6 -> -36.18 | H6: ='C3C'!H6 -> 0 | I6: =G6-H6 -> -36.18 | J6: =IF(I6=0,"",I6/H6) ->  | K6: ='C3C'!K6 -> 0
A7: ='Org structure'!A3 -> Vote 2 - City Finance | C7: ='C3C'!C17 -> 2025042284 | D7: ='C3C'!D17 -> 2675602753 | E7: ='C3C'!E17 -> 2675602753 | F7: ='C3C'!F17 -> 172577204 | G7: ='C3C'!G17 -> 2256089613 | H7: ='C3C'!H17 -> 2675602753 | I7: =G7-H7 -> -419513140.5 | J7: =IF(I7=0,"",I7/H7) -> -0.1567920125 | K7: ='C3C'!K17 -> 2675602753
A8: ='Org structure'!A4 -> Vote 3 - Corporate Services | C8: ='C3C'!C28 -> 2109770.08 | D8: ='C3C'!D28 -> 3166283.914 | E8: ='C3C'!E28 -> 2578193.879 | F8: ='C3C'!F28 -> 1143464.95 | G8: ='C3C'!G28 -> 2917814.63 | H8: ='C3C'!H28 -> 2578193.879 | I8: 339620.7515 | J8: 0.1317281661 | K8: ='C3C'!K28 -> 2578193.879
A9: ='Org structure'!A5 -> Vote 4 - Community Services and Social Equity | C9: ='C3C'!C39 -> 292947034.4 | D9: ='C3C'!D39 -> 492477956.1 | E9: ='C3C'!E39 -> 323833766.8 | F9: ='C3C'!F39 -> 31519305.96 | G9: ='C3C'!G39 -> 243130030.8 | H9: ='C3C'!H39 -> 323833766.8 | I9: -80703735.91 | J9: -0.2492134675 | K9: ='C3C'!K39 -> 323833766.8
A10: ='Org structure'!A6 -> Vote 5 - Infrastructure Services | C10: ='C3C'!C50 -> 1696701357 | D10: ='C3C'!D50 -> 1540531143 | E10: ='C3C'!E50 -> 2048154027 | F10: ='C3C'!F50 -> 258307391.6 | G10: ='C3C'!G50 -> 2077112704 | H10: ='C3C'!H50 -> 2048154027 | I10: 28958677.06 | J10: 0.01413891567 | K10: ='C3C'!K50 -> 2048154027
A11: ='Org structure'!A7 -> Vote 6 - Sustainable Development and City Enterprises | C11: ='C3C'!C61 -> 304119010.1 | D11: ='C3C'!D61 -> 366567368.2 | E11: ='C3C'!E61 -> 354076383.6 | F11: ='C3C'!F61 -> 62531947.78 | G11: ='C3C'!G61 -> 220849846 | H11: ='C3C'!H61 -> 354076383.6 | I11: -133226537.6 | J11: -0.3762649636 | K11: ='C3C'!K61 -> 354076383.6
A12: ='Org structure'!A8 -> Vote 7 - Electricity | C12: ='C3C'!C72 -> 2673985927 | D12: ='C3C'!D72 -> 4342532610 | E12: ='C3C'!E72 -> 4044169018 | F12: ='C3C'!F72 -> 288130620.8 | G12: ='C3C'!G72 -> 3182141919 | H12: ='C3C'!H72 -> 4044169018 | I12: -862027098.8 | J12: -0.2131530841 | K12: ='C3C'!K72 -> 4044169018
A13: ='Org structure'!A9 -> Vote 8 - [NAME OF VOTE 8] | C13: ='C3C'!C83 -> 0 | D13: ='C3C'!D83 -> 0 | E13: ='C3C'!E83 -> 0 | F13: ='C3C'!F83 -> 0 | G13: ='C3C'!G83 -> 0 | H13: ='C3C'!H83 -> 0 | I13: 0 | K13: ='C3C'!K83 -> 0
A14: ='Org structure'!A10 -> Vote 9 - [NAME OF VOTE 9] | C14: ='C3C'!C94 -> 0 | D14: ='C3C'!D94 -> 0 | E14: ='C3C'!E94 -> 0 | F14: ='C3C'!F94 -> 0 | G14: ='C3C'!G94 -> 0 | H14: ='C3C'!H94 -> 0 | I14: 0 | K14: ='C3C'!K94 -> 0
A15: ='Org structure'!A11 -> Vote 10 - [NAME OF VOTE 10] | C15: ='C3C'!C105 -> 0 | D15: ='C3C'!D105 -> 0 | E15: ='C3C'!E105 -> 0 | F15: ='C3C'!F105 -> 0 | G15: ='C3C'!G105 -> 0 | H15: ='C3C'!H105 -> 0 | I15: 0 | K15: ='C3C'!K105 -> 0
A16: ='Org structure'!A12 -> Vote 11 - [NAME OF VOTE 11] | C16: ='C3C'!C116 -> 0 | D16: ='C3C'!D116 -> 0 | E16: ='C3C'!E116 -> 0 | F16: ='C3C'!F116 -> 0 | G16: ='C3C'!G116 -> 0 | H16: ='C3C'!H116 -> 0 | I16: 0 | K16: ='C3C'!K116 -> 0
A17: ='Org structure'!A13 -> Vote 12 - [NAME OF VOTE 12] | C17: ='C3C'!C127 -> 0 | D17: ='C3C'!D127 -> 0 | E17: ='C3C'!E127 -> 0 | F17: ='C3C'!F127 -> 0 | G17: ='C3C'!G127 -> 0 | H17: ='C3C'!H127 -> 0 | I17: 0 | K17: ='C3C'!K127 -> 0
A18: ='Org structure'!A14 -> Vote 13 - [NAME OF VOTE 13] | C18: ='C3C'!C138 -> 0 | D18: ='C3C'!D138 -> 0 | E18: ='C3C'!E138 -> 0 | F18: ='C3C'!F138 -> 0 | G18: ='C3C'!G138 -> 0 | H18: ='C3C'!H138 -> 0 | I18: 0 | K18: ='C3C'!K138 -> 0
A19: ='Org structure'!A15 -> Vote 14 - [NAME OF VOTE 14] | C19: ='C3C'!C149 -> 0 | D19: ='C3C'!D149 -> 0 | E19: ='C3C'!E149 -> 0 | F19: ='C3C'!F149 -> 0 | G19: ='C3C'!G149 -> 0 | H19: ='C3C'!H149 -> 0 | I19: 0 | K19: ='C3C'!K149 -> 0
A20: ='Org structure'!A16 -> Vote 15 - [NAME OF VOTE 15] | C20: ='C3C'!C160 -> 0 | D20: ='C3C'!D160 -> 0 | E20: ='C3C'!E160 -> 0 | F20: ='C3C'!F160 -> 0 | G20: ='C3C'!G160 -> 0 | H20: ='C3C'!H160 -> 0 | I20: 0 | K20: ='C3C'!K160 -> 0
A21: Total Revenue by Vote | B21: 2 | C21: =SUM(C6:C20) -> 6994905382 | D21: =SUM(D6:D20) -> 9420878115 | E21: 9448414143 | F21: 814209935.1 | G21: 7982241891 | H21: 9448414143 | I21: -1466172251 | J21: -0.1551765438 | K21: =SUM(K6:K20) -> 9448414143
A23: Expenditure by Vote | B23: 1
A24: ='Org structure'!A2 -> Vote 1 - City Manager | C24: ='C3C'!C174 -> 195836186.1 | D24: ='C3C'!D174 -> 191819668.5 | E24: ='C3C'!E174 -> 157225632.4 | F24: ='C3C'!F174 -> 17195277.24 | G24: ='C3C'!G174 -> 177995796.2 | H24: ='C3C'!H174 -> 157225632.4 | I24: =G24-H24 -> 20770163.81 | J24: =IF(I24=0,"",I24/H24) -> 0.1321041836 | K24: ='C3C'!K174 -> 157225632.4
A25: ='Org structure'!A3 -> Vote 2 - City Finance | C25: ='C3C'!C185 -> 722564027.8 | D25: ='C3C'!D185 -> 1166932156 | E25: ='C3C'!E185 -> 1110449723 | F25: ='C3C'!F185 -> 66091668.96 | G25: ='C3C'!G185 -> 469313437.9 | H25: ='C3C'!H185 -> 1110449723 | I25: -641136285.3 | J25: -0.5773663336 | K25: ='C3C'!K185 -> 1110449723
A26: ='Org structure'!A4 -> Vote 3 - Corporate Services | C26: ='C3C'!C196 -> 201260716.8 | D26: ='C3C'!D196 -> 198303820.6 | E26: ='C3C'!E196 -> 185425732.9 | F26: ='C3C'!F196 -> 22492709.58 | G26: ='C3C'!G196 -> 194742171.2 | H26: ='C3C'!H196 -> 185425732.9 | I26: 9316438.25 | J26: 0.05024350236 | K26: ='C3C'!K196 -> 185425732.9
A27: ='Org structure'!A5 -> Vote 4 - Community Services and Social Equity | C27: ='C3C'!C207 -> 970678396.3 | D27: ='C3C'!D207 -> 859070363.6 | E27: ='C3C'!E207 -> 796596661.1 | F27: ='C3C'!F207 -> 96307799.59 | G27: ='C3C'!G207 -> 902638104.6 | H27: ='C3C'!H207 -> 796596661.1 | I27: 106041443.5 | J27: 0.1331181119 | K27: ='C3C'!K207 -> 796596661.1
A28: ='Org structure'!A6 -> Vote 5 - Infrastructure Services | C28: ='C3C'!C218 -> 2321845046 | D28: ='C3C'!D218 -> 1881446739 | E28: ='C3C'!E218 -> 1926439556 | F28: ='C3C'!F218 -> 225990622.8 | G28: ='C3C'!G218 -> 1987613476 | H28: ='C3C'!H218 -> 1926439556 | I28: 61173919.82 | J28: 0.03175491264 | K28: ='C3C'!K218 -> 1926439556
A29: ='Org structure'!A7 -> Vote 6 - Sustainable Development and City Enterprises | C29: ='C3C'!C229 -> 308983019.4 | D29: ='C3C'!D229 -> 331868753.4 | E29: ='C3C'!E229 -> 342801768.8 | F29: ='C3C'!F229 -> 25436876.37 | G29: ='C3C'!G229 -> 293024326.1 | H29: ='C3C'!H229 -> 342801768.8 | I29: -49777442.62 | J29: -0.1452076598 | K29: ='C3C'!K229 -> 342801768.8
A30: ='Org structure'!A8 -> Vote 7 - Electricity | C30: ='C3C'!C240 -> 3380071703 | D30: ='C3C'!D240 -> 3750828378 | E30: ='C3C'!E240 -> 3351500623 | F30: ='C3C'!F240 -> 34433132.54 | G30: ='C3C'!G240 -> 3136600313 | H30: ='C3C'!H240 -> 3351500623 | I30: -214900310 | J30: -0.06412062361 | K30: ='C3C'!K240 -> 3351500623
A31: ='Org structure'!A9 -> Vote 8 - [NAME OF VOTE 8] | C31: ='C3C'!C251 -> 0 | D31: ='C3C'!D251 -> 0 | E31: ='C3C'!E251 -> 0 | F31: ='C3C'!F251 -> 0 | G31: ='C3C'!G251 -> 0 | H31: ='C3C'!H251 -> 0 | I31: 0 | K31: ='C3C'!K251 -> 0
A32: ='Org structure'!A10 -> Vote 9 - [NAME OF VOTE 9] | C32: ='C3C'!C262 -> 0 | D32: ='C3C'!D262 -> 0 | E32: ='C3C'!E262 -> 0 | F32: ='C3C'!F262 -> 0 | G32: ='C3C'!G262 -> 0 | H32: ='C3C'!H262 -> 0 | I32: 0 | K32: ='C3C'!K262 -> 0
A33: ='Org structure'!A11 -> Vote 10 - [NAME OF VOTE 10] | C33: ='C3C'!C273 -> 0 | D33: ='C3C'!D273 -> 0 | E33: ='C3C'!E273 -> 0 | F33: ='C3C'!F273 -> 0 | G33: ='C3C'!G273 -> 0 | H33: ='C3C'!H273 -> 0 | I33: 0 | J33: =IF(I33=0,"",I33/H33) ->  | K33: ='C3C'!K273 -> 0
A34: ='Org structure'!A12 -> Vote 11 - [NAME OF VOTE 11] | C34: ='C3C'!C284 -> 0 | D34: ='C3C'!D284 -> 0 | E34: ='C3C'!E284 -> 0 | F34: ='C3C'!F284 -> 0 | G34: ='C3C'!G284 -> 0 | H34: ='C3C'!H284 -> 0 | I34: 0 | J34: =IF(I34=0,"",I34/H34) ->  | K34: ='C3C'!K284 -> 0
A35: ='Org structure'!A13 -> Vote 12 - [NAME OF VOTE 12] | C35: ='C3C'!C295 -> 0 | D35: ='C3C'!D295 -> 0 | E35: ='C3C'!E295 -> 0 | F35: ='C3C'!F295 -> 0 | G35: ='C3C'!G295 -> 0 | H35: ='C3C'!H295 -> 0 | I35: 0 | J35: =IF(I35=0,"",I35/H35) ->  | K35: ='C3C'!K295 -> 0
A36: ='Org structure'!A14 -> Vote 13 - [NAME OF VOTE 13] | C36: ='C3C'!C306 -> 0 | D36: ='C3C'!D306 -> 0 | E36: ='C3C'!E306 -> 0 | F36: ='C3C'!F306 -> 0 | G36: ='C3C'!G306 -> 0 | H36: ='C3C'!H306 -> 0 | I36: 0 | J36: =IF(I36=0,"",I36/H36) ->  | K36: ='C3C'!K306 -> 0
A37: ='Org structure'!A15 -> Vote 14 - [NAME OF VOTE 14] | C37: ='C3C'!C317 -> 0 | D37: ='C3C'!D317 -> 0 | E37: ='C3C'!E317 -> 0 | F37: ='C3C'!F317 -> 0 | G37: ='C3C'!G317 -> 0 | H37: ='C3C'!H317 -> 0 | I37: 0 | J37: =IF(I37=0,"",I37/H37) ->  | K37: ='C3C'!K317 -> 0
A38: ='Org structure'!A16 -> Vote 15 - [NAME OF VOTE 15] | C38: ='C3C'!C328 -> 0 | D38: ='C3C'!D328 -> 0 | E38: ='C3C'!E328 -> 0 | F38: ='C3C'!F328 -> 0 | G38: ='C3C'!G328 -> 0 | H38: ='C3C'!H328 -> 0 | I38: 0 | K38: ='C3C'!K328 -> 0
A39: Total Expenditure by Vote | B39: 2 | C39: =SUM(C24:C38) -> 8101239095 | D39: =SUM(D24:D38) -> 8380269879 | E39: 7870439698 | F39: 487948087.1 | G39: 7161927625 | H39: 7870439698 | I39: -708512072.6 | J39: =IF(I39=0,"",I39/H39) -> -0.09002191742 | K39: =SUM(K24:K38) -> 7870439698
A40: =result -> Surplus/ (Deficit) for the year | B40: 2 | C40: =C21-C39 -> -1106333713 | D40: 1040608236 | E40: 1577974445 | F40: 326261848 | G40: 820314266 | H40: 1577974445 | I40: =I21-I39 -> -757660178.6 | J40: =IF(I40=0,"",I40/H40) -> -0.4801473061 | K40: =K21-K39 -> 1577974445
A41: =head27a -> References
A42: 1. Insert 'Vote'; e.g. Department, if different to standard classification structure
A43: 2. Must reconcile to Monthly Budget Statement - Financial Performance Statement (standard classification)

Sheet C3C
A1: =muni& " - "&S71C& " - "&"A"& " - "&date -> KZN225 Msunduzi - Table C3 Consolidated Monthly Budget Statement - Financial Performance (revenue and expenditure by municipal vote) - A - Q4 Fourth Quarter
A2: =Vdesc -> Vote Description | B2: =head27 -> Ref | C2: =Head1 -> 2023/24 | D2: =Head2 -> Budget Year 2024/25 | L2: =Head4 -> 
A3: R thousand | C3: =Head5 -> Audited Outcome | D3: =Head6 -> Original Budget | E3: =Head7 -> Adjusted Budget | F3: =Head38 -> Monthly actual | G3: =Head39 -> YearTD actual | H3: =Head40 -> YearTD budget | I3: =Head41 -> YTD variance | J3: =Head41 -> YTD variance | K3: =Head8 -> Full Year Forecast | L3: =Head12 -> Forecast 2010/11 | M3: =Head13 -> Forecast 2011/12 | N3: =Head14 -> Forecast 2012/13 | O3: =Head15 -> Forecast 2013/14 | P3: =Head16 -> Forecast 2014/15 | Q3: =Head17 -> Forecast 2015/16 | R3: =Head18 -> Forecast 2016/17 | S3: =Head19 -> Forecast 2017/18 | T3: =Head20 -> Forecast 2018/19 | U3: =Head21 -> Forecast 2019/20 | V3: =Head22 -> Forecast 2020/21 | W3: =Head23 -> Forecast 2021/22
J4: %
A5: Revenue by Vote | B5: 1
A6: ='Org structure'!A2 -> Vote 1 - City Manager | C6: =SUM(C7:C16) -> 0 | D6: =SUM(D7:D16) -> 0 | E6: 0 | F6: 0 | G6: -36.18 | H6: 0 | I6: =G6-H6 -> -36.18 | J6: =IF(I6=0,"",I6/H6) ->  | K6: 0
A7: ='Org structure'!E3 -> 1.1 - Internal Audit and Compliance | I7: 0
A8: ='Org structure'!E4 -> 1.2 - Office of the City Manager | I8: 0
A9: ='Org structure'!E5 -> 1.3 - Political Support | G9: -36.18 | I9: -36.18
A10: ='Org structure'!E6 -> 1.4 - Strategic Planning | I10: 0
A11: ='Org structure'!E7 -> 0 | I11: 0
A12: ='Org structure'!E8 -> 0 | I12: 0
A13: ='Org structure'!E9 -> 0 | I13: 0
A14: ='Org structure'!E10 -> 0 | I14: 0
A15: ='Org structure'!E11 -> 0 | I15: 0
A16: ='Org structure'!E12 -> 0 | I16: 0
A17: ='Org structure'!A3 -> Vote 2 - City Finance | C17: =SUM(C18:C27) -> 2025042284 | D17: =SUM(D18:D27) -> 2675602753 | E17: 2675602753 | F17: 172577204 | G17: 2256089613 | H17: 2675602753 | I17: -419513140.5 | J17: -0.1567920125 | K17: 2675602753
A18: ='Org structure'!E14 -> 2.1 - Asset Management | C18: 35009793.83 | D18: 20116081.74 | E18: 20116081.74 | F18: 4501590.03 | G18: 19691328.43 | H18: =E18/12*12 -> 20116081.74 | I18: -424753.3133 | J18: -0.02111511172 | K18: =E18 -> 20116081.74
A19: ='Org structure'!E15 -> 2.2 - Budget and Treasury Management | C19: 463281190.1 | D19: 843107146.8 | E19: 843107146.8 | F19: 4337588.87 | G19: 484043941 | H19: =E19/12*12 -> 843107146.8 | I19: -359063205.8 | J19: -0.4258808707 | K19: =E19 -> 843107146.8
A20: ='Org structure'!E16 -> 2.3 - Expenditure Management | C20: 0 | D20: 433874.6686 | E20: 433874.6686 | F20: 0 | G20: -0.46 | H20: 433874.6686 | I20: -433875.1286 | J20: -1.00000106 | K20: 433874.6686
A21: ='Org structure'!E17 -> 2.4 - Revenue Management | C21: 1526709590 | D21: 1811594399 | E21: 1811594399 | F21: 168331249.6 | G21: 1756701604 | H21: 1811594399 | I21: -54892795.56 | J21: -0.03030081986 | K21: 1811594399
A22: ='Org structure'!E18 -> 2.5 - Supply Chain Management | C22: 41710.24 | D22: 351250.8349 | E22: 351250.8349 | F22: -4593224.45 | G22: -4347259.87 | H22: 351250.8349 | I22: -4698510.705 | J22: -13.37651114 | K22: 351250.8349
A23: ='Org structure'!E19 -> 0 | I23: 0
A24: ='Org structure'!E20 -> 0 | I24: 0
A25: ='Org structure'!E21 -> 0 | I25: 0
A26: ='Org structure'!E22 -> 0 | I26: 0
A27: ='Org structure'!E23 -> 0 | I27: 0
A28: ='Org structure'!A4 -> Vote 3 - Corporate Services | C28: =SUM(C29:C38) -> 2109770.08 | D28: 3166283.914 | E28: 2578193.879 | F28: 1143464.95 | G28: 2917814.63 | H28: 2578193.879 | I28: 339620.7515 | J28: 0.1317281661 | K28: 2578193.879
A29: ='Org structure'!E25 -> 3.1 - Human Resources Management | C29: 1681015.58 | D29: 2831018.945 | E29: 2242928.91 | F29: 1143364.95 | G29: 2161108.33 | H29: =E29/12*12 -> 2242928.91 | I29: -81820.58 | J29: -0.03647934611 | K29: =E29 -> 2242928.91
A30: ='Org structure'!E26 -> 3.2 - Information Technology | C30: 417.36 | D30: 2608.41365 | E30: 2608.41365 | F30: 0 | G30: 0 | H30: 2608.41365 | I30: -2608.41365 | J30: -1 | K30: 2608.41365
A31: ='Org structure'!E27 -> 3.3 - Legal Services | C31: 428337.14 | D31: 332656.5549 | E31: 332656.5549 | F31: 100 | G31: 756706.3 | H31: 332656.5549 | I31: 424049.7451 | J31: 1.27473738 | K31: 332656.5549
A32: ='Org structure'!E28 -> 3.4 - Secretariat and Auxiliary Services | C32: 0 | E32: 0 | F32: 0 | G32: 0 | H32: 0 | I32: 0 | K32: 0
A33: ='Org structure'!E29 -> 3.5 - General Manager: Corporate Service | C33: 0 | E33: 0 | F33: 0 | G33: 0 | H33: 0 | I33: 0 | K33: 0
A34: ='Org structure'!E30 -> 0 | I34: 0
A35: ='Org structure'!E31 -> 0 | I35: 0
A36: ='Org structure'!E32 -> 0 | I36: 0
A37: ='Org structure'!E33 -> 0 | I37: 0
A38: ='Org structure'!E34 -> 0 | I38: 0
A39: ='Org structure'!A5 -> Vote 4 - Community Services and Social Equity | C39: =SUM(C40:C49) -> 292947034.4 | D39: 492477956.1 | E39: 323833766.8 | F39: 31519305.96 | G39: 243130030.8 | H39: 323833766.8 | I39: -80703735.91 | J39: -0.2492134675 | K39: 323833766.8
A40: ='Org structure'!E36 -> 4.1 - Area Based Management | C40: 575519.96 | D40: 10962668.29 | E40: 10962668.27 | F40: 42619.57 | G40: 425920.95 | H40: =E40/12*12 -> 10962668.27 | I40: -10536747.32 | J40: -0.9611480582 | K40: =E40 -> 10962668.27
A41: ='Org structure'!E37 -> 4.2 - Public Safety, Emergency Services and Enforcement | C41: 25017311.62 | D41: 9172795.913 | E41: 9172795.91 | F41: 473848.09 | G41: 16669634.03 | H41: 9172795.91 | I41: 7496838.12 | J41: 0.8172904089 | K41: 9172795.91
A42: ='Org structure'!E38 -> 4.3 - Recreation and Facilities | C42: 68126120.3 | D42: 301270403.3 | E42: 123779194.7 | F42: 11775349.38 | G42: 41403288.97 | H42: 123779194.7 | I42: -82375905.68 | J42: -0.6655068803 | K42: 123779194.7
A43: ='Org structure'!E39 -> 4.4 - Waste Management | C43: 194527085.9 | D43: 168980088.6 | E43: 177827107.9 | F43: 19223446.66 | G43: 182539267.9 | H43: 177827107.9 | I43: 4712160.03 | J43: 0.0264985473 | K43: 177827107.9
A44: ='Org structure'!E40 -> 4.5 - General Manager: Community Services | C44: 4700996.67 | D44: 2092000 | E44: 2092000 | F44: 4042.26 | G44: 2091918.94 | H44: 2092000 | I44: -81.06 | J44: -3.874760994e-05 | K44: 2092000
A45: ='Org structure'!E41 -> 0 | I45: 0
A46: ='Org structure'!E42 -> 0 | I46: 0
A47: ='Org structure'!E43 -> 0 | I47: 0
A48: ='Org structure'!E44 -> 0 | I48: 0
A49: ='Org structure'!E45 -> 0 | I49: 0
A50: ='Org structure'!A6 -> Vote 5 - Infrastructure Services | C50: =SUM(C51:C60) -> 1696701357 | D50: =SUM(D51:D60) -> 1540531143 | E50: 2048154027 | F50: 258307391.6 | G50: 2077112704 | H50: 2048154027 | I50: 28958677.06 | J50: 0.01413891567 | K50: 2048154027
A51: ='Org structure'!E47 -> 5.1 - Project Management Office | C51: 7754279.2 | D51: 9120080 | E51: 9270080 | F51: -258928.41 | G51: 8101078.95 | H51: =E51/12*12 -> 9270080 | I51: -1169001.05 | J51: -0.1261047424 | K51: =E51 -> 9270080
A52: ='Org structure'!E48 -> 5.2 - Roads and Transportation | C52: 48452151.57 | D52: 50261689.3 | E52: 101154442.5 | F52: 27269329.57 | G52: 88611518.61 | H52: 101154442.5 | I52: -12542923.9 | J52: -0.1239977562 | K52: 101154442.5
A53: ='Org structure'!E49 -> 5.3 - Water and Sanitation | C53: 1640494926 | D53: 1481149374 | E53: 1937729505 | F53: 231296990.4 | G53: 1980400107 | H53: 1937729505 | I53: 42670602.01 | J53: 0.02202092806 | K53: 1937729505
A54: ='Org structure'!E50 -> 5.4 - General Manager: Infrastructure | C54: 0 | E54: 0 | F54: 0 | G54: 0 | H54: 0 | I54: 0 | K54: 0
A55: ='Org structure'!E51 -> 0 | I55: 0
A56: ='Org structure'!E52 -> 0 | I56: 0
A57: ='Org structure'!E53 -> 0 | I57: 0
A58: ='Org structure'!E54 -> 0 | I58: 0
A59: ='Org structure'!E55 -> 0 | I59: 0
A60: ='Org structure'!E56 -> 0 | I60: 0
A61: ='Org structure'!A7 -> Vote 6 - Sustainable Development and City Enterprises | C61: =SUM(C62:C71) -> 304119010.1 | D61: =SUM(D62:D71) -> 366567368.2 | E61: 354076383.6 | F61: 62531947.78 | G61: 220849846 | H61: 354076383.6 | I61: -133226537.6 | J61: -0.3762649636 | K61: 354076383.6
A62: ='Org structure'!E58 -> 6.1 - City Entities | C62: 52129317.35 | D62: 137116847.2 | E62: 122107222.5 | F62: 3287834.2 | G62: 41438526.1 | H62: =E62/12*12 -> 122107222.5 | I62: -80668696.44 | J62: -0.660638206 | K62: =E62 -> 122107222.5
A63: ='Org structure'!E59 -> 6.2 - Development Services | C63: 19970563.98 | D63: 3280701.495 | E63: 23343097.72 | F63: 1749901.91 | G63: 31302203.37 | H63: 23343097.72 | I63: 7959105.65 | J63: 0.3409618443 | K63: 23343097.72
A64: ='Org structure'!E60 -> 6.3 - Human Settlement Development | C64: 131933125 | D64: 190478177.4 | E64: 181258550 | F64: 46356877.78 | G64: 124043447.4 | H64: 181258550 | I64: -57215102.57 | J64: -0.3156546413 | K64: 181258550
A65: ='Org structure'!E61 -> 6.4 - Town Planning | C65: 100086003.8 | D65: 35691641.99 | E65: 27367513.39 | F65: 11137333.89 | G65: 24065669.16 | H65: 27367513.39 | I65: -3301844.23 | J65: -0.1206483097 | K65: 27367513.39
A66: ='Org structure'!E62 -> 6.5 - General Manager: Sustainable Development and City Enterprises | C66: 0 | E66: 0 | F66: 0 | G66: 0 | H66: 0 | I66: 0
A67: ='Org structure'!E63 -> 0 | I67: 0
A68: ='Org structure'!E64 -> 0 | I68: 0
A69: ='Org structure'!E65 -> 0 | I69: 0
A70: ='Org structure'!E66 -> 0 | I70: =G70-H70 -> 0 | J70: =IF(I70=0,"",I70/H70) -> 
A71: ='Org structure'!E67 -> 0 | I71: 0
A72: ='Org structure'!A8 -> Vote 7 - Electricity | C72: =SUM(C73:C82) -> 2673985927 | D72: 4342532610 | E72: 4044169018 | F72: 288130620.8 | G72: 3182141919 | H72: 4044169018 | I72: -862027098.8 | J72: -0.2131530841 | K72: 4044169018
A73: ='Org structure'!E69 -> 7.1 Electricity planning | C73: 27269329.25 | D73: 20892768.47 | E73: 18437695.71 | F73: 518522.91 | G73: 9907650.35 | H73: =E73/12*12 -> 18437695.71 | I73: -8530045.36 | J73: -0.4626416172 | K73: =E73 -> 18437695.71
A74: ='Org structure'!E70 -> 7.2 Methods and Standards | C74: 0 | E74: 0 | F74: 0 | G74: 0 | H74: 0 | I74: 0 | K74: 0
A75: ='Org structure'!E71 -> 7.3 Operations and Maintenance | C75: 0 | E75: 0 | F75: 0 | G75: 0 | H75: 0 | I75: 0 | K75: 0
A76: ='Org structure'!E72 -> 7.4 Revenue Management | C76: 2646253700 | D76: 4295540347 | E76: 3999631828 | F76: 287612097.8 | G76: 3172239589 | H76: 3999631828 | I76: -827392239.3 | J76: -0.2068671005 | K76: 3999631828
A77: ='Org structure'!E73 -> 7.5 General Manager Electricity | C77: 462897.31 | D77: 26099494.06 | E77: 26099494.07 | F77: 0 | G77: -5320 | H77: 26099494.07 | I77: -26104814.07 | J77: -1.000203835 | K77: 26099494.07
A78: ='Org structure'!E74 -> 0 | I78: 0
A79: ='Org structure'!E75 -> 0 | I79: 0
A80: ='Org structure'!E76 -> 0 | I80: 0
A81: ='Org structure'!E77 -> 0 | I81: 0
A82: ='Org structure'!E78 -> 0 | I82: 0
A83: ='Org structure'!A9 -> Vote 8 - [NAME OF VOTE 8] | C83: =SUM(C84:C93) -> 0 | D83: =SUM(D84:D93) -> 0 | E83: 0 | F83: 0 | G83: 0 | H83: 0 | I83: 0 | K83: 0
A84: ='Org structure'!E80 -> 8.1 - [Name of sub-vote] | I84: 0
A85: ='Org structure'!E81 -> 0 | I85: 0
A86: ='Org structure'!E82 -> 0 | I86: 0
A87: ='Org structure'!E83 -> 0 | I87: 0
A88: ='Org structure'!E84 -> 0 | I88: 0
A89: ='Org structure'!E85 -> 0 | I89: 0
A90: ='Org structure'!E86 -> 0 | I90: 0
A91: ='Org structure'!E87 -> 0 | I91: 0
A92: ='Org structure'!E88 -> 0 | I92: 0
A93: ='Org structure'!E89 -> 0 | I93: 0
A94: ='Org structure'!A10 -> Vote 9 - [NAME OF VOTE 9] | C94: =SUM(C95:C104) -> 0 | D94: =SUM(D95:D104) -> 0 | E94: 0 | F94: 0 | G94: 0 | H94: 0 | I94: 0 | K94: 0
A95: ='Org structure'!E91 -> 9.1 - [Name of sub-vote] | I95: 0
A96: ='Org structure'!E92 -> 0 | I96: 0
A97: ='Org structure'!E93 -> 0 | I97: 0
A98: ='Org structure'!E94 -> 0 | I98: 0
A99: ='Org structure'!E95 -> 0 | I99: 0
A100: ='Org structure'!E96 -> 0 | I100: 0
A101: ='Org structure'!E97 -> 0 | I101: 0
A102: ='Org structure'!E98 -> 0 | I102: 0
A103: ='Org structure'!E99 -> 0 | I103: 0
A104: ='Org structure'!E100 -> 0 | I104: 0
A105: ='Org structure'!A11 -> Vote 10 - [NAME OF VOTE 10] | C105: =SUM(C106:C115) -> 0 | D105: =SUM(D106:D115) -> 0 | E105: 0 | F105: 0 | G105: 0 | H105: 0 | I105: 0 | K105: 0
A106: ='Org structure'!E102 -> 10.1 - [Name of sub-vote] | I106: 0
A107: ='Org structure'!E103 -> 0 | I107: 0
A108: ='Org structure'!E104 -> 0 | I108: 0
A109: ='Org structure'!E105 -> 0 | I109: 0
A110: ='Org structure'!E106 -> 0 | I110: 0
A111: ='Org structure'!E107 -> 0 | I111: 0
A112: ='Org structure'!E108 -> 0 | I112: 0
A113: ='Org structure'!E109 -> 0 | I113: 0
A114: ='Org structure'!E110 -> 0 | I114: 0
A115: ='Org structure'!E111 -> 0 | I115: 0
A116: ='Org structure'!A12 -> Vote 11 - [NAME OF VOTE 11] | C116: =SUM(C117:C126) -> 0 | D116: =SUM(D117:D126) -> 0 | E116: 0 | F116: 0 | G116: 0 | H116: 0 | I116: 0 | K116: 0
A117: ='Org structure'!E113 -> 11.1 - [Name of sub-vote] | I117: 0
A118: ='Org structure'!E114 -> 0 | I118: 0
A119: ='Org structure'!E115 -> 0 | I119: 0
A120: ='Org structure'!E116 -> 0 | I120: 0
A121: ='Org structure'!E117 -> 0 | I121: 0
A122: ='Org structure'!E118 -> 0 | I122: 0
A123: ='Org structure'!E119 -> 0 | I123: 0
A124: ='Org structure'!E120 -> 0 | I124: 0
A125: ='Org structure'!E121 -> 0 | I125: 0
A126: ='Org structure'!E122 -> 0 | I126: 0
A127: ='Org structure'!A13 -> Vote 12 - [NAME OF VOTE 12] | C127: =SUM(C128:C137) -> 0 | D127: =SUM(D128:D137) -> 0 | E127: 0 | F127: 0 | G127: 0 | H127: 0 | I127: 0 | K127: 0
A128: ='Org structure'!E124 -> 12.1 - [Name of sub-vote] | I128: 0
A129: ='Org structure'!E125 -> 0 | I129: 0
A130: ='Org structure'!E126 -> 0 | I130: 0
A131: ='Org structure'!E127 -> 0 | I131: 0
A132: ='Org structure'!E128 -> 0 | I132: 0
A133: ='Org structure'!E129 -> 0 | I133: 0
A134: ='Org structure'!E130 -> 0 | I134: =G134-H134 -> 0 | J134: =IF(I134=0,"",I134/H134) -> 
A135: ='Org structure'!E131 -> 0 | I135: 0
A136: ='Org structure'!E132 -> 0 | I136: 0
A137: ='Org structure'!E133 -> 0 | I137: 0
A138: ='Org structure'!A14 -> Vote 13 - [NAME OF VOTE 13] | C138: =SUM(C139:C148) -> 0 | D138: =SUM(D139:D148) -> 0 | E138: 0 | F138: 0 | G138: 0 | H138: 0 | I138: 0 | K138: 0
A139: ='Org structure'!E135 -> 13.1 - [Name of sub-vote] | I139: 0
A140: ='Org structure'!E136 -> 0 | I140: 0
A141: ='Org structure'!E137 -> 0 | I141: 0
A142: ='Org structure'!E138 -> 0 | I142: 0
A143: ='Org structure'!E139 -> 0 | I143: 0
A144: ='Org structure'!E140 -> 0 | I144: 0
A145: ='Org structure'!E141 -> 0 | I145: 0
A146: ='Org structure'!E142 -> 0 | I146: 0
A147: ='Org structure'!E143 -> 0 | I147: 0
A148: ='Org structure'!E144 -> 0 | I148: 0
A149: ='Org structure'!A15 -> Vote 14 - [NAME OF VOTE 14] | C149: =SUM(C150:C159) -> 0 | D149: =SUM(D150:D159) -> 0 | E149: 0 | F149: 0 | G149: 0 | H149: 0 | I149: 0 | K149: 0
A150: ='Org structure'!E146 -> 14.1 - [Name of sub-vote] | I150: 0
A151: ='Org structure'!E147 -> 0 | I151: 0
A152: ='Org structure'!E148 -> 0 | I152: 0
A153: ='Org structure'!E149 -> 0 | I153: 0
A154: ='Org structure'!E150 -> 0 | I154: 0
A155: ='Org structure'!E151 -> 0 | I155: 0
A156: ='Org structure'!E152 -> 0 | I156: 0
A157: ='Org structure'!E153 -> 0 | I157: 0
A158: ='Org structure'!E154 -> 0 | I158: 0
A159: ='Org structure'!E155 -> 0 | I159: 0
A160: ='Org structure'!A16 -> Vote 15 - [NAME OF VOTE 15] | C160: =SUM(C161:C170) -> 0 | D160: =SUM(D161:D170) -> 0 | E160: 0 | F160: 0 | G160: 0 | H160: 0 | I160: 0 | K160: 0
A161: ='Org structure'!E157 -> 15.1 - [Name of sub-vote] | I161: 0
A162: ='Org structure'!E158 -> 0 | I162: 0
A163: ='Org structure'!E159 -> 0 | I163: 0
A164: ='Org structure'!E160 -> 0 | I164: 0
A165: ='Org structure'!E161 -> 0 | I165: 0
A166: ='Org structure'!E162 -> 0 | I166: 0
A167: ='Org structure'!E163 -> 0 | I167: 0
A168: ='Org structure'!E164 -> 0 | I168: 0
A169: ='Org structure'!E165 -> 0 | I169: 0
A170: ='Org structure'!E166 -> 0 | I170: 0 | L170: =SUM(L78:L81) -> 0 | M170: 0 | N170: 0 | O170: 0 | P170: 0 | Q170: 0 | R170: 0 | S170: 0 | T170: 0 | U170: 0 | V170: 0 | W170: 0
A171: Total Revenue by Vote | B171: 2 | C171: =C6+C17+C28+C39+C50+C61+C72+C83+C94+C105+C116+C127+C138+C149+C160 -> 6994905382 | D171: =D6+D17+D28+D39+D50+D61+D72+D83+D94+D105+D116+D127+D138+D149+D160 -> 9420878115 | E171: 9448414143 | F171: 814209935.1 | G171: 7982241891 | H171: 9448414143 | I171: -1466172251 | J171: -0.1551765438 | K171: 9448414143
I172: 0
A173: Expenditure by Vote | B173: 1 | I173: 0
A174: ='Org structure'!A2 -> Vote 1 - City Manager | C174: =SUM(C175:C184) -> 195836186.1 | D174: 191819668.5 | E174: 157225632.4 | F174: 17195277.24 | G174: 177995796.2 | H174: 157225632.4 | I174: 20770163.81 | J174: 0.1321041836 | K174: 157225632.4
A175: ='Org structure'!E3 -> 1.1 - Internal Audit and Compliance | C175: 25162828.92 | D175: 28259494.71 | E175: 14026080.13 | F175: 5044502.87 | G175: 34838037.87 | H175: =E175/12*12 -> 14026080.13 | I175: 20811957.74 | J175: 1.483804281 | K175: =E175 -> 14026080.13
A176: ='Org structure'!E4 -> 1.2 - Office of the City Manager | C176: 36709790.28 | D176: 45827363.93 | E176: 37366431.55 | F176: 2672716.62 | G176: 37950539.25 | H176: 37366431.55 | I176: 584107.7 | J176: 0.01563188337 | K176: 37366431.55
A177: ='Org structure'!E5 -> 1.3 - Political Support | C177: 119989830.5 | D177: 108207922.9 | E177: 98991002.8 | F177: 7957283.65 | G177: 96833177.36 | H177: 98991002.8 | I177: -2157825.44 | J177: -0.0217981976 | K177: 98991002.8
A178: ='Org structure'!E6 -> 1.4 - Strategic Planning | C178: 13973736.43 | D178: 9524886.968 | E178: 6842117.91 | F178: 1520774.1 | G178: 8374041.72 | H178: 6842117.91 | I178: 1531923.81 | J178: 0.223896143 | K178: 6842117.91
A179: ='Org structure'!E7 -> 0 | I179: 0
A180: ='Org structure'!E8 -> 0 | I180: 0
A181: ='Org structure'!E9 -> 0 | I181: 0
A182: ='Org structure'!E10 -> 0 | I182: 0
A183: ='Org structure'!E11 -> 0 | I183: 0
A184: ='Org structure'!E12 -> 0 | I184: 0
A185: ='Org structure'!A3 -> Vote 2 - City Finance | C185: =SUM(C186:C195) -> 722564027.8 | D185: =SUM(D186:D195) -> 1166932156 | E185: =SUM(E186:E195) -> 1110449723 | F185: 66091668.96 | G185: 469313437.9 | H185: 1110449723 | I185: -641136285.3 | J185: -0.5773663336 | K185: 1110449723
A186: ='Org structure'!E14 -> 2.1 - Asset Management | C186: 80850184.77 | D186: 95532173.96 | E186: 72903832.2 | F186: 11124788.87 | G186: 81583477.94 | H186: =E186/12*12 -> 72903832.2 | I186: 8679645.74 | J186: 0.1190560973 | K186: =E186 -> 72903832.2
A187: ='Org structure'!E15 -> 2.2 - Budget and Treasury Management | C187: 122860002.4 | D187: 134603926.3 | E187: 134830008.7 | F187: 7332592.47 | G187: 101706956 | H187: 134830008.7 | I187: -33123052.65 | J187: -0.245665286 | K187: 134830008.7
A188: ='Org structure'!E16 -> 2.3 - Expenditure Management | C188: 60887981.6 | D188: 42985050.17 | E188: 41679622.51 | F188: 4154500.65 | G188: 44064737.78 | H188: 41679622.51 | I188: 2385115.27 | J188: 0.05722497293 | K188: 41679622.51
A189: ='Org structure'!E17 -> 2.4 - Revenue Management | C189: 352984605 | D189: 795399549.5 | E189: 769793745.7 | F189: 15052411.77 | G189: 147466934 | H189: 769793745.7 | I189: -622326811.7 | J189: -0.8084331877 | K189: 769793745.7
A190: ='Org structure'!E18 -> 2.5 - Supply Chain Management | C190: 104981254 | D190: 98411455.53 | E190: 91242514.19 | F190: 28427375.2 | G190: 94491332.22 | H190: 91242514.19 | I190: 3248818.03 | J190: 0.03560640628 | K190: 91242514.19
A191: ='Org structure'!E19 -> 0 | I191: 0
A192: ='Org structure'!E20 -> 0 | I192: 0
A193: ='Org structure'!E21 -> 0 | I193: 0
A194: ='Org structure'!E22 -> 0 | I194: 0
A195: ='Org structure'!E23 -> 0 | I195: 0
A196: ='Org structure'!A4 -> Vote 3 - Corporate Services | C196: =SUM(C197:C206) -> 201260716.8 | D196: 198303820.6 | E196: 185425732.9 | F196: 22492709.58 | G196: 194742171.2 | H196: 185425732.9 | I196: 9316438.25 | J196: 0.05024350236 | K196: 185425732.9
A197: ='Org structure'!E25 -> 3.1 - Human Resources Management | C197: 106690313.1 | D197: 93075683.15 | E197: 88895210.51 | F197: 6811859.05 | G197: 81272566.09 | H197: =E197/12*12 -> 88895210.51 | I197: -7622644.42 | J197: -0.08574865143 | K197: =E197 -> 88895210.51
A198: ='Org structure'!E26 -> 3.2 - Information Technology | C198: 48178368.64 | D198: 50169008.88 | E198: 47227950.46 | F198: 7335300.74 | G198: 57499064.97 | H198: 47227950.46 | I198: =G198-H198 -> 10271114.51 | J198: =IF(I198=0,"",I198/H198) -> 0.2174795732 | K198: 47227950.46
A199: ='Org structure'!E27 -> 3.3 - Legal Services | C199: 17490759.58 | D199: 19907466.71 | E199: 16811223.65 | F199: 5600620.54 | G199: 22464175.67 | H199: 16811223.65 | I199: 5652952.02 | J199: 0.3362605922 | K199: 16811223.65
A200: ='Org structure'!E28 -> 3.4 - Secretariat and Auxiliary Services | C200: 28901275.56 | D200: 35151661.89 | E200: 32491348.32 | F200: 2744929.25 | G200: 33506364.46 | H200: 32491348.32 | I200: 1015016.14 | J200: 0.031239582 | K200: 32491348.32
... 147 more rows

Sheet C4-FinPerf RE
A1: =muni& " - "&S71B& " - "&date -> KZN225 Msunduzi - Table C4 Consolidated Monthly Budget Statement - Financial Performance (revenue and expenditure) - Q4 Fourth Quarter
A2: =desc -> Description | B2: =head27 -> Ref | C2: =Head1 -> 2023/24 | D2: =Head2 -> Budget Year 2024/25
C3: =Head5 -> Audited Outcome | D3: =Head6 -> Original Budget | E3: =Head7 -> Adjusted Budget | F3: =Head38 -> Monthly actual | G3: =Head39 -> YearTD actual | H3: =Head40 -> YearTD budget | I3: =Head41 -> YTD variance | J3: =Head41 -> YTD variance | K3: =Head8 -> Full Year Forecast
A4: R thousands | J4: %
A5: Revenue
A6: Exchange Revenue
A7: Service charges - Electricity | C7: 2630640541 | D7: 4297825065 | E7: 4224357970 | F7: 328974372.9 | G7: 3153676883 | H7: =E7/12*12 -> 4224357970 | I7: =G7-H7 -> -1070681087 | J7: =IF(I7=0,"",I7/H7) -> -0.2534541567 | K7: =E7 -> 4224357970
A8: Service charges - Water | C8: 740741111 | D8: 1009760082 | E8: 1009760082 | F8: 81849590.42 | G8: 891663312.4 | H8: =E8/12*12 -> 1009760082 | I8: -118096769.6 | J8: -0.1169552765 | K8: =E8 -> 1009760082
A9: Service charges - Waste Water Management | C9: 198015165 | D9: 220724860.4 | E9: 220724860.4 | F9: 22783681.17 | G9: 225697078.3 | H9: 220724860.4 | I9: 4972217.855 | J9: 0.0225267686 | K9: 220724860.4
A10: Service charges - Waste management | C10: 126703639 | D10: 155390776.9 | E10: 155390776.9 | F10: 13717911.4 | G10: 139469727.2 | H10: 155390776.9 | I10: -15921049.76 | J10: -0.1024581386 | K10: 155390776.9
A11: Sale of Goods and Rendering of Services | C11: 14947022 | D11: 42042838 | E11: 42042838 | F11: 0 | G11: 0 | H11: 42042838 | I11: -42042838 | J11: -1 | K11: 42042838
A12: Agency services | C12: 2666696 | D12: 764825.6424 | E12: 764825.6424 | F12: -548279 | G12: 3013565 | H12: 764825.6424 | I12: 2248739.358 | J12: 2.940198698 | K12: 764825.6424
A13: Interest | C13: 0 | F13: 0 | G13: 0 | H13: 0 | I13: 0 | K13: 0
A14: Interest earned from Receivables | C14: 325984045 | D14: 230681790 | E14: 230681790 | F14: 56143618.63 | G14: 461528925.7 | H14: 230681790 | I14: 230847135.7 | J14: 1.00071677 | K14: 230681790
A15: Interest from Current and Non Current Assets | C15: 106873226 | D15: 19135146.8 | E15: 19135146.8 | F15: 0 | G15: 0 | H15: 19135146.8 | I15: -19135146.8 | J15: -1 | K15: 19135146.8
A16: Dividends | C16: 0 | E16: 0 | F16: 0 | G16: 0 | H16: 0 | I16: 0 | K16: 0
A17: Rent on Land | C17: 0 | E17: 0 | F17: 0 | G17: 0 | H17: 0 | I17: 0 | K17: 0
A18: Rental from Fixed Assets | C18: 33590328.34 | D18: 113961628.7 | E18: 113961628.7 | F18: 2992804.48 | G18: 30698058.4 | H18: 113961628.7 | I18: -83263570.33 | J18: -0.730628118 | K18: 113961628.7
A19: Licence and permits | C19: 2021123.4 | D19: 2546799 | E19: 2546799.7 | F19: 133898.21 | G19: 1931652.85 | H19: 2546799.7 | I19: -615146.85 | J19: -0.2415371927 | K19: 2546799.7
A20: Operational Revenue | C20: 53620000 | D20: 204124220 | E20: 204124220 | F20: -13275960.12 | G20: 67950332.75 | H20: 204124220 | I20: -136173887.2 | J20: -0.6671128358 | K20: 204124220
A21: Non-Exchange Revenue | C21: 0 | F21: 0 | G21: 0 | H21: 0 | I21: 0 | K21: 0
A22: Property rates | C22: 1359086727 | D22: 1649352521 | E22: 1649352462 | F22: 122654413.6 | G22: 1565969210 | H22: 1649352462 | I22: -83383251.56 | J22: -0.0505551442 | K22: 1649352462
A23: Surcharges and Taxes | C23: 0 | E23: 0 | F23: 0 | G23: 0 | H23: 0 | I23: 0 | K23: 0
A24: Fines, penalties and forfeits | C24: 34277863 | D24: 11687216.86 | E24: 11687216.86 | F24: 1905423.97 | G24: 19505076.78 | H24: 11687216.86 | I24: 7817859.917 | J24: 0.6689240054 | K24: 11687216.86
A25: Licence and permits | C25: 0 | F25: 0 | G25: 0 | H25: 0 | I25: 0 | K25: 0
A26: Transfers and subsidies - Operational | C26: 824535909 | D26: 946343150 | E26: 1026395188 | F26: 52610944.39 | G26: 980093722 | H26: 1026395188 | I26: -46301466.01 | J26: -0.04511075904 | K26: 1026395188
A27: Interest | C27: 44117780.54 | D27: 59562303 | E27: 59562303 | F27: 4712783.67 | G27: 32220635.48 | H27: 59562303 | I27: -27341667.52 | J27: -0.4590431555 | K27: 59562303
A28: Fuel Levy | C28: 0 | E28: 0 | F28: 0 | G28: 0 | H28: 0 | I28: 0 | K28: 0
A29: Operational Revenue | C29: 0 | E29: 0 | F29: 0 | G29: 0 | H29: 0 | I29: 0 | K29: 0
A30: Gains on disposal of Assets | C30: 0 | E30: 0 | F30: 0 | G30: 0 | H30: 0 | I30: 0 | K30: 0
A31: Other Gains | C31: 68513555 | E31: 0 | F31: 10951067.02 | G31: 14593126.71 | H31: 0 | I31: 14593126.71 | K31: 0
A32: Discontinued Operations | C32: 0 | E32: 0 | F32: 0 | G32: 0 | H32: 0 | I32: 0 | K32: 0
A33: Total Revenue (excluding capital transfers and contributions) | C33: =SUM(C7:C20)+SUM(C22:C32) -> 6566334731 | D33: 8963903223 | E33: 8970488108 | F33: 685606270.7 | G33: 7588011307 | H33: 8970488108 | I33: =G33-H33 -> -1382476801 | J33: -0.1541138882 | K33: =SUM(K7:K20)+SUM(K22:K32) -> 8970488108
A34: Expenditure By Type
A35: Employee related costs | C35: 1612918315 | D35: 1860538235 | E35: 1786363095 | F35: 129042639.4 | G35: 1610413655 | H35: =E35/12*12 -> 1786363095 | I35: =G35-H35 -> -175949439.5 | J35: =IF(I35=0,"",I35/H35) -> -0.0984958993 | K35: =E35 -> 1786363095
A36: Remuneration of councillors | C36: 63542011.59 | D36: 66461931.11 | E36: 66461931.11 | F36: 4850851.44 | G36: 58364731.32 | H36: =E36/12*12 -> 66461931.11 | I36: -8097199.791 | J36: -0.1218321474 | K36: 66461931.11
A37: Bulk purchases - electricity | C37: 2714396462 | D37: 3145118900 | E37: 3145118900 | F37: 12066069.75 | G37: 2710967437 | H37: 3145118900 | I37: -434151463.4 | J37: -0.1380397617 | K37: 3145118900
A38: Inventory consumed | C38: 877661985.2 | D38: 993409214.4 | E38: 755385143 | F38: 134140335.2 | G38: 1168101524 | H38: 755385143 | I38: 412716380.7 | J38: 0.5463654991 | K38: 755385143
A39: Debt impairment | C39: 1143097916 | D39: 636000000 | E39: 636000000 | F39: 471103.1 | G39: 15911315.3 | H39: 636000000 | I39: -620088684.7 | J39: -0.9749822086 | K39: 636000000
A40: Depreciation and amortisation | C40: 361847777 | D40: 363040744.5 | E40: 363040744.5 | F40: -38575982.8 | G40: 330280100.4 | H40: 363040744.5 | I40: -32760644.05 | J40: -0.0902395793 | K40: 363040744.5
A41: Interest | C41: 84787241 | D41: 42824930.71 | E41: 37824930 | F41: 9571032.86 | G41: 59315662.13 | H41: 37824930 | I41: 21490732.13 | J41: 0.5681631699 | K41: 37824930
A42: Contracted services | C42: 918493426 | D42: 1024663415 | E42: 818471062 | F42: 221413784 | G42: 972983306.7 | H42: 818471062 | I42: 154512244.7 | J42: 0.188781561 | K42: 818471062
A43: Transfers and subsidies | C43: 28449502.91 | D43: 52375752.46 | E43: 52375752.46 | F43: 2041997.98 | G43: 38099327.72 | H43: 52375752.46 | I43: -14276424.74 | J43: -0.2725769859 | K43: 52375752.46
A44: Irrecoverable debts written off | C44: 22523583 | E44: 0 | F44: 0 | G44: 0 | H44: 0 | I44: 0 | K44: 0
A45: Operational costs | C45: 229248830 | D45: 195836780 | E45: 209398144 | F45: 12120795.66 | G45: 196488343.1 | H45: 209398144 | I45: -12909800.92 | J45: -0.06165193575 | K45: 209398144
A46: Losses on Disposal of Assets | C46: 14049185 | E46: 0 | F46: 0 | G46: 0 | I46: 0
A47: Other Losses | C47: 29757198 | E47: 0 | F47: 805460.51 | G47: 1002223.03 | I47: 1002223.03
A48: Total Expenditure | C48: =SUM(C35:C47) -> 8100773433 | D48: 8380269902 | E48: 7870439702 | F48: 487948087.1 | G48: 7161927625 | H48: 7870439702 | I48: =G48-H48 -> -708512076.6 | J48: -0.09002191789 | K48: =SUM(K35:K47) -> 7870439702
A49: Surplus/(Deficit) | C49: =C33-C48 -> -1534438702 | D49: 583633320.9 | E49: 1100048406 | F49: 197658183.6 | G49: 426083681.8 | H49: =H33-H48 -> 1100048406 | I49: =I33-I48 -> -673964724.4 | J49: -0.6126682432 | K49: =K33-K48 -> 1100048406
A50: Transfers and subsidies - capital (monetary allocations) | C50: 428104994 | D50: 456974891 | E50: 477925972.5 | F50: 128603664.4 | G50: 394230584.2 | H50: =E50/12*12 -> 477925972.5 | I50: =G50-H50 -> -83695388.32 | J50: -0.1751220757 | K50: =E50 -> 477925972.5
A51: Transfers and subsidies - capital (in-kind) | F51: 0 | G51: 0 | I51: =G51-H51 -> 0
A52: Surplus/(Deficit) after capital transfers & contributions | C52: =C49+SUM(C50:C51) -> -1106333708 | D52: 1040608212 | E52: 1577974379 | F52: 326261848 | G52: 820314266 | H52: 1577974379 | I52: =G52-H52 -> -757660112.7 | J52: -0.4801472844 | K52: =K49+SUM(K50:K51) -> 1577974379
A53: Income Tax | I53: =G53-H53 -> 0
A54: Surplus/(Deficit) after income tax | C54: =C52-C53 -> -1106333708 | D54: 1040608212 | E54: 1577974379 | F54: 326261848 | G54: 820314266 | H54: 1577974379 | I54: -757660112.7 | J54: -0.4801472844 | K54: =K52-K53 -> 1577974379
A55: Share of Surplus/Deficit attributable to Joint Venture | I55: 0
A56: Share of Surplus/Deficit attributable to Minorities | I56: 0
A57: Surplus/(Deficit) attributable to municipality | C57: =SUM(C54:C56) -> -1106333708 | D57: 1040608212 | E57: 1577974379 | F57: 326261848 | G57: 820314266 | H57: 1577974379 | I57: -757660112.7 | J57: -0.4801472844 | K57: =SUM(K54:K56) -> 1577974379
A58: Share of Surplus/Deficit attributable to Associate | I58: 0
A59: Intercompany/Parent subsidiary transactions | I59: 0
A60: Surplus/ (Deficit) for the year | C60: =SUM(C57:C59) -> -1106333708 | D60: 1040608212 | E60: 1577974379 | F60: 326261848 | G60: 820314266 | H60: 1577974379 | I60: -757660112.7 | J60: -0.4801472844 | K60: =SUM(K57:K59) -> 1577974379
A61: =head27a -> References
A62: 1. Material variances to be explained on Table SC1
A65: =A33&" including capital transfers/contributions etc" -> Total Revenue (excluding capital transfers and contributions) including capital transfers/contributions etc | C65: =C33+SUM(C50:C51) -> 6994439725 | D65: 9420878114 | E65: 9448414081 | F65: 814209935.1 | G65: 7982241891 | H65: 9448414081 | I65: -1466172189 | K65: =K33+SUM(K50:K51) -> 9448414081

Sheet C5-Capex
A1: =muni& " - "&S71D& " - "&date -> KZN225 Msunduzi - Table C5 Consolidated Monthly Budget Statement - Capital Expenditure (municipal vote, functional classification and funding - Q4 Fourth Quarter
A2: =Vdesc -> Vote Description | B2: =head27 -> Ref | C2: =Head1 -> 2023/24 | D2: =Head2 -> Budget Year 2024/25
C3: =Head5 -> Audited Outcome | D3: =Head6 -> Original Budget | E3: =Head7 -> Adjusted Budget | F3: =Head38 -> Monthly actual | G3: =Head39 -> YearTD actual | H3: =Head40 -> YearTD budget | I3: =Head41 -> YTD variance | J3: =Head41 -> YTD variance | K3: =Head8 -> Full Year Forecast
A4: R thousands | B4: 1 | J4: %
A5: Multi-Year expenditure appropriation | B5: 2
A6: ='Org structure'!A2 -> Vote 1 - City Manager | C6: ='C5C'!C7 -> 0 | D6: ='C5C'!D7 -> 37445000.58 | E6: ='C5C'!E7 -> 850000 | F6: ='C5C'!F7 -> 156717.22 | G6: ='C5C'!G7 -> 156717.22 | H6: ='C5C'!H7 -> 850000 | I6: =G6-H6 -> -693282.78 | J6: =IF(I6=0,"",I6/H6) -> -0.8156268 | K6: ='C5C'!K7 -> 850000
A7: ='Org structure'!A3 -> Vote 2 - City Finance | C7: ='C5C'!C18 -> 10485090.65 | D7: ='C5C'!D18 -> 25000000 | E7: ='C5C'!E18 -> 25000000 | F7: ='C5C'!F18 -> 305562.38 | G7: ='C5C'!G18 -> 16018927.49 | H7: ='C5C'!H18 -> 25000000 | I7: =G7-H7 -> -8981072.51 | J7: =IF(I7=0,"",I7/H7) -> -0.3592429004 | K7: ='C5C'!K18 -> 25000000
A8: ='Org structure'!A4 -> Vote 3 - Corporate Services | C8: ='C5C'!C29 -> 5071794.14 | D8: ='C5C'!D29 -> 6575000 | E8: ='C5C'!E29 -> 6835000 | F8: ='C5C'!F29 -> 210619.89 | G8: ='C5C'!G29 -> 759141.07 | H8: ='C5C'!H29 -> 6835000 | I8: =G8-H8 -> -6075858.93 | J8: =IF(I8=0,"",I8/H8) -> -0.8889332743 | K8: ='C5C'!K29 -> 6835000
A9: ='Org structure'!A5 -> Vote 4 - Community Services and Social Equity | C9: ='C5C'!C40 -> 70000485.02 | D9: ='C5C'!D40 -> 42152711.2 | E9: ='C5C'!E40 -> 34600680.08 | F9: ='C5C'!F40 -> 23613974.86 | G9: ='C5C'!G40 -> 49599028.21 | H9: ='C5C'!H40 -> 34600680.08 | I9: 14998348.13 | J9: 0.4334697496 | K9: ='C5C'!K40 -> 34600680.08
A10: ='Org structure'!A6 -> Vote 5 - Infrastructure Services | C10: ='C5C'!C51 -> 291473827.5 | D10: ='C5C'!D51 -> 284463597.6 | E10: ='C5C'!E51 -> 349087786.9 | F10: ='C5C'!F51 -> 171206154.8 | G10: ='C5C'!G51 -> 432996421.7 | H10: ='C5C'!H51 -> 349087786.9 | I10: 83908634.8 | J10: 0.2403654265 | K10: ='C5C'!K51 -> 349087786.9
A11: ='Org structure'!A7 -> Vote 6 - Sustainable Development and City Enterprises | C11: ='C5C'!C62 -> 168625429.7 | D11: ='C5C'!D62 -> 153598529.7 | E11: ='C5C'!E62 -> 155161841.2 | F11: ='C5C'!F62 -> 31207172.29 | G11: ='C5C'!G62 -> 125603001.8 | H11: ='C5C'!H62 -> 155161841.2 | I11: -29558839.39 | J11: -0.1905032782 | K11: ='C5C'!K62 -> 155161841.2
A12: ='Org structure'!A8 -> Vote 7 - Electricity | C12: ='C5C'!C73 -> 116839301.6 | D12: ='C5C'!D73 -> 237331051.4 | E12: ='C5C'!E73 -> 178657855.6 | F12: ='C5C'!F73 -> 34557105.44 | G12: ='C5C'!G73 -> 111135023.1 | H12: ='C5C'!H73 -> 178657855.6 | I12: -67522832.5 | J12: -0.3779449399 | K12: ='C5C'!K73 -> 178657855.6
A13: ='Org structure'!A9 -> Vote 8 - [NAME OF VOTE 8] | C13: ='C5C'!C84 -> 0 | D13: ='C5C'!D84 -> 0 | E13: ='C5C'!E84 -> 0 | F13: ='C5C'!F84 -> 0 | G13: ='C5C'!G84 -> 0 | H13: ='C5C'!H84 -> 0 | I13: 0 | K13: ='C5C'!K84 -> 0
A14: ='Org structure'!A10 -> Vote 9 - [NAME OF VOTE 9] | C14: ='C5C'!C95 -> 0 | D14: ='C5C'!D95 -> 0 | E14: ='C5C'!E95 -> 0 | F14: ='C5C'!F95 -> 0 | G14: ='C5C'!G95 -> 0 | H14: ='C5C'!H95 -> 0 | I14: 0 | K14: ='C5C'!K95 -> 0
A15: ='Org structure'!A11 -> Vote 10 - [NAME OF VOTE 10] | C15: ='C5C'!C106 -> 0 | D15: ='C5C'!D106 -> 0 | E15: ='C5C'!E106 -> 0 | F15: ='C5C'!F106 -> 0 | G15: ='C5C'!G106 -> 0 | H15: ='C5C'!H106 -> 0 | I15: 0 | K15: ='C5C'!K106 -> 0
A16: ='Org structure'!A12 -> Vote 11 - [NAME OF VOTE 11] | C16: ='C5C'!C117 -> 0 | D16: ='C5C'!D117 -> 0 | E16: ='C5C'!E117 -> 0 | F16: ='C5C'!F117 -> 0 | G16: ='C5C'!G117 -> 0 | H16: ='C5C'!H117 -> 0 | I16: 0 | K16: ='C5C'!K117 -> 0
A17: ='Org structure'!A13 -> Vote 12 - [NAME OF VOTE 12] | C17: ='C5C'!C128 -> 0 | D17: ='C5C'!D128 -> 0 | E17: ='C5C'!E128 -> 0 | F17: ='C5C'!F128 -> 0 | G17: ='C5C'!G128 -> 0 | H17: ='C5C'!H128 -> 0 | I17: 0 | K17: ='C5C'!K128 -> 0
A18: ='Org structure'!A14 -> Vote 13 - [NAME OF VOTE 13] | C18: ='C5C'!C139 -> 0 | D18: ='C5C'!D139 -> 0 | E18: ='C5C'!E139 -> 0 | F18: ='C5C'!F139 -> 0 | G18: ='C5C'!G139 -> 0 | H18: ='C5C'!H139 -> 0 | I18: =G18-H18 -> 0 | J18: =IF(I18=0,"",I18/H18) ->  | K18: ='C5C'!K139 -> 0
A19: ='Org structure'!A15 -> Vote 14 - [NAME OF VOTE 14] | C19: ='C5C'!C150 -> 0 | D19: ='C5C'!D150 -> 0 | E19: ='C5C'!E150 -> 0 | F19: ='C5C'!F150 -> 0 | G19: ='C5C'!G150 -> 0 | H19: ='C5C'!H150 -> 0 | I19: =G19-H19 -> 0 | J19: =IF(I19=0,"",I19/H19) ->  | K19: ='C5C'!K150 -> 0
A20: ='Org structure'!A16 -> Vote 15 - [NAME OF VOTE 15] | C20: ='C5C'!C161 -> 0 | D20: ='C5C'!D161 -> 0 | E20: ='C5C'!E161 -> 0 | F20: ='C5C'!F161 -> 0 | G20: ='C5C'!G161 -> 0 | H20: ='C5C'!H161 -> 0 | I20: =G20-H20 -> 0 | J20: =IF(I20=0,"",I20/H20) ->  | K20: ='C5C'!K161 -> 0
A21: Total Capital Multi-year expenditure | B21: 4,7 | C21: =SUM(C6:C20) -> 662495928.6 | D21: =SUM(D6:D20) -> 786565890.4 | E21: 750193163.8 | F21: 261257306.9 | G21: 736268260.6 | H21: 750193163.8 | I21: -13924903.18 | J21: =IF(I21=0,"",I21/H21) -> -0.01856175696 | K21: =SUM(K6:K20) -> 750193163.8
A23: Single Year expenditure appropriation | B23: 2
A24: ='Org structure'!A2 -> Vote 1 - City Manager | C24: ='C5C'!C176 -> 6002904.91 | D24: ='C5C'!D176 -> 5000000 | E24: ='C5C'!E176 -> 6400000 | F24: ='C5C'!F176 -> 474312.93 | G24: ='C5C'!G176 -> 1662542.1 | H24: ='C5C'!H176 -> 6400000 | I24: ='C5C'!I176 -> -4737457.9 | J24: =IF(I24=0,"",I24/H24) -> -0.7402277969 | K24: ='C5C'!K176 -> 6400000
A25: ='Org structure'!A3 -> Vote 2 - City Finance | C25: ='C5C'!C187 -> 5570959.24 | D25: ='C5C'!D187 -> 0 | E25: ='C5C'!E187 -> 1300000 | F25: ='C5C'!F187 -> 1942800.5 | G25: ='C5C'!G187 -> 1942800.5 | H25: ='C5C'!H187 -> 1300000 | I25: ='C5C'!I187 -> 642800.5 | J25: =IF(I25=0,"",I25/H25) -> 0.4944619231 | K25: ='C5C'!K187 -> 1300000
A26: ='Org structure'!A4 -> Vote 3 - Corporate Services | C26: ='C5C'!C198 -> 15256416.64 | D26: ='C5C'!D198 -> 7525000 | E26: ='C5C'!E198 -> 11870822 | F26: ='C5C'!F198 -> 908060.28 | G26: ='C5C'!G198 -> 15374641.31 | H26: ='C5C'!H198 -> 11870822 | I26: ='C5C'!I198 -> 3503819.31 | J26: 0.2951623156 | K26: ='C5C'!K198 -> 11870822
A27: ='Org structure'!A5 -> Vote 4 - Community Services and Social Equity | C27: ='C5C'!C209 -> 8052360.27 | D27: ='C5C'!D209 -> 8780000 | E27: ='C5C'!E209 -> 9090000 | F27: ='C5C'!F209 -> 7423582.31 | G27: ='C5C'!G209 -> 7788609.9 | H27: ='C5C'!H209 -> 9090000 | I27: ='C5C'!I209 -> -1301390.1 | J27: -0.1431672277 | K27: ='C5C'!K209 -> 9090000
A28: ='Org structure'!A6 -> Vote 5 - Infrastructure Services | C28: ='C5C'!C220 -> 15179175.83 | D28: ='C5C'!D220 -> 10000000 | E28: ='C5C'!E220 -> 10092413 | F28: ='C5C'!F220 -> 9173138.87 | G28: ='C5C'!G220 -> 16230858.22 | H28: ='C5C'!H220 -> 10092413 | I28: ='C5C'!I220 -> 6138445.22 | J28: 0.6082237439 | K28: ='C5C'!K220 -> 10092413
A29: ='Org structure'!A7 -> Vote 6 - Sustainable Development and City Enterprises | C29: ='C5C'!C231 -> 842627.38 | D29: ='C5C'!D231 -> 4893050 | E29: ='C5C'!E231 -> 2502396.22 | F29: ='C5C'!F231 -> 2614814.35 | G29: ='C5C'!G231 -> 3605424.94 | H29: ='C5C'!H231 -> 2502396.22 | I29: ='C5C'!I231 -> 1103028.72 | J29: 0.440788997 | K29: ='C5C'!K231 -> 2502396.22
A30: ='Org structure'!A8 -> Vote 7 - Electricity | C30: ='C5C'!C242 -> 12909352.94 | D30: ='C5C'!D242 -> 4000000 | E30: ='C5C'!E242 -> 5600000 | F30: ='C5C'!F242 -> 0 | G30: ='C5C'!G242 -> 3977079.48 | H30: ='C5C'!H242 -> 5600000 | I30: ='C5C'!I242 -> -1622920.52 | J30: -0.2898072357 | K30: ='C5C'!K242 -> 5600000
A31: ='Org structure'!A9 -> Vote 8 - [NAME OF VOTE 8] | C31: ='C5C'!C253 -> 0 | D31: ='C5C'!D253 -> 0 | E31: ='C5C'!E253 -> 0 | F31: ='C5C'!F253 -> 0 | G31: ='C5C'!G253 -> 0 | H31: ='C5C'!H253 -> 0 | I31: ='C5C'!I253 -> 0 | K31: ='C5C'!K253 -> 0
A32: ='Org structure'!A10 -> Vote 9 - [NAME OF VOTE 9] | C32: ='C5C'!C264 -> 0 | D32: ='C5C'!D264 -> 0 | E32: ='C5C'!E264 -> 0 | F32: ='C5C'!F264 -> 0 | G32: ='C5C'!G264 -> 0 | H32: ='C5C'!H264 -> 0 | I32: ='C5C'!I264 -> 0 | K32: ='C5C'!K264 -> 0
A33: ='Org structure'!A11 -> Vote 10 - [NAME OF VOTE 10] | C33: ='C5C'!C275 -> 0 | D33: ='C5C'!D275 -> 0 | E33: ='C5C'!E275 -> 0 | F33: ='C5C'!F275 -> 0 | G33: ='C5C'!G275 -> 0 | H33: ='C5C'!H275 -> 0 | I33: ='C5C'!I275 -> 0 | K33: ='C5C'!K275 -> 0
A34: ='Org structure'!A12 -> Vote 11 - [NAME OF VOTE 11] | C34: ='C5C'!C286 -> 0 | D34: ='C5C'!D286 -> 0 | E34: ='C5C'!E286 -> 0 | F34: ='C5C'!F286 -> 0 | G34: ='C5C'!G286 -> 0 | H34: ='C5C'!H286 -> 0 | I34: ='C5C'!I286 -> 0 | K34: ='C5C'!K286 -> 0
A35: ='Org structure'!A13 -> Vote 12 - [NAME OF VOTE 12] | C35: ='C5C'!C297 -> 0 | D35: ='C5C'!D297 -> 0 | E35: ='C5C'!E297 -> 0 | F35: ='C5C'!F297 -> 0 | G35: ='C5C'!G297 -> 0 | H35: ='C5C'!H297 -> 0 | I35: ='C5C'!I297 -> 0 | K35: ='C5C'!K297 -> 0
A36: ='Org structure'!A14 -> Vote 13 - [NAME OF VOTE 13] | C36: ='C5C'!C308 -> 0 | D36: ='C5C'!D308 -> 0 | E36: ='C5C'!E308 -> 0 | F36: ='C5C'!F308 -> 0 | G36: ='C5C'!G308 -> 0 | H36: ='C5C'!H308 -> 0 | I36: ='C5C'!I308 -> 0 | K36: ='C5C'!K308 -> 0
A37: ='Org structure'!A15 -> Vote 14 - [NAME OF VOTE 14] | C37: ='C5C'!C319 -> 0 | D37: ='C5C'!D319 -> 0 | E37: ='C5C'!E319 -> 0 | F37: ='C5C'!F319 -> 0 | G37: ='C5C'!G319 -> 0 | H37: ='C5C'!H319 -> 0 | I37: ='C5C'!I319 -> 0 | K37: ='C5C'!K319 -> 0
A38: ='Org structure'!A16 -> Vote 15 - [NAME OF VOTE 15] | C38: ='C5C'!C330 -> 0 | D38: ='C5C'!D330 -> 0 | E38: ='C5C'!E330 -> 0 | F38: ='C5C'!F330 -> 0 | G38: ='C5C'!G330 -> 0 | H38: ='C5C'!H330 -> 0 | I38: ='C5C'!I330 -> 0 | K38: ='C5C'!K330 -> 0
A39: Total Capital single-year expenditure | B39: 4 | C39: =SUM(C24:C38) -> 63813797.21 | D39: 40198050 | E39: 46855631.22 | F39: 22536709.24 | G39: 50581956.45 | H39: 46855631.22 | I39: 3726325.23 | J39: 0.07952779918 | K39: =SUM(K24:K38) -> 46855631.22
A40: Total Capital Expenditure | C40: =C39+C21 -> 726309725.8 | D40: 826763940.4 | E40: 797048795 | F40: 283794016.1 | G40: 786850217.1 | H40: 797048795 | I40: -10198577.95 | J40: =IF(I40=0,"",I40/H40) -> -0.01279542484 | K40: =K39+K21 -> 797048795
A42: Capital Expenditure - Functional Classification
A43: Governance and administration | C43: =SUM(C44:C46) -> 43055333.52 | D43: 45300000 | E43: 32448235 | F43: 7628824.71 | G43: 39658082.44 | H43: 32448235 | I43: =G43-H43 -> 7209847.44 | J43: =IF(I43=0,"",I43/H43) -> 0.2221953656 | K43: =SUM(K44:K46) -> 32448235
A44: Executive and council | C44: 6002904.91 | D44: 5100000 | E44: 7650000 | F44: 631030.15 | G44: 1819259.32 | H44: =E44/12*12 -> 7650000 | I44: -5830740.68 | J44: =IF(I44=0,"",I44/H44) -> -0.7621883242 | K44: =E44 -> 7650000
A45: Finance and administration | C45: 37052428.61 | D45: 40200000 | E45: 24798235 | F45: 6997794.56 | G45: 37838823.12 | H45: =E45/12*12 -> 24798235 | I45: 13040588.12 | J45: 0.5258675918 | K45: =E45 -> 24798235
A46: Internal audit | C46: 0 | D46: 0 | E46: 0 | F46: 0 | G46: 0 | H46: =E46/12*11 -> 0 | I46: 0
A47: Community and public safety | C47: =SUM(C48:C52) -> 117915786.8 | D47: 171104290.9 | E47: 149293903.2 | F47: 36253609.57 | G47: 121331069.6 | H47: 149293903.2 | I47: -27962833.64 | J47: -0.1873005731 | K47: =SUM(K48:K52) -> 149293903.2
A48: Community and social services | C48: 39759722.49 | D48: 24745151.2 | E48: 16970120.08 | F48: 7441345.8 | G48: 10455595.55 | H48: =E48/12*12 -> 16970120.08 | I48: -6514524.53 | J48: -0.3838820526 | K48: =E48 -> 16970120.08
A49: Sport and recreation | C49: 5255736.33 | D49: 11932560 | E49: 12165560 | F49: 6973137.24 | G49: 15930036.83 | H49: 12165560 | I49: 3764476.83 | J49: 0.3094372006 | K49: 12165560
A50: Public safety | C50: 724230.91 | D50: 4853050 | E50: 2100000 | F50: 1738668.9 | G50: 1738668.9 | H50: 2100000 | I50: -361331.1 | J50: -0.1720624286 | K50: 2100000
A51: Housing | C51: 72176097.07 | D51: 129573529.7 | E51: 118058223.2 | F51: 20100457.63 | G51: 93206768.31 | H51: 118058223.2 | I51: -24851454.84 | J51: -0.2105016845 | K51: 118058223.2
A52: Health | C52: 0 | D52: 0 | F52: 0 | G52: 0 | I52: 0
A53: Economic and environmental services | C53: =SUM(C54:C56) -> 247499942.5 | D53: 139974463.2 | E53: 183682471.2 | F53: 136308143.3 | G53: 335204879.3 | H53: 183682471.2 | I53: 151522408.1 | J53: 0.8249149038 | K53: =SUM(K54:K56) -> 183682471.2
A54: Planning and development | C54: 92995620.52 | D54: 23150000 | E54: 36591014.22 | F54: 11174525.37 | G54: 32312559.62 | H54: =E54/12*12 -> 36591014.22 | I54: -4278454.6 | J54: -0.1169263736 | K54: =E54 -> 36591014.22
A55: Road transport | C55: 154504322 | D55: 116824463.2 | E55: 147091457 | F55: 125133618 | G55: 302892319.7 | H55: 147091457 | I55: 155800862.7 | J55: 1.059210819 | K55: 147091457
A56: Environmental protection | C56: 0 | D56: 0 | E56: 0 | F56: 0 | G56: 0 | H56: 0 | I56: 0
A57: Trading services | C57: =SUM(C58:C61) -> 314321104.9 | D57: 467535186.4 | E57: 428774185.8 | F57: 101572704.4 | G57: 287723356.4 | H57: 428774185.8 | I57: -141050829.4 | J57: -0.3289629694 | K57: =SUM(K58:K61) -> 428774185.8
A58: Energy sources | C58: 129748654.5 | D58: 260053551.7 | E58: 238757856 | F58: 34557105.44 | G58: 115112102.6 | H58: =E58/12*12 -> 238757856 | I58: -123645753.4 | J58: -0.517870932 | K58: =E58 -> 238757856
A59: Water management | C59: 78803164.29 | D59: 100375000 | E59: 80257997 | F59: 31218773.23 | G59: 78162408.76 | H59: 80257997 | I59: -2095588.24 | J59: -0.02611064714 | K59: 80257997
A60: Waste water management | C60: 78087787.55 | D60: 97046634.7 | E60: 102698332.8 | F60: 22084102.72 | G60: 66141786.13 | H60: 102698332.8 | I60: -36556546.68 | J60: -0.3559604687 | K60: 102698332.8
A61: Waste management | C61: 27681498.49 | D61: 10060000 | E61: 7060000 | F61: 13712722.97 | G61: 28307058.97 | H61: 7060000 | I61: 21247058.97 | J61: 3.009498438 | K61: 7060000
A62: Other | C62: 3517558.08 | D62: 2850000 | E62: 2850000 | F62: 2030734.14 | G62: 2932829.27 | H62: 2850000 | I62: 82829.27 | J62: 0.02906290175 | K62: 2850000
A63: Total Capital Expenditure - Functional Classification | B63: 3 | C63: =C43+C47+C53+C57+C62 -> 726309725.8 | D63: =D43+D47+D53+D57+D62 -> 826763940.4 | E63: 797048795.3 | F63: 283794016.1 | G63: 786850217.1 | H63: 797048795.3 | I63: -10198578.21 | J63: -0.01279542516 | K63: =K43+K47+K53+K57+K62 -> 797048795.3
A65: Funded by:
A66: National Government | C66: 302791114.5 | D66: 325816919.9 | E66: 345980175 | F66: 72562024.82 | G66: 247897355.5 | H66: =E66/12*12 -> 345980175 | I66: =G66-H66 -> -98082819.48 | J66: =IF(I66=0,"",I66/H66) -> -0.2834926003 | K66: =E66 -> 345980175
A67: Provincial Government | C67: 92791145.97 | D67: 131157970.6 | E67: 131945797.7 | F67: 32139029.38 | G67: 107811828.9 | H67: 131945797.7 | I67: -24133968.88 | J67: -0.1829082039 | K67: 131945797.7
A68: District Municipality | I68: 0
A69: Transfers and subsidies - capital (monetary allocations) (Nat / Prov Departm Agencies, Households, Non-profit Institutions, Private Enterprises, Public Corporatons, Higher Educ Institutions) | I69: 0
A70: Transfers recognised - capital | C70: =SUM(C66:C69) -> 395582260.5 | D70: 456974890.5 | E70: 477925972.7 | F70: 104701054.2 | G70: 355709184.4 | H70: 477925972.7 | I70: -122216788.4 | J70: -0.2557232612 | K70: =SUM(K66:K69) -> 477925972.7
A72: Borrowing | B72: 6 | C72: 72309925.81 | D72: 234315856 | E72: 206615856 | F72: 13641651.36 | G72: 84491071.45 | H72: =E72/12*12 -> 206615856 | I72: -122124784.6 | J72: -0.5910716966 | K72: =E72 -> 206615856
A73: Internally generated funds | C73: 258417539.5 | D73: 135473193.9 | E73: 112506966.3 | F73: 165451310.6 | G73: 346649961.2 | H73: 112506966.3 | I73: 234142995 | J73: 2.081142197 | K73: 112506966.3
A74: Total Capital Funding | C74: =+C70+C72+C73 -> 726309725.8 | D74: 826763940.4 | E74: 797048795 | F74: 283794016.1 | G74: 786850217.1 | H74: 797048795 | I74: -10198577.95 | J74: -0.01279542484 | K74: =+K70+K72+K73 -> 797048795
A75: =head27a -> References
A76: 1. Municipalities may choose to appropriate for capital expenditure for three years or for one year (if one year appropriation projected expenditure required for yr2 and yr3).
A77: 2. Include capital component of PPP unitary payment
A78: 3. Capital expenditure by functional classification must reconcile to the total of multi-year and single year appropriations
A79: 4. Include expenditure on investment property, intangible and biological assets
A81: 6. Include finance leases and PPP capital funding component of unitary payment - total borrowing/repayments to reconcile to changes in Table SA17
A82: 7. Total Capital Funding must balance with Total Capital Expenditure
A86: check balance | C86: =C40-C74 -> 0 | D86: =D40-D74 -> 0 | E86: 0 | F86: 0 | G86: 0 | H86: 0 | K86: 0

Sheet C5C
A1: =muni& " - "&S71D& " - "&"A"& " - "&date -> KZN225 Msunduzi - Table C5 Consolidated Monthly Budget Statement - Capital Expenditure (municipal vote, functional classification and funding - A - Q4 Fourth Quarter
A2: =Vdesc -> Vote Description | B2: =head27 -> Ref | C2: =Head1 -> 2023/24 | D2: =Head2 -> Budget Year 2024/25 | L2: =Head4 -> 
A3: R thousand | C3: =Head5 -> Audited Outcome | D3: =Head6 -> Original Budget | E3: =Head7 -> Adjusted Budget | F3: =Head38 -> Monthly actual | G3: =Head39 -> YearTD actual | H3: =Head40 -> YearTD budget | I3: =Head41 -> YTD variance | J3: =Head41 -> YTD variance | K3: =Head8 -> Full Year Forecast | L3: =Head12 -> Forecast 2010/11 | M3: =Head13 -> Forecast 2011/12 | N3: =Head14 -> Forecast 2012/13 | O3: =Head15 -> Forecast 2013/14 | P3: =Head16 -> Forecast 2014/15 | Q3: =Head17 -> Forecast 2015/16 | R3: =Head18 -> Forecast 2016/17 | S3: =Head19 -> Forecast 2017/18 | T3: =Head20 -> Forecast 2018/19 | U3: =Head21 -> Forecast 2019/20 | V3: =Head22 -> Forecast 2020/21 | W3: =Head23 -> Forecast 2021/22
J4: %
A5: Capital expenditure - Municipal Vote
A6: Expenditure of multi-year capital appropriation | B6: 1
A7: ='Org structure'!A2 -> Vote 1 - City Manager | C7: =SUM(C8:C17) -> 0 | D7: =SUM(D8:D17) -> 37445000.58 | E7: 850000 | F7: 156717.22 | G7: 156717.22 | H7: 850000 | I7: =G7-H7 -> -693282.78 | J7: =IF(I7=0,"",I7/H7) -> -0.8156268 | K7: 850000
A8: ='Org structure'!E3 -> 1.1 - Internal Audit and Compliance | D8: 37445000.58 | E8: 850000 | F8: 156717.22 | G8: 156717.22 | H8: =E8/12*12 -> 850000 | I8: -693282.78 | J8: -0.8156268 | K8: =E8 -> 850000
A9: ='Org structure'!E4 -> 1.2 - Office of the City Manager | F9: 0 | G9: 0 | I9: 0
A10: ='Org structure'!E5 -> 1.3 - Political Support | I10: 0
A11: ='Org structure'!E6 -> 1.4 - Strategic Planning | I11: 0
A12: ='Org structure'!E7 -> 0 | I12: 0
A13: ='Org structure'!E8 -> 0 | I13: 0
A14: ='Org structure'!E9 -> 0 | I14: 0
A15: ='Org structure'!E10 -> 0 | I15: 0
A16: ='Org structure'!E11 -> 0 | I16: 0
A17: ='Org structure'!E12 -> 0 | I17: 0
A18: ='Org structure'!A3 -> Vote 2 - City Finance | C18: =SUM(C19:C28) -> 10485090.65 | D18: =SUM(D19:D28) -> 25000000 | E18: 25000000 | F18: 305562.38 | G18: 16018927.49 | H18: 25000000 | I18: -8981072.51 | J18: -0.3592429004 | K18: 25000000
A19: ='Org structure'!E14 -> 2.1 - Asset Management | C19: 4366889.48 | I19: 0
A20: ='Org structure'!E15 -> 2.2 - Budget and Treasury Management | C20: 6118201.17 | D20: 25000000 | E20: 25000000 | F20: 292562.38 | G20: 16005927.49 | H20: =E20/12*12 -> 25000000 | I20: -8994072.51 | J20: -0.3597629004 | K20: =E20 -> 25000000
A21: ='Org structure'!E16 -> 2.3 - Expenditure Management | F21: 13000 | G21: 13000 | I21: 13000
A22: ='Org structure'!E17 -> 2.4 - Revenue Management | I22: 0
A23: ='Org structure'!E18 -> 2.5 - Supply Chain Management | I23: 0
A24: ='Org structure'!E19 -> 0 | I24: 0
A25: ='Org structure'!E20 -> 0 | I25: 0
A26: ='Org structure'!E21 -> 0 | I26: 0
A27: ='Org structure'!E22 -> 0 | I27: 0
A28: ='Org structure'!E23 -> 0 | I28: 0
A29: ='Org structure'!A4 -> Vote 3 - Corporate Services | C29: =SUM(C30:C39) -> 5071794.14 | D29: 6575000 | E29: 6835000 | F29: 210619.89 | G29: 759141.07 | H29: 6835000 | I29: -6075858.93 | J29: -0.8889332743 | K29: 6835000
A30: ='Org structure'!E25 -> 3.1 - Human Resources Management | D30: 50000 | E30: 460000 | F30: 12000 | G30: 353300 | H30: =E30/12*12 -> 460000 | I30: -106700 | J30: -0.2319565217 | K30: =E30 -> 460000
A31: ='Org structure'!E26 -> 3.2 - Information Technology | C31: 5071794.14 | D31: 6125000 | E31: 6125000 | F31: 198619.89 | G31: 405841.07 | H31: 6125000 | I31: -5719158.93 | J31: -0.9337402335 | K31: 6125000
A32: ='Org structure'!E27 -> 3.3 - Legal Services | E32: 0 | G32: 0 | H32: 0 | I32: 0 | K32: 0
A33: ='Org structure'!E28 -> 3.4 - Secretariat and Auxiliary Services | D33: 400000 | E33: 250000 | G33: 0 | H33: 250000 | I33: -250000 | J33: -1 | K33: 250000
A34: ='Org structure'!E29 -> 3.5 - General Manager: Corporate Service | E34: 0 | G34: 0 | H34: 0 | I34: 0 | K34: 0
A35: ='Org structure'!E30 -> 0 | I35: 0
A36: ='Org structure'!E31 -> 0 | I36: 0
A37: ='Org structure'!E32 -> 0 | I37: 0
A38: ='Org structure'!E33 -> 0 | I38: 0
A39: ='Org structure'!E34 -> 0 | I39: 0
A40: ='Org structure'!A5 -> Vote 4 - Community Services and Social Equity | C40: =SUM(C41:C50) -> 70000485.02 | D40: 42152711.2 | E40: 34600680.08 | F40: 23613974.86 | G40: 49599028.21 | H40: 34600680.08 | I40: 14998348.13 | J40: 0.4334697496 | K40: 34600680.08
A41: ='Org structure'!E36 -> 4.1 - Area Based Management | C41: 25704 | D41: 100000 | E41: 1000000 | F41: 0 | G41: 0 | H41: =E41/12*12 -> 1000000 | I41: -1000000 | J41: -1 | K41: =E41 -> 1000000
A42: ='Org structure'!E37 -> 4.2 - Public Safety, Emergency Services and Enforcement | C42: 962574.91 | D42: 1810000 | E42: 1810000 | F42: 207771.75 | G42: 232367.35 | H42: 1810000 | I42: -1577632.65 | J42: -0.8716202486 | K42: 1810000
A43: ='Org structure'!E38 -> 4.3 - Recreation and Facilities | C43: 43896257.07 | D43: 30232711.2 | E43: 21790680.08 | F43: 9693480.14 | G43: 21115322.45 | H43: 21790680.08 | I43: -675357.63 | J43: -0.03099295788 | K43: 21790680.08
A44: ='Org structure'!E39 -> 4.4 - Waste Management | C44: 25115949.04 | D44: 10000000 | E44: 10000000 | F44: 13712722.97 | G44: 28251338.41 | H44: 10000000 | I44: 18251338.41 | J44: 1.825133841 | K44: 10000000
A45: ='Org structure'!E40 -> 4.5 - General Manager: Community Services | C45: 0 | D45: 10000 | F45: 0 | G45: 0 | H45: 0 | I45: 0 | K45: 0
A46: ='Org structure'!E41 -> 0 | I46: 0
A47: ='Org structure'!E42 -> 0 | I47: 0
A48: ='Org structure'!E43 -> 0 | I48: 0
A49: ='Org structure'!E44 -> 0 | I49: 0
A50: ='Org structure'!E45 -> 0 | I50: 0
A51: ='Org structure'!A6 -> Vote 5 - Infrastructure Services | C51: =SUM(C52:C61) -> 291473827.5 | D51: =SUM(D52:D61) -> 284463597.6 | E51: 349087786.9 | F51: 171206154.8 | G51: 432996421.7 | H51: 349087786.9 | I51: 83908634.8 | J51: 0.2403654265 | K51: 349087786.9
A52: ='Org structure'!E47 -> 5.1 - Project Management Office | C52: 120220.32 | D52: 100000 | E52: 100000 | F52: 678221.14 | G52: 678221.14 | H52: =E52/12*12 -> 100000 | I52: 578221.14 | J52: 5.7822114 | K52: =E52 -> 100000
A53: ='Org structure'!E48 -> 5.2 - Roads and Transportation | C53: 146322567.6 | D53: 110664463.2 | E53: 169031457.1 | F53: 123272846 | G53: 297111605.9 | H53: 169031457.1 | I53: 128080148.7 | J53: 0.7577296612 | K53: 169031457.1
A54: ='Org structure'!E49 -> 5.3 - Water and Sanitation | C54: 145031039.6 | D54: 173699134.4 | E54: 179956329.8 | F54: 47255087.67 | G54: 135206594.7 | H54: 179956329.8 | I54: -44749735.08 | J54: -0.2486699697 | K54: 179956329.8
A55: ='Org structure'!E50 -> 5.4 - General Manager: Infrastructure | C55: 0 | F55: 0 | G55: 0 | H55: 0 | I55: 0
A56: ='Org structure'!E51 -> 0 | I56: 0
A57: ='Org structure'!E52 -> 0 | I57: 0
A58: ='Org structure'!E53 -> 0 | I58: 0
A59: ='Org structure'!E54 -> 0 | I59: 0
A60: ='Org structure'!E55 -> 0 | I60: 0
A61: ='Org structure'!E56 -> 0 | I61: 0
A62: ='Org structure'!A7 -> Vote 6 - Sustainable Development and City Enterprises | C62: =SUM(C63:C72) -> 168625429.7 | D62: =SUM(D63:D72) -> 153598529.7 | E62: 155161841.2 | F62: 31207172.29 | G62: 125603001.8 | H62: 155161841.2 | I62: -29558839.39 | J62: -0.1905032782 | K62: 155161841.2
A63: ='Org structure'!E58 -> 6.1 - City Entities | C63: 4097364.47 | D63: 2685000 | E63: 2685000 | F63: 2451841.9 | G63: 3449937.15 | H63: =E63/12*12 -> 2685000 | I63: 764937.15 | J63: 0.2848927933 | K63: =E63 -> 2685000
A64: ='Org structure'!E59 -> 6.2 - Development Services | C64: 14390745.96 | D64: 22090000 | E64: 22090000 | F64: 933651.24 | G64: 18993126.67 | H64: 22090000 | I64: -3096873.33 | J64: -0.1401934509 | K64: 22090000
A65: ='Org structure'!E60 -> 6.3 - Human Settlement Development | C65: 71825343.19 | D65: 128823529.7 | E65: 117308223.2 | F65: 18018745.19 | G65: 91026256.88 | H65: 117308223.2 | I65: -26281966.27 | J65: -0.2240419773 | K65: 117308223.2
A66: ='Org structure'!E61 -> 6.4 - Town Planning | C66: 78311976.06 | E66: 13078618 | F66: 9802933.96 | G66: 12133681.06 | H66: 13078618 | I66: -944936.94 | J66: -0.07225051913 | K66: 13078618
A67: ='Org structure'!E62 -> 6.5 - General Manager: Sustainable Development and City Enterprises | C67: 0 | F67: 0 | G67: 0 | H67: 0 | I67: 0 | K67: 0
A68: ='Org structure'!E63 -> 0 | I68: 0
A69: ='Org structure'!E64 -> 0 | I69: 0
A70: ='Org structure'!E65 -> 0 | I70: 0
A71: ='Org structure'!E66 -> 0 | I71: =G71-H71 -> 0 | J71: =IF(I71=0,"",I71/H71) -> 
A72: ='Org structure'!E67 -> 0 | I72: 0
A73: ='Org structure'!A8 -> Vote 7 - Electricity | C73: =SUM(C74:C83) -> 116839301.6 | D73: 237331051.4 | E73: 178657855.6 | F73: 34557105.44 | G73: 111135023.1 | H73: 178657855.6 | I73: -67522832.5 | J73: -0.3779449399 | K73: 178657855.6
A74: ='Org structure'!E69 -> 7.1 Electricity planning | C74: 116432403.6 | D74: 229331051.4 | E74: 178657855.6 | F74: 34490101.44 | G74: 111068019.1 | H74: =E74/12*12 -> 178657855.6 | I74: -67589836.5 | J74: -0.3783199808 | K74: =E74 -> 178657855.6
A75: ='Org structure'!E70 -> 7.2 Methods and Standards | C75: 0 | G75: 0 | H75: 0 | I75: 0 | K75: 0
A76: ='Org structure'!E71 -> 7.3 Operations and Maintenance | C76: 0 | G76: 0 | H76: 0 | I76: 0 | K76: 0
A77: ='Org structure'!E72 -> 7.4 Revenue Management | C77: 406898.05 | D77: 8000000 | F77: 67004 | G77: 67004 | H77: 0 | I77: 67004 | K77: 0
A78: ='Org structure'!E73 -> 7.5 General Manager Electricity | C78: 0 | H78: 0 | I78: 0
A79: ='Org structure'!E74 -> 0 | I79: 0
A80: ='Org structure'!E75 -> 0 | I80: 0
A81: ='Org structure'!E76 -> 0 | I81: 0
A82: ='Org structure'!E77 -> 0 | I82: 0
A83: ='Org structure'!E78 -> 0 | I83: 0
A84: ='Org structure'!A9 -> Vote 8 - [NAME OF VOTE 8] | C84: =SUM(C85:C94) -> 0 | D84: =SUM(D85:D94) -> 0 | E84: 0 | F84: 0 | G84: 0 | H84: 0 | I84: 0 | K84: 0
A85: ='Org structure'!E80 -> 8.1 - [Name of sub-vote] | I85: 0
A86: ='Org structure'!E81 -> 0 | I86: 0
A87: ='Org structure'!E82 -> 0 | I87: 0
A88: ='Org structure'!E83 -> 0 | I88: 0
A89: ='Org structure'!E84 -> 0 | I89: 0
A90: ='Org structure'!E85 -> 0 | I90: 0
A91: ='Org structure'!E86 -> 0 | I91: 0
A92: ='Org structure'!E87 -> 0 | I92: 0
A93: ='Org structure'!E88 -> 0 | I93: 0
A94: ='Org structure'!E89 -> 0 | I94: 0
A95: ='Org structure'!A10 -> Vote 9 - [NAME OF VOTE 9] | C95: =SUM(C96:C105) -> 0 | D95: =SUM(D96:D105) -> 0 | E95: 0 | F95: 0 | G95: 0 | H95: 0 | I95: 0 | K95: 0
A96: ='Org structure'!E91 -> 9.1 - [Name of sub-vote] | I96: 0
A97: ='Org structure'!E92 -> 0 | I97: 0
A98: ='Org structure'!E93 -> 0 | I98: 0
A99: ='Org structure'!E94 -> 0 | I99: 0
A100: ='Org structure'!E95 -> 0 | I100: 0
A101: ='Org structure'!E96 -> 0 | I101: 0
A102: ='Org structure'!E97 -> 0 | I102: 0
A103: ='Org structure'!E98 -> 0 | I103: 0
A104: ='Org structure'!E99 -> 0 | I104: 0
A105: ='Org structure'!E100 -> 0 | I105: 0
A106: ='Org structure'!A11 -> Vote 10 - [NAME OF VOTE 10] | C106: =SUM(C107:C116) -> 0 | D106: =SUM(D107:D116) -> 0 | E106: 0 | F106: 0 | G106: 0 | H106: 0 | I106: 0 | K106: 0
A107: ='Org structure'!E102 -> 10.1 - [Name of sub-vote] | I107: 0
A108: ='Org structure'!E103 -> 0 | I108: 0
A109: ='Org structure'!E104 -> 0 | I109: 0
A110: ='Org structure'!E105 -> 0 | I110: 0
A111: ='Org structure'!E106 -> 0 | I111: 0
A112: ='Org structure'!E107 -> 0 | I112: 0
A113: ='Org structure'!E108 -> 0 | I113: 0
A114: ='Org structure'!E109 -> 0 | I114: 0
A115: ='Org structure'!E110 -> 0 | I115: 0
A116: ='Org structure'!E111 -> 0 | I116: 0
A117: ='Org structure'!A12 -> Vote 11 - [NAME OF VOTE 11] | C117: =SUM(C118:C127) -> 0 | D117: =SUM(D118:D127) -> 0 | E117: 0 | F117: 0 | G117: 0 | H117: 0 | I117: 0 | K117: 0
A118: ='Org structure'!E113 -> 11.1 - [Name of sub-vote] | I118: 0
A119: ='Org structure'!E114 -> 0 | I119: 0
A120: ='Org structure'!E115 -> 0 | I120: 0
A121: ='Org structure'!E116 -> 0 | I121: 0
A122: ='Org structure'!E117 -> 0 | I122: 0
A123: ='Org structure'!E118 -> 0 | I123: 0
A124: ='Org structure'!E119 -> 0 | I124: 0
A125: ='Org structure'!E120 -> 0 | I125: 0
A126: ='Org structure'!E121 -> 0 | I126: 0
A127: ='Org structure'!E122 -> 0 | I127: 0
A128: ='Org structure'!A13 -> Vote 12 - [NAME OF VOTE 12] | C128: =SUM(C129:C138) -> 0 | D128: =SUM(D129:D138) -> 0 | E128: 0 | F128: 0 | G128: 0 | H128: 0 | I128: 0 | K128: 0
A129: ='Org structure'!E124 -> 12.1 - [Name of sub-vote] | I129: 0
A130: ='Org structure'!E125 -> 0 | I130: 0
A131: ='Org structure'!E126 -> 0 | I131: 0
A132: ='Org structure'!E127 -> 0 | I132: 0
A133: ='Org structure'!E128 -> 0 | I133: 0
A134: ='Org structure'!E129 -> 0 | I134: 0
A135: ='Org structure'!E130 -> 0 | I135: =G135-H135 -> 0 | J135: =IF(I135=0,"",I135/H135) -> 
A136: ='Org structure'!E131 -> 0 | I136: 0
A137: ='Org structure'!E132 -> 0 | I137: 0
A138: ='Org structure'!E133 -> 0 | I138: 0
A139: ='Org structure'!A14 -> Vote 13 - [NAME OF VOTE 13] | C139: =SUM(C140:C149) -> 0 | D139: =SUM(D140:D149) -> 0 | E139: 0 | F139: 0 | G139: 0 | H139: 0 | I139: 0 | K139: 0
A140: ='Org structure'!E135 -> 13.1 - [Name of sub-vote] | I140: 0
A141: ='Org structure'!E136 -> 0 | I141: 0
A142: ='Org structure'!E137 -> 0 | I142: 0
A143: ='Org structure'!E138 -> 0 | I143: 0
A144: ='Org structure'!E139 -> 0 | I144: 0
A145: ='Org structure'!E140 -> 0 | I145: 0
A146: ='Org structure'!E141 -> 0 | I146: 0
A147: ='Org structure'!E142 -> 0 | I147: 0
A148: ='Org structure'!E143 -> 0 | I148: 0
A149: ='Org structure'!E144 -> 0 | I149: 0
A150: ='Org structure'!A15 -> Vote 14 - [NAME OF VOTE 14] | C150: =SUM(C151:C160) -> 0 | D150: =SUM(D151:D160) -> 0 | E150: 0 | F150: 0 | G150: 0 | H150: 0 | I150: 0 | K150: 0
A151: ='Org structure'!E146 -> 14.1 - [Name of sub-vote] | I151: 0
A152: ='Org structure'!E147 -> 0 | I152: 0
A153: ='Org structure'!E148 -> 0 | I153: 0
A154: ='Org structure'!E149 -> 0 | I154: 0
A155: ='Org structure'!E150 -> 0 | I155: 0
A156: ='Org structure'!E151 -> 0 | I156: 0
A157: ='Org structure'!E152 -> 0 | I157: 0
A158: ='Org structure'!E153 -> 0 | I158: 0
A159: ='Org structure'!E154 -> 0 | I159: 0
A160: ='Org structure'!E155 -> 0 | I160: 0
A161: ='Org structure'!A16 -> Vote 15 - [NAME OF VOTE 15] | C161: =SUM(C162:C171) -> 0 | D161: =SUM(D162:D171) -> 0 | E161: 0 | F161: 0 | G161: 0 | H161: 0 | I161: 0 | K161: 0
A162: ='Org structure'!E157 -> 15.1 - [Name of sub-vote] | I162: 0
A163: ='Org structure'!E158 -> 0 | I163: 0
A164: ='Org structure'!E159 -> 0 | I164: 0
A165: ='Org structure'!E160 -> 0 | I165: 0
A166: ='Org structure'!E161 -> 0 | I166: 0
A167: ='Org structure'!E162 -> 0 | I167: 0
A168: ='Org structure'!E163 -> 0 | I168: 0
A169: ='Org structure'!E164 -> 0 | I169: 0
A170: ='Org structure'!E165 -> 0 | I170: 0
A171: ='Org structure'!E166 -> 0 | I171: 0 | L171: =SUM(L79:L82) -> 0 | M171: 0 | N171: 0 | O171: 0 | P171: 0 | Q171: 0 | R171: 0 | S171: 0 | T171: 0 | U171: 0 | V171: 0 | W171: 0
A172: Total multi-year capital expenditure | C172: =C7+C18+C29+C40+C51+C62+C73+C84+C95+C106+C117+C128+C139+C150+C161 -> 662495928.6 | D172: =D7+D18+D29+D40+D51+D62+D73+D84+D95+D106+D117+D128+D139+D150+D161 -> 786565890.4 | E172: 750193163.8 | F172: 261257306.9 | G172: 736268260.6 | H172: 750193163.8 | I172: -13924903.18 | J172: -0.01856175696 | K172: 750193163.8
I173: 0
A174: Capital expenditure - Municipal Vote
A175: Expenditue of single-year capital appropriation | B175: 1
A176: ='Org structure'!A2 -> Vote 1 - City Manager | C176: =SUM(C177:C186) -> 6002904.91 | D176: 5000000 | E176: 6400000 | F176: 474312.93 | G176: 1662542.1 | H176: 6400000 | I176: -4737457.9 | J176: -0.7402277969 | K176: 6400000
A177: ='Org structure'!E3 -> 1.1 - Internal Audit and Compliance | C177: 0 | I177: 0
A178: ='Org structure'!E4 -> 1.2 - Office of the City Manager | C178: 2847260.22 | D178: 5000000 | E178: 6400000 | F178: 474312.93 | G178: 1662542.1 | H178: =E178/12*12 -> 6400000 | I178: -4737457.9 | J178: -0.7402277969 | K178: =E178 -> 6400000
A179: ='Org structure'!E5 -> 1.3 - Political Support | C179: 3155644.69 | I179: 0
A180: ='Org structure'!E6 -> 1.4 - Strategic Planning | C180: 0 | I180: 0
A181: ='Org structure'!E7 -> 0 | I181: 0
A182: ='Org structure'!E8 -> 0 | I182: 0
A183: ='Org structure'!E9 -> 0 | I183: 0
A184: ='Org structure'!E10 -> 0 | I184: 0
A185: ='Org structure'!E11 -> 0 | I185: 0
A186: ='Org structure'!E12 -> 0 | I186: 0
A187: ='Org structure'!A3 -> Vote 2 - City Finance | C187: =SUM(C188:C197) -> 5570959.24 | D187: =SUM(D188:D197) -> 0 | E187: =SUM(E188:E197) -> 1300000 | F187: 1942800.5 | G187: 1942800.5 | H187: 1300000 | I187: 642800.5 | J187: 0.4944619231 | K187: 1300000
A188: ='Org structure'!E14 -> 2.1 - Asset Management | F188: 350856.49 | G188: 350856.49 | I188: 350856.49
A189: ='Org structure'!E15 -> 2.2 - Budget and Treasury Management | E189: 1300000 | F189: 1375944.19 | G189: 1375944.19 | H189: =E189/12*12 -> 1300000 | I189: 75944.19 | J189: 0.05841860769 | K189: =E189 -> 1300000
A190: ='Org structure'!E16 -> 2.3 - Expenditure Management | F190: 215999.82 | G190: 215999.82 | I190: 215999.82
A191: ='Org structure'!E17 -> 2.4 - Revenue Management | C191: 97500 | I191: 0
A192: ='Org structure'!E18 -> 2.5 - Supply Chain Management | C192: 5473459.24 | I192: 0
A193: ='Org structure'!E19 -> 0 | I193: 0
A194: ='Org structure'!E20 -> 0 | I194: 0
A195: ='Org structure'!E21 -> 0 | I195: 0
A196: ='Org structure'!E22 -> 0 | I196: 0
A197: ='Org structure'!E23 -> 0 | I197: 0
A198: ='Org structure'!A4 -> Vote 3 - Corporate Services | C198: =SUM(C199:C208) -> 15256416.64 | D198: 7525000 | E198: 11870822 | F198: 908060.28 | G198: 15374641.31 | H198: 11870822 | I198: 3503819.31 | J198: 0.2951623156 | K198: 11870822
A199: ='Org structure'!E25 -> 3.1 - Human Resources Management | D199: 60000 | E199: 60000 | F199: 103384 | G199: 206414.67 | H199: =E199/12*12 -> 60000 | I199: 146414.67 | J199: 2.4402445 | K199: =E199 -> 60000
A200: ='Org structure'!E26 -> 3.2 - Information Technology | C200: 15256416.64 | D200: 7425000 | E200: 11770822 | F200: 804676.28 | G200: 15168226.64 | H200: 11770822 | I200: =G200-H200 -> 3397404.64 | J200: =IF(I200=0,"",I200/H200) -> 0.2886293447 | K200: 11770822
... 145 more rows

Sheet C6-FinPos
A1: =muni& " - "&S71E& " - "&date -> KZN225 Msunduzi - Table C6 Consolidated Monthly Budget Statement - Financial Position - Q4 Fourth Quarter
A2: =desc -> Description | B2: =head27 -> Ref | C2: =Head1 -> 2023/24 | D2: =Head2 -> Budget Year 2024/25
C3: =Head5 -> Audited Outcome | D3: =Head6 -> Original Budget | E3: =Head7 -> Adjusted Budget | F3: =Head39 -> YearTD actual | G3: =Head8 -> Full Year Forecast
A4: R thousands | B4: 1
A5: ASSETS
A6: Current assets
A7: Cash and cash equivalents | C7: 490954799 | D7: 211783355 | E7: 374180638 | F7: -484702.14 | G7: =E7 -> 374180638
A8: Trade and other receivables from exchange transactions | C8: 728825462 | D8: 2649261960 | E8: 2649261959 | F8: 2400134888 | G8: 2649261959
A9: Receivables from non-exchange transactions | D9: 811010113 | E9: 811010112.8 | F9: 0 | G9: 811010112.8
A10: Current portion of non-current receivables | D10: 0 | E10: 0 | F10: 0 | G10: 0
A11: Inventory | C11: 498280564 | D11: 442453028 | E11: 512740064 | F11: 504816507.7 | G11: 512740064
A12: VAT | D12: 0 | E12: 0 | F12: 77400.77 | G12: 0
A13: Other current assets | C13: 322850549 | D13: 0 | E13: 2500 | F13: 633404588 | G13: 2500
A14: Total current assets | C14: =SUM(C7:C13) -> 2040911374 | D14: =SUM(D7:D13) -> 4114508456 | E14: =SUM(E7:E13) -> 4347195274 | F14: =SUM(F7:F13) -> 3537948682 | G14: =SUM(G7:G13) -> 4347195274
A15: Non current assets
A16: Investments | D16: 0 | E16: 0 | F16: 0 | G16: =E16 -> 0
A17: Investment property | C17: 922391726 | D17: 974255981 | E17: 974255980.8 | F17: 928408205.3 | G17: 974255980.8
A18: Property, plant and equipment | C18: 7250531076 | D18: 8754769738 | E18: 8761902258 | F18: 7345766968 | G18: 8761902258
A19: Biological assets | D19: 80958443 | E19: 80958443.4 | F19: 446481.17 | G19: 80958443.4
A20: Living and non-living resources | C20: 534407 | D20: 0 | E20: 0 | F20: 0 | G20: 0
A21: Heritage assets | C21: 323519929 | D21: 291269523 | E21: 291269523.1 | F21: 0 | G21: 291269523.1
A22: Intangible assets | C22: 24753127 | D22: 25766052 | E22: 26566052 | F22: 19872867.32 | G22: 26566052
A23: Trade and other receivables from exchange transactions | D23: 0 | E23: 0 | F23: 0 | G23: 0
A24: Non-current receivables from non-exchange transactions | D24: 0 | E24: 0 | F24: 0 | G24: 0
A25: Other non-current assets | C25: 82700000 | D25: 0 | E25: 0 | F25: 0 | G25: 0
A26: Total non current assets | C26: =SUM(C16:C25) -> 8604430265 | D26: =SUM(D16:D25) -> 10127019737 | E26: =SUM(E16:E25) -> 1.013495226e+10 | F26: =SUM(F16:F25) -> 8294494522 | G26: =SUM(G16:G25) -> 1.013495226e+10
A27: TOTAL ASSETS | C27: =C14+C26 -> 10645341639 | D27: =D14+D26 -> 14241528193 | E27: =E14+E26 -> 1.448214753e+10 | F27: =F14+F26 -> 1.18324432e+10 | G27: =G14+G26 -> 1.448214753e+10
A28: LIABILITIES
A29: Current liabilities
A30: Bank overdraft | D30: 0 | E30: 0 | F30: 0 | G30: =E30 -> 0
A31: Financial liabilities | C31: 50311361 | D31: -11272788 | E31: 28727212 | F31: 35059079.58 | G31: 28727212
A32: Consumer deposits | C32: 152248286 | D32: 150719178 | E32: 150719178.2 | F32: 166883322.8 | G32: 150719178.2
A33: Trade and other payables from exchange transactions | C33: 3221548003 | D33: 1713733896 | E33: 1644769734 | F33: 3142163061 | G33: 1644769734
A34: Trade and other payables from non-exchange transactions | C34: 12566995 | D34: 0 | E34: 0 | F34: 0 | G34: 0
A35: Provision | C35: 6108374 | D35: 61739437 | E35: 62936725.49 | F35: 53948754.13 | G35: 62936725.49
A36: VAT | C36: 174004603 | D36: 457746833 | E36: 0 | F36: 0 | G36: 0
A37: Other current liabilities | C37: 236566604 | D37: 0 | E37: 0 | F37: 0 | G37: 0
A38: Total current liabilities | C38: =SUM(C30:C37) -> 3853354226 | D38: =SUM(D30:D37) -> 2372666556 | E38: =SUM(E30:E37) -> 1887152850 | F38: =SUM(F30:F37) -> 3398054217 | G38: =SUM(G30:G37) -> 1887152850
A39: Non current liabilities
A40: Financial liabilities | C40: 116274950 | D40: 559919194.3 | E40: 559919194.3 | F40: 0 | G40: =E40 -> 559919194.3
A41: Provision | C41: 44650093 | D41: 80110830.3 | E41: 80110830.3 | F41: 0 | G41: 80110830.3
A42: Long term portion of trade payables | D42: 0 | E42: 0 | F42: 315531725.4 | G42: 0
A43: Other non-current liabilities | C43: 572205000 | D43: 583456000 | E43: 583456000 | F43: 528527734.3 | G43: 583456000
A44: Total non current liabilities | C44: =SUM(C40:C43) -> 733130043 | D44: =SUM(D40:D43) -> 1223486025 | E44: =SUM(E40:E43) -> 1223486025 | F44: =SUM(F40:F43) -> 844059459.7 | G44: =SUM(G40:G43) -> 1223486025
A45: TOTAL LIABILITIES | C45: =C38+C44 -> 4586484269 | D45: =D38+D44 -> 3596152581 | E45: =E38+E44 -> 3110638874 | F45: =F38+F44 -> 4242113677 | G45: =G38+G44 -> 3110638874
A46: NET ASSETS | B46: 2 | C46: =C27-C45 -> 6058857370 | D46: =D27-D45 -> 1.064537561e+10 | E46: =E27-E45 -> 1.137150866e+10 | F46: =F27-F45 -> 7590329527 | G46: =G27-G45 -> 1.137150866e+10
A47: COMMUNITY WEALTH/EQUITY
A48: Accumulated surplus/(deficit) | C48: 5833208819 | D48: 1.064537561e+10 | E48: 1.13012217e+10 | F48: 7259252805 | G48: =E48 -> 1.13012217e+10
A49: Reserves and funds | C49: 104698949 | F49: 331076721.9
A50: Other | C50: 120949602 | E50: 70286958.9 | F50: 0 | G50: =E50 -> 70286958.9
A51: TOTAL COMMUNITY WEALTH/EQUITY | B51: 2 | C51: =SUM(C48:C50) -> 6058857370 | D51: =SUM(D48:D50) -> 1.064537561e+10 | E51: =SUM(E48:E50) -> 1.137150866e+10 | F51: =SUM(F48:F50) -> 7590329527 | G51: =SUM(G48:G50) -> 1.137150866e+10
A52: =head27a -> References
A53: 1. Material variances to be explained in Table SC1
A54: 2. Net assets must balance with Total Community Wealth/Equity
A57: check balance | C57: =C46-C51 -> 0 | D57: =D46-D51 -> 0 | E57: =E46-E51 -> 0 | F57: =F46-F51 -> 0 | G57: =G46-G51 -> 0

Sheet C7-CFlow
A1: =muni& " - "&S71F& " - "&date -> KZN225 Msunduzi - Table C7 Consolidated Monthly Budget Statement - Cash Flow - Q4 Fourth Quarter
A2: =desc -> Description | B2: =head27 -> Ref | C2: =Head1 -> 2023/24 | D2: =Head2 -> Budget Year 2024/25
C3: =Head5 -> Audited Outcome | D3: =Head6 -> Original Budget | E3: =Head7 -> Adjusted Budget | F3: =Head38 -> Monthly actual | G3: =Head39 -> YearTD actual | H3: =Head40 -> YearTD budget | I3: =Head41 -> YTD variance | J3: =Head41 -> YTD variance | K3: =Head8 -> Full Year Forecast
A4: R thousands | B4: 1 | J4: %
A5: CASH FLOW FROM OPERATING ACTIVITIES
A6: Receipts
A7: Property rates | C7: 1351613165 | D7: 1484417269 | E7: 1484417269 | H7: =E7/12*12 -> 1484417269 | I7: =G7-H7 -> -1484417269 | J7: =IF(I7=0,"",I7/H7) -> -1 | K7: =E7 -> 1484417269
A8: Service charges | C8: 3770000596 | D8: 4717471651 | E8: 4717471651 | H8: =E8/12*12 -> 4717471651 | I8: -4717471651 | J8: =IF(I8=0,"",I8/H8) -> -1 | K8: =E8 -> 4717471651
A9: Other revenue | D9: 765832296.5 | E9: 765832296.5 | H9: 765832296.5 | I9: -765832296.5 | J9: =IF(I9=0,"",I9/H9) -> -1 | K9: 765832296.5
A10: Transfers and Subsidies - Operational | C10: 819354854 | D10: 956879939.3 | E10: 1008751736 | H10: 1008751736 | I10: -1008751736 | J10: =IF(I10=0,"",I10/H10) -> -1 | K10: 1008751736
A11: Transfers and Subsidies - Capital | C11: 443822774 | D11: 456974890.5 | E11: 477925973.5 | H11: 477925973.5 | I11: -477925973.5 | J11: =IF(I11=0,"",I11/H11) -> -1 | K11: 477925973.5
A12: Interest | C12: 64297443 | D12: 19135146.8 | E12: 19135146.8 | H12: 19135146.8 | I12: -19135146.8 | J12: -1 | K12: 19135146.8
A13: Dividends | D13: 0 | E13: 0 | H13: 0 | I13: 0
A14: Payments
A15: Suppliers and employees | C15: -5820498486 | D15: -7709138592 | E15: -7601031592 | H15: =E15/12*12 -> -7601031592 | I15: =H15-G15 -> -7601031592 | J15: 1 | K15: =E15 -> -7601031592
A16: Interest | C16: -16638315 | D16: -42824930.71 | E16: -42824930.71 | H16: -42824930.71 | I16: =H16-G16 -> -42824930.71 | J16: 1 | K16: -42824930.71
A17: Transfers and Subsidies | D17: -52375752.46 | E17: -52375752.46 | H17: -52375752.46 | I17: =H17-G17 -> -52375752.46 | J17: 1 | K17: -52375752.46
A18: NET CASH FROM/(USED) OPERATING ACTIVITIES | C18: =SUM(C7:C13)+SUM(C15:C17) -> 611952031 | D18: 596371918.2 | E18: 777301797.6 | F18: 0 | G18: 0 | H18: 777301797.6 | I18: =H18-G18 -> 777301797.6 | J18: 1 | K18: =SUM(K7:K13)+SUM(K15:K17) -> 777301797.6
A20: CASH FLOWS FROM INVESTING ACTIVITIES
A21: Receipts
A22: Proceeds on disposal of PPE | C22: 556000 | I22: =G22-H22 -> 0 | J22: =IF(I22=0,"",I22/H22) -> 
A24: Decrease (increase) in non-current receivables | C24: -6206410 | I24: =G24-H24 -> 0
A25: Decrease (increase) in non-current investments | C25: -329809 | I25: =G25-H25 -> 0
A26: Payments
A27: Capital assets | C27: -668423722 | D27: -826763940.4 | E27: -797048795 | H27: =E27/12*12 -> -797048795 | I27: =H27-G27 -> -797048795 | J27: 1 | K27: =E27 -> -797048795
A28: NET CASH FROM/(USED) INVESTING ACTIVITIES | C28: =SUM(C22:C25)+C27 -> -674403941 | D28: =SUM(D22:D25)+D27 -> -826763940.4 | E28: -797048795 | F28: 0 | G28: 0 | H28: -797048795 | I28: =H28-G28 -> -797048795 | J28: 1 | K28: =SUM(K22:K25)+K27 -> -797048795
A30: CASH FLOWS FROM FINANCING ACTIVITIES
A31: Receipts
A32: Short term loans | C32: 116274950 | I32: =G32-H32 -> 0 | J32: =IF(I32=0,"",I32/H32) -> 
A33: Borrowing long term/refinancing | D33: 234315856 | E33: 234315856 | H33: =E33/12*12 -> 234315856 | I33: =G33-H33 -> -234315856 | J33: -1 | K33: =E33 -> 234315856
A34: Increase (decrease) in consumer deposits | I34: =G34-H34 -> 0
A35: Payments
A36: Repayment of borrowing | C36: -74270250 | D36: -90000000 | E36: -50000000 | H36: =E36/12*12 -> -50000000 | I36: =H36-G36 -> -50000000 | J36: 1 | K36: =E36 -> -50000000
A37: NET CASH FROM/(USED) FINANCING ACTIVITIES | C37: =SUM(C32:C34)+C36 -> 42004700 | D37: 144315856 | E37: 184315856 | F37: 0 | G37: 0 | H37: 184315856 | I37: =H37-G37 -> 184315856 | J37: 1 | K37: =SUM(K32:K34)+K36 -> 184315856
A39: NET INCREASE/ (DECREASE) IN CASH HELD | C39: =C18+C28+C37 -> -20447210 | D39: -86076166.26 | E39: 164568858.6 | F39: 0 | G39: 0 | H39: 164568858.6 | K39: =K18+K28+K37 -> 164568858.6
A40: Cash/cash equivalents at beginning: | C40: 511402009 | D40: 543528000 | E40: 495992735 | H40: =IF(E40=0, D40, E40) -> 495992735 | K40: =E40 -> 495992735
A41: Cash/cash equivalents at month/year end: | C41: =C39+C40 -> 490954799 | D41: 457451833.7 | E41: 660561593.6 | F41: 0 | G41: 0 | H41: 660561593.6 | K41: =K39+K40 -> 660561593.6
A42: References
A43: 1. Material variances to be explained in Table SC1

Sheet SC1
A1: =muni& " - "&S71G& " - "&date -> KZN225 Msunduzi - Supporting Table SC1 Material variance explanations - Q4 Fourth Quarter
A2: =head27 -> Ref | B2: =desc -> Description
C3: Variance | D3: Reasons for material deviations | E3: Remedial or corrective steps/remarks
B4: R thousands
A5: 1 | B5: ='[2]C4-FinPerf RE'!A5 -> Revenue
B6: Agency services | C6: 2.940198698 | D6: Actual higher than the projected revenue | E6: No remedial action is required
B7: Interest earned from Receivables | C7: 1.00071677 | D7: Actual higher than the projected revenue | E7: No remedial action is required
B8: Rental from Fixed Assets | C8: -0.730628118 | D8: Projections higher than the actual revenue | E8: No remedial action is required
B9: Operational Revenue | C9: -0.6671128358 | D9: Projections higher than the actual revenue | E9: No remedial action is required
A18: 2 | B18: ='[2]C4-FinPerf RE'!A34 -> Expenditure By Type
B19: Debt impairment | C19: -0.973515931 | D19: Projections higher than the actual revenue | E19: This will self correct during the year
B20: Interest | C20: 0.5681631699 | D20: Actual higher than the projected revenue | E20: This will self correct during the year
B21: Contracted services | C21: 0.5463654991 | D21: Actual higher than the projected revenue | E21: This will self correct during the year
A31: 3 | B31: =RIGHT('C5-Capex'!A40,19) -> Capital Expenditure
A36: 4 | B36: Financial Position
A41: 5 | B41: Cash Flow
A46: 6 | B46: Measureable performance
A51: 7 | B51: Municipal Entities
A57: =head27a -> References
A58: 1. Revenue for each source, vote and standard classification
A59: 2. Expenditure for each type, vote and standard classification
A60: 3. Capital expenditure for each vote and standard classification
A61: 4. Explain any material variances between the annual budget and the expected financial position based on current trends
A62: 5. Cash receipts by source and cash payments by type where not explained under revenue and expenditure
A63: 6. For Sept, Dec, Mar and Jun statements explain any material variances in achievement of measurable performance objectives

Sheet SC2
A1: =muni& " - "&S71H& " - "&Head57 -> KZN225 Msunduzi - Supporting Table SC2 Monthly Budget Statement - performance indicators - Q4 Fourth Quarter
A2: Description of financial indicator | B2: Basis of calculation | C2: =head27 -> Ref | D2: =Head1 -> 2023/24 | E2: =Head2 -> Budget Year 2024/25
D3: =Head5 -> Audited Outcome | E3: =Head6 -> Original Budget | F3: =Head7 -> Adjusted Budget | G3: =Head39 -> YearTD actual | H3: =Head8 -> Full Year Forecast
A5: Borrowing Management
A7: Capital Charges to Operating Expenditure | B7: Interest & principal paid/Operating Expenditure | D7: =IF(ISERROR((D42-D43)/D45),0,((D42-D43)/D45)) -> 0.001298269985 | E7: =IF(ISERROR((E42+E44)/E45),0,((E42+E44)/E45)) -> 0.04843109827 | F7: =IF(ISERROR((F42+F44)/F45),0,((F42+F44)/F45)) -> 0.05093307231 | G7: =IF(ISERROR((G42+G44)/G45),0,((G42+G44)/G45)) -> 0.002895823641 | H7: =IF(ISERROR((H42+H44)/H45),0,((H42+H44)/H45)) -> 0.01325044916
A8: Borrowed funding of 'own' capital expenditure | B8: Borrowings/Capital expenditure excl. transfers and grants | D8: =IF(ISERROR(D47/D46),0,(D47/D46)) -> 0.09955797539 | E8: =IF(ISERROR(E47/E46),0,(E47/E46)) -> 0.2834132508 | F8: =IF(ISERROR(F47/F46),0,(F47/F46)) -> 0.2592261066 | G8: =IF(ISERROR(G47/G46),0,(G47/G46)) -> 0.2977197074 | H8: =IF(ISERROR(H47/H46),0,(H47/H46)) -> 0.2625860062
A9: Safety of Capital
A10: Debt to Equity | B10: Loans, Accounts Payable, Overdraft & Tax Provision/ Funds & Reserves | D10: =IF(ISERROR(D48/D49),0,(D48/D49)) -> 0.6557187381 | E10: =IF(ISERROR(E48/E49),0,(E48/E49)) -> 0.2673307552 | F10: =IF(ISERROR(F48/F49),0,(F48/F49)) -> 0.2477131421 | G10: =IF(ISERROR(G48/G49),0,(G48/G49)) -> 0.4882198937 | H10: =IF(ISERROR(H48/H49),0,(H48/H49)) -> 0.2477131421
A11: Gearing | B11: Long Term Borrowing/ Funds & Reserves | D11: =IF(ISERROR(D51/D50),0,(D51/D50)) -> 0.9613504144 | E11: =IF(ISERROR(E51/E50),0,(E51/E50)) -> 0 | F11: =IF(ISERROR(F51/F50),0,(F51/F50)) -> 7.966188936 | G11: =IF(ISERROR(G51/G50),0,(G51/G50)) -> 0 | H11: =IF(ISERROR(H51/H50),0,(H51/H50)) -> 7.966188936
A12: Liquidity
A13: Current Ratio | B13: Current assets/current liabilities | C13: 1 | D13: =IF(ISERROR(D52/D53),0,(D52/D53)) -> 0.5296454087 | E13: =IF(ISERROR(E52/E53),0,(E52/E53)) -> 1.734128399 | F13: =IF(ISERROR(F52/F53),0,(F52/F53)) -> 2.303573489 | G13: =IF(ISERROR(G52/G53),0,(G52/G53)) -> 1.041168991 | H13: =IF(ISERROR(H52/H53),0,(H52/H53)) -> 2.303573489
A14: Liquidity Ratio | B14: Monetary Assets/Current Liabilities | D14: =IF(ISERROR(D54/D53),0,(D54/D53)) -> 0.1274097242 | E14: =IF(ISERROR(E54/E53),0,(E54/E53)) -> 0.08925963678 | F14: =IF(ISERROR(F54/F53),0,(F54/F53)) -> 0.198277865 | G14: =IF(ISERROR(G54/G53),0,(G54/G53)) -> -0.0001426410849 | H14: =IF(ISERROR(H54/H53),0,(H54/H53)) -> 0.198277865
A15: Revenue Management
A16: Annual Debtors Collection Rate (Payment Level %) | B16: Last 12 Mths Receipts/ Last 12 Mths Billing
A17: Outstanding Debtors to Revenue | B17: Total Outstanding Debtors to Annual Revenue | D17: =IF(ISERROR(D59/D55),0,(D59/D55)) -> 0.1601618032 | E17: =IF(ISERROR(E59/E55),0,(E59/E55)) -> 0.3860229173 | F17: =IF(ISERROR(F59/F55),0,(F59/F55)) -> 0.3857398316 | G17: =IF(ISERROR(G59/G55),0,(G59/G55)) -> 0.3997805687 | H17: =IF(ISERROR(H59/H55),0,(H59/H55)) -> 0.3857398316
A18: Longstanding Debtors Recovered | B18: Debtors > 12 Mths Recovered/Total Debtors > 12 Months Old | D18: =IF(ISERROR(D64/D63),0,(D64/D63)) -> 0 | E18: =IF(ISERROR(E64/E63),0,(E64/E63)) -> 0 | F18: =IF(ISERROR(F64/F63),0,(F64/F63)) -> 0 | G18: =IF(ISERROR(G64/G63),0,(G64/G63)) -> 0 | H18: =IF(ISERROR(H64/H63),0,(H64/H63)) -> 0
A19: Creditors Management
A20: Creditors System Efficiency | B20: % of Creditors Paid Within Terms (within MFMA s 65(e))
A21: Funding of Provisions
A22: Percentage Of Provisions Not Funded | B22: Unfunded Provisions/Total Provisions
A23: Other Indicators
A24: Electricity Distribution Losses | B24: % Volume (units purchased and generated less units sold)/units purchased and generated | C24: 2
A25: Water Distribution Losses | B25: % Volume (units purchased and own source less units sold)/Total units purchased and own source | C25: 2
A26: Employee costs | B26: Employee costs/Total Revenue - capital revenue | D26: =IF(ISERROR(D40/D55),0,(D40/D55)) -> 0.2456344949 | E26: =IF(ISERROR(E40/E55),0,(E40/E55)) -> 0.2075589381 | F26: =IF(ISERROR(F40/F55),0,(F40/F55)) -> 0.1991377808 | G26: =IF(ISERROR(G40/G55),0,(G40/G55)) -> 0.2122313199 | H26: =IF(ISERROR(H40/H55),0,(H40/H55)) -> 0.1991377808
A27: Repairs & Maintenance | B27: R&M/Total Revenue - capital revenue | D27: =IF(ISERROR(D41/D55),0,(D41/D55)) -> 0.06489146166 | E27: =IF(ISERROR(E41/E55),0,(E41/E55)) -> 0.05817737771 | F27: =IF(ISERROR(F41/F55),0,(F41/F55)) -> 0.04517778004 | G27: =IF(ISERROR(G41/G55),0,(G41/G55)) -> 0.05432390532 | H27: =IF(ISERROR(H41/H55),0,(H41/H55)) -> 0.04517778004
A28: Interest & Depreciation | B28: I&D/Total Revenue - capital revenue | D28: =IF(ISERROR((D42+D44)/D55),0,((D42+D44)/D55)) -> 0.06801892323 | E28: =IF(ISERROR((E42+E44)/E55),0,((E42+E44)/E55)) -> 0.04527778414 | F28: =IF(ISERROR((F42+F44)/F55),0,((F42+F44)/F55)) -> 0.04468716413 | G28: =IF(ISERROR((G42+G44)/G55),0,((G42+G44)/G55)) -> 0.002733216714 | H28: =IF(ISERROR((H42+H44)/H55),0,((H42+H44)/H55)) -> 0.01162555034
A29: IDP regulation financial viability indicators
A30: i. Debt coverage | B30: (Total Operating Revenue - Operating Grants)/Debt service payments due within financial year)
A31: ii. O/S Service Debtors to Revenue | B31: Total outstanding service debtors/annual revenue received for services
A32: iii. Cost coverage | B32: (Available cash + Investments)/monthly fixed operational expenditure
A33: References
A34: 1. Consumer debtors > 12 months old are excluded from current assets.
A35: 2. Material variances to be explained.
A37: Calculations
A38: ='C6-FinPos'!A40 -> Financial liabilities | D38: ='C6-FinPos'!C40 -> 116274950 | E38: ='C6-FinPos'!D40 -> 559919194.3 | F38: ='C6-FinPos'!E40 -> 559919194.3 | G38: ='C6-FinPos'!F40 -> 0 | H38: ='C6-FinPos'!G40 -> 559919194.3
A39: Total Assets | D39: ='C6-FinPos'!C27 -> 10645341639 | E39: ='C6-FinPos'!D27 -> 14241528193 | F39: ='C6-FinPos'!E27 -> 1.448214753e+10 | G39: ='C6-FinPos'!F27 -> 1.18324432e+10 | H39: ='C6-FinPos'!G27 -> 1.448214753e+10
A40: ='[2]C4-FinPerf RE'!A35 -> Employee related costs | D40: ='C4-FinPerf RE'!C35 -> 1612918315 | E40: ='C4-FinPerf RE'!D35 -> 1860538235 | F40: ='C4-FinPerf RE'!E35 -> 1786363095 | G40: ='C4-FinPerf RE'!G35 -> 1610413655 | H40: ='C4-FinPerf RE'!K35 -> 1786363095
A41: =A27 -> Repairs & Maintenance | D41: =+SC13c!C173 -> 426099058.5 | E41: =+SC13c!D173 -> 521496383.6 | F41: =+SC13c!E173 -> 405266738.6 | G41: =+SC13c!G173 -> 412210407.8 | H41: =+SC13c!K173 -> 405266738.6
A42: Interest (finance charges) | D42: ='C4-FinPerf RE'!C41 -> 84787241 | E42: ='C4-FinPerf RE'!D41 -> 42824930.71 | F42: ='C4-FinPerf RE'!E41 -> 37824930 | G42: ='C4-FinPerf RE'!G41 -> 59315662.13 | H42: ='C4-FinPerf RE'!K41 -> 37824930
A43: Principal paid | D43: =-'C7-CFlow'!C36 -> 74270250 | E43: =-'C7-CFlow'!D36 -> 90000000 | F43: =-'C7-CFlow'!E36 -> 50000000 | G43: =-'C7-CFlow'!G36 -> 0 | H43: =-'C7-CFlow'!K36 -> 50000000
A44: Depreciation | D44: ='C4-FinPerf RE'!C40 -> 361847777 | E44: ='C4-FinPerf RE'!D40 -> 363040744.5 | F44: ='C4-FinPerf RE'!E40 -> 363040744.5 | G44: ='C4-FinPerf RE'!F40 -> -38575982.8 | H44: ='C4-FinPerf RE'!K36 -> 66461931.11
A45: Operating expenditure | D45: ='C4-FinPerf RE'!C48 -> 8100773433 | E45: ='C4-FinPerf RE'!D48 -> 8380269902 | F45: ='C4-FinPerf RE'!E48 -> 7870439702 | G45: ='C4-FinPerf RE'!G48 -> 7161927625 | H45: ='C4-FinPerf RE'!K48 -> 7870439702
A46: ='C5-Capex'!A40 -> Total Capital Expenditure | D46: ='C5-Capex'!C63 -> 726309725.8 | E46: ='C5-Capex'!D63 -> 826763940.4 | F46: ='C5-Capex'!E63 -> 797048795.3 | G46: ='C5-Capex'!F63 -> 283794016.1 | H46: ='C5-Capex'!G63 -> 786850217.1
A47: Borrowed funding for capital | D47: ='C5-Capex'!C72 -> 72309925.81 | E47: ='C5-Capex'!D72 -> 234315856 | F47: ='C5-Capex'!E72 -> 206615856 | G47: ='C5-Capex'!G72 -> 84491071.45 | H47: ='C5-Capex'!K72 -> 206615856
A48: Debt | D48: ='C6-FinPos'!C30+'C6-FinPos'!C31+'C6-FinPos'!C33+'C6-FinPos'!C34+'C6-FinPos'!C40+'C6-FinPos'!C43 -> 3972906309 | E48: ='C6-FinPos'!D30+'C6-FinPos'!D31+'C6-FinPos'!D33+'C6-FinPos'!D34+'C6-FinPos'!D40+'C6-FinPos'!D43 -> 2845836302 | F48: ='C6-FinPos'!E30+'C6-FinPos'!E31+'C6-FinPos'!E33+'C6-FinPos'!E34+'C6-FinPos'!E40+'C6-FinPos'!E43 -> 2816872140 | G48: ='C6-FinPos'!F30+'C6-FinPos'!F31+'C6-FinPos'!F33+'C6-FinPos'!F34+'C6-FinPos'!F40+'C6-FinPos'!F43 -> 3705749875 | H48: ='C6-FinPos'!G30+'C6-FinPos'!G31+'C6-FinPos'!G33+'C6-FinPos'!G34+'C6-FinPos'!G40+'C6-FinPos'!G43 -> 2816872140
A49: Equity | D49: ='C6-FinPos'!C51 -> 6058857370 | E49: ='C6-FinPos'!D51 -> 1.064537561e+10 | F49: ='C6-FinPos'!E51 -> 1.137150866e+10 | G49: ='C6-FinPos'!F51 -> 7590329527 | H49: ='C6-FinPos'!G51 -> 1.137150866e+10
A50: ='C6-FinPos'!A49 -> Reserves and funds | D50: ='C6-FinPos'!C50 -> 120949602 | E50: ='C6-FinPos'!D50 -> 0 | F50: ='C6-FinPos'!E50 -> 70286958.9 | G50: ='C6-FinPos'!F50 -> 0 | H50: ='C6-FinPos'!G50 -> 70286958.9
A51: Borrowing | D51: ='C6-FinPos'!C40 -> 116274950 | E51: ='C6-FinPos'!D40 -> 559919194.3 | F51: ='C6-FinPos'!E40 -> 559919194.3 | G51: ='C6-FinPos'!F40 -> 0 | H51: ='C6-FinPos'!G40 -> 559919194.3
A52: ='C6-FinPos'!A6 -> Current assets | D52: ='C6-FinPos'!C14 -> 2040911374 | E52: ='C6-FinPos'!D14 -> 4114508456 | F52: ='C6-FinPos'!E14 -> 4347195274 | G52: ='C6-FinPos'!F14 -> 3537948682 | H52: ='C6-FinPos'!G14 -> 4347195274
A53: ='C6-FinPos'!A29 -> Current liabilities | D53: ='C6-FinPos'!C38 -> 3853354226 | E53: ='C6-FinPos'!D38 -> 2372666556 | F53: ='C6-FinPos'!E38 -> 1887152850 | G53: ='C6-FinPos'!F38 -> 3398054217 | H53: ='C6-FinPos'!G38 -> 1887152850
A54: Monetary assets | D54: ='C6-FinPos'!C7 -> 490954799 | E54: ='C6-FinPos'!D7 -> 211783355 | F54: ='C6-FinPos'!E7 -> 374180638 | G54: ='C6-FinPos'!F7 -> -484702.14 | H54: ='C6-FinPos'!G7 -> 374180638
A55: ='[2]C4-FinPerf RE'!A33 -> Total Revenue (excluding capital transfers and contributions) | D55: ='C4-FinPerf RE'!C33 -> 6566334731 | E55: ='C4-FinPerf RE'!D33 -> 8963903223 | F55: ='C4-FinPerf RE'!E33 -> 8970488108 | G55: ='C4-FinPerf RE'!G33 -> 7588011307 | H55: ='C4-FinPerf RE'!K33 -> 8970488108
A56: ='[2]C4-FinPerf RE'!A26 -> Transfers and subsidies - Operational | D56: ='C4-FinPerf RE'!C26 -> 824535909 | E56: ='C4-FinPerf RE'!D28 -> 0 | F56: ='C4-FinPerf RE'!E28 -> 0 | G56: ='C4-FinPerf RE'!G28 -> 0 | H56: ='C4-FinPerf RE'!K28 -> 0
A57: ='[2]C4-FinPerf RE'!A50 -> Transfers and subsidies - capital (monetary allocations) | D57: ='C4-FinPerf RE'!C50 -> 428104994 | E57: ='C4-FinPerf RE'!D50 -> 456974891 | F57: ='C4-FinPerf RE'!E50 -> 477925972.5 | G57: ='C4-FinPerf RE'!G50 -> 394230584.2 | H57: ='C4-FinPerf RE'!K50 -> 477925972.5
A58: Debt service payments | D58: ='C7-CFlow'!C12+'C7-CFlow'!C36 -> -9972807 | E58: ='C7-CFlow'!D12+'C7-CFlow'!D36 -> -70864853.2 | F58: ='C7-CFlow'!E12+'C7-CFlow'!E36 -> -30864853.2 | G58: ='C7-CFlow'!F12+'C7-CFlow'!F36 -> 0 | H58: ='C7-CFlow'!G12+'C7-CFlow'!G36 -> 0
A59: Outstanding debtors (receivables) | D59: ='C6-FinPos'!C8+'C6-FinPos'!C9+'C6-FinPos'!C10+'C6-FinPos'!C13+'C6-FinPos'!C23+'C6-FinPos'!C24 -> 1051676011 | E59: ='C6-FinPos'!D8+'C6-FinPos'!D9+'C6-FinPos'!D10+'C6-FinPos'!D13+'C6-FinPos'!D23+'C6-FinPos'!D24 -> 3460272073 | F59: ='C6-FinPos'!E8+'C6-FinPos'!E9+'C6-FinPos'!E10+'C6-FinPos'!E13+'C6-FinPos'!E23+'C6-FinPos'!E24 -> 3460274572 | G59: ='C6-FinPos'!F8+'C6-FinPos'!F9+'C6-FinPos'!F10+'C6-FinPos'!F13+'C6-FinPos'!F23+'C6-FinPos'!F24 -> 3033539476 | H59: ='C6-FinPos'!G8+'C6-FinPos'!G9+'C6-FinPos'!G10+'C6-FinPos'!G13+'C6-FinPos'!G23+'C6-FinPos'!G24 -> 3460274572
A60: Annual services revenue | D60: ='C4-FinPerf RE'!C7+'C4-FinPerf RE'!C8+'C4-FinPerf RE'!C9+'C4-FinPerf RE'!C10+'C4-FinPerf RE'!C22 -> 5055187183 | E60: ='C4-FinPerf RE'!D7+'C4-FinPerf RE'!D8+'C4-FinPerf RE'!D9+'C4-FinPerf RE'!D10+'C4-FinPerf RE'!D22 -> 7333053305 | F60: ='C4-FinPerf RE'!E7+'C4-FinPerf RE'!E8+'C4-FinPerf RE'!E9+'C4-FinPerf RE'!E10+'C4-FinPerf RE'!E22 -> 7259586151 | G60: ='C4-FinPerf RE'!F7+'C4-FinPerf RE'!F8+'C4-FinPerf RE'!F9+'C4-FinPerf RE'!F10+'C4-FinPerf RE'!F22 -> 569979969.5 | H60: ='C4-FinPerf RE'!G7+'C4-FinPerf RE'!G8+'C4-FinPerf RE'!G9+'C4-FinPerf RE'!G10+'C4-FinPerf RE'!G22 -> 5976476212
A61: Cash + investments | B61: Including LT investments | D61: ='C6-FinPos'!C7+'C6-FinPos'!C16-'C6-FinPos'!C30 -> 490954799 | E61: ='C6-FinPos'!D7+'C6-FinPos'!D16-'C6-FinPos'!D30 -> 211783355 | F61: ='C6-FinPos'!E7+'C6-FinPos'!E16-'C6-FinPos'!E30 -> 374180638 | G61: ='C6-FinPos'!F7+'C6-FinPos'!F16-'C6-FinPos'!F30 -> -484702.14 | H61: ='C6-FinPos'!G7+'C6-FinPos'!G16-'C6-FinPos'!G30 -> 374180638
A62: Fixed operational expend. (monthly)
A63: Longstanding debtors outstanding | D63: ='C6-FinPos'!C23+'C6-FinPos'!C24 -> 0 | E63: ='C6-FinPos'!D23+'C6-FinPos'!D24 -> 0 | F63: ='C6-FinPos'!E23+'C6-FinPos'!E24 -> 0 | G63: ='C6-FinPos'!F23+'C6-FinPos'!F24 -> 0 | H63: ='C6-FinPos'!G23+'C6-FinPos'!G24 -> 0
A64: Longstanding debtors recovered
A65: Attorney collections

Sheet SC3
A1: =muni& " - "&S71I& " - "&Head57 -> KZN225 Msunduzi - Supporting Table SC3 Monthly Budget Statement - aged debtors - Q4 Fourth Quarter
A2: =desc -> Description | C2: =Head2 -> Budget Year 2024/25
A3: R thousands | B3: NT Code | C3: 0-30 Days | D3: 31-60 Days | E3: 61-90 Days | F3: 91-120 Days | G3: 121-150 Dys | H3: 151-180 Dys | I3: 181 Dys-1 Yr | J3: Over 1Yr | K3: Total | L3: Total over 90 days | M3: Actual Bad Debts Written Off against Debtors | N3: Impairment - Bad Debts i.t.o Council Policy
A4: Debtors Age Analysis By Income Source
A5: Trade and Other Receivables from Exchange Transactions - Water | B5: 1200 | C5: 155326541.7 | D5: 47872673.01 | E5: 48922429.55 | F5: 49585142.08 | G5: 49046509.5 | H5: 44405856.84 | I5: 292564896.5 | J5: 2664075659 | K5: =SUM(C5:J5) -> 3351799708 | L5: =SUM(F5:J5) -> 3099678064 | N5: 2216355520
A6: Trade and Other Receivables from Exchange Transactions - Electricity | B6: 1300 | C6: 397667452.2 | D6: 13272522.61 | E6: 12683203.76 | F6: 2173627.94 | G6: 18664819.25 | H6: 12772101.07 | I6: 85708761.88 | J6: 350155847.6 | K6: =SUM(C6:J6) -> 893098336.3 | L6: =SUM(F6:J6) -> 469475157.7 | N6: 187152939.1
A7: Receivables from Non-exchange Transactions - Property Rates | B7: 1400 | C7: 169616980.3 | D7: 31300712.61 | E7: 31195045.06 | F7: 26304066.25 | G7: 26636352.72 | H7: 25818174.35 | I7: 148472400 | J7: 989288728.3 | K7: =SUM(C7:J7) -> 1448632460 | L7: 1216519722 | N7: 786785611.1
A8: Receivables from Exchange Transactions - Waste Water Management | B8: 1500 | C8: 32409763.45 | D8: 7410468.84 | E8: 7409318.37 | F8: 7208468.9 | G8: 6995514.81 | H8: 6864945.47 | I8: 40267755.22 | J8: 380734887.4 | K8: 489301122.5 | L8: 442071571.8 | N8: 311100737.7
A9: Receivables from Exchange Transactions - Waste Management | B9: 1600 | C9: 18518487.59 | D9: 4679981.71 | E9: 4568964.24 | F9: 4814720.79 | G9: 4404915.47 | H9: 4164164.4 | I9: 24950525.61 | J9: 202842825.9 | K9: 268944585.7 | L9: =SUM(F9:J9) -> 241177152.2 | N9: 168920898.1
A10: Receivables from Exchange Transactions - Property Rental Debtors | B10: 1700 | C10: 3796055.78 | D10: 1020120.03 | E10: 1115860.48 | F10: 911217.12 | G10: 989117.96 | H10: 885529.57 | I10: 4965729.37 | J10: 56716726.92 | K10: 70400357.23 | L10: =SUM(F10:J10) -> 64468320.94 | N10: 48865344.08
A11: Interest on Arrear Debtor Accounts | B11: 1810 | C11: 110961893.9 | D11: 40802454.73 | E11: 43681365.86 | F11: 48212107.39 | G11: 44836545.89 | H11: 42852889.7 | I11: 258636582.8 | J11: 1402576846 | K11: 1992560686 | L11: 1797114972 | N11: 1015315448
A12: Recoverable unauthorised, irregular, fruitless and wasteful expenditure | B12: 1820 | K12: 0 | L12: 0
A13: Other | B13: 1900 | C13: 621460.91 | D13: 130100.23 | E13: 222645.71 | F13: 283335.23 | G13: 116289.32 | H13: 118200.36 | I13: 706822.68 | J13: 161093138.8 | K13: 163291993.2 | L13: =SUM(F13:J13) -> 162317786.4 | N13: 159800491.9
A14: Total By Income Source | B14: 2000 | C14: =SUM(C5:C13) -> 888918635.8 | D14: 146489033.8 | E14: 149798833 | F14: 139492685.7 | G14: 151690064.9 | H14: 137881861.8 | I14: 856273474.1 | J14: 6207484660 | K14: 8678029249 | L14: =SUM(L5:L13) -> 7492822746 | M14: 0 | N14: 4894296990
A15: =Head1&" - totals only" -> 2023/24 - totals only | C15: 924116749.9 | D15: 15229388.36 | E15: 125190345.9 | F15: 131782858 | G15: 129736850.2 | H15: 126185670.3 | I15: 706423442 | J15: 5101422853 | K15: =SUM(C15:J15) -> 7260088158 | L15: =SUM(F15:J15) -> 6195551673 | N15: 3934571285
A16: Debtors Age Analysis By Customer Group
A17: Organs of State | B17: 2200 | C17: 97597129.8 | D17: 7124268.03 | E17: 7781341.64 | F17: 5682724.99 | G17: 4815632.78 | H17: 4988911.53 | I17: 26637881.08 | J17: 99816728.52 | K17: =SUM(C17:J17) -> 254444618.4 | L17: =SUM(F17:J17) -> 141941878.9 | N17: 75988553.8
A18: Commercial | B18: 2300 | C18: 393388192.2 | D18: 27630651.76 | E18: 29282117.52 | F18: 12588590.95 | G18: 28056524.05 | H18: 24000735.23 | I18: 153999467.2 | J18: 818430112.6 | K18: =SUM(C18:J18) -> 1487376392 | L18: =SUM(F18:J18) -> 1037075430 | N18: 585189838.5
A19: Households | B19: 2400 | C19: 397933313.8 | D19: 111734114 | E19: 112735373.9 | F19: 121221369.8 | G19: 118817908.1 | H19: 108892215 | I19: 675636125.8 | J19: 5289237819 | K19: =SUM(C19:J19) -> 6936208239 | L19: =SUM(F19:J19) -> 6313805437 | N19: 4233118598
A20: Other | B20: 2500 | K20: =SUM(C20:J20) -> 0 | L20: =SUM(F20:J20) -> 0
A21: Total By Customer Group | B21: 2600 | C21: =SUM(C17:C20) -> 888918635.8 | D21: 146489033.8 | E21: 149798833 | F21: 139492685.7 | G21: 151690064.9 | H21: 137881861.8 | I21: 856273474.1 | J21: =SUM(J17:J20) -> 6207484660 | K21: =SUM(K17:K20) -> 8678029249 | L21: =SUM(L17:L20) -> 7492822746 | M21: =SUM(M17:M20) -> 0 | N21: =SUM(N17:N20) -> 4894296990
A22: Notes
A23: Material increases in value of debtors' categories compared to previous month to be explained
A24: Bad debts = amounts actually written off in the month
A25: Total by Income Source must reconcile with Total by Customer Group
C26: =C14-C21 -> 0 | D26: =D14-D21 -> 0 | E26: =E14-E21 -> 0 | F26: 0 | G26: 0 | H26: 0 | I26: 0 | J26: =J14-J21 -> 0 | K26: 0
C27: =IF(C26=0,"","MUST AGREE") ->  | D27: =IF(D26=0,"","MUST AGREE") -> 

Sheet SC4
A1: =muni& " - "&S71J& " - "&Head57 -> KZN225 Msunduzi - Supporting Table SC4 Monthly Budget Statement - aged creditors - Q4 Fourth Quarter
A2: =desc -> Description | B2: NT Code | C2: =Head2 -> Budget Year 2024/25 | L2: Prior year totals for chart (same period)
C3: 0 - 30 Days | D3: 31 - 60 Days | E3: 61 - 90 Days | F3: 91 - 120 Days | G3: 121 - 150 Days | H3: 151 - 180 Days | I3: 181 Days - 1 Year | J3: Over 1 Year | K3: Total
A4: R thousands
A5: Creditors Age Analysis By Customer Type
A6: Bulk Electricity | B6: 0100 | C6: 526948178.9 | D6: 150894554.4 | E6: 156603658.5 | F6: 227469032.1 | G6: 875562356.2 | K6: =SUM(C6:J6) -> 1937477780 | L6: 1460231042
A7: Bulk Water | B7: 0200 | C7: 100395326 | D7: 110735319.1 | E7: -25574849.02 | F7: 2292596.93 | G7: 953553977.2 | K7: =SUM(C7:J7) -> 1141402370 | L7: 661806324.5
A8: PAYE deductions | B8: 0300 | K8: 0 | L8: 0
A9: VAT (output less input) | B9: 0400 | K9: 0 | L9: 0
A10: Pensions / Retirement deductions | B10: 0500 | K10: 0 | L10: 0
A11: Loan repayments | B11: 0600 | K11: 0 | L11: 0
A12: Trade Creditors | B12: 0700 | K12: 0 | L12: 0
A13: Auditor General | B13: 0800 | C13: -23908 | D13: 2500 | E13: 2500 | F13: 2500 | G13: 16408 | K13: 0 | L13: 738843.96
A14: Other | B14: 0900 | C14: 153289771.2 | D14: 22667745.1 | E14: 18523236.82 | F14: 13264061.4 | G14: 61790169.92 | K14: =SUM(C14:J14) -> 269534984.5 | L14: 393383850.6
A15: Medical Aid deductions | K15: =SUM(C15:J15) -> 0
A16: Total By Customer Type | B16: 1000 | C16: =SUM(C6:C15) -> 780609368.1 | D16: =SUM(D6:D15) -> 284300118.6 | E16: 149554546.3 | F16: 243028190.5 | G16: 1890922911 | H16: 0 | I16: 0 | J16: 0 | K16: 3348415135 | L16: 2516160061
A17: Notes
A18: Material increases in value of creditors' categories compared to previous month to be explained

Sheet SC5
A1: =muni& " - "&S71K& " - "&Head57 -> KZN225 Msunduzi - Supporting Table SC5 Monthly Budget Statement - investment portfolio - Q4 Fourth Quarter
A2: Investments by maturity Name of institution & investment ID | B2: Ref | C2: Period of Investment | D2: Type of Investment | E2: Capital Guarantee (Yes/ No) | F2: Variable or Fixed interest rate | G2: Interest Rate ᶟ | H2: Commission Paid (Rands) | I2: Commission Recipient | J2: Expiry date of investment | K2: Opening balance | L2: Interest to be realised | M2: Partial / Premature Withdrawal (4) | N2: Investment Top Up | O2: Closing Balance
A3: R thousands | C3: Yrs/Months
A4: Municipality
A5: Municipal Infrastructure Grant | K5: 109129867.7 | M5: -57363601.47 | O5: =SUM(K5:N5) -> 51766266.25
A6: Unspent Conditional Grant | K6: 138463694.9 | L6: 114994.05 | M6: -64159590.2 | N6: 38296773.8 | O6: =SUM(K6:N6) -> 112715872.6
A7: Housing Accreditation | K7: 12713801.19 | L7: 3351.88 | M7: -2454651 | N7: 67272.22 | O7: 10329774.29
A8: Municipal Housing Account | K8: 140154694 | L8: 8668.03 | M8: -867499 | N8: 815865.77 | O8: 140111728.8
A9: Housing Projects: Principal-Agent | K9: 9670435.76 | L9: 21153.75 | O9: 9691589.51
A10: Compensation Fund (COID)1131010020 | K10: 953175.43 | L10: 5562.36 | O10: 958737.79
A11: Compensation Fund (COID) | K11: 24093935 | O11: 24093935
A12: Airport Development Fund | K12: 30477.85 | L12: 177.85 | O12: 30655.7
A13: Insurance Fund | K13: 8431061.08 | L13: 49200.43 | O13: 8480261.51
A14: Vat Recovery on Prov. Grants | K14: 1098922.25 | L14: 6412.89 | O14: 1105335.14
A15: Vat Refunds | K15: 7214679.67 | L15: 42102.11 | O15: 7256781.78
A16: Call - General Reserves | K16: 42800000 | M16: -4000000 | N16: 10000000 | O16: 48800000
A17: 7 Day Notice - General Reserves | K17: 53750.1 | L17: 307.04 | O17: 54057.14
A18: 1 Day Notice - General Reserves | K18: 129928.61 | L18: 827.63 | O18: 130756.24
A19: Call Account-Loan | K19: 197402718 | L19: 1265540.71 | O19: 198668258.7
K20: 0 | O20: 0
A21: Standard | K21: 1777521.74 | L21: 10628.61 | N21: 543820 | O21: 2331970.35
O22: 0
O23: 0
A24: Municipality sub-total | K24: =SUM(K5:K23) -> 694118663.3 | L24: =SUM(L5:L23) -> 1528927.34 | M24: =SUM(M5:M23) -> -128845341.7 | N24: =SUM(N5:N23) -> 49723731.79 | O24: =SUM(O5:O23) -> 616525980.8
A26: Entities
O27: =SUM(K27:N27) -> 0
O28: 0
O29: 0
O30: 0
O31: 0
O32: 0
O33: 0
A34: Entities sub-total | K34: =SUM(K27:K33) -> 0 | L34: =SUM(L27:L33) -> 0 | M34: =SUM(M27:M33) -> 0 | N34: =SUM(N27:N33) -> 0 | O34: =SUM(O27:O33) -> 0
A36: TOTAL INVESTMENTS AND INTEREST | B36: 2 | K36: =K24+K34 -> 694118663.3 | L36: =L24+L34 -> 1528927.34 | M36: =M24+M34 -> -128845341.7 | N36: =N24+N34 -> 49723731.79 | O36: =O24+O34 -> 616525980.8
A37: =head27a -> References
A38: 2. List investments in expiry date order
A39: 3. If 'variable' is selected in column F, input interest rate range
A40: 4. Withdrawals to be entered as negative

Sheet SC6
A1: =muni& " - "&S71L& " - "&Head57 -> KZN225 Msunduzi - Supporting Table SC6 Monthly Budget Statement - transfers and grant receipts - Q4 Fourth Quarter
A2: =desc -> Description | B2: =head27 -> Ref | C2: =Head1 -> 2023/24 | D2: =Head2 -> Budget Year 2024/25
C3: =Head5 -> Audited Outcome | D3: =Head6 -> Original Budget | E3: =Head7 -> Adjusted Budget | F3: =Head38 -> Monthly actual | G3: =Head39 -> YearTD actual | H3: =Head40 -> YearTD budget | I3: =Head41 -> YTD variance | J3: =Head41 -> YTD variance | K3: =Head8 -> Full Year Forecast
A4: R thousands | J4: %
A5: RECEIPTS: | B5: 1,2
A7: Operating Transfers and Grants
A8: National Government: | C8: =SUM(C9:C29) -> 795277217.8 | D8: 895184080 | E8: 953643716 | F8: 38296773.8 | G8: 940946479.8 | H8: 953643716 | I8: -12697236.2 | J8: =IF(I8=0,"",I8/H8) -> -0.01331444436 | K8: =SUM(K9:K29) -> 953643716
A9: Local Government Equitable Share | C9: 767222000 | D9: 822072000 | E9: 822072000 | G9: 822072000 | H9: =E9/12*12 -> 822072000 | I9: =G9-H9 -> 0 | K9: =E9 -> 822072000
A10: Finance Management | C10: 1807398.14 | D10: 1900000 | E10: 1900000 | G10: 1900000 | H10: =E10/12*12 -> 1900000 | I10: =G10-H10 -> 0 | J10: =IF(I10=0,"",I10/H10) ->  | K10: 1900000
A11: Municipal Systems Improvement Operating | C11: 0 | D11: 0 | E11: 0 | H11: 0 | I11: 0 | K11: 0
A12: EPWP Incentive | C12: 4700996.67 | D12: 2092000 | E12: 2092000 | G12: 2092000 | H12: 2092000 | I12: 0 | K12: 2092000
A13: Municipal Water Infrastructure Grant | C13: 13948235 | D13: 30000000 | E13: 60000000 | G13: 38500000 | H13: 60000000 | I13: -21500000 | J13: -0.3583333333 | K13: 60000000
A14: Public Transport Infrastracture | C14: 0 | D14: 30000000 | E14: 30000000 | G14: 30000000 | H14: 30000000 | I14: 0 | K14: 30000000
A15: Energy Efficiency and Demand Management | C15: 0 | E15: 700000 | G15: 50000 | H15: 700000 | I15: -650000 | J15: -0.9285714286 | K15: 700000
A16: Regional Bulk Infrastructure Grant | C16: 0 | E16: 28802256 | F16: 38296773.8 | G16: 38296773.8 | H16: 28802256 | I16: =G16-H16 -> 9494517.8 | J16: =IF(I16=0,"",I16/H16) -> 0.3296449348 | K16: 28802256
A17: Operating costs-MIG | C17: 7598588 | D17: 9120080 | E17: 8077460 | G17: 8035706 | H17: 8077460 | I17: -41754 | J17: -0.005169199228 | K17: 8077460
I18: 0
I19: 0
I20: =G20-H20 -> 0 | J20: =IF(I20=0,"",I20/H20) -> 
I21: 0
I22: 0
I23: 0
B24: 3 | I24: 0
I25: 0
I26: 0
I27: 0
I28: 0
A29: Other transfers and grants [insert description] | I29: 0
A30: Provincial Government: | C30: =SUM(C31:C61) -> 29258690.9 | D30: 61695859.29 | E30: 55108019.55 | F30: 4722671.74 | G30: 59691978.75 | H30: 55108019.55 | I30: 4583959.2 | J30: 0.08318134525 | K30: =SUM(K31:K61) -> 55108019.55
A31: PMB Airport- OPERATING | C31: 0 | E31: 919281 | G31: 500000 | H31: =E31/12*12 -> 919281 | I31: =G31-H31 -> -419281 | J31: -0.4560966669 | K31: =E31 -> 919281
A32: Expanded Public Works Grant | C32: 0 | I32: =G32-H32 -> 0 | J32: =IF(I32=0,"",I32/H32) -> 
A33: Human Settlements - Housing Development | C33: 0 | I33: 0
A34: Airport Grant | C34: 0 | I34: 0
A35: Housing Accreditation-OPERATING | C35: 6417979.74 | D35: 8000000 | E35: 9343000 | F35: 4722671.74 | G35: 12440244.07 | H35: =E35/12*12 -> 9343000 | I35: 3097244.07 | J35: 0.3315042353 | K35: =E35 -> 9343000
A36: Human Settlements - Accredited Municipal RO | C36: 0 | D36: 0 | H36: 0 | I36: 0
A37: Housing Projects -OPERATING | C37: 1181354 | D37: 38535953.82 | E37: 27999165 | H37: 27999165 | I37: -27999165 | J37: -1 | K37: =E37 -> 27999165
A38: Arts and Culture- Community Library Services | C38: 0 | D38: 14659905.47 | E38: 14693000.47 | H38: 14693000.47 | I38: -14693000.47 | J38: -1 | K38: 14693000.47
A39: Community Library Service and Provincialsation Library-OPERATING | C39: 14820971.71 | I39: =G39-H39 -> 0 | J39: =IF(I39=0,"",I39/H39) -> 
A40: Arts and Culture-Museum Subsidies | E40: 0 | G40: 14693000 | I40: 14693000
A41: Tatham Art Gallery-OPERATING | C41: 204595.07 | E41: 296000 | H41: =E41/12*12 -> 296000 | I41: -296000 | J41: -1 | K41: =E41 -> 296000
A42: Greater Edendale Development Iniatative-OPERATING | C42: 2081077.58 | D42: 500000 | E42: 342747 | G42: 431000 | H42: 342747 | I42: 88253 | J42: 0.2574873011 | K42: 342747
A43: Operation Dlulisumlando-OPERATING | C43: 0 | H43: 0 | I43: 0
A44: SETA- Bursaries for Non Employees- OPERATING | C44: 1662711.78 | E44: 2200320 | G44: 2825478.49 | H44: 2200320 | I44: 625158.49 | J44: 0.2841216232 | K44: =E44 -> 2200320
A45: Arts and Culture-Museum Subsidies - Tatham Art Gallery | C45: 0 | I45: 0
A46: Municipal Employment Initiative - OPERATING | C46: 2890001.02 | E46: 0 | I46: 0
A47: Regional Bulk Infrastructure Grant/BFI- OPERATING | E47: 0 | H47: =E47/12*10 -> 0 | I47: =G47-H47 -> 0 | J47: =IF(I47=0,"",I47/H47) -> 
A48: COGTA | E48: -685493.9194 | G48: 28802256.19 | H48: =E48/12*12 -> -685493.9194 | I48: 29487750.11 | J48: -43.01679311 | K48: =E48 -> -685493.9194
I49: =G49-H49 -> 0
I50: 0
I51: 0
I52: 0
I53: 0
I54: 0
I55: 0
I56: 0
I57: 0 | J57: =IF(I57=0,"",I57/H57) -> 
I58: 0
B59: 4 | I59: 0
I60: 0
A61: Other transfers and grants [insert description] | I61: 0
A62: District Municipality: | C62: =SUM(C63:C64) -> 0 | D62: 0 | E62: 0 | F62: 0 | G62: 0 | H62: 0 | I62: 0 | K62: =SUM(K63:K64) -> 0
A63: [insert description] | I63: 0
I64: 0
A65: Other grant providers: | C65: =SUM(C66:C72) -> 0 | D65: 0 | E65: 0 | F65: 0 | G65: 0 | H65: 0 | I65: 0 | K65: =SUM(K66:K72) -> 0
A66: [insert description] | I66: 0
I67: 0 | J67: =IF(I67=0,"",I67/H67) -> 
I68: 0
I69: 0
I70: 0
I71: 0
I72: 0
A73: Total Operating Transfers and Grants | B73: 5 | C73: =C8+C30+C62+C65 -> 824535908.7 | D73: 956879939.3 | E73: 1008751736 | F73: 43019445.54 | G73: 1000638459 | H73: 1008751736 | I73: -8113277 | J73: -0.008042887773 | K73: =K8+K30+K62+K65 -> 1008751736
A75: Capital Transfers and Grants
A76: =A8 -> National Government: | C76: =SUM(C77:C92) -> 259763434.8 | D76: 312602919.9 | E76: 345979975.6 | F76: 0 | G76: 288939294 | H76: 345979975.6 | I76: -57040681.59 | J76: =IF(I76=0,"",I76/H76) -> -0.1648670028 | K76: 345979975.6
A77: Municipal Infrastructure Grant (MIG) | C77: 204367192.7 | D77: 222681919.9 | E77: 225609333 | G77: 222518294 | H77: =E77/12*12 -> 225609333 | I77: =G77-H77 -> -3091039 | J77: -0.01370084721 | K77: =E77 -> 225609333
A78: Public Transport Infrastracture | C78: 0 | D78: 20000000 | E78: 20000000 | G78: 20000000 | H78: 20000000 | I78: 0 | K78: 20000000
A79: Neighbourhood Development Partnership | C79: 12973387.74 | D79: 20000000 | E79: 20000000 | G79: 20000000 | H79: 20000000 | I79: =G79-H79 -> 0 | J79: =IF(I79=0,"",I79/H79) ->  | K79: 20000000
A80: Dept of Mineral/Electricty | C80: 0 | D80: 0 | E80: 0 | H80: 0 | I80: =G80-H80 -> 0 | J80: =IF(I80=0,"",I80/H80) ->  | K80: 0
A81: Intergrated National Electrification Porgramme | C81: 12218873.34 | D81: 4971000 | E81: 4971000 | G81: 4971000 | H81: 4971000 | I81: 0 | K81: 4971000
A82: Municipal Systems Improvement Capital | C82: 0 | E82: 46592442.15 | H82: 46592442.15 | I82: -46592442.15 | J82: -1 | K82: 46592442.15
A83: Water Services Infrastructure Grant (WSIG)-CAPITAL | C83: 25203981.06 | D83: 40000000 | E83: 24507200.44 | G83: 16500000 | H83: 24507200.44 | I83: -8007200.44 | J83: -0.3267284837 | K83: 24507200.44
A84: Energy Efficiency and Demand Manaagement | C84: 5000000 | D84: 4950000 | E84: 4300000 | G84: 4950000 | H84: 4300000 | I84: 650000 | J84: 0.1511627907 | K84: 4300000
I85: 0
I86: 0
I87: 0
I88: 0
I89: =G89-H89 -> 0
I90: 0
I91: 0
A92: Other capital transfers [insert description] | I92: 0
A93: =A30 -> Provincial Government: | C93: =SUM(C94:C126) -> 168341559 | D93: 133835182.1 | E93: 131945798 | F93: 0 | G93: 18946142.96 | H93: 131945798 | I93: -112999655 | J93: =IF(I93=0,"",I93/H93) -> -0.8564096527 | K93: =SUM(K94:K126) -> 131945798
A94: Airport Development Project | I94: 0 | J94: =IF(I94=0,"",I94/H94) -> 
A95: Sport and Recreation | C95: 0 | I95: 0
A96: KZNPA | C96: 0 | I96: 0
A97: KZN-Military Veterans | C97: 0 | I97: 0
A98: PMB Airport- CAPITAL | C98: 3201175.34 | I98: 0
A99: Arts and Culture-Museum Subsidies | C99: 0 | I99: =G99-H99 -> 0 | J99: =IF(I99=0,"",I99/H99) -> 
A100: COGTA | C100: 3039104.45 | I100: 0
A101: Manaye Area Precinct Upgrade-CAPITAL | C101: 0 | I101: 0
A102: Housing Development Fund | C102: 0 | E102: 16957959 | H102: =E102/12*12 -> 16957959 | I102: =G102-H102 -> -16957959 | J102: =IF(I102=0,"",I102/H102) -> -1 | K102: =E102 -> 16957959
A103: Human Settlement - Housing Accreditation | C103: 0 | H103: 0 | I103: 0
A104: Housing Accreditation-CAPITAL | C104: 733560.62 | D104: 700000 | E104: 3200000 | G104: 2450358.76 | H104: 3200000 | I104: -749641.24 | J104: -0.2342628875 | K104: =E104 -> 3200000
A105: Capital Provincial KZN Treausry | C105: 0 | I105: 0
A106: Economic development tourism | I106: 0
A107: Eastwood Primary Substation-CAPITAL | C107: 378947.47 | I107: 0
A108: Jika Joe Community Residential Units-CAPITAL | I108: 0
A109: Greater Edendale Development Iniatative-CAPITAL | C109: 77553221.89 | E109: 12518618 | G109: 716784.2 | H109: =E109/12*12 -> 12518618 | I109: -11801833.8 | J109: -0.9427425455 | K109: =E109 -> 12518618
A110: Youth Enterprise Park-CAPITAL | C110: 0 | H110: 0 | I110: 0
A111: Informal Economy Instructure Development-CAPITAL | C111: 0 | D111: 1000000 | E111: 1062396 | H111: 1062396 | I111: -1062396 | J111: -1 | K111: =E111 -> 1062396
A112: Corridor Development- CAPITAL | I112: 0
A113: Municipal Disaster Relief Grant-CAPITAL | C113: 8203392.36 | D113: 13214000 | G113: 13214000 | H113: =E113/12*12 -> 0 | I113: 13214000 | K113: =E113 -> 0
A114: Community Library Service and Provincialsation Library-CAPITAL | C114: 6376709.59 | G114: 1400000 | I114: 1400000
A115: Provincial Government: | I115: 0
A116: Arts and Culture-Museum Subsidies - Tatham Art Gallery | C116: 170531.39 | D116: 1865000 | E116: 1565000 | G116: 165000 | H116: =E116/12*12 -> 1565000 | I116: -1400000 | J116: -0.8945686901 | K116: =E116 -> 1565000
A117: Operation Dlulisumlando-Capital | C117: 0 | I117: 0 | K117: =D117 -> 0
A118: KZN-Military Veterans | I118: 0
A119: Ematsheni-CAPITAL | G119: 1000000 | I119: =G119-H119 -> 1000000 | J119: =IF(I119=0,"",I119/H119) -> 
A120: Housing Projects -CAPITAL | C120: 68684915.87 | D120: 117056182.1 | E120: 96641825 | H120: =E120/12*12 -> 96641825 | I120: -96641825 | J120: -1 | K120: =E120 -> 96641825
I121: 0
I122: =G122-H122 -> 0 | J122: =IF(I122=0,"",I122/H122) -> 
I123: 0
I124: 0
I125: 0
I126: 0
A127: =A62 -> District Municipality: | C127: =SUM(C128:C129) -> 0 | D127: 0 | E127: 0 | F127: 0 | G127: 0 | H127: 0 | I127: 0 | K127: =SUM(K128:K129) -> 0
A128: [insert description] | I128: 0
I129: 0
A130: =A65 -> Other grant providers: | C130: =SUM(C131:C136) -> 0 | D130: 0 | E130: 0 | F130: 0 | G130: 0 | H130: 0 | I130: 0 | K130: =SUM(K131:K136) -> 0
A131: [insert description] | I131: =G131-H131 -> 0
I132: 0
I133: 0
I134: 0
I135: 0
I136: 0
A137: Total Capital Transfers and Grants | B137: 5 | C137: =C76+C93+C127+C130 -> 428104993.8 | D137: =D76+D93+D127+D130 -> 446438101.9 | E137: 477925773.6 | F137: 0 | G137: 307885437 | H137: 477925773.6 | I137: -170040336.6 | J137: -0.3557881705 | K137: 477925773.6
A139: TOTAL RECEIPTS OF TRANSFERS & GRANTS | B139: 5 | C139: =C73+C137 -> 1252640903 | D139: 1403318041 | E139: 1486677509 | F139: 43019445.54 | G139: 1308523896 | H139: 1486677509 | I139: -178153613.6 | J139: -0.1198333953 | K139: 1486677509
A140: =head27a -> References
A141: 1. Each grant is listed by name as gazetted together with the name of the transferring department or municipality, donor or other organisation
A142: 2. Grant expenditure must be separately listed for each grant received
A143: 3. Replacement of RSC levies
A144: 4. Housing subsidies for housing where ownership transferred
A145: 5. Total recurrent/capital grants and subsidies must reconcile to the 'Financial Performance' Statement

Sheet SC8
A1: =muni& " - "&S71N& " - "&Head57 -> KZN225 Msunduzi - Supporting Table SC8 Monthly Budget Statement - councillor and staff benefits - Q4 Fourth Quarter
A2: Summary of Employee and Councillor remuneration | B2: =head27 -> Ref | C2: =Head1 -> 2023/24 | D2: =Head2 -> Budget Year 2024/25
C3: =Head5 -> Audited Outcome | D3: =Head6 -> Original Budget | E3: =Head7 -> Adjusted Budget | F3: =Head38 -> Monthly actual | G3: =Head39 -> YearTD actual | H3: =Head40 -> YearTD budget | I3: =Head41 -> YTD variance | J3: =Head41 -> YTD variance | K3: =Head8 -> Full Year Forecast
A4: R thousands | J4: %
B5: 1 | C5: A | D5: B | E5: C | K5: D
A6: Councillors (Political Office Bearers plus Other)
A7: Basic Salaries and Wages | C7: 50824106.18 | D7: 3834643.672 | E7: 3834643.672 | F7: 3795629.93 | G7: 45811462.3 | H7: =E7/12*12 -> 3834643.672 | I7: =G7-H7 -> 41976818.63 | J7: =IF(I7=0,"",I7/H7) -> 10.94673253 | K7: =E7 -> 3834643.672
A8: Pension and UIF Contributions | C8: 3374216.72 | D8: 3492915.085 | E8: 3492915.085 | F8: 266282.92 | G8: 3185910.44 | H8: =E8/12*12 -> 3492915.085 | I8: -307004.6446 | J8: -0.08789353224 | K8: =E8 -> 3492915.085
A9: Medical Aid Contributions | C9: 2085751.87 | D9: 8480746.452 | E9: 8480746.452 | F9: 187521.67 | G9: 2208939.41 | H9: 8480746.452 | I9: -6271807.042 | J9: -0.7395347895 | K9: 8480746.452
A10: Motor Vehicle Allowance | C10: 2871924.22 | D10: 41629029.95 | E10: 41629029.95 | F10: 250069.15 | G10: 3001995.18 | H10: 41629029.95 | I10: -38627034.77 | J10: -0.9278869773 | K10: 41629029.95
A11: Cellphone Allowance | C11: 4239621 | D11: 791610.0564 | E11: 791610.0564 | F11: 309443 | G11: 3725067 | H11: 791610.0564 | I11: 2933456.944 | J11: 3.705684282 | K11: 791610.0564
A12: Housing Allowances | C12: 98173.45 | D12: 8232985.9 | E12: 8232985.9 | F12: 17670.51 | G12: 202046.12 | H12: 8232985.9 | I12: -8030939.78 | J12: -0.9754589498 | K12: 8232985.9
A13: Other benefits and allowances | C13: 48218.15 | D13: 0 | E13: 0 | F13: 1614.38 | G13: 19372.56 | H13: 0 | I13: 19372.56 | K13: 0
A14: Sub Total - Councillors | C14: =SUM(C7:C13) -> 63542011.59 | D14: 66461931.11 | E14: 66461931.11 | F14: 4828231.56 | G14: 58154793.01 | H14: 66461931.11 | I14: -8307138.101 | J14: -0.1249909228 | K14: =SUM(K7:K13) -> 66461931.11
A15: % increase | B15: 4 | D15: =IF(D14=0,"",(D14/C14)-1) -> 0.04595258236 | E15: =IF(E14=0,"",(E14/C14)-1) -> 0.04595258236 | K15: =IF(K14=0,"",(K14/C14)-1) -> 0.04595258236
A17: Senior Managers of the Municipality | B17: 3
A18: Basic Salaries and Wages | C18: 6464516.71 | D18: 12200409.4 | E18: 167770755.1 | F18: 635049.46 | G18: 6621446.51 | H18: =E18/12*12 -> 167770755.1 | I18: =G18-H18 -> -161149308.6 | J18: =IF(I18=0,"",I18/H18) -> -0.9605327728 | K18: =E18 -> 167770755.1
A19: Pension and UIF Contributions | C19: 1021148.04 | D19: 917910.074 | E19: 1115597.89 | F19: 101773.02 | G19: 1048638.44 | H19: 1115597.89 | I19: -66959.45 | J19: -0.0600211336 | K19: 1115597.89
A20: Medical Aid Contributions | C20: 170379.04 | D20: 271689.2042 | E20: 247152.97 | F20: 16926.6 | G20: 191849.5 | H20: 247152.97 | I20: -55303.47 | J20: -0.2237621098 | K20: 247152.97
A21: Overtime | C21: 0 | D21: 0 | E21: 0 | F21: 0 | G21: 0 | H21: 0 | I21: 0
A22: Performance Bonus | C22: 511203.32 | E22: 0 | F22: 0 | G22: 271615.95 | H22: 0 | I22: 271615.95
A23: Motor Vehicle Allowance | C23: 893455.84 | D23: 1031943.199 | E23: 2086417.99 | F23: 70832.01 | G23: 869728.09 | H23: 2086417.99 | I23: -1216689.9 | J23: -0.583147723 | K23: =E23 -> 2086417.99
A24: Cellphone Allowance | C24: 108880.41 | D24: 123953.22 | E24: 140224 | F24: 8850 | G24: 96000 | H24: 140224 | I24: -44224 | J24: -0.3153811045 | K24: 140224
A25: Housing Allowances | C25: 206833.92 | D25: 216908.2452 | E25: 219243.96 | F25: 16114.4 | G25: 199221.55 | H25: 219243.96 | I25: -20022.41 | J25: -0.09132479636 | K25: 219243.96
A26: Other benefits and allowances | C26: 135832.14 | E26: 322528.32 | F26: 11.95 | G26: 1967679.73 | H26: 322528.32 | I26: 1645151.41 | J26: 5.100796761 | K26: 322528.32
A27: Payments in lieu of leave | I27: 0
A28: Long service awards | I28: 0
A29: Post-retirement benefit obligations | B29: 2 | I29: 0
A30: Entertainment | I30: =G30-H30 -> 0 | J30: =IF(I30=0,"",I30/H30) -> 
A31: Scarcity | I31: 0
A32: Acting and post related allowance | I32: 0
A33: In kind benefits | I33: 0
A34: Sub Total - Senior Managers of Municipality | C34: =SUM(C18:C33) -> 9512249.42 | D34: 14762813.34 | E34: 171901920.2 | F34: 849557.44 | G34: 11266179.77 | H34: 171901920.2 | I34: =G34-H34 -> -160635740.5 | J34: =IF(I34=0,"",I34/H34) -> -0.9344615828 | K34: =SUM(K18:K33) -> 171901920.2
A35: % increase | B35: 4 | D35: =IF(D34=0,"",(D34/C34)-1) -> 0.5519792104 | E35: =IF(E34=0,"",(E34/C34)-1) -> 17.07163718 | K35: =IF(K34=0,"",(K34/C34)-1) -> 17.07163718
A37: Other Municipal Staff
A38: Basic Salaries and Wages | C38: 980231364 | D38: 1376357329 | E38: 962411821.2 | F38: 84181207.41 | G38: 1008940345 | H38: =E38/12*12 -> 962411821.2 | I38: =G38-H38 -> 46528524.12 | J38: =IF(I38=0,"",I38/H38) -> 0.04834575292 | K38: =E38 -> 962411821.2
A39: Pension and UIF Contributions | C39: 187272638.3 | D39: 144585879.9 | E39: 214210908.5 | F39: 16001706.38 | G39: 192560143.6 | H39: 214210908.5 | I39: -21650764.83 | J39: -0.1010721862 | K39: 214210908.5
A40: Medical Aid Contributions | C40: 137670446.4 | D40: 122981485 | E40: 23034336.66 | F40: 7664454.19 | G40: 86146972.12 | H40: 23034336.66 | I40: 63112635.46 | J40: 2.739937181 | K40: 23034336.66
A41: Overtime | C41: 123315223.6 | D41: 107181183.4 | E41: 141538237.6 | F41: 12388043.65 | G41: 134435867.3 | H41: 141538237.6 | I41: -7102370.24 | J41: -0.05017986914 | K41: 141538237.6
A42: Performance Bonus | C42: 73993284.41 | E42: 86085922.98 | F42: 157241.04 | G42: 76286374.61 | H42: 86085922.98 | I42: -9799548.37 | J42: -0.1138345043 | K42: 86085922.98
A43: Motor Vehicle Allowance | C43: 32027620.75 | D43: 44228443.29 | E43: 62171609.71 | F43: 2855609.78 | G43: 33347435.55 | H43: 62171609.71 | I43: -28824174.16 | J43: -0.463622774 | K43: 62171609.71
A44: Cellphone Allowance | C44: 5414743.6 | D44: 6355087.419 | E44: 7215049.09 | F44: 403335.48 | G44: 5689061.03 | H44: 7215049.09 | I44: -1525988.06 | J44: -0.2115007176 | K44: 7215049.09
A45: Housing Allowances | C45: 4715419.95 | D45: 7305739.399 | E45: 5729740.1 | F45: 345752.14 | G45: 4550932.69 | H45: 5729740.1 | I45: -1178807.41 | J45: -0.2057348832 | K45: 5729740.1
A46: Other benefits and allowances | C46: 31490909.12 | D46: 8423209.652 | E46: 72069824.95 | F46: 1471270.63 | G46: 22134437.42 | H46: 72069824.95 | I46: -49935387.53 | J46: -0.692875105 | K46: 72069824.95
A47: Payments in lieu of leave | C47: 0 | D47: 0 | E47: 0 | F47: 0 | G47: 0 | H47: 0 | I47: 0 | K47: 0
A48: Long service awards | C48: 27274415.16 | D48: 14834667.21 | E48: 26852748.99 | F48: 1721634.1 | G48: 22122564.33 | H48: 26852748.99 | I48: -4730184.66 | J48: -0.1761527158 | K48: 26852748.99
A49: Post-retirement benefit obligations | B49: 2 | C49: 0 | I49: 0
A50: Entertainment | I50: 0
A51: Scarcity | I51: 0
A52: Acting and post related allowance | I52: 0
A53: In kind benefits | I53: 0
A54: Sub Total - Other Municipal Staff | C54: =SUM(C38:C53) -> 1603406065 | D54: 1832253024 | E54: 1601320200 | F54: 127190254.8 | G54: 1586214134 | H54: 1601320200 | I54: -15106065.68 | J54: -0.009433507229 | K54: =SUM(K38:K53) -> 1601320200
A55: % increase | B55: 4 | D55: =IF(D54=0,"",(D54/C54)-1) -> 0.1427255165 | E55: =IF(E54=0,"",(E54/C54)-1) -> -0.001300896644 | K55: =IF(K54=0,"",(K54/C54)-1) -> -0.001300896644
A56: Total Parent Municipality | C56: =C14+C34+C54 -> 1676460326 | D56: 1913477769 | E56: 1839684051 | F56: 132868043.8 | G56: 1655635107 | H56: 1839684051 | I56: =G56-H56 -> -184048944.3 | J56: =IF(I56=0,"",I56/H56) -> -0.1000437788 | K56: =K14+K34+K54 -> 1839684051
D57: =IF(D56=0,"",(D56/C56)-1) -> 0.1413796906 | E57: =IF(E56=0,"",(E56/C56)-1) -> 0.097362116 | K57: =IF(K56=0,"",(K56/C56)-1) -> 0.097362116
A58: Unpaid salary, allowances & benefits in arrears:
A60: Board Members of Entities
A61: Basic Salaries and Wages | D61: 381420 | E61: 381420 | F61: 65604.89 | G61: 294148.87 | H61: =E61/12*12 -> 381420 | I61: =G61-H61 -> -87271.13 | J61: =IF(I61=0,"",I61/H61) -> -0.2288058571 | K61: =E61 -> 381420
A62: Pension and UIF Contributions | I62: 0
A63: Medical Aid Contributions | I63: 0
A64: Overtime | I64: 0
A65: Performance Bonus | I65: 0
A66: Motor Vehicle Allowance | I66: 0
A67: Cellphone Allowance | I67: 0
A68: Housing Allowances | I68: 0
A69: Other benefits and allowances | I69: 0
A70: Board Fees | B70: 5 | I70: 0
A71: Payments in lieu of leave | I71: 0
A72: Long service awards | I72: 0
A73: Post-retirement benefit obligations | I73: 0
A74: Entertainment | I74: =G74-H74 -> 0 | J74: =IF(I74=0,"",I74/H74) -> 
A75: Scarcity | I75: 0
A76: Acting and post related allowance | I76: 0
A77: In kind benefits | I77: 0
A78: Sub Total - Executive members Board | B78: 2 | C78: =SUM(C61:C77) -> 0 | D78: 381420 | E78: 381420 | F78: 65604.89 | G78: 294148.87 | H78: 381420 | I78: =G78-H78 -> -87271.13 | J78: =IF(I78=0,"",I78/H78) -> -0.2288058571 | K78: =SUM(K61:K77) -> 381420
A79: % increase | B79: 4 | D79: =IF(D78=0,"",(D78/C78)-1) ->  | E79: =IF(E78=0,"",(E78/C78)-1) ->  | K79: =IF(K78=0,"",(K78/C78)-1) -> 
A81: Senior Managers of Entities
A82: Basic Salaries and Wages | D82: 857644 | E82: 857644 | F82: 65760.68 | G82: 873540.88 | H82: =E82/12*12 -> 857644 | I82: =G82-H82 -> 15896.88 | J82: =IF(I82=0,"",I82/H82) -> 0.0185355229 | K82: =E82 -> 857644
A83: Pension and UIF Contributions | E83: 0 | H83: 0 | I83: 0 | K83: 0
A84: Medical Aid Contributions | D84: 35178 | E84: 35176 | F84: 3318.3 | G84: 38423.88 | H84: 35176 | I84: 3247.88 | J84: 0.092332272 | K84: 35176
A85: Overtime | H85: 0 | I85: 0 | K85: 0
A86: Performance Bonus | H86: 0 | I86: 0 | K86: 0
A87: Motor Vehicle Allowance | D87: 31620 | E87: 31620 | F87: 3000 | G87: 36000 | H87: 31620 | I87: 4380 | J87: 0.1385199241 | K87: 31620
A88: Cellphone Allowance | D88: 11383 | E88: 11383 | F88: 1000 | G88: 12000 | H88: 11383 | I88: 617 | J88: 0.054203637 | K88: 11383
A89: Housing Allowances | I89: 0
A90: Other benefits and allowances | I90: 0
A91: Payments in lieu of leave | I91: 0
A92: Long service awards | I92: 0
A93: Post-retirement benefit obligations | B93: 2 | I93: 0
A94: Entertainment | I94: =G94-H94 -> 0 | J94: =IF(I94=0,"",I94/H94) -> 
A95: Scarcity | I95: 0
A96: Acting and post related allowance | I96: 0
A97: In kind benefits | I97: 0
A98: Sub Total - Senior Managers of Entities | C98: =SUM(C82:C97) -> 0 | D98: 935825 | E98: 935823 | F98: 73078.98 | G98: 959964.76 | H98: 935823 | I98: =G98-H98 -> 24141.76 | J98: =IF(I98=0,"",I98/H98) -> 0.02579735698 | K98: =SUM(K82:K97) -> 935823
A99: % increase | B99: 4 | D99: =IF(D98=0,"",(D98/C98)-1) ->  | E99: =IF(E98=0,"",(E98/C98)-1) ->  | K99: =IF(K98=0,"",(K98/C98)-1) -> 
A101: Other Staff of Entities
A102: Basic Salaries and Wages | D102: 9727493 | E102: 9727494 | F102: 677445.35 | G102: 9165152.96 | H102: =E102/12*12 -> 9727494 | I102: =G102-H102 -> -562341.04 | J102: =IF(I102=0,"",I102/H102) -> -0.05780944609 | K102: =E102 -> 9727494
A103: Pension and UIF Contributions | D103: 646205 | E103: 646205 | F103: 34605.61 | G103: 601953.78 | H103: 646205 | I103: -44251.22 | J103: -0.06847860973 | K103: 646205
A104: Medical Aid Contributions | D104: 1149241 | E104: 1149241 | F104: 107215.1 | G104: 1249179.46 | H104: 1149241 | I104: 99938.46 | J104: 0.08696040256 | K104: 1149241
A105: Overtime | D105: 462771 | E105: 462770 | F105: 26127.24 | G105: 369382 | H105: 462770 | I105: -93388 | J105: -0.2018021912 | K105: 462770
A106: Performance Bonus | H106: 0 | I106: 0 | K106: 0
A107: Motor Vehicle Allowance | D107: 107508 | E107: 107508 | F107: 8500 | G107: 104000 | H107: 107508 | I107: -3508 | J107: -0.03263012985 | K107: 107508
A108: Cellphone Allowance | D108: 111935 | E108: 111934 | F108: 10250 | G108: 121050 | H108: 111934 | I108: 9116 | J108: 0.08144084907 | K108: 111934
A109: Housing Allowances | I109: 0
A110: Other benefits and allowances | F110: 0 | G110: 68509.8 | I110: 68509.8
A111: Payments in lieu of leave | I111: 0
A112: Long service awards | I112: 0
A113: Post-retirement benefit obligations | I113: 0
A114: Entertainment | I114: 0
A115: Scarcity | I115: 0
A116: Acting and post related allowance | I116: 0
A117: In kind benefits | I117: 0
A118: Sub Total - Other Staff of Entities | C118: =SUM(C102:C117) -> 0 | D118: 12205153 | E118: 12205152 | F118: 864143.3 | G118: 11679228 | H118: 12205152 | I118: =G118-H118 -> -525924 | J118: =IF(I118=0,"",I118/H118) -> -0.04309032776 | K118: =SUM(K102:K117) -> 12205152
A119: % increase | B119: 4 | D119: =IF(D118=0,"",(D118/C118)-1) ->  | E119: =IF(E118=0,"",(E118/C118)-1) ->  | K119: =IF(K118=0,"",(K118/C118)-1) -> 
A120: Total Municipal Entities | C120: =C78+C98+C118 -> 0 | D120: 13522398 | E120: 13522395 | F120: 1002827.17 | G120: 12933341.63 | H120: 13522395 | I120: =G120-H120 -> -589053.37 | J120: =IF(I120=0,"",I120/H120) -> -0.04356131957 | K120: =K78+K98+K118 -> 13522395
A121: TOTAL SALARY, ALLOWANCES & BENEFITS | C121: =C56+C120 -> 1676460326 | D121: 1927000167 | E121: 1853206446 | F121: 133870871 | G121: 1668568448 | H121: 1853206446 | I121: =G121-H121 -> -184637997.6 | J121: =IF(I121=0,"",I121/H121) -> -0.09963164007 | K121: =K56+K120 -> 1853206446
A122: % increase | B122: 4 | D122: =IF(D121=0,"",(D121/C121)-1) -> 0.1494457318 | E122: =IF(E121=0,"",(E121/C121)-1) -> 0.1054281554 | K122: =IF(K121=0,"",(K121/C121)-1) -> 0.1054281554
A123: TOTAL MANAGERS AND STAFF | C123: =C34+C54+C98+C118 -> 1612918315 | D123: =D34+D54+D98+D118+D78 -> 1860538236 | E123: 1786744515 | F123: 129042639.4 | G123: =G34+G54+G98+G118+G78 -> 1610413655 | H123: =H34+H54+H98+H118+H78 -> 1786744515 | I123: =I34+I54+I98+I118+I78 -> -176330859.5 | J123: =IF(I123=0,"",I123/H123) -> -0.09868834522 | K123: =K34+K54+K98+K118+K78 -> 1786744515
A124: =head27a -> References
A125: 1. Include 'Loans and advances' where applicable if any reportable amounts until phased compliance with s164 of MFMA achieved
A126: 2. If benefits in kind are provided (e.g. provision of living quarters) the full market value must be shown as the cost to the municipality
A127: 3. s57 of the Systems Act
A128: 4. B/A, C/A, D/A
A129: 5. Included in Contracted services
A130: Column Definitions:
A131: A. Audited actual 2022/23 (audited financial statements). If audited amounts unavailable, unaudited amounts must be provided with a note stating these are unaudited
A132: B. The original budget approved by council for the 2023/24 budget year.
A133: C. The budget for 2023/24 budget year as adjusted by council resolution in terms of section 28 of the MFMA.
A134: D. An estimate of final actual amounts (pre audit - 2006/07 budget year) at the time of preparing the budget for the 2007/08 budget year. This may differ from C.

Sheet SC7
A1: =muni& " - "&S71M& " - "&Head57 -> KZN225 Msunduzi - Supporting Table SC7(1) Monthly Budget Statement - transfers and grant expenditure - Q4 Fourth Quarter
A2: =desc -> Description | B2: =head27 -> Ref | C2: =Head1 -> 2023/24 | D2: =Head2 -> Budget Year 2024/25
C3: =Head5 -> Audited Outcome | D3: =Head6 -> Original Budget | E3: =Head7 -> Adjusted Budget | F3: =Head38 -> Monthly actual | G3: =Head39 -> YearTD actual | H3: =Head40 -> YearTD budget | I3: =Head41 -> YTD variance | J3: =Head41 -> YTD variance | K3: =Head8 -> Full Year Forecast
A4: R thousands | J4: %
A5: EXPENDITURE
A7: Operating expenditure of Transfers and Grants
A8: ='SC6'!A8 -> National Government: | C8: =SUM(C9:C21) -> 795277217.8 | D8: 895184080 | E8: 953643716 | F8: 7790264.33 | G8: 888642654.2 | H8: 953643716 | I8: -65001061.85 | J8: =IF(I8=0,"",I8/H8) -> -0.06816074049 | K8: =SUM(K9:K21) -> 953643716
A9: Local Government Equitable Share | C9: 767222000 | D9: 822072000 | E9: 822072000 | F9: 0 | G9: 822072000 | H9: =E9/12*12 -> 822072000 | I9: =G9-H9 -> 0 | K9: =E9 -> 822072000
A10: Finance Management | C10: 1807398.14 | D10: 1900000 | E10: 1900000 | F10: 498533 | G10: 1900000 | H10: 1900000 | I10: =G10-H10 -> 0 | J10: =IF(I10=0,"",I10/H10) ->  | K10: =E10 -> 1900000
A11: Municipal Systems Improvement Operating | C11: 0 | D11: 0 | E11: 0 | F11: 0 | G11: 0 | H11: 0 | I11: 0 | K11: 0
A12: EPWP Incentive | C12: 4700996.67 | D12: 2092000 | E12: 2092000 | F12: 4042.26 | G12: 2091918.94 | H12: 2092000 | I12: -81.06 | J12: -3.874760994e-05 | K12: 2092000
A13: Municipal Water Infrastructure Grant | C13: 13948235 | D13: 30000000 | E13: 60000000 | F13: 7696447.62 | G13: 50390584.29 | H13: 60000000 | I13: -9609415.71 | J13: -0.1601569285 | K13: 60000000
A14: Public Transport Infrastracture | C14: 0 | D14: 30000000 | E14: 30000000 | F14: 361849.72 | G14: 4565359.61 | H14: 30000000 | I14: -25434640.39 | J14: -0.8478213463 | K14: 30000000
A15: Energy Efficiency and Demand Management | C15: 0 | E15: 700000 | F15: 438239.02 | G15: 584192.48 | H15: 700000 | I15: -115807.52 | J15: -0.1654393143 | K15: 700000
A16: Regional Bulk Infrastructure Grant | C16: 0 | E16: 28802256 | F16: 0 | G16: 0 | H16: 28802256 | I16: =G16-H16 -> -28802256 | J16: =IF(I16=0,"",I16/H16) -> -1 | K16: 28802256
A17: Operating costs-MIG | C17: 7598588 | D17: 9120080 | E17: 8077460 | F17: -1208847.29 | G17: 7038598.83 | H17: 8077460 | I17: -1038861.17 | J17: -0.1286123571 | K17: 8077460
A18: ='SC6'!A18 -> 0 | E18: 0 | I18: 0
A19: ='SC6'!A19 -> 0 | E19: 0 | I19: 0
A20: ='SC6'!A20 -> 0 | E20: 0 | I20: 0
A21: ='SC6'!A21 -> 0 | E21: 0 | I21: 0
A22: ='SC6'!A30 -> Provincial Government: | C22: =SUM(C23:C44) -> 29258690.9 | D22: 61695859.29 | E22: 55108019.55 | F22: 44820680.06 | G22: 91451067.84 | H22: 55108019.55 | I22: 35657554.37 | J22: 0.6470483727 | K22: =SUM(K23:K44) -> 55108019.55
A23: ='SC6'!A31 -> PMB Airport- OPERATING | C23: 0 | E23: 919281 | F23: 499965.84 | G23: 499965.84 | H23: =E23/12*12 -> 919281 | I23: =G23-H23 -> -419315.16 | J23: -0.4561338263 | K23: =E23 -> 919281
A24: ='SC6'!A32 -> Expanded Public Works Grant | C24: 0 | I24: =G24-H24 -> 0 | J24: =IF(I24=0,"",I24/H24) -> 
A25: ='SC6'!A33 -> Human Settlements - Housing Development | C25: 0 | I25: 0
A26: ='SC6'!A34 -> Airport Grant | C26: 0 | I26: 0
A27: ='SC6'!A35 -> Housing Accreditation-OPERATING | C27: 6417979.74 | D27: 8000000 | E27: 9343000 | F27: 1022628.53 | G27: 5733823.04 | H27: =E27/12*12 -> 9343000 | I27: -3609176.96 | J27: -0.3862974377 | K27: =E27 -> 9343000
A28: ='SC6'!A36 -> Human Settlements - Accredited Municipal RO | C28: 0 | D28: 0 | I28: 0 | K28: 0
A29: ='SC6'!A37 -> Housing Projects -OPERATING | C29: 1181354 | D29: 38535953.82 | E29: 27999165 | H29: =E29/12*12 -> 27999165 | I29: -27999165 | J29: -1 | K29: 27999165
A30: ='SC6'!A38 -> Arts and Culture- Community Library Services | C30: 0 | D30: 14659905.47 | E30: 14693000.47 | F30: 3061394.11 | G30: 14715283.2 | H30: 14693000.47 | I30: 22282.7306 | J30: 0.001516554134 | K30: =E30 -> 14693000.47
A31: ='SC6'!A39 -> Community Library Service and Provincialsation Library-OPERATING | C31: 14820971.71 | I31: 0 | K31: =E31 -> 0
A32: ='SC6'!A40 -> Arts and Culture-Museum Subsidies | I32: 0
A33: ='SC6'!A41 -> Tatham Art Gallery-OPERATING | C33: 204595.07 | E33: 296000 | F33: 21812.11 | G33: 182454.15 | H33: =E33/12*12 -> 296000 | I33: -113545.85 | J33: -0.3836008446 | K33: =E33 -> 296000
A34: ='SC6'!A42 -> Greater Edendale Development Iniatative-OPERATING | C34: 2081077.58 | D34: 500000 | E34: 342747 | F34: 371439.67 | G34: 655518.02 | H34: 342747 | I34: 312771.02 | J34: 0.9125419624 | K34: =E34 -> 342747
A35: ='SC6'!A43 -> Operation Dlulisumlando-OPERATING | C35: 0 | H35: 0 | I35: 0
A36: ='SC6'!A44 -> SETA- Bursaries for Non Employees- OPERATING | C36: 1662711.78 | E36: 2200320 | F36: 1143364.95 | G36: 2161692.55 | H36: 2200320 | I36: -38627.45 | J36: -0.01755537831 | K36: =E36 -> 2200320
A37: ='SC6'!A45 -> Arts and Culture-Museum Subsidies - Tatham Art Gallery | C37: 0 | H37: 0 | I37: 0
A38: Regional Bulk Infrastructure Grant/BFI- OPERATING | C38: 0 | F38: 38296773.8 | G38: 67099029.99 | H38: 0 | I38: =G38-H38 -> 67099029.99 | J38: =IF(I38=0,"",I38/H38) ->  | K38: =E38 -> 0
A39: COGTA | C39: 0 | E39: -685493.9194 | H39: -685493.9194 | I39: 0 | K39: =E39 -> -685493.9194
A40: ='SC6'!A46 -> Municipal Employment Initiative - OPERATING | C40: 2890001.02 | F40: 403301.05 | G40: 403301.05 | I40: 403301.05
A41: ='SC6'!A58 -> 0 | I41: 0
A42: ='SC6'!A59 -> 0 | I42: 0
A43: ='SC6'!A60 -> 0 | I43: 0
A44: ='SC6'!A61 -> Other transfers and grants [insert description] | I44: 0
A45: ='SC6'!A62 -> District Municipality: | C45: =SUM(C46:C47) -> 0 | D45: 0 | E45: =SUM(E46:E47) -> 0 | F45: 0 | G45: 0 | H45: 0 | I45: 0 | K45: =SUM(K46:K47) -> 0
I46: 0
A47: ='SC6'!A63 -> [insert description] | I47: 0
A48: ='SC6'!A65 -> Other grant providers: | C48: =SUM(C49:C50) -> 0 | D48: 0 | E48: 0 | F48: 0 | G48: 0 | H48: 0 | I48: 0 | K48: =SUM(K49:K50) -> 0
I49: 0
A50: ='SC6'!A66 -> [insert description] | I50: 0
A51: Total operating expenditure of Transfers and Grants: | C51: =C8+C22+C45+C48 -> 824535908.7 | D51: 956879939.3 | E51: 1008751736 | F51: 52610944.39 | G51: 980093722 | H51: 1008751736 | I51: -29343507.48 | J51: -0.02908892887 | K51: =K8+K22+K45+K48 -> 1008751736
A53: Capital expenditure of Transfers and Grants
A54: ='SC6'!A76 -> National Government: | C54: =SUM(C55:C68) -> 259763434.8 | D54: 312602919.9 | E54: 345979975.6 | F54: 74357985.76 | G54: 242858317.7 | H54: 345979975.6 | I54: -103121657.9 | J54: =IF(I54=0,"",I54/H54) -> -0.2980567235 | K54: 345979975.6
A55: ='SC6'!A77 -> Municipal Infrastructure Grant (MIG) | C55: 204367192.7 | D55: 222681919.9 | E55: 225609333 | F55: 70803648.31 | G55: 194604663.6 | H55: =E55/12*12 -> 225609333 | I55: =G55-H55 -> -31004669.36 | J55: =IF(I55=0,"",I55/H55) -> -0.1374263598 | K55: =E55 -> 225609333
A56: ='SC6'!A78 -> Public Transport Infrastracture | C56: 0 | D56: 20000000 | E56: 20000000 | F56: 0 | G56: 0 | H56: 20000000 | I56: -20000000 | J56: -1 | K56: 20000000
A57: ='SC6'!A79 -> Neighbourhood Development Partnership | C57: 12973387.74 | D57: 20000000 | E57: 20000000 | F57: 462963.59 | G57: 19967992.84 | H57: 20000000 | I57: -32007.16 | J57: -0.001600358 | K57: 20000000
A58: ='SC6'!A80 -> Dept of Mineral/Electricty | C58: 0 | D58: 0 | E58: 0 | F58: 0 | G58: 0 | H58: 0 | I58: 0 | K58: 0
A59: ='SC6'!A81 -> Intergrated National Electrification Porgramme | C59: 12218873.34 | D59: 4971000 | E59: 4971000 | F59: 44324.7 | G59: 5026483.67 | H59: 4971000 | I59: 55483.67 | J59: 0.01116147053 | K59: 4971000
A60: ='SC6'!A82 -> Municipal Systems Improvement Capital | C60: 0 | E60: 46592442.15 | F60: 0 | G60: 0 | H60: 46592442.15 | I60: -46592442.15 | J60: -1 | K60: 46592442.15
A61: ='SC6'!A83 -> Water Services Infrastructure Grant (WSIG)-CAPITAL | C61: 25203981.06 | D61: 40000000 | E61: 24507200.44 | F61: 3011089.97 | G61: 18962203.33 | H61: 24507200.44 | I61: -5544997.11 | J61: -0.2262599159 | K61: 24507200.44
A62: ='SC6'!A84 -> Energy Efficiency and Demand Manaagement | C62: 5000000 | D62: 4950000 | E62: 4300000 | F62: 35959.19 | G62: 4296974.2 | H62: 4300000 | I62: -3025.8 | J62: -0.0007036744186 | K62: 4300000
A64: ='SC6'!A88 -> 0 | I64: =G64-H64 -> 0
A65: ='SC6'!A89 -> 0 | I65: 0
A66: ='SC6'!A90 -> 0 | I66: 0
A67: ='SC6'!A91 -> 0 | I67: 0
A68: ='SC6'!A92 -> Other capital transfers [insert description] | I68: 0
A69: ='SC6'!A93 -> Provincial Government: | C69: =SUM(C70:C100) -> 168341559 | D69: 133835182.1 | E69: 131945798 | F69: 54245678.6 | G69: 151372266.5 | H69: 131945798 | I69: 19426468.5 | J69: 0.1472306719 | K69: =SUM(K70:K100) -> 131945798
A70: Capital Provincial KZN Treausry | I70: 0
A71: Sport and Recreation | C71: 0 | I71: =G71-H71 -> 0 | J71: =IF(I71=0,"",I71/H71) -> 
A72: Ematsheni-CAPITAL | C72: 0 | F72: 721814.98 | G72: 1149828.45 | I72: =G72-H72 -> 1149828.45 | J72: =IF(I72=0,"",I72/H72) -> 
A73: KZNPA | C73: 0 | I73: 0
A74: Housing-Military Veterans | C74: 0 | I74: 0
A75: PMB Airport- CAPITAL | C75: 3201175.34 | G75: 148192 | I75: 148192
A76: Arts and Culture-Museum Subsidies | C76: 0 | I76: 0
A77: COGTA | C77: 3039104.45 | I77: 0
A78: Manaye Area Precinct Upgrade-CAPITAL | C78: 0 | I78: =G78-H78 -> 0 | J78: =IF(I78=0,"",I78/H78) -> 
A79: Housing Development Fund | C79: 0 | E79: 16957959 | H79: =E79/12*12 -> 16957959 | I79: -16957959 | J79: -1 | K79: =E79 -> 16957959
A80: Housing Accreditation-CAPITAL | C80: 733560.62 | D80: 700000 | E80: 3200000 | F80: 2081712.44 | G80: 2244716.47 | H80: 3200000 | I80: -955283.53 | J80: -0.2985261031 | K80: =E80 -> 3200000
A81: Capital Provincial KZN Treausry | C81: 0 | I81: 0
A82: Economic development tourism | I82: 0
A83: Eastwood Primary Substation-CAPITAL | C83: 378947.47 | I83: 0
A84: Jika Joe Community Residential Units-CAPITAL | I84: 0
A85: Greater Edendale Development Iniatative-CAPITAL | C85: 77553221.89 | E85: 12518618 | F85: 9747988.96 | G85: 12034643.96 | H85: =E85/12*12 -> 12518618 | I85: -483974.04 | J85: -0.03866034094 | K85: =E85 -> 12518618
A86: Youth Enterprise Park-CAPITAL | C86: 0 | H86: 0 | I86: 0
A87: Informal Economy Instructure Development-CAPITAL | C87: 0 | D87: 1000000 | E87: 1062396 | H87: 1062396 | I87: -1062396 | J87: -1 | K87: =E87 -> 1062396
A88: Corridor Development- CAPITAL | I88: 0
A89: Municipal Disaster Relief Grant-CAPITAL | C89: 8203392.36 | D89: 13214000 | F89: 9626796.2 | G89: 42075617.06 | H89: =E89/12*11 -> 0 | I89: 42075617.06 | K89: =E89 -> 0
A90: Community Library Service and Provincialsation Library-CAPITAL | C90: 6376709.59 | F90: 1052498.31 | G90: 1306073.46 | I90: 1306073.46
A91: Provincial Government: | I91: 0
A92: Arts and Culture-Museum Subsidies - Tatham Art Gallery | C92: 170531.39 | D92: 1865000 | E92: 1565000 | F92: 516269.5 | G92: 756269.5 | H92: =E92/12*12 -> 1565000 | I92: -808730.5 | J92: -0.5167607029 | K92: =E92 -> 1565000
A93: Operation Dlulisumlando-Capital | C93: 0 | H93: =E93/12*11 -> 0 | I93: 0
A94: KZN-Military Veterans | H94: 0 | I94: 0
A95: Housing Projects -CAPITAL | C95: 68684915.87 | D95: 117056182.1 | E95: 96641825 | F95: 30498598.21 | G95: 91656925.6 | H95: =E95/12*12 -> 96641825 | I95: -4984899.4 | J95: -0.0515811803 | K95: =E95 -> 96641825
I96: 0
I97: 0
I98: 0
I99: 0
A100: ='SC6'!A126 -> 0 | I100: 0
A101: ='SC6'!A127 -> District Municipality: | C101: =SUM(C102:C103) -> 0 | D101: 0 | E101: 0 | F101: 0 | G101: 0 | H101: 0 | I101: 0 | K101: =SUM(K102:K103) -> 0
I102: 0
A103: ='SC6'!A129 -> 0 | I103: 0
A104: ='SC6'!A130 -> Other grant providers: | C104: =SUM(C105:C106) -> 0 | D104: 0 | E104: 0 | F104: 0 | G104: 0 | H104: 0 | I104: 0 | K104: =SUM(K105:K106) -> 0
I105: 0
A106: ='SC6'!A136 -> 0 | I106: 0
A107: Total capital expenditure of Transfers and Grants | C107: =C54+C69+C101+C104 -> 428104993.8 | D107: =D54+D69+D101+D104 -> 446438101.9 | E107: 477925773.6 | F107: 128603664.4 | G107: 394230584.2 | H107: 477925773.6 | I107: -83695189.41 | J107: =IF(I107=0,"",I107/H107) -> -0.1751217324 | K107: 477925773.6
A109: TOTAL EXPENDITURE OF TRANSFERS AND GRANTS | C109: =C51+C107 -> 1252640903 | D109: 1403318041 | E109: 1486677509 | F109: 181214608.8 | G109: 1374324306 | H109: 1486677509 | I109: -113038696.9 | J109: =IF(I109=0,"",I109/H109) -> -0.07603444338 | K109: 1486677509
A110: =head27a -> References

Sheet SC9
A1: =muni& " - "&S71O& " - "&Head57 -> KZN225 Msunduzi - Supporting Table SC9 Monthly Budget Statement - actuals and revised targets for cash receipts - Q4 Fourth Quarter
A2: =desc -> Description | B2: =head27 -> Ref | C2: =Head2 -> Budget Year 2024/25 | O2: ='Template names'!B5 -> 2024/25 Medium Term Revenue & Expenditure Framework
C3: July | D3: August | E3: Sept | F3: October | G3: Nov | H3: Dec | I3: January | J3: Feb | K3: March | L3: April | M3: May | N3: June | O3: =Head9 -> Budget Year 2024/25 | P3: =Head10 -> Budget Year +1 2025/26 | Q3: =Head11 -> Budget Year +2 2026/27
A4: R thousands | B4: 1 | C4: Outcome | D4: Outcome | E4: Outcome | F4: Outcome | G4: Outcome | H4: Outcome | I4: Budget | J4: Budget | K4: Budget | L4: Budget | M4: Budget | N4: Budget
A5: Cash Receipts By Source
A6: Property rates | N6: =O6-SUM(C6:M6) -> 0
A7: Service charges - Electricity revenue | N7: 0
A8: Service charges - Water revenue | N8: 0
A9: Service charges - Waste Water Management | N9: 0
A10: Service charges - Waste Mangement | N10: 0
N11: 0
A12: Rental of facilities and equipment | N12: 0
A13: Interest earned - external investments | N13: 0
A14: Interest earned - outstanding debtors | N14: 0
A15: Dividends received | N15: 0
A16: Fines, penalties and forfeits | N16: 0
A17: Licences and permits | N17: 0
A18: Agency services | N18: 0
A19: Transfers and Subsidies - Operational | N19: 0
A20: Other revenue | N20: 0
A21: Cash Receipts by Source | C21: =SUM(C6:C20) -> 0 | D21: =SUM(D6:D20) -> 0 | E21: 0 | F21: 0 | G21: 0 | H21: 0 | I21: 0 | J21: 0 | K21: 0 | L21: 0 | M21: 0 | N21: 0 | O21: 0 | P21: 0 | Q21: 0
A22: Other Cash Flows by Source | N22: =O22-SUM(C22:M22) -> 0
A23: Transfers and subsidies - capital (monetary allocations) (National / Provincial and District) | N23: 0
A24: Transfers and subsidies - capital (monetary allocations) (Nat / Prov Departm Agencies, Households, Non-profit Institutions, Private Enterprises, Public Corporatons, Higher Educ Institutions) | N24: 0
A25: Proceeds on Disposal of Fixed and Intangible Assets | N25: 0
A26: Short term loans | N26: 0
A27: Borrowing long term/refinancing | N27: 0
A28: Increase (decrease) in consumer deposits | N28: 0
A29: VAT Control (receipts) | N29: 0
A30: Decrease (increase) in non-current receivables | N30: 0
A31: Decrease (increase) in non-current investments | N31: 0
A32: Total Cash Receipts by Source | C32: =SUM(C21:C31) -> 0 | D32: =SUM(D21:D31) -> 0 | E32: 0 | F32: 0 | G32: 0 | H32: 0 | I32: 0 | J32: 0 | K32: 0 | L32: 0 | M32: 0 | N32: 0 | O32: 0 | P32: 0 | Q32: 0
A33: Cash Payments by Type | N33: =O33-SUM(C33:M33) -> 0
A34: Employee related costs | N34: 0
A35: Remuneration of councillors | N35: 0
A36: Interest | N36: 0
A37: Bulk purchases - Electricity | N37: 0
A38: Acquisitions - water & other inventory | N38: 0
A40: Contracted services | N40: 0
A41: Transfers and subsidies - other municipalities | N41: 0
A42: Transfers and subsidies - other | N42: 0
A43: Other expenditure | N43: 0
A44: Cash Payments by Type | B44: =SUM(B34:B43) -> 0 | C44: =SUM(C34:C43) -> 0 | D44: =SUM(D34:D43) -> 0 | E44: 0 | F44: 0 | G44: 0 | H44: 0 | I44: 0 | J44: 0 | K44: 0 | L44: 0 | M44: 0 | N44: 0 | O44: 0 | P44: 0 | Q44: 0
A45: Other Cash Flows/Payments by Type
A46: Capital assets | N46: =O46-SUM(C46:M46) -> 0
A47: Repayment of borrowing | N47: =O47-SUM(C47:M47) -> 0
A48: Other Cash Flows/Payments | N48: =O48-SUM(C48:M48) -> 0
A49: Total Cash Payments by Type | B49: =SUM(B44:B48) -> 0 | C49: 0 | D49: 0 | E49: 0 | F49: 0 | G49: 0 | H49: 0 | I49: 0 | J49: 0 | K49: 0 | L49: 0 | M49: 0 | N49: 0 | O49: 0 | P49: 0 | Q49: 0
A50: NET INCREASE/(DECREASE) IN CASH HELD | B50: =B32-B49 -> 0 | C50: 0 | D50: 0 | E50: 0 | F50: 0 | G50: 0 | H50: 0 | I50: 0 | J50: 0 | K50: 0 | L50: 0 | M50: 0 | N50: 0 | O50: 0 | P50: 0 | Q50: 0
A51: Cash/cash equivalents at the month/year beginning: | D51: =C52 -> 0 | E51: =D52 -> 0 | F51: 0 | G51: 0 | H51: 0 | I51: 0 | J51: 0 | K51: 0 | L51: 0 | M51: 0 | N51: 0 | O51: =C51 -> 0 | P51: =O52 -> 0 | Q51: =P52 -> 0
A52: Cash/cash equivalents at the month/year end: | C52: =C50+C51 -> 0 | D52: =D50+D51 -> 0 | E52: =E50+E51 -> 0 | F52: 0 | G52: 0 | H52: 0 | I52: 0 | J52: 0 | K52: 0 | L52: 0 | M52: 0 | N52: 0 | O52: =O50+O51 -> 0 | P52: =P50+P51 -> 0 | Q52: =Q50+Q51 -> 0
A53: =head27a -> References
A54: 1. Replace 'budget' heading with adjusted budget, or 'outcome' only for month/s complete
A55: 2. Total of monthly amounts must always agree to the approved or adjusted budget
A56: 3. Amend 'cash-at-beginning' when prior year actual known (as part of the adjustments budget)
E61: =E44+E60 -> 0 | F61: 0 | G61: 0 | H61: 0 | I61: 0 | J61: 0 | K61: 0 | L61: 0 | N61: =N44+N60 -> 0 | O61: =O44+O60 -> 0 | P61: =P44+P60 -> 0
E62: =E50-E60 -> 0 | F62: 0 | G62: 0 | H62: 0 | I62: 0 | J62: 0 | K62: 0 | L62: 0 | M62: =M50-M60 -> 0 | N62: =N50-N60 -> 0 | O62: 0 | P62: 0

Sheet SC10
A1: =muni& " - "&S71P& " - "&Head57 -> KZN225 Msunduzi - Supporting Table SC10 Monthly Budget Statement - Parent Municipality Financial Performance (revenue and expenditure) - Q4 Fourth Quarter
A2: =desc -> Description | B2: =head27 -> Ref | C2: =Head1 -> 2023/24 | D2: =Head2 -> Budget Year 2024/25
C3: =Head5 -> Audited Outcome | D3: =Head6 -> Original Budget | E3: =Head7 -> Adjusted Budget | F3: =Head38 -> Monthly actual | G3: =Head39 -> YearTD actual | H3: =Head40 -> YearTD budget | I3: =Head41 -> YTD variance | J3: =Head41 -> YTD variance | K3: =Head8 -> Full Year Forecast
A4: R thousands | B4: 1 | J4: %
A5: ='[2]C4-FinPerf RE'!A5 -> Revenue
A6: Exchange Revenue
A7: Service charges - Electricity | C7: 2630640541 | D7: 4297825065 | E7: 4224357970 | F7: 328974372.9 | G7: 3153676883 | H7: =E7/12*12 -> 4224357970 | I7: =G7-H7 -> -1070681087 | J7: =IF(I7=0,"",I7/H7) -> -0.2534541567 | K7: =E7 -> 4224357970
A8: Service charges - Water | C8: 740741111.2 | D8: 1009760082 | E8: 1009760082 | F8: 81849590.42 | G8: 891663312.4 | H8: 1009760082 | I8: -118096769.6 | J8: -0.1169552765 | K8: =E8 -> 1009760082
A9: Service charges - Waste Water Management | C9: 198015164.6 | D9: 220724860.4 | E9: 220724860.4 | F9: 22783681.17 | G9: 225697078.3 | H9: 220724860.4 | I9: 4972217.855 | J9: 0.0225267686 | K9: 220724860.4
A10: Service charges - Waste management | C10: 126703639.3 | D10: 155390776.9 | E10: 155390776.9 | F10: 13717911.4 | G10: 139469727.2 | H10: 155390776.9 | I10: -15921049.76 | J10: -0.1024581386 | K10: 155390776.9
A11: Sale of Goods and Rendering of Services | C11: 0 | D11: 42042838 | E11: 42042838 | F11: 0 | G11: 0 | H11: 42042838 | I11: =G11-H11 -> -42042838 | J11: =IF(I11=0,"",I11/H11) -> -1 | K11: 42042838
A12: Agency services | C12: 2666696 | D12: 764825.6424 | E12: 764825.6424 | F12: -548279 | G12: 3013565 | H12: 764825.6424 | I12: 2248739.358 | J12: 2.940198698 | K12: 764825.6424
A13: Interest | C13: 0 | D13: 19135146.8 | E13: 0 | F13: 0 | G13: 0 | H13: 0 | I13: 0 | K13: 0
A14: Interest earned from Receivables | C14: 432712908.6 | D14: 230681790 | E14: 230681790 | F14: 56143618.63 | G14: 461528925.7 | H14: 230681790 | I14: 230847135.7 | J14: 1.00071677 | K14: 230681790
A15: Interest earned from Current and Non Current Assets | C15: 0 | D15: 59562303 | E15: 19135147 | F15: 0 | G15: 0 | H15: 19135147 | K15: 19135147
A16: Dividends | C16: 0 | E16: 0 | F16: 0 | G16: 0 | H16: 0 | I16: 0 | K16: 0
A17: Rent on Land | C17: 0 | E17: 0 | F17: 0 | G17: 0 | H17: 0 | I17: 0 | K17: 0
A18: Rental from Fixed Assets | C18: 33590328.34 | D18: 113961628.7 | E18: 113961628.7 | F18: 2992804.48 | G18: 30698058.4 | H18: 113961628.7 | I18: -83263570.33 | J18: -0.730628118 | K18: 113961628.7
A19: Licence and permits | C19: 2021123.4 | E19: 2546799 | F19: 133898.21 | G19: 1931652.85 | H19: 2546799 | I19: -615146.15 | J19: -0.2415369843 | K19: 2546799
A20: Operational Revenue | C20: 68742095.34 | D20: 204124220 | E20: 204124220 | F20: -13275960.12 | G20: 67950332.75 | H20: 204124220 | I20: -136173887.2 | J20: -0.6671128358 | K20: 204124220
A21: Non-Exchange Revenue | C21: 0 | F21: 0 | G21: 0 | H21: 0 | I21: 0 | K21: 0
A22: Property rates | C22: 1359086727 | D22: 1649352521 | E22: 1649352462 | F22: 122654413.6 | G22: 1565969210 | H22: 1649352462 | K22: 1649352462
A23: Surcharges and Taxes | C23: 0 | E23: 0 | F23: 0 | G23: 0 | H23: 0 | K23: 0
A24: Fines, penalties and forfeits | C24: 34247150.94 | D24: 11687216.86 | E24: 11687216.86 | F24: 1905423.97 | G24: 19505076.78 | H24: 11687216.86 | I24: 7817859.917 | J24: 0.6689240054 | K24: 11687216.86
A25: Licences or permits | C25: 0 | D25: 2546799 | E25: 0 | F25: 0 | G25: 0 | H25: 0 | K25: 0
A26: Transfer and subsidies - Operational | C26: 824535908.7 | D26: 946343150 | E26: 1026395188 | F26: 52610944.39 | G26: 980093722 | H26: 1026395188 | K26: 1026395188
A27: Interest | C27: 44117780.54 | E27: 59562303 | F27: 4712783.67 | G27: 32220635.48 | H27: 59562303 | K27: 59562303
A28: Fuel Levy | C28: 0 | E28: 0 | F28: 0 | G28: 0 | H28: 0 | K28: 0
A29: Operational Revenue | C29: 0 | E29: 0 | F29: 0 | G29: 0 | H29: 0 | K29: 0
A30: Gains on disposal of Assets | C30: 0 | E30: 0 | F30: 0 | G30: 0 | H30: 0 | K30: 0
A31: Other Gains | C31: 68979213.68 | E31: 0 | F31: 10951067.02 | G31: 14593126.71 | H31: 0 | K31: 0
A32: Discontinued Operations | C32: 0 | E32: 0 | F32: 0 | G32: 0 | H32: 0 | K32: 0
A33: Total Revenue (excluding capital transfers and contributions) | C33: =SUM(C7:C20)+SUM(C22:C32) -> 6566800388 | D33: =SUM(D7:D20)+SUM(D22:D32) -> 8963903223 | E33: 8970488108 | F33: =SUM(F7:F20)+SUM(F22:F32) -> 685606270.7 | G33: =SUM(G7:G20)+SUM(G22:G32) -> 7588011307 | H33: =SUM(H7:H20)+SUM(H22:H32) -> 8970488108 | I33: =G33-H33 -> -1382476801 | J33: -0.1541138881 | K33: =SUM(K7:K20)+SUM(K22:K32) -> 8970488108
A34: Expenditure By Type
A35: Employee related costs | C35: 1612918315 | D35: 1860538235 | E35: 1786363095 | F35: 129042639.4 | G35: 1610413655 | H35: =E35/12*12 -> 1786363095 | I35: =G35-H35 -> -175949439.5 | J35: =IF(I35=0,"",I35/H35) -> -0.0984958993 | K35: =E35 -> 1786363095
A36: Remuneration of councillors | C36: 63542011.59 | D36: 66461931.11 | E36: 66461931.11 | F36: 4850851.44 | G36: 58364731.32 | H36: 66461931.11 | I36: -8097199.791 | J36: -0.1218321474 | K36: 66461931.11
A37: Bulk purchases - electricity | C37: 2714396462 | D37: 3145118900 | E37: 3145118900 | F37: 12066069.75 | G37: 2710967437 | H37: 3145118900 | I37: -434151463.4 | J37: -0.1380397617 | K37: 3145118900
A38: Inventory consumed | C38: 877661985.2 | D38: 993409214.4 | E38: 755385143 | F38: 134140335.2 | G38: 1168101524 | H38: 755385143 | I38: 412716380.7 | J38: 0.5463654991 | K38: 755385143
A39: Debt impairment | C39: 1165621498 | D39: 636000000 | E39: 636000000 | F39: 471103.1 | G39: 15911315.3 | H39: 636000000 | I39: -620088684.7 | J39: -0.9749822086 | K39: 636000000
A40: Depreciation and amortisation | C40: 361847777 | D40: 363040744.5 | E40: 363040744.5 | F40: -38575982.8 | G40: 330280100.4 | H40: 363040744.5 | I40: -32760644.05 | J40: -0.0902395793 | K40: 363040744.5
A41: Interest | C41: 93766992.16 | D41: 42824930.71 | E41: 37824930 | F41: 9571032.86 | G41: 59315662.13 | H41: 37824930 | I41: 21490732.13 | J41: 0.5681631699 | K41: 37824930
A42: Contracted services | C42: 918169101.6 | D42: 1024663415 | E42: 818471062 | F42: 221413784 | G42: 972983306.7 | H42: 818471062 | I42: 154512244.7 | J42: 0.188781561 | K42: 818471062
A43: Transfers and subsidies | C43: 28449502.91 | D43: 52375752.46 | E43: 52375752.46 | F43: 2041997.98 | G43: 38099327.72 | H43: 52375752.46 | I43: -14276424.74 | J43: -0.2725769859 | K43: 52375752.46
A44: Irrecoverable debts written off | C44: 0 | E44: 0 | F44: 0 | G44: 0 | H44: 0 | I44: 0 | K44: 0
A45: Operational costs | C45: 220593407.6 | D45: 195836780 | E45: 209398144 | F45: 12120795.66 | G45: 196488343.1 | H45: 209398144 | I45: -12909800.92 | J45: -0.06165193575 | K45: 209398144
A46: Losses on disposal of Assets | C46: 0 | E46: 0 | F46: 0 | G46: 0 | H46: 0
A47: Other Losses | C47: 44272041.42 | E47: 0 | F47: 805460.51 | G47: 1002223.03 | H47: 0
A48: Total Expenditure | C48: =SUM(C35:C47) -> 8101239095 | D48: =SUM(D35:D47) -> 8380269902 | E48: 7870439702 | F48: 487948087.1 | G48: 7161927625 | H48: 7870439702 | I48: -708512076.6 | J48: -0.09002191789 | K48: =SUM(K35:K47) -> 7870439702
A49: ='[2]C4-FinPerf RE'!A49 -> Surplus/(Deficit) | C49: =C33-C48 -> -1534438706 | D49: 583633320.9 | E49: 1100048406 | F49: 197658183.6 | G49: 426083681.8 | H49: 1100048406 | I49: -673964723.9 | J49: -0.612668243 | K49: =K33-K48 -> 1100048406
A50: ='[2]C4-FinPerf RE'!A50 -> Transfers and subsidies - capital (monetary allocations) | C50: 428104993.8 | D50: 456974891 | E50: 477925972.5 | F50: 128603664.4 | G50: 394230584.2 | H50: =E50/12*12 -> 477925972.5 | I50: -83695388.32 | J50: -0.1751220757 | K50: =E50 -> 477925972.5
A51: ='[2]C4-FinPerf RE'!A51 -> Transfers and subsidies - capital (in-kind) | F51: 0 | G51: 0 | I51: 0
A52: ='[2]C4-FinPerf RE'!A52 -> Surplus/(Deficit) after capital transfers & contributions | C52: =C49+SUM(C50:C51) -> -1106333713 | D52: 1040608212 | E52: 1577974378 | F52: 326261848 | G52: 820314266 | H52: 1577974378 | I52: -757660112.3 | J52: -0.4801472842 | K52: =K49+SUM(K50:K51) -> 1577974378
A53: ='[2]C4-FinPerf RE'!A53 -> Income Tax | I53: 0
A54: ='[2]C4-FinPerf RE'!A54 -> Surplus/(Deficit) after income tax | C54: =C52-C53 -> -1106333713 | D54: 1040608212 | E54: 1577974378 | F54: 326261848 | G54: 820314266 | H54: 1577974378 | I54: -757660112.3 | J54: -0.4801472842 | K54: =K52-K53 -> 1577974378
A55: =head27a -> References
A56: 1. Votes (consolidated) are revenue sources and expenditure type

Sheet SC11
A1: =muni& " - "&S71Q& " - "&Head57 -> KZN225 Msunduzi - Supporting Table SC11 Monthly Budget Statement - summary of municipal entities - Q4 Fourth Quarter
A2: =desc -> Description | B2: =head27 -> Ref | C2: =Head1 -> 2023/24 | D2: =Head2 -> Budget Year 2024/25
C3: =Head5 -> Audited Outcome | D3: =Head6 -> Original Budget | E3: =Head7 -> Adjusted Budget | F3: =Head38 -> Monthly actual | G3: =Head39 -> YearTD actual | H3: =Head40 -> YearTD budget | I3: =Head41 -> YTD variance | J3: =Head41 -> YTD variance | K3: =Head8 -> Full Year Forecast
A4: R thousands | J4: %
A5: Revenue By Municipal Entity
A6: Insert name of municipal entity | I6: =G6-H6 -> 0 | J6: =IF(I6=0,"",I6/H6) -> 
I7: 0 | J7: =IF(I7=0,"",I7/H7) -> 
I8: 0
I9: 0
I10: 0
I11: 0
I12: 0
I13: 0
I14: 0
I15: 0
A16: Total Operating Revenue | B16: 1 | C16: =SUM(C6:C15) -> 0 | D16: 0 | E16: 0 | F16: 0 | G16: 0 | H16: 0 | I16: 0 | K16: =SUM(K6:K15) -> 0
A18: Expenditure By Municipal Entity
A19: =A6 -> Insert name of municipal entity | I19: 0 | J19: =IF(I19=0,"",I19/H19) -> 
A20: =IF(A7="","",A7) ->  | I20: 0
A21: =IF(A8="","",A8) ->  | I21: 0
I22: 0
I23: 0
I24: 0
I25: 0
I26: 0
I27: 0
I28: 0
A29: Total Operating Expenditure | B29: 2 | C29: =SUM(C19:C28) -> 0 | D29: 0 | E29: 0 | F29: 0 | G29: 0 | H29: 0 | I29: 0 | K29: =SUM(K19:K28) -> 0
A31: =Head42 -> Surplus/ (Deficit) for the yr/period | C31: =C16-C29 -> 0 | D31: =D16-D29 -> 0 | E31: 0 | F31: 0 | G31: 0 | H31: 0 | I31: =I16+I29 -> 0 | K31: 0
A32: Capital Expenditure By Municipal Entity
A33: =$A$6 -> Insert name of municipal entity | I33: 0
A34: =IF(A7="","",A7) ->  | I34: 0
A35: =IF(A8="","",A8) ->  | I35: 0
I36: 0
I37: 0
I38: 0
I39: 0
I40: 0
I41: 0
A43: Total Capital Expenditure | B43: 3 | C43: =SUM(C32:C42) -> 0 | D43: =SUM(D32:D42) -> 0 | E43: 0 | F43: 0 | G43: 0 | H43: =SUM(H32:H42) -> 0 | I43: =G43-H43 -> 0 | K43: 0
A44: =head27a -> References
A45: 1. Must reconcile to the sum of all municipal entity monthly revenue reports
A46: 2. Must reconcile to the sum of all municipal entity monthly expenditure reports
A47: 3. YTD = Year to date; FAV - favourable variance or unfavourable variance
A48: 4. Material variances to be explained
A49: 5. Insert additional 'Adjustment' Budget column for each Adjustment made by an entity

Sheet SC12
A1: =muni& " - "&S71R& " - "&Head57 -> KZN225 Msunduzi - Supporting Table SC12 Consolidated Monthly Budget Statement - capital expenditure trend - Q4 Fourth Quarter
A2: Month | B2: =Head1 -> 2023/24 | C2: =Head2 -> Budget Year 2024/25
B3: =Head5 -> Audited Outcome | C3: =Head6 -> Original Budget | D3: =Head7 -> Adjusted Budget | E3: =Head38 -> Monthly actual | F3: =Head39 -> YearTD actual | G3: =Head40 -> YearTD budget | H3: =Head41 -> YTD variance | I3: =Head41 -> YTD variance | J3: % spend of Original Budget
A4: R thousands | I4: %
A5: Monthly expenditure performance trend
A6: July | B6: 60525810.48 | C6: 68896995.03 | D6: 66420732.94 | E6: 5549084.69 | F6: =IF(E6>0,E6,"") -> 5549084.69 | G6: =IF(D6>0,D6,C6) -> 66420732.94 | H6: =IF(F6="",0,G6-F6) -> 60871648.25 | I6: =IF(F6="","",IF(H6=0,"",H6/G6)) -> 0.9164555336 | J6: =IF(F6="","",F6/$C$18) -> 0.00671181267
A7: August | B7: 60525810.48 | C7: 68896995.03 | D7: 66420732.94 | E7: 51359035.14 | F7: =IF(E7>0,E7+F6,"") -> 56908119.83 | G7: =IF(D7>0,D7+D6,C7+C6) -> 132841465.9 | H7: 75933346.05 | I7: 0.5716087635 | J7: 0.06883236804
A8: September | B8: 60525810.48 | C8: 68896995.03 | D8: 66420732.94 | E8: 35533561.71 | F8: =IF(E8>0,E8+F7,"") -> 92441681.54 | G8: =IF(D8>0,D8+G7,C8+G7) -> 199262198.8 | H8: 106820517.3 | I8: 0.5360801894 | J8: 0.1118114579
A9: October | B9: 60525810.48 | C9: 68896995.03 | D9: 66420732.94 | E9: 45655179.68 | F9: 138096861.2 | G9: =IF(D9>0,D9+G8,C9+G8) -> 265682931.8 | H9: 127586070.5 | I9: 0.4802192963 | J9: 0.167033
A10: November | B10: 60525810.48 | C10: 68896995.03 | D10: 66420732.94 | E10: 74407085.36 | F10: 212503946.6 | G10: 332103664.7 | H10: 119599718.1 | I10: 0.3601276674 | J10: 0.2570309809
A11: December | B11: 60525810.48 | C11: 68896995.03 | D11: 66420732.94 | E11: 73216910.69 | F11: 285720857.3 | G11: 398524397.6 | H11: 112803540.4 | I11: 0.2830530352 | J11: 0.3455894038
A12: January | B12: 60525810.48 | C12: 68896995.03 | D12: 66420732.94 | E12: 49565599.64 | F12: 335286456.9 | G12: 464945130.6 | H12: 129658673.7 | I12: 0.2788687635 | J12: 0.405540736
A13: February | B13: 60525810.48 | C13: 68896995.03 | D13: 66420732.94 | E13: 32730156.54 | F13: 368016613.4 | G13: 531365863.5 | H13: 163349250.1 | I13: 0.3074138955 | J13: 0.445129009
A14: March | B14: 60525810.48 | C14: 68896995.03 | D14: 66420732.94 | E14: 27798237.69 | F14: 395814851.1 | G14: 597786596.4 | H14: 201971745.3 | I14: 0.3378659651 | J14: 0.478751953
A15: April | B15: 60525810.48 | C15: 68896995.03 | D15: 66420732.94 | E15: 35834670.46 | F15: 431649521.6 | G15: 664207329.4 | H15: 232557807.8 | I15: 0.3501283372 | J15: 0.5220952445
A16: May | B16: 60525810.48 | C16: 68896995.03 | D16: 66420732.94 | E16: 71406669.32 | F16: 503056190.9 | G16: 730628062.3 | H16: 227571871.4 | I16: 0.3114743098 | J16: 0.6084641169
A17: June | B17: 60525810.48 | C17: 68896995.03 | D17: 66420732.94 | E17: 283794016.1 | F17: 786850207 | G17: 797048795.3 | H17: =IF(F17="",0,G17-F17) -> 10198588.21 | I17: =IF(F17="","",IF(H17=0,"",H17/G17)) -> 0.01279543771 | J17: =IF(F17="","",F17/$C$18) -> 0.9517229388
A18: Total Capital expenditure | B18: =SUM(B6:B17) -> 726309725.8 | C18: =SUM(C6:C17) -> 826763940.4 | D18: =SUM(D6:D17) -> 797048795.3 | E18: =SUM(E6:E17) -> 786850207

Sheet SC13a
A1: =muni& " - "&S71Sa& " - "&Head57 -> KZN225 Msunduzi - Supporting Table SC13a Consolidated Monthly Budget Statement - capital expenditure on new assets by asset class - Q4 Fourth Quarter
A2: =desc -> Description | B2: =head27 -> Ref | C2: =Head1 -> 2023/24 | D2: =Head2 -> Budget Year 2024/25
C3: =Head5 -> Audited Outcome | D3: =Head6 -> Original Budget | E3: =Head7 -> Adjusted Budget | F3: =Head38 -> Monthly actual | G3: =Head39 -> YearTD actual | H3: =Head40 -> YearTD budget | I3: =Head41 -> YTD variance | J3: =Head41 -> YTD variance | K3: =Head8 -> Full Year Forecast
A4: R thousands | B4: 1 | J4: %
A5: Capital expenditure on new assets by Asset Class/Sub-class
A7: Infrastructure | C7: =C8+C13+C17+C27+C38+C45+C53+C63+C69 -> 105400767.6 | D7: 321996662.3 | E7: 312760375 | F7: 32735919.75 | G7: 115038800 | H7: 312760375 | I7: =H7-G7 -> 197721575 | J7: =IF(I7=0,"",I7/H7) -> 0.6321823056 | K7: =K8+K13+K17+K27+K38+K45+K53+K63+K69 -> 312760375
A8: Roads Infrastructure | C8: =SUM(C9:C12) -> 747805.68 | D8: 35420143.91 | E8: 33747438.91 | F8: 1771490.03 | G8: 2293555.96 | H8: 33747438.91 | I8: 31453882.95 | J8: 0.9320376291 | K8: =SUM(K9:K12) -> 33747438.91
A9: Roads | C9: 747805.68 | D9: 35420143.91 | E9: 33747438.91 | F9: 1771490.03 | G9: 2293555.96 | H9: =E9/12*12 -> 33747438.91 | I9: 31453882.95 | J9: 0.9320376291 | K9: =E9 -> 33747438.91
A10: Road Structures | I10: 0
A11: Road Furniture | I11: 0
A12: Capital Spares | I12: 0
A13: Storm water Infrastructure | C13: =SUM(C14:C16) -> 0 | D13: 0 | E13: 0 | F13: 0 | G13: 0 | H13: 0 | I13: 0 | K13: =SUM(K14:K16) -> 0
A14: Drainage Collection | I14: 0
A15: Storm water Conveyance | I15: 0
A16: Attenuation | I16: 0
A17: Electrical Infrastructure | C17: =SUM(C18:C26) -> 62042024.37 | D17: 203032551.7 | E17: 165062806 | F17: 9235208.56 | G17: 44243235.93 | H17: 165062806 | I17: 120819570.1 | J17: 0.7319612031 | K17: =SUM(K18:K26) -> 165062806
A18: Power Plants | C18: 62042024.37 | D18: 203032551.7 | E18: 165062806 | F18: 9235208.56 | G18: 44243235.93 | H18: =E18/12*12 -> 165062806 | I18: 120819570.1 | J18: 0.7319612031 | K18: =E18 -> 165062806
A19: HV Substations | I19: 0
A20: HV Switching Station | I20: 0
A21: HV Transmission Conductors | I21: 0
A22: MV Substations | I22: 0
A23: MV Switching Stations | I23: 0
A24: MV Networks | I24: 0
A25: LV Networks | I25: 0
A26: Capital Spares | I26: 0
A27: Water Supply Infrastructure | C27: =SUM(C28:C37) -> 16016642.97 | D27: 5320000 | E27: 30772009 | F27: 1086282.61 | G27: 20726854.15 | H27: 30772009 | I27: 10045154.85 | J27: 0.3264380577 | K27: =SUM(K28:K37) -> 30772009
A28: Dams and Weirs | I28: 0
A29: Boreholes | I29: 0 | K29: =D29 -> 0
A30: Reservoirs | C30: 16016642.97 | D30: 5320000 | E30: 30772009 | F30: 1086282.61 | G30: 20726854.15 | H30: =E30/12*12 -> 30772009 | I30: 10045154.85 | J30: 0.3264380577 | K30: =E30 -> 30772009
A31: Pump Stations | I31: 0
A32: Water Treatment Works | I32: 0
A33: Bulk Mains | I33: 0
A34: Distribution | I34: 0
A35: Distribution Points | I35: 0
A36: PRV Stations | I36: 0
A37: Capital Spares | I37: 0
A38: Sanitation Infrastructure | C38: =SUM(C39:C44) -> 26594294.6 | D38: 78223966.7 | E38: 83178121.04 | F38: 20642938.55 | G38: 47775153.96 | H38: 83178121.04 | I38: 35402967.08 | J38: 0.425628358 | K38: =SUM(K39:K44) -> 83178121.04
A39: Pump Station | I39: 0
A40: Reticulation | C40: 26594294.6 | D40: 78223966.7 | E40: 83178121.04 | F40: 20642938.55 | G40: 47775153.96 | H40: =E40/12*12 -> 83178121.04 | I40: =H40-G40 -> 35402967.08 | J40: =IF(I40=0,"",I40/H40) -> 0.425628358 | K40: =E40 -> 83178121.04
A41: Waste Water Treatment Works | I41: =H41-G41 -> 0 | J41: =IF(I41=0,"",I41/H41) -> 
A42: Outfall Sewers | I42: =H42-G42 -> 0 | J42: =IF(I42=0,"",I42/H42) -> 
A43: Toilet Facilities | I43: 0
A44: Capital Spares | I44: 0
A45: Solid Waste Infrastructure | C45: =SUM(C46:C52) -> 0 | D45: 0 | E45: 0 | F45: 0 | G45: 0 | H45: 0 | I45: 0 | K45: =SUM(K46:K52) -> 0
A46: Landfill Sites | I46: 0
A47: Waste Transfer Stations | I47: 0
A48: Waste Processing Facilities | I48: =H48-G48 -> 0 | J48: =IF(I48=0,"",I48/H48) -> 
A49: Waste Drop-off Points | I49: 0
A50: Waste Separation Facilities | I50: 0
A51: Electricity Generation Facilities | I51: 0
A52: Capital Spares | I52: 0
A53: Rail Infrastructure | C53: =SUM(C54:C62) -> 0 | D53: 0 | E53: 0 | F53: 0 | G53: 0 | H53: 0 | I53: 0 | K53: =SUM(K54:K62) -> 0
A54: Rail Lines | I54: 0
A55: Rail Structures | I55: 0
A56: Rail Furniture | I56: 0
A57: Drainage Collection | I57: 0
A58: Storm water Conveyance | I58: 0
A59: Attenuation | I59: 0
A60: MV Substations | I60: 0
A61: LV Networks | I61: 0
A62: Capital Spares | I62: 0
A63: Coastal Infrastructure | C63: =SUM(C64:C68) -> 0 | D63: 0 | E63: 0 | F63: 0 | G63: 0 | H63: 0 | I63: 0 | K63: =SUM(K64:K68) -> 0
A64: Sand Pumps | I64: 0
A65: Piers | I65: 0
A66: Revetments | I66: 0
A67: Promenades | I67: 0
A68: Capital Spares | I68: 0
A69: Information and Communication Infrastructure | C69: =SUM(C70:C73) -> 0 | D69: 0 | E69: 0 | F69: 0 | G69: 0 | H69: 0 | I69: =H69-G69 -> 0 | K69: =SUM(K70:K73) -> 0
A70: Data Centres | I70: =H70-G70 -> 0
A71: Core Layers | I71: =H71-G71 -> 0 | J71: =IF(I71=0,"",I71/H71) -> 
A72: Distribution Layers | I72: =H72-G72 -> 0
A73: Capital Spares | I73: =H73-G73 -> 0
A75: Community Assets | C75: =+C76+C99 -> 14775708.37 | D75: 17641943.08 | E75: 17723436.08 | F75: 1387402.47 | G75: 3818269.88 | H75: 17723436.08 | I75: =H75-G75 -> 13905166.2 | J75: 0.784563791 | K75: =+K76+K99 -> 17723436.08
A76: Community Facilities | C76: =SUM(C77:C98) -> 14775708.37 | D76: 17641943.08 | E76: 17723436.08 | F76: 1387402.47 | G76: 3818269.88 | H76: 17723436.08 | I76: =H76-G76 -> 13905166.2 | J76: 0.784563791 | K76: =SUM(K77:K98) -> 17723436.08
A77: Halls | C77: 13711490.32 | D77: 17641943.08 | E77: 17723436.08 | F77: 1387402.47 | G77: 3818269.88 | H77: =E77/12*12 -> 17723436.08 | I77: 13905166.2 | J77: 0.784563791 | K77: =E77 -> 17723436.08
A78: Centres | I78: 0
A79: Crèches | I79: 0
A80: Clinics/Care Centres | I80: 0
A81: Fire/Ambulance Stations | I81: 0
A82: Testing Stations | I82: 0
A83: Museums | I83: 0
A84: Galleries | I84: 0
A85: Theatres | I85: 0
A86: Libraries | I86: 0
A87: Cemeteries/Crematoria | I87: 0
A88: Police | C88: 1064218.05 | I88: 0
A89: Purls | I89: 0
A90: Public Open Space | I90: 0
A91: Nature Reserves | I91: 0
A92: Public Ablution Facilities | I92: 0
A93: Markets | I93: 0
A94: Stalls | I94: 0
A95: Abattoirs | I95: 0
A96: Airports | I96: 0
A97: Taxi Ranks/Bus Terminals | I97: 0
A98: Capital Spares | I98: 0
A99: Sport and Recreation Facilities | C99: =SUM(C100:C102) -> 0 | D99: 0 | E99: 0 | F99: 0 | G99: 0 | H99: 0 | I99: 0 | K99: =SUM(K100:K102) -> 0
A100: Indoor Facilities | I100: 0
A101: Outdoor Facilities | I101: 0
A102: Capital Spares | I102: 0
A103: Heritage assets | C103: =SUM(C104:C108) -> 0 | D103: 0 | E103: 0 | F103: 0 | G103: 0 | H103: 0 | I103: 0 | K103: =SUM(K104:K108) -> 0
A104: Monuments | I104: 0
A105: Historic Buildings | I105: 0
A106: Works of Art | I106: 0
A107: Conservation Areas | I107: 0
A108: Other Heritage | I108: 0
I109: 0
A110: Investment properties | C110: =+C111+C114 -> 0 | D110: 0 | E110: 0 | F110: 0 | G110: 0 | H110: 0 | I110: 0 | K110: =+K111+K114 -> 0
A111: Revenue Generating | C111: =SUM(C112:C113) -> 0 | D111: 0 | E111: 0 | F111: 0 | G111: 0 | H111: 0 | I111: 0 | K111: =SUM(K112:K113) -> 0
A112: Improved Property | I112: 0
A113: Unimproved Property | I113: 0
A114: Non-revenue Generating | C114: =SUM(C115:C116) -> 0 | D114: 0 | E114: 0 | F114: 0 | G114: 0 | H114: 0 | I114: 0 | K114: =SUM(K115:K116) -> 0
A115: Improved Property | I115: 0
A116: Unimproved Property | I116: 0
A117: Other assets | C117: =+C118+C130 -> 72439697.62 | D117: 69017472.58 | E117: 112796758.2 | F117: 18224645.19 | G117: 91724425.64 | H117: 112796758.2 | I117: 21072332.51 | J117: 0.1868168275 | K117: =+K118+K130 -> 112796758.2
A118: Operational Buildings | C118: =SUM(C119:C129) -> 20692920.9 | D118: 4499000 | E118: 34407986.91 | F118: 242747.74 | G118: 26709571.46 | H118: 34407986.91 | I118: 7698415.45 | J118: 0.2237391996 | K118: =SUM(K119:K129) -> 34407986.91
A119: Municipal Offices | C119: 20692920.9 | D119: 4499000 | E119: 34407986.91 | F119: 242747.74 | G119: 26709571.46 | H119: =E119/12*12 -> 34407986.91 | I119: 7698415.45 | J119: 0.2237391996 | K119: =E119 -> 34407986.91
A120: Pay/Enquiry Points | I120: 0
A121: Building Plan Offices | I121: 0
A122: Workshops | I122: 0
A123: Yards | I123: 0
A124: Stores | I124: 0
A125: Laboratories | I125: 0
A126: Training Centres | I126: 0
A127: Manufacturing Plant | I127: 0
A128: Depots | I128: 0
A129: Capital Spares | I129: 0
A130: Housing | C130: =SUM(C131:C133) -> 51746776.72 | D130: 64518472.58 | E130: 78388771.24 | F130: 17981897.45 | G130: 65014854.18 | H130: 78388771.24 | I130: 13373917.06 | J130: 0.1706101122 | K130: =SUM(K131:K133) -> 78388771.24
A131: Staff Housing | I131: 0
A132: Social Housing | C132: 51746776.72 | D132: 64518472.58 | E132: 78388771.24 | F132: 17981897.45 | G132: 65014854.18 | H132: =E132/12*12 -> 78388771.24 | I132: 13373917.06 | J132: 0.1706101122 | K132: =E132 -> 78388771.24
A133: Capital Spares | I133: 0
A135: Biological or Cultivated Assets | C135: =SUM(C136:C136) -> 0 | D135: 0 | E135: 0 | F135: 0 | G135: 0 | H135: 0 | I135: =H135-G135 -> 0 | J135: =IF(I135=0,"",I135/H135) ->  | K135: =SUM(K136) -> 0
A136: Biological or Cultivated Assets | I136: =H136-G136 -> 0
A138: Intangible Assets | C138: =SUM(C139:C140) -> 5919964.93 | D138: 25900000 | E138: 25650000 | F138: 140775.46 | G138: 12362086.28 | H138: 25650000 | I138: =H138-G138 -> 13287913.72 | J138: 0.5180473185 | K138: =SUM(K139:K140) -> 25650000
A139: Servitudes | C139: 5919964.93 | D139: 25000000 | E139: 25650000 | F139: 140775.46 | G139: 12362086.28 | H139: =E139/12*12 -> 25650000 | I139: 13287913.72 | J139: 0.5180473185 | K139: =E139 -> 25650000
A140: Licences and Rights | C140: =SUM(C141:C146) -> 0 | D140: 900000 | E140: 0 | F140: 0 | G140: 0 | H140: 0 | I140: 0 | K140: =SUM(K141:K146) -> 0
A141: Water Rights | I141: 0
A142: Effluent Licenses | I142: 0
A143: Solid Waste Licenses | I143: 0
A144: Computer Software and Applications | D144: 900000 | H144: =E144/12*8 -> 0 | I144: 0 | K144: =E144 -> 0
A145: Load Settlement Software Applications | I145: 0
A146: Unspecified | I146: 0
A148: Computer Equipment | C148: =SUM(C149:C149) -> 0 | D148: 0 | E148: 0 | F148: 0 | G148: 0 | H148: 0 | I148: =H148-G148 -> 0 | J148: =IF(I148=0,"",I148/H148) ->  | K148: =SUM(K149) -> 0
A149: Computer Equipment | I149: =H149-G149 -> 0 | J149: =IF(I149=0,"",I149/H149) -> 
A151: Furniture and Office Equipment | C151: =SUM(C152:C152) -> 21418725.02 | D151: 77515559.01 | E151: 30848953 | F151: 3960867.9 | G151: 20915595.72 | H151: 30848953 | I151: =H151-G151 -> 9933357.28 | J151: =IF(I151=0,"",I151/H151) -> 0.3219998189 | K151: =SUM(K152) -> 30848953
A152: Furniture and Office Equipment | C152: 21418725.02 | D152: 77515559.01 | E152: 30848953 | F152: 3960867.9 | G152: 20915595.72 | H152: =E152/12*12 -> 30848953 | I152: =H152-G152 -> 9933357.28 | J152: =IF(I152=0,"",I152/H152) -> 0.3219998189 | K152: =E152 -> 30848953
J153: =IF(I153=0,"",I153/H153) -> 
A154: Machinery and Equipment | C154: =SUM(C155:C155) -> 46679332.63 | D154: 44223050 | E154: 74524481 | F154: 25852382.63 | G154: 62130581.68 | H154: 74524481 | I154: =H154-G154 -> 12393899.32 | J154: =IF(I154=0,"",I154/H154) -> 0.1663064157 | K154: =SUM(K155) -> 74524481
A155: Machinery and Equipment | C155: 46679332.63 | D155: 44223050 | E155: 74524481 | F155: 25852382.63 | G155: 62130581.68 | H155: =E155/12*12 -> 74524481 | I155: =H155-G155 -> 12393899.32 | J155: =IF(I155=0,"",I155/H155) -> 0.1663064157 | K155: =E155 -> 74524481
A157: Transport Assets | C157: =SUM(C158:C158) -> 39607816.57 | D157: 18800000 | E157: 17600000 | F157: 18443035.12 | G157: 25469926.48 | H157: 17600000 | I157: =H157-G157 -> -7869926.48 | J157: =IF(I157=0,"",I157/H157) -> -0.4471549136 | K157: =SUM(K158) -> 17600000
A158: Transport Assets | C158: 39607816.57 | D158: 18800000 | E158: 17600000 | F158: 18443035.12 | G158: 25469926.48 | H158: =E158/12*12 -> 17600000 | I158: =H158-G158 -> -7869926.48 | J158: =IF(I158=0,"",I158/H158) -> -0.4471549136 | K158: =E158 -> 17600000
A160: Land | C160: =SUM(C161:C161) -> 0 | D160: 0 | E160: 0 | F160: 0 | G160: 0 | H160: 0 | I160: =H160-G160 -> 0 | J160: =IF(I160=0,"",I160/H160) ->  | K160: =SUM(K161) -> 0
A161: Land | I161: =H161-G161 -> 0 | J161: =IF(I161=0,"",I161/H161) -> 
A163: Zoo's, Marine and Non-biological Animals | C163: =SUM(C164:C164) -> 0 | D163: 0 | E163: 0 | F163: 0 | G163: 0 | H163: 0 | I163: =H163-G163 -> 0 | J163: =IF(I163=0,"",I163/H163) ->  | K163: =SUM(K164) -> 0
A164: Zoo's, Marine and Non-biological Animals | I164: =H164-G164 -> 0 | J164: =IF(I164=0,"",I164/H164) -> 
A166: Living resources | C166: =+C167+C170 -> 0 | D166: 0 | E166: 0 | F166: 0 | G166: 0 | H166: 0 | I166: =H166-G166 -> 0 | J166: =IF(I166=0,"",I166/H166) ->  | K166: 0
A167: Mature | C167: =+C168+C169 -> 0 | D167: 0 | E167: 0 | F167: 0 | G167: 0 | H167: 0 | I167: 0 | K167: 0
A168: Policing and Protection | I168: 0
A169: Zoological plants and animals | I169: 0
A170: Immature | C170: =+C171+C172 -> 0 | D170: =+D171+D172 -> 0 | E170: 0 | F170: 0 | G170: 0 | H170: 0 | I170: 0 | K170: =+K171+K172 -> 0
A171: Policing and Protection | I171: 0
A172: Zoological plants and animals | I172: 0
A173: Total Capital Expenditure on new assets | B173: 1 | C173: =C7+C75+C103+C110+C117+C135+C138+C148+C151+C154+C157+C160+C163+C166 -> 306242012.8 | D173: 575094687 | E173: 591904003.2 | F173: 100745028.5 | G173: 331459685.7 | H173: 591904003.2 | I173: =H173-G173 -> 260444317.5 | J173: =IF(I173=0,"",I173/H173) -> 0.4400110763 | K173: =K7+K75+K103+K110+K117+K135+K138+K148+K151+K154+K157+K160+K163+K166 -> 591904003.2
A175: =head27a -> References
A176: 1. Total Capital Expenditure on new assets (SC13a) plus Total Capital Expenditure on renewal of existing assets (SC13b) plus Total Capital Expenditure on upgrading of existing assets (SC13e) must reconcile to total capital expenditure in Table C5
A178: check balance | C178: =C173+SC13b!C173+SC13e!C173-'C5-Capex'!C40 -> 0 | D178: =D173+SC13b!D173+SC13e!D173-'C5-Capex'!D40 -> 0 | E178: =E173+SC13b!E173+SC13e!E173-'C5-Capex'!E40 -> 0 | F178: =F173+SC13b!F173+SC13e!F173-'C5-Capex'!F40 -> 0 | G178: =G173+SC13b!G173+SC13e!G173-'C5-Capex'!G40 -> 0 | H178: =H173+SC13b!H173+SC13e!H173-'C5-Capex'!H40 -> 0 | K178: =K173+SC13b!K173+SC13e!K173-'C5-Capex'!K40 -> 0

Sheet SC13b
A1: =muni& " - "&S71Sb& " - "&Head57 -> KZN225 Msunduzi - Supporting Table SC13b Consolidated Monthly Budget Statement - capital expenditure on renewal of existing assets by asset class - Q4 Fourth Quarter
A2: =desc -> Description | B2: =head27 -> Ref | C2: =Head1 -> 2023/24 | D2: =Head2 -> Budget Year 2024/25
C3: =Head5 -> Audited Outcome | D3: =Head6 -> Original Budget | E3: =Head7 -> Adjusted Budget | F3: =Head38 -> Monthly actual | G3: =Head39 -> YearTD actual | H3: =Head40 -> YearTD budget | I3: =Head41 -> YTD variance | J3: =Head41 -> YTD variance | K3: =Head8 -> Full Year Forecast
A4: R thousands | B4: 1 | J4: %
A5: Capital expenditure on renewal of existing assets by Asset Class/Sub-class
A7: Infrastructure | C7: =C8+C13+C17+C27+C38+C45+C53+C63+C69 -> 107513491.7 | D7: 34231493 | E7: 36196157.37 | F7: 25646761.73 | G7: 155355869.1 | H7: 36196157.37 | I7: =H7-G7 -> -119159711.7 | J7: =IF(I7=0,"",I7/H7) -> -3.292054194 | K7: =K8+K13+K17+K27+K38+K45+K53+K63+K69 -> 36196157.37
A8: Roads Infrastructure | C8: =SUM(C9:C12) -> 102700749 | D8: 29231493 | E8: 26296157.13 | F8: 20571528.28 | G8: 149075687.5 | H8: 26296157.13 | I8: -122779530.4 | J8: -4.669105443 | K8: =SUM(K9:K12) -> 26296157.13
A9: Roads | C9: 102700749 | D9: 29231493 | E9: 26296157.13 | F9: 20571528.28 | G9: 149075687.5 | H9: =E9/12*12 -> 26296157.13 | I9: -122779530.4 | J9: -4.669105443 | K9: =E9 -> 26296157.13
A10: Road Structures | I10: 0
A11: Road Furniture | I11: 0
A12: Capital Spares | I12: 0
A13: Storm water Infrastructure | C13: =SUM(C14:C16) -> 0 | D13: 0 | E13: 0 | F13: 0 | G13: 0 | H13: 0 | I13: 0 | K13: =SUM(K14:K16) -> 0
A14: Drainage Collection | I14: 0
A15: Storm water Conveyance | I15: 0
A16: Attenuation | I16: 0
A17: Electrical Infrastructure | C17: =SUM(C18:C26) -> 0 | D17: 0 | E17: 4900000.24 | F17: 1652359.3 | G17: 2857307.38 | H17: 4900000.24 | I17: 2042692.86 | J17: 0.4168760735 | K17: =SUM(K18:K26) -> 4900000.24
A18: Power Plants | E18: 4900000.24 | F18: 1652359.3 | G18: 2857307.38 | H18: =E18/12*12 -> 4900000.24 | I18: 2042692.86 | J18: 0.4168760735 | K18: =E18 -> 4900000.24
A19: HV Substations | I19: 0
A20: HV Switching Station | I20: 0
A21: HV Transmission Conductors | I21: 0
A22: MV Substations | I22: 0
A23: MV Switching Stations | I23: 0
A24: MV Networks | I24: 0
A25: LV Networks | I25: 0
A26: Capital Spares | I26: 0
A27: Water Supply Infrastructure | C27: =SUM(C28:C37) -> 4812742.65 | D27: 5000000 | E27: 5000000 | F27: 3422874.15 | G27: 3422874.15 | H27: 5000000 | I27: 1577125.85 | J27: 0.31542517 | K27: =SUM(K28:K37) -> 5000000
A28: Dams and Weirs | I28: 0
A29: Boreholes | I29: 0
A30: Reservoirs | C30: 4812742.65 | D30: 5000000 | E30: 5000000 | F30: 3422874.15 | G30: 3422874.15 | H30: =E30/12*12 -> 5000000 | I30: 1577125.85 | J30: 0.31542517 | K30: =E30 -> 5000000
A31: Pump Stations | I31: 0
A32: Water Treatment Works | I32: 0
A33: Bulk Mains | I33: 0
A34: Distribution | I34: 0
A35: Distribution Points | I35: 0
A36: PRV Stations | I36: 0
A37: Capital Spares | I37: 0
A38: Sanitation Infrastructure | C38: =SUM(C39:C44) -> 0 | D38: 0 | E38: 0 | F38: 0 | G38: 0 | H38: 0 | I38: 0 | K38: =SUM(K39:K44) -> 0
A39: Pump Station | I39: 0
A40: Reticulation | I40: 0
A41: Waste Water Treatment Works | I41: 0
A42: Outfall Sewers | I42: 0
A43: Toilet Facilities | I43: 0
A44: Capital Spares | I44: 0
A45: Solid Waste Infrastructure | C45: =SUM(C46:C52) -> 0 | D45: 0 | E45: 0 | F45: 0 | G45: 0 | H45: 0 | I45: 0 | K45: =SUM(K46:K52) -> 0
A46: Landfill Sites | I46: 0
A47: Waste Transfer Stations | I47: 0
A48: Waste Processing Facilities | I48: 0
A49: Waste Drop-off Points | I49: 0
A50: Waste Separation Facilities | I50: 0
A51: Electricity Generation Facilities | I51: 0
A52: Capital Spares | I52: 0
A53: Rail Infrastructure | C53: =SUM(C54:C62) -> 0 | D53: 0 | E53: 0 | F53: 0 | G53: 0 | H53: 0 | I53: 0 | K53: =SUM(K54:K62) -> 0
A54: Rail Lines | I54: 0
A55: Rail Structures | I55: 0
A56: Rail Furniture | I56: 0
A57: Drainage Collection | I57: 0
A58: Storm water Conveyance | I58: 0
A59: Attenuation | I59: 0
A60: MV Substations | I60: 0
A61: LV Networks | I61: 0
A62: Capital Spares | I62: 0
A63: Coastal Infrastructure | C63: =SUM(C64:C68) -> 0 | D63: 0 | E63: 0 | F63: 0 | G63: 0 | H63: 0 | I63: 0 | K63: =SUM(K64:K68) -> 0
A64: Sand Pumps | I64: 0
A65: Piers | I65: 0
A66: Revetments | I66: 0
A67: Promenades | I67: 0
A68: Capital Spares | I68: 0
A69: Information and Communication Infrastructure | C69: =SUM(C70:C73) -> 0 | D69: 0 | E69: 0 | F69: 0 | G69: 0 | H69: 0 | I69: 0 | K69: =SUM(K70:K73) -> 0
A70: Data Centres | I70: 0
A71: Core Layers | I71: 0
A72: Distribution Layers | I72: 0
A73: Capital Spares | I73: 0
A75: Community Assets | C75: =+C76+C99 -> 0 | D75: 0 | E75: 0 | F75: 0 | G75: 0 | H75: 0 | I75: 0 | K75: =+K76+K99 -> 0
A76: Community Facilities | C76: =SUM(C77:C98) -> 0 | D76: 0 | E76: 0 | F76: 0 | G76: 0 | H76: 0 | I76: 0 | K76: =SUM(K77:K98) -> 0
A77: Halls | I77: 0
A78: Centres | I78: 0
A79: Crèches | I79: 0
A80: Clinics/Care Centres | I80: 0
A81: Fire/Ambulance Stations | I81: 0
A82: Testing Stations | I82: 0
A83: Museums | I83: 0
A84: Galleries | I84: 0
A85: Theatres | I85: 0
A86: Libraries | I86: 0
A87: Cemeteries/Crematoria | I87: 0
A88: Police | I88: 0
A89: Purls | I89: 0
A90: Public Open Space | I90: 0
A91: Nature Reserves | I91: 0
A92: Public Ablution Facilities | I92: 0
A93: Markets | I93: 0
A94: Stalls | I94: 0
A95: Abattoirs | I95: 0
A96: Airports | I96: 0
A97: Taxi Ranks/Bus Terminals | I97: 0
A98: Capital Spares | I98: 0
A99: Sport and Recreation Facilities | C99: =SUM(C100:C102) -> 0 | D99: 0 | E99: 0 | F99: 0 | G99: 0 | H99: 0 | I99: 0 | K99: =SUM(K100:K102) -> 0
A100: Indoor Facilities | I100: 0
A101: Outdoor Facilities | I101: =H101-G101 -> 0 | J101: =IF(I101=0,"",I101/H101) -> 
A102: Capital Spares | I102: 0
A103: Heritage assets | C103: =SUM(C104:C108) -> 0 | D103: 0 | E103: 0 | F103: 0 | G103: 0 | H103: 0 | I103: 0 | K103: =SUM(K104:K108) -> 0
A104: Monuments | I104: 0
A105: Historic Buildings | I105: 0
A106: Works of Art | I106: 0
A107: Conservation Areas | I107: 0
A108: Other Heritage | I108: 0
I109: 0
A110: Investment properties | C110: =+C111+C114 -> 0 | D110: 0 | E110: 0 | F110: 0 | G110: 0 | H110: 0 | I110: 0 | K110: =+K111+K114 -> 0
A111: Revenue Generating | C111: =SUM(C112:C113) -> 0 | D111: 0 | E111: 0 | F111: 0 | G111: 0 | H111: 0 | I111: 0 | K111: =SUM(K112:K113) -> 0
A112: Improved Property | I112: 0
A113: Unimproved Property | I113: 0
A114: Non-revenue Generating | C114: =SUM(C115:C116) -> 0 | D114: 0 | E114: 0 | F114: 0 | G114: 0 | H114: 0 | I114: 0 | K114: =SUM(K115:K116) -> 0
A115: Improved Property | I115: 0
A116: Unimproved Property | I116: =H116-G116 -> 0 | J116: =IF(I116=0,"",I116/H116) -> 
A117: Other assets | C117: =+C118+C130 -> 11253470.61 | D117: 3300000 | E117: 3760000 | F117: 2208441.9 | G117: 2764541.1 | H117: 3760000 | I117: 995458.9 | J117: 0.2647497074 | K117: =+K118+K130 -> 3760000
A118: Operational Buildings | C118: =SUM(C119:C129) -> 11253470.61 | D118: 3300000 | E118: 3760000 | F118: 2208441.9 | G118: 2764541.1 | H118: 3760000 | I118: 995458.9 | J118: 0.2647497074 | K118: =SUM(K119:K129) -> 3760000
A119: Municipal Offices | C119: 11253470.61 | D119: 3300000 | E119: 3750000 | F119: 2208441.9 | G119: 2764541.1 | H119: =E119/12*12 -> 3750000 | I119: 985458.9 | J119: 0.26278904 | K119: =E119 -> 3750000
A120: Pay/Enquiry Points | E120: 0 | H120: 0 | I120: 0
A121: Building Plan Offices | E121: 10000 | H121: 10000 | I121: 10000 | J121: 1 | K121: =E121 -> 10000
A122: Workshops | I122: 0
A123: Yards | I123: 0
A124: Stores | I124: 0
A125: Laboratories | I125: 0
A126: Training Centres | I126: 0
A127: Manufacturing Plant | I127: 0
A128: Depots | I128: 0
A129: Capital Spares | I129: 0
A130: Housing | C130: =SUM(C131:C133) -> 0 | D130: 0 | E130: 0 | F130: 0 | G130: 0 | H130: 0 | I130: 0 | K130: =SUM(K131:K133) -> 0
A131: Staff Housing | I131: 0
A132: Social Housing | I132: 0
A133: Capital Spares | I133: 0
A135: Biological or Cultivated Assets | C135: =SUM(C136:C136) -> 0 | D135: 0 | E135: 0 | F135: 0 | G135: 0 | H135: 0 | I135: =H135-G135 -> 0 | K135: =SUM(K136) -> 0
A136: Biological or Cultivated Assets | I136: =H136-G136 -> 0
J137: =IF(I137=0,"",I137/H137) -> 
A138: Intangible Assets | C138: =SUM(C139:C140) -> 0 | D138: 0 | E138: 0 | F138: 0 | G138: 0 | H138: 0 | I138: =H138-G138 -> 0 | K138: =SUM(K139:K140) -> 0
A139: Servitudes | I139: 0
A140: Licences and Rights | C140: =SUM(C141:C146) -> 0 | D140: 0 | E140: 0 | F140: 0 | G140: 0 | H140: 0 | I140: 0 | K140: =SUM(K141:K146) -> 0
A141: Water Rights | I141: 0
A142: Effluent Licenses | I142: 0
A143: Solid Waste Licenses | I143: 0
A144: Computer Software and Applications | I144: 0
A145: Load Settlement Software Applications | I145: 0
A146: Unspecified | I146: 0
A148: Computer Equipment | C148: =SUM(C149:C149) -> 0 | D148: 0 | E148: 0 | F148: 0 | G148: 0 | H148: 0 | I148: =H148-G148 -> 0 | J148: =IF(I148=0,"",I148/H148) ->  | K148: =SUM(K149) -> 0
A149: Computer Equipment | I149: =H149-G149 -> 0 | J149: =IF(I149=0,"",I149/H149) -> 
A151: Furniture and Office Equipment | C151: =SUM(C152:C152) -> 0 | D151: 0 | E151: 0 | F151: 0 | G151: 0 | H151: 0 | I151: =H151-G151 -> 0 | J151: =IF(I151=0,"",I151/H151) ->  | K151: =SUM(K152) -> 0
A152: Furniture and Office Equipment | I152: =H152-G152 -> 0 | J152: =IF(I152=0,"",I152/H152) -> 
J153: =IF(I153=0,"",I153/H153) -> 
A154: Machinery and Equipment | C154: =SUM(C155:C155) -> 0 | D154: 0 | E154: 0 | F154: 0 | G154: 0 | H154: 0 | I154: =H154-G154 -> 0 | J154: =IF(I154=0,"",I154/H154) ->  | K154: =SUM(K155) -> 0
A155: Machinery and Equipment | I155: =H155-G155 -> 0 | J155: =IF(I155=0,"",I155/H155) -> 
A157: Transport Assets | C157: =SUM(C158:C158) -> 0 | D157: 0 | E157: 0 | F157: 0 | G157: 0 | H157: 0 | I157: =H157-G157 -> 0 | J157: =IF(I157=0,"",I157/H157) ->  | K157: =SUM(K158) -> 0
A158: Transport Assets | I158: =H158-G158 -> 0 | J158: =IF(I158=0,"",I158/H158) -> 
A160: Land | C160: =SUM(C161:C161) -> 0 | D160: 0 | E160: 0 | F160: 0 | G160: 0 | H160: 0 | I160: =H160-G160 -> 0 | J160: =IF(I160=0,"",I160/H160) ->  | K160: =SUM(K161) -> 0
A161: Land | I161: =H161-G161 -> 0 | J161: =IF(I161=0,"",I161/H161) -> 
J162: .
A163: Zoo's, Marine and Non-biological Animals | C163: =SUM(C164:C164) -> 0 | D163: 0 | E163: 0 | F163: 0 | G163: 0 | H163: 0 | I163: =H163-G163 -> 0 | J163: =IF(I163=0,"",I163/H163) ->  | K163: =SUM(K164) -> 0
A164: Zoo's, Marine and Non-biological Animals | I164: =H164-G164 -> 0 | J164: =IF(I164=0,"",I164/H164) -> 
A166: Living resources | C166: =+C167+C170 -> 0 | D166: 0 | E166: 0 | F166: 0 | G166: 0 | H166: 0 | I166: =H166-G166 -> 0 | J166: =IF(I166=0,"",I166/H166) ->  | K166: =+K167+K170 -> 0
A167: Mature | C167: =+C168+C169 -> 0 | D167: 0 | E167: 0 | F167: 0 | G167: 0 | H167: 0 | I167: 0 | K167: =+K168+K169 -> 0
A168: Policing and Protection | I168: 0
A169: Zoological plants and animals | I169: 0
A170: Immature | C170: =+C171+C172 -> 0 | D170: 0 | E170: 0 | F170: 0 | G170: 0 | H170: 0 | I170: 0 | K170: =+K171+K172 -> 0
A171: Policing and Protection | I171: 0
A172: Zoological plants and animals | I172: 0
A173: Total Capital Expenditure on renewal of existing assets | B173: 1 | C173: =C7+C75+C103+C110+C117+C135+C138+C148+C151+C154+C157+C160+C163+C166 -> 118766962.3 | D173: 37531493 | E173: 39956157.37 | F173: 27855203.63 | G173: 158120410.2 | H173: 39956157.37 | I173: =H173-G173 -> -118164252.8 | J173: =IF(I173=0,"",I173/H173) -> -2.957347767 | K173: =K7+K75+K103+K110+K117+K135+K138+K148+K151+K154+K157+K160+K163+K166 -> 39956157.37
A175: =head27a -> References
A176: 1. Total Capital Expenditure on new assets (SC13a) plus Total Capital Expenditure on renewal of existing assets (SC13b) plus Total Capital Expenditure on upgrading of existing assets (SC13e) must reconcile to total capital expenditure in Table C5
A178: check balance | C178: =C173+SC13a!C173+SC13e!C173-'C5-Capex'!C40 -> 0 | D178: =D173+SC13a!D173+SC13e!D173-'C5-Capex'!D40 -> 0 | E178: =E173+SC13a!E173+SC13e!E173-'C5-Capex'!E40 -> 0 | F178: =F173+SC13a!F173+SC13e!F173-'C5-Capex'!F40 -> 0 | G178: =G173+SC13a!G173+SC13e!G173-'C5-Capex'!G40 -> 0 | H178: =H173+SC13a!H173+SC13e!H173-'C5-Capex'!H40 -> 0 | K178: =K173+SC13a!K173+SC13e!K173-'C5-Capex'!K40 -> 0

Sheet SC13c
A1: =muni& " - "&S71Sc& " - "&Head57 -> KZN225 Msunduzi - Supporting Table SC13c Consolidated Monthly Budget Statement - expenditure on repairs and maintenance by asset class - Q4 Fourth Quarter
A2: =desc -> Description | B2: =head27 -> Ref | C2: =Head1 -> 2023/24 | D2: =Head2 -> Budget Year 2024/25
